Workbook

Sheet zkratky
A1: Používané zkratky:
A2: BV | B2: běžné výdaje
A3: KV | B3: kapitálové (investiční) výdaje
A4: SR | B4: schválený rozpočet
A5: UR | B5: upravený rozpočet
A7: Rozpis:
A8: MK | B8: místní komunikace
A9: DTMM | B9: digitálně technická mapa města
A10: OÚE | B10: oddělená účetní evidence (dotační tituly)
A11: PD | B11: projektová dokumentace
A12: DÚ | B12: drobná údržba
A14: BÚ | B14: běžný účet
A15: ZBÚ | B15: základní běžné účty
A16: TV | B16: termínovaný vklad
A17: SF | B17: sociální fond
A18: FBI | B18: Fond bydlení a rozvoje infrastruktury
A19: FIPO | B19: Fond investic příspěvkových organizací
A20: ČS | B20: Česká spořitelna
A21: SOS | B21: smuteční obřadní síň
A23: SVČ | B23: Středisko volného času v Humpolci
A24: MěKIS | B24: Městské kulturní a informační středisko v Humpolci
A25: MŠ | B25: Mateřská škola v Humpolci
A26: PO | B26: příspěvková organizace
A27: RM | B27: rada města
A29: ZS | B29: zimní stadion
A30: BHS | B30: bytové hospodářství
A31: TS | B31: Technické služby Humpolec s.r.o.
A32: ŠJ | B32: školní jídelna
A33: FS | B33: fotbalový stadion
A34: DZS | B34: dětské zdravotní středisko
A35: ČOV | B35: čistírna odpadních vod
A36: VO | B36: veřejné osvětlení
A37: OV | B37: osadní výbor
A38: UH | B38: urnový háj

Sheet Návrh rozpočtu 2023 agregát
A1: Návrh rozpočtu MĚSTA HUMPOLCE r. 2023 v tis. Kč
A2: v následujícím členění:
A3: ROZPOČTOVÉ PŘÍJMY CELKEM v tis. Kč | C3: Položka | D3: =SUM(D5:D6,D10:D11) -> 414315.4136
A4: z toho: | C4: Třída RS
A5: DAŇOVÉ PŘÍJMY | C5: 1 | D5: ='Př vč financ návrh 2023'!M28 -> 269405
A6: NEDAŇOVÉ PŘÍJMY | C6: 2 | D6: ='Př vč financ návrh 2023'!M89 -> 121309.3075
A7: z toho:
A8: Odvody odpisů příspěvkovými organizacemi do Fondu investic PO | D8: ='Př vč financ návrh 2023'!M39+'Př vč financ návrh 2023'!M40+'Př vč financ návrh 2023'!M41+'Př vč financ návrh 2023'!M42+'Př vč financ návrh 2023'!M43+'Př vč financ návrh 2023'!M44 -> 3428
A10: KAPITÁLOVÉ PŘÍJMY | C10: 3 | D10: ='Př vč financ návrh 2023'!M94 -> 300
A11: PŘIJATÉ TRANSFERY (DOTACE) | C11: 4 | D11: ='Př vč financ návrh 2023'!M128 -> 23301.106
A12: a v následujících závazných ukazatelích (Z):
A13: ROZPOČTOVÉ VÝDAJE CELKEM v tis. Kč | C13: 5+6 | D13: =D15+D55 -> 590357.903
A14: z toho:
A15: BĚŽNÉ VÝDAJE | B15: Z | C15: 5 | D15: ='BV návrh 2023'!Z629 -> 363339.903
A16: z toho:
A17: 10 - Zemědělství a lesní hospodářství | B17: Z | D17: ='BV návrh 2023'!Z17 -> 1580
A18: 21 - Průmysl, stavebnictví, obchod, služby | B18: Z | D18: ='BV návrh 2023'!Z21 -> 175
A19: 22 - Doprava | B19: Z | D19: ='BV návrh 2023'!Z48 -> 16225
A20: 23 - Vodní hospodářství | B20: Z | D20: ='BV návrh 2023'!Z73 -> 52044
A21: 31, 32 - Vzdělávání | B21: Z | D21: ='BV návrh 2023'!Z91+'BV návrh 2023'!Z98 -> 33183 | E21: -18 | F21: =SUM(D21:E21) -> 33165
A22: z toho:
A23: Neinvestiční příspěvek pro PO MŠ, ZŠ, ZUŠ a SVČ | B23: Z | D23: ='BV návrh 2023'!Z76+'BV návrh 2023'!Z77+'BV návrh 2023'!Z81+'BV návrh 2023'!Z82+'BV návrh 2023'!Z83+'BV návrh 2023'!Z84+'BV návrh 2023'!Z85+'BV návrh 2023'!Z92+'BV návrh 2023'!Z94 -> 30115
A24: Dotace kateg.B./obl. Kultury dle "Zásad" | B24: Z | D24: 18 | E24: 18 | F24: vzděl. Pro budoucnost
A25: 33 - Kultura, církve | B25: Z | D25: ='BV návrh 2023'!Z154 -> 25585
A26: z toho:
A27: Neinvestiční příspěvek pro PO MěKIS | B27: Z | D27: ='BV návrh 2023'!Z113 -> 17099
A28: Dotace kateg.B./obl. Kultury dle "Zásad" | B28: Z | D28: 482
A29: Dotace kateg.C./obl.ost.zájmových činností dle "Zásad" | B29: Z | D29: 23
A30: Dotace kateg.D/v obl.obnovy kult.památek dle "Zásad" | B30: Z | D30: 500
A31: 34 - Sport a zájmová činnost | B31: Z | D31: ='BV návrh 2023'!Z234 -> 24882.3 | E31: 362.7
A32: z toho:
A33: Dotace kateg.A/v obl.tělovýchova a sport dle "Zásad" | B33: Z | D33: 10500
A34: Dotace kateg.C./obl.ost.zájmových činností dle "Zásad" | B34: Z | D34: 737.3 | E34: 362.7
A35: 36 - Bydlení, komunální služby a územní rozvoj | B35: Z | D35: ='BV návrh 2023'!Z383 -> 64860.187
A36: z toho:
A37: Dotace v rámci programu "Sociální služby" | B37: Z | D37: 24.5
A38: 37 - Ochrana životního prostředí | B38: Z | D38: ='BV návrh 2023'!Z431 -> 38490
A39: 39 - Ostatní činnosti související se službami pro obyvatelstvo | B39: Z | D39: ='BV návrh 2023'!Z436 -> 70
A40: 43 - Sociální služby | B40: Z | D40: ='BV návrh 2023'!Z468 -> 4540.5
A41: z toho:
A42: Dotace v rámci programu "Sociální služby" | B42: Z | D42: =4500-24.5 -> 4475.5
A43: 52 - Civilní připravenost na krizové stavy | B43: Z | D43: ='BV návrh 2023'!Z475 -> 287
A44: 53 - Bezpečnost a veřejný pořádek | B44: Z | D44: ='BV návrh 2023'!Z481 -> 820
A45: 55 - Požární ochrana a IZS | B45: Z | D45: ='BV návrh 2023'!Z511 -> 2315.7 | E45: -339.7
A46: z toho:
A47: Dotace kateg.C./obl.ost.zájmových činností dle "Zásad" | B47: Z | D47: 339.7
A48: 61 - Územní samospráva | B48: Z | D48: ='BV návrh 2023'!Z598 -> 69676
A49: 62 - Jiné veřejné služby a činnosti | B49: Z | D49: ='BV návrh 2023'!Z612 -> 600
A50: 63 - Finanční operace | B50: Z | D50: ='BV návrh 2023'!Z619 -> 27700
A51: z toho:
A52: Rezerva na poskytnutí darů v gesci RM | B52: Z | D52: ='BV návrh 2023'!Z618 -> 200
A53: 64 - Ostatní činnosti | B53: Z | D53: ='BV návrh 2023'!Z628 -> 306.21604
A55: KAPITÁLOVÉ VÝDAJE | B55: Z | C55: 6 | D55: =SUM(D66:D72,D63,D57:D60) -> 227018
A56: z toho:
A57: 10 - Zemědělství a lesní hospodářství | B57: Z | D57: ='KV návrh 2023'!Z10 -> 1000
A58: 22 - Doprava | B58: Z | D58: ='KV návrh 2023'!Z53 -> 26200
A59: 23 - Vodní hospodářství | B59: Z | D59: ='KV návrh 2023'!Z72 -> 41100
A60: 31,32 Vzdělávání | B60: Z | D60: ='KV návrh 2023'!Z80+'KV návrh 2023'!Z84 -> 65703
A61: z toho:
A62: Investiční příspěvek pro PO MŠ, ZŠ a SVČ | B62: Z | D62: ='KV návrh 2023'!Z76+'KV návrh 2023'!Z78+'KV návrh 2023'!Z79+'KV návrh 2023'!Z83 -> 2450
A63: 33 - Kultura, církve | B63: Z | D63: ='KV návrh 2023'!Z91 -> 19280
A64: z toho:
A65: Investiční příspěvek pro PO MěKIS | B65: Z | D65: ='KV návrh 2023'!Z87 -> 4680
A66: 34 - Sport a zájmová činnost | B66: Z | D66: ='KV návrh 2023'!Z126 -> 18700
A67: 36 - Bydlení, komunální služby a územní rozvoj | B67: Z | D67: ='KV návrh 2023'!Z168 -> 31550
A68: 37 - Ochrana životního prostředí | B68: Z | D68: ='KV návrh 2023'!Z178 -> 8070
A69: 52 - Civilní připravenost na krizové stavy | B69: Z | D69: ='KV návrh 2023'!Z180 -> 10000
A70: 53 - Bezpečnost a veřejný pořádek | B70: Z | D70: ='KV návrh 2023'!Z184 -> 700
A71: 55 - Požární ochrana a IZS | B71: Z | D71: ='KV návrh 2023'!Z186 -> 1200
A72: 61 - Územní samospráva | B72: Z | D72: ='KV návrh 2023'!Z200 -> 3515
A74: FINANCOVÁNÍ CELKEM v tis. Kč | B74: Z | C74: 8 | D74: =SUM(D76:D87) -> 176042.4895
A75: z toho:
A76: ZAPOJENÍ VLASTNÍCH FIN.PROSTŘEDKŮ (BĚŽNÝ ÚČET MĚSTO) | C76: 8115 | D76: =D13-D3-D77-D78-D79-D80-D81-D83-D85-D87-D82-D84-D86 -> 182078.5847 | F76: ='HK k 31.12.2022 ZBÚ,TV,fondy,úv'!G26/1000 -> 248556.1059 | G76: přebytky k 31. 12. 2022
A77: ZAPOJENÍ VLASTNÍCH FIN.PROSTŘEDKŮ (BĚŽNÝ ÚČET VODNÍ HOSPODÁŘSTVÍ) | C77: 8115 | D77: ='HK k 31.12.2022 ZBÚ,TV,fondy,úv'!G6/1000 -> 18232.13217 | F77: =-SUM(D76:D82) -> -209873.7168 | G77: zapojení přebytků
A78: ZAPOJENÍ VLASTNÍCH FIN.PROSTŘEDKŮ (BĚŽNÝ ÚČET BYT. HOSPODÁŘSTVÍ) | C78: 8115 | D78: 5770 | F78: =SUM(F76:F77) -> 38682.38907 | G78: nezapojené fin. prostředky
A79: ZAPOJENÍ VLASTNÍCH FIN.PROSTŘEDKŮ (FOND BYDLENÍ A INFRASTRUKTURY) - investiční akce Chodník (lávka) ul. Lužická | C79: 8115 | D79: 4500
A80: ZAPOJENÍ VLASTNÍCH FIN.PROSTŘEDKŮ (FOND INVESTIC PO) akce MŠ Podhrad | C80: 8115 | D80: 3000
A81: ODVODY DO FONDŮ (FIPO, FBI) | C81: 8115 | D81: ='Př vč financ návrh 2023'!M145+'Př vč financ návrh 2023'!M144 -> -3728
A82: ZAPOJENÍ VLASTNÍCH FIN.PROSTŘEDKŮ (SOCIÁLNÍ FOND) | C82: 8115 | D82: ='Př vč financ návrh 2023'!M147 -> 21
A83: Aktivní krátkodobé operace řízení likvidity - výdaje | C83: 8118 | D83: -167000
A84: Aktivní krátkodobé operace řízení likvidity - příjmy | C84: 8117 | D84: 167000
A85: SPLÁTKY PŘIJATÝCH ÚVĚRŮ - ČS, a.s. (SPLACENÍ ÚVĚRU) | B85: Z | C85: 8124 | D85: ='Fin.rezerva, splátky úvěrů'!P43 -> -11085.02504 | E85: splacení celého úvěru - žádost o splacení úvěru ve výši zůstatku jistiny. Na inkasní účet převést fin. prostředky na splacení a úroky, možnost splacení každý měsíc - splatnost dle podpisu smlouvy -k 27.tému 1M PRIBOR, žádat min. 10 dní před splatností
A86: SPLÁTKY PŘIJATÝCH ÚVĚRŮ - ČSOB, a.s. (MIMOŘÁDNÁ SPL.) | B86: Z | C86: 8124 | D86: ='Fin.rezerva, splátky úvěrů'!P42 -> -20465.26 | E86: splacení přijaté části úvěru z úvěrového rámce - lze splatit částku přijatou, či nižší, pokud se podepíše Dodatek č. 2, na konkrétní částku - nyní termín splatnosti k 25. 5., popř. nutno schválit nový dodatek s dalším termínem splatnosti
A87: SPLÁTKY PŘIJATÝCH ÚVĚRŮ - SFŽP | B87: Z | C87: 8124 | D87: =-2280942.32/1000 -> -2280.94232
A89: Rozpočet města Humpolec na rok 2023 je zpracován v souladu se zákonem č. 250/2000 Sb., ve znění pozdějších předpisů, o rozpočtových pravidlech, po schválení v orgánech města bude základním finančním nástrojem hospodaření v roce 2023.
A90: Vyvěšeno: 14.02.2023
A94: DOKUMENT NA VĚDOMÍ:
A95: Rozpis návrhu rozpočtu 2023
A96: Hlavní kniha k 31. 12. 2022 - účty 231, 236, 244 a 451
A97: Finanční rezerva, splátky úvěrů
A99: Změny oproti prac. ZM z 01/12/2022
A100: Přehled zkratek

Sheet Př vč financ návrh 2023
A1: 00248266 Město Humpolec
A2: Horní náměstí 300 Humpolec
A3: Návrh rozpisu rozpočtu příjmů vč. financování 2023 v tisících Kč
A5: POL(1) | B5: POL(2) | C5: POL(4) | D5: Popis | E5: ODPA(4) | F5: Popis | G5: ORG | H5: 2022 | M5: 2023 | N5: KONTR. SL. | Q5: kontr.sl.
H6: Schválený rozp. | I6: Upravený rozp. | J6: Skutečnost k 31. 12. | K6: Plnění v Kč k UR | L6: Plnění v % k UR | M6: Návrh | N6: Návrh k 31. 01. 2023 | O6: Návrh 2023 prac. ZM | P6: rozdíl oproti prac.ZM | Q6: Návrh 2023 prac. | R6: % změna návrhu 2023/SK 2022 | S6: % změna návrhu 2023/UR 2022
A7: 1 | B7: 11 | C7: 1111 | D7: Příjem z daně z příjmů fyzických osob placené plátci | H7: 30800 | I7: 30800 | J7: 33193.94953 | K7: -2393.94953 | L7: 107.7725634 | M7: 36100 | N7: 36100 | O7: 36100 | P7: =M7-O7 -> 0 | Q7: 36100 | R7: =M7/J7*100 -> 108.7547596 | S7: =M7/I7*100-100 -> 17.20779221
A8: 1 | B8: 11 | C8: 1112 | D8: Příjem z daně z příjmů fyzických osob placené poplatníky | H8: 1150 | I8: 2150 | J8: 2808.21357 | K8: -658.21357 | L8: 130.6145847 | M8: 2200 | N8: 2200 | O8: 2200 | P8: =M8-O8 -> 0 | Q8: 2200 | R8: =M8/J8*100 -> 78.34161986 | S8: 2.325581395
A9: 1 | B9: 11 | C9: 1113 | D9: Příjem z daně z příjmů fyzických osob vybírané srážkou podle zvláštní sazby daně | H9: 4800 | I9: 5600 | J9: 6242.61795 | K9: -642.61795 | L9: 111.4753205 | M9: 7100 | N9: 7100 | O9: 7100 | P9: 0 | Q9: 7100 | R9: 113.7343348 | S9: 26.78571429
A10: 1 | B10: 11 | C10: 1121 | D10: Příjem z daně z příjmů právnických osob | H10: 34500 | I10: 38750 | J10: 47189.29931 | K10: -8439.29931 | L10: 121.7788369 | M10: 48750 | N10: 48750 | O10: 48750 | P10: 0 | Q10: 48750 | R10: 103.3073191 | S10: 25.80645161
A11: 1 | B11: 11 | C11: 1122 | D11: Příjem z daně z příjmů právnických osob v případech, kdy poplatníkem je obec | H11: 15000 | I11: 14157.66 | J11: 14157.66 | K11: 0 | L11: 100 | M11: 15000 | N11: 15000 | O11: 15000 | P11: =M11-O11 -> 0 | Q11: 15000 | R11: 105.949712 | S11: 5.949712029
A12: POL(2) 11 Daně z příjmů, zisku a kapitálových výnosů | H12: 86250 | I12: 91457.66 | J12: 103591.74 | K12: -12134.08 | L12: 113.27 | M12: =SUM(M7:M11) -> 109150 | O12: =SUM(O7:O11) -> 109150 | P12: 0 | R12: 105.3655436 | S12: 19.34484219
A13: 1 | B13: 12 | C13: 1211 | D13: Příjem z daně z přidané hodnoty | H13: 91900 | I13: 98700 | J13: 107252.4904 | K13: -8552.49044 | L13: 108.6651372 | M13: 117000 | N13: 117000 | O13: 117000 | P13: =M13-O13 -> 0 | Q13: 117000 | R13: 109.088376 | S13: 18.54103343
A14: POL(2) 12 Daně, poplatky a jiná obdobná peněžitá plnění ze zboží a služeb v tuzemsku | H14: 91900 | I14: 98700 | J14: 107252.49 | K14: -8552.49 | L14: 108.67 | M14: =SUM(M13) -> 117000 | O14: =SUM(O13) -> 117000 | P14: 0 | R14: 109.0883764 | S14: 18.54103343
A15: 1 | B15: 13 | C15: 1334 | D15: Příjem z odvodů za odnětí půdy ze zemědělského půdního fondu podle zákona na ochranu ZPF | H15: 0 | I15: 0 | J15: 170.9193 | K15: -170.9193 | L15: 0 | P15: 0 | R15: 0 | T15: plnění Ekofondu
A16: 1 | B16: 13 | C16: 1335 | D16: Příjem z poplatku za odnětí pozemku podle lesního zákona | H16: 5 | I16: 5 | J16: 2.4504 | K16: 2.5496 | L16: 49.008 | M16: 5 | N16: 5 | O16: 5 | P16: 0 | Q16: 5 | R16: 204.0483186 | S16: 0
A17: 1 | B17: 13 | C17: 1341 | D17: Příjem z poplatku ze psů | H17: 250 | I17: 250 | J17: 288.965 | K17: -38.965 | L17: 115.586 | M17: 250 | N17: 250 | O17: 250 | P17: 0 | Q17: 250 | R17: 86.51566799 | S17: 0
A18: 1 | B18: 13 | C18: 1343 | D18: Příjem z poplatku za užívání veřejného prostranství | H18: 200 | I18: 200 | J18: 320.932 | K18: -120.932 | L18: 160.466 | M18: 150 | N18: 150 | O18: 150 | P18: 0 | Q18: 150 | R18: 46.73887303 | S18: -25
A19: 1 | B19: 13 | C19: 1345 | D19: Příjem z poplatku za odpadové hospodářství a odkládání komunálního odpadu z nemovité věci | H19: 7500 | I19: 7500 | J19: 7836.38978 | K19: -336.38978 | L19: 104.4851971 | M19: 7500 | N19: 7500 | O19: 7500 | P19: 0 | Q19: 7500 | R19: 95.70733731 | S19: 0
A20: 1 | B20: 13 | C20: 1353 | D20: Příjem za zkoušky z odborné způsobilosti od žadatelů o řidičské oprávnění | H20: 250 | I20: 250 | J20: 295.3 | K20: -45.3 | L20: 118.12 | M20: 250 | N20: 250 | O20: 250 | P20: 0 | Q20: 250 | R20: 84.65966813 | S20: 0
A21: 1 | B21: 13 | C21: 1361 | D21: Příjem ze správních poplatků | H21: 4700 | I21: 4700 | J21: 5100.695 | K21: -400.695 | L21: 108.5254255 | M21: 4700 | N21: 4700 | O21: 4700 | P21: 0 | Q21: 0 | R21: 92.14430582 | S21: =#REF!/I21*100-100 -> 
A22: 1 | B22: 13 | C22: 1381 | D22: Příjem z daně z hazardních her s výjimkou dílčí daně z technických her | H22: 1000 | I22: 1500 | J22: 1516.20508 | K22: -16.20508 | L22: 101.0803387 | M22: 1500 | N22: 1500 | O22: 1500 | P22: 0 | Q22: 4700 | R22: 98.93120791 | S22: =M21/I22*100-100 -> 213.3333333
A23: 1 | B23: 13 | C23: 1382 | D23: Příjem ze zrušeného odvodu z loterií a podobných her kromě odvodu z výherních hracích přístrojů | H23: 0 | I23: 0 | J23: 1.091 | K23: -1.091 | L23: 0 | M23: 0 | N23: 0 | O23: 0 | P23: 0 | Q23: 1500 | R23: 0 | S23: =M22/I23*100-100 -> 
A24: 1 | B24: 13 | C24: 1385 | D24: Příjem z dílčí daně z technických her | H24: 7000 | I24: 19500 | J24: 19751.87835 | K24: -251.87835 | L24: 101.2916838 | M24: 19000 | N24: 19000 | O24: 15000 | P24: 4000 | Q24: 15000 | R24: 96.19338305 | S24: -2.564102564
A25: POL(2) 13 Daně a poplatky z vybraných činností a služeb | H25: 20905 | I25: 33905 | J25: 35284.84 | K25: -1379.84 | L25: 104.07 | M25: =SUM(M15:M24) -> 33355 | O25: 29355 | P25: 4000 | R25: 94.5306823 | S25: -1.62217962
A26: 1 | B26: 15 | C26: 1511 | D26: Příjem z daně z nemovitých věcí | H26: 9900 | I26: 9900 | J26: 10251.6052 | K26: -351.6052 | L26: 103.5515677 | M26: 9900 | N26: 9900 | O26: 9900 | P26: 0 | Q26: 9900 | R26: 96.57024248 | S26: 0
A27: POL(2) 15 Příjem z majetkových daní | H27: 9900 | I27: 9900 | J27: 10251.61 | K27: -351.61 | L27: 103.55 | M27: =SUM(M26) -> 9900 | O27: 9900 | P27: 0 | R27: 96.57019727 | S27: 0
A28: POL(1) 1 Daňové příjmy | H28: 208955 | I28: 233962.66 | J28: 256380.68 | K28: -22418.02 | L28: 109.58 | M28: =M27+M25+M14+M12 -> 269405 | O28: 265405 | P28: 4000 | R28: 105.0800708 | S28: 15.14871647
A29: z toho sdílené daně (POL 1111+1112+1113+1121+1211) | H29: =H7+H8+H9+H10+H13 -> 163150 | I29: =I7+I8+I9+I10+I13 -> 176000 | J29: =J7+J8+J9+J10+J13 -> 196686.5708 | K29: =K7+K8+K9+K10+K13 -> -20686.5708 | L29: =J29/I29*100 -> 111.7537334 | M29: =M7+M8+M9+M10+M13 -> 211150 | O29: 211150 | P29: 0 | R29: 107.3535418 | S29: 19.97159091
A30: 2 | B30: 21 | C30: 2111 | D30: Příjem z poskytování služeb, výrobků, prací, výkonů a práv | E30: 1039 | F30: Ostatní záležitosti lesního hospodářství | H30: 5 | I30: 5 | J30: 1.687 | K30: 3.313 | L30: 33.74 | M30: 2 | N30: 2 | O30: 2 | P30: 0 | Q30: 2 | R30: 118.5536455 | S30: -60
A31: 2 | B31: 21 | C31: 2111 | D31: Příjem z poskytování služeb, výrobků, prací, výkonů a práv | E31: 2310 | F31: Pitná voda | H31: 53000 | I31: 53000 | J31: 55247.43518 | K31: -2247.43518 | L31: 104.2404437 | M31: 55000 | N31: 55000 | O31: 55000 | P31: 0 | Q31: 55000 | R31: 99.55213273 | S31: 3.773584906
A32: 2 | B32: 21 | C32: 2111 | D32: Příjem z poskytování služeb, výrobků, prací, výkonů a práv | E32: 3612 | F32: Bytové hospodářství | H32: 5500 | I32: 5500 | J32: 6687.82676 | K32: -1187.82676 | L32: 121.5968502 | M32: 7900 | N32: 7900 | O32: 7900 | P32: 0 | Q32: 7900 | R32: 118.1250694 | S32: 43.63636364 | T32: oznámeno nájemníkům navýšení záloh na teplo o 1000,-paušálně od 1. 1. 2023
A33: 2 | B33: 21 | C33: 2111 | D33: Příjem z poskytování služeb, výrobků, prací, výkonů a práv | E33: 3613 | F33: Nebytové hospodářství | H33: 10 | I33: 10 | J33: 10.08 | K33: -0.08 | L33: 100.8 | M33: 10 | N33: 10 | O33: 10 | P33: 0 | Q33: 10 | R33: 99.20634921 | S33: 0
A34: 2 | B34: 21 | C34: 2111 | D34: Příjem z poskytování služeb, výrobků, prací, výkonů a práv | E34: 3722/5 | F34: Sběr a svoz komunálních odpadů-Odměna za vytříděné složky odpadu | G34: 0372200017 | H34: 0 | I34: 2500 | J34: 2158.58676 | K34: 341.41324 | L34: 86.3434704 | M34: 3000 | N34: 3000 | O34: 3000 | P34: 0 | Q34: 3000 | R34: 138.9798203 | S34: 20
A35: 2 | B35: 21 | C35: 2111 | D35: Příjem z poskytování služeb, výrobků, prací, výkonů a práv | E35: 3900 | F35: Ostatní činnosti související se službami pro obyvatelstvo | H35: 10 | I35: 10 | J35: 81.373 | K35: -71.373 | L35: 813.73 | M35: 20 | N35: 20 | O35: 20 | P35: 0 | Q35: 20 | R35: 24.57817704 | S35: 100
A36: 2 | B36: 21 | C36: 2111 | D36: Příjem z poskytování služeb, výrobků, prací, výkonů a práv | E36: 6171 | F36: Činnost místní správy | H36: 20 | I36: 20 | J36: 2.337 | K36: 17.663 | L36: 11.685 | M36: 10 | N36: 10 | O36: 10 | P36: 0 | Q36: 10 | R36: 427.8990158 | S36: -50
A37: 2 | B37: 21 | C37: 2112 | D37: Příjem z prodeje zboží (již nakoupeného za účelem prodeje) | E37: 6171 | F37: Činnost místní správy | H37: 2 | I37: 2 | J37: 12.565 | K37: -10.565 | L37: 628.25 | M37: 2 | N37: 2 | O37: 2 | P37: 0 | Q37: 2 | R37: 15.9172304 | S37: 0
A38: 2 | B38: 21 | C38: 2119 | D38: Ostatní příjmy z vlastní činnosti | E38: 6171 | F38: Činnost místní správy | H38: 120 | I38: 120 | J38: 649.24795 | K38: -529.24795 | L38: 541.0399583 | M38: 120 | N38: 120 | O38: 120 | P38: 0 | Q38: 120 | R38: 18.4829232 | S38: 0
A39: 2 | B39: 21 | C39: 2122 | D39: Příjem z odvodů příspěvkových organizací - FIPO | E39: 3111 | F39: Mateřské školy | H39: 481 | I39: 481 | J39: 486.152 | K39: -5.152 | L39: 101.0711019 | M39: 509 | N39: 509 | O39: 509 | P39: 0 | Q39: 509 | R39: 104.6997647 | S39: =M39/I39*100-100 -> 5.821205821 | T39: =SUM(M39:M44) -> 3428
A40: 2 | B40: 21 | C40: 2122 | D40: Příjem z odvodů příspěvkových organizací - FIPO | E40: 3113 | F40: Základní školy-ZŠ Hálkova | G40: 0000000321 | H40: 1030 | I40: 1030 | J40: 1035.8957 | K40: -5.8957 | L40: 100.5723981 | M40: 1040 | N40: 1040 | O40: 1040 | P40: 0 | Q40: 1040 | R40: 100.3962078 | S40: 0.9708737864
A41: 2 | B41: 21 | C41: 2122 | D41: Příjem z odvodů příspěvkových organizací - FIPO | E41: 3113 | F41: Základní školy-ZŠ Hradská | G41: 0000000322 | H41: 916 | I41: 916 | J41: 918.19972 | K41: -2.19972 | L41: 100.2401441 | M41: 801 | N41: 801 | O41: 801 | P41: 0 | Q41: 801 | R41: 87.23592292 | S41: -12.55458515
A42: 2 | B42: 21 | C42: 2122 | D42: Příjem z odvodů příspěvkových organizací - FIPO | E42: 3231 | F42: Základní umělecká škola | H42: 83 | I42: 83 | J42: 82.56 | K42: 0.44 | L42: 99.46987952 | M42: 82 | N42: 82 | O42: 82 | P42: 0 | Q42: 82 | R42: 99.32170543 | S42: -1.204819277
A43: 2 | B43: 21 | C43: 2122 | D43: Příjem z odvodů příspěvkových organizací - FIPO | E43: 3233 | F43: Středisko volného času | H43: 278 | I43: 278 | J43: 278.248 | K43: -0.248 | L43: 100.0892086 | M43: 282 | N43: 282 | O43: 282 | P43: 0 | Q43: 282 | R43: 101.3484374 | S43: 1.438848921
A44: 2 | B44: 21 | C44: 2122 | D44: Příjem z odvodů příspěvkových organizací - FIPO | E44: 3319 | F44: Ostatní záležitosti kultury - MěKIS | H44: 832 | I44: 832 | J44: 714.276 | K44: 117.724 | L44: 85.85048077 | M44: 714 | N44: 714 | O44: 714 | P44: 0 | Q44: 714 | R44: 99.96135947 | S44: -14.18269231
A45: 2 | B45: 21 | C45: 2131 | D45: Příjem z pronájmu pozemků | E45: 1039 | F45: Ostatní záležitosti lesního hospodářství | H45: 20000 | I45: 60500 | J45: 60588.17996 | K45: -88.17996 | L45: 100.145752 | M45: 7260 | N45: 7260 | O45: 7260 | P45: 0 | Q45: 7260 | R45: 11.98253522 | S45: -88
A46: 2 | B46: 21 | C46: 2131 | D46: Příjem z pronájmu pozemků | E46: 3639 | F46: Komunální služby a územní rozvoj jinde nezařazené | H46: 784 | I46: 784 | J46: 1113.87124 | K46: -329.87124 | L46: 142.0754133 | M46: 782 | N46: 782 | O46: 845 | P46: -63 | Q46: 845 | R46: 70.20560114 | S46: -0.2551020408 | T46: Němcová-trhy
A47: 2 | B47: 21 | C47: 2132 | D47: Příjem z pronájmu ostatních nemovitých věcí a jejich částí | E47: 2310 | F47: Pitná voda | H47: 0.1 | I47: 0.1 | J47: 0.121 | K47: -0.021 | L47: 121 | M47: 0.121 | N47: 0.121 | O47: 0.121 | P47: 0 | Q47: 0.121 | R47: 100 | S47: 21
A48: 2 | B48: 21 | C48: 2132 | D48: Příjem z pronájmu ostatních nemovitých věcí a jejich částí | E48: 3612 | F48: Bytové hospodářství | H48: 14000 | I48: 14000 | J48: 14224.09819 | K48: -224.09819 | L48: 101.6007014 | M48: 14700 | N48: 14700 | O48: 14700 | P48: 0 | Q48: 14700 | R48: 103.3457433 | S48: 5
A49: 2 | B49: 21 | C49: 2132 | D49: Příjem z pronájmu ostatních nemovitých věcí a jejich částí | E49: 3613 | F49: Nebytové hospodářství | H49: 6100 | I49: 6100 | J49: 7251.9643 | K49: -1151.9643 | L49: 118.8846607 | M49: 6400 | N49: 6400 | O49: 6400 | P49: 0 | Q49: 6400 | R49: 88.25195127 | S49: 4.918032787
A50: 2 | B50: 21 | C50: 2132 | D50: Příjem z pronájmu ostatních nemovitých věcí a jejich částí | E50: 3639 | F50: Komunální služby a územní rozvoj jinde nezařazené | H50: 6 | I50: 6 | J50: 6.05 | K50: -0.05 | L50: 100.8333333 | M50: 6 | N50: 6 | O50: 6 | P50: 0 | Q50: 6 | R50: 99.17355372 | S50: 0
A51: 2 | B51: 21 | C51: 2132 | D51: Příjem z pronájmu ostatních nemovitých věcí a jejich částí | E51: 6221 | F51: Humanitární zahraniční pomoc přímá | H51: 0 | I51: 0 | J51: 186.2 | K51: -186.2 | L51: 0 | M51: =36+14 -> 50 | N51: 50 | P51: 50 | R51: 26.8528464 | T51: Zeman
A52: 2 | B52: 21 | C52: 2133 | D52: Příjem z pronájmu movitých věcí | E52: 3639 | F52: Komunální služby a územní rozvoj jinde nezařazené | H52: 175 | I52: 175 | J52: 172.6202 | K52: 2.3798 | L52: 98.64011429 | M52: 175 | N52: 175 | O52: 175 | P52: 0 | Q52: 175 | R52: 101.3786336 | S52: 0
A53: 2 | B53: 21 | C53: 2139 | D53: Ostatní příjmy z pronájmu majetku | E53: 3632 | F53: Pohřebnictví | H53: 200 | I53: 200 | J53: 238.505 | K53: -38.505 | L53: 119.2525 | M53: 200 | N53: 200 | O53: 200 | P53: 0 | Q53: 200 | R53: 83.85568437 | S53: 0
A54: 2 | B54: 21 | C54: 2139 | D54: Ostatní příjmy z pronájmu majetku | E54: 3639 | F54: Komunální služby a územní rozvoj jinde nezařazené | H54: 100 | I54: 100 | J54: 94.501 | K54: 5.499 | L54: 94.501 | M54: 100 | N54: 100 | O54: 100 | P54: 0 | Q54: 100 | R54: 105.818986 | S54: 0
A55: 2 | B55: 21 | C55: 2141 | D55: Příjem z úroků | E55: 6310 | F55: Obecné příjmy a výdaje z finančních operací | H55: 500 | I55: 1200 | J55: 8953.20042 | K55: -7753.20042 | L55: 746.100035 | M55: 5000 | N55: 5000 | O55: 5000 | P55: 0 | Q55: 5000 | R55: 55.8459519 | S55: 316.6666667
D56: z toho SF: | M56: 10 | N56: 10 | O56: 10 | P56: 0 | Q56: 10
A57: 2 | B57: 21 | C57: 2143 | D57: Kursové rozdíly v příjmech | E57: 2299 | F57: Ostatní záležitosti v dopravě | H57: 2 | I57: 2 | J57: -0.34253 | K57: 2.34253 | L57: -17.1265 | M57: 2 | N57: 2 | O57: 2 | P57: 0 | Q57: 2 | R57: -583.8904621 | S57: 0
A58: POL(2) 21 Příjem z vlastní činnosti a odvody přebytků organizací s přímým vztahem | H58: 104154.1 | I58: 147854.1 | J58: 161195.47 | K58: -13341.37 | L58: 109.02 | M58: =SUM(M30:M57) -> 104177.121 | O58: =SUM(O30:O57) -> 104190.121 | P58: -13 | R58: 64.62782174 | S58: -29.54059373
A59: 2 | B59: 22 | C59: 2212 | D59: Příjem sankčních plateb přijatých od jiných subjektů | E59: 2169 | F59: Ostatní správa v průmyslu,stavebnictví, obchodu a službách | H59: 10 | I59: 10 | J59: 11 | K59: -1 | L59: 110 | M59: 10 | N59: 10 | O59: 10 | P59: 0 | Q59: 10 | R59: 90.90909091 | S59: 0
A60: 2 | B60: 22 | C60: 2212 | D60: Příjem sankčních plateb přijatých od jiných subjektů | E60: 2212 | F60: Silnice | M60: 126 | N60: 126 | T60: smluvní pokuta-Eurovia
A61: 2 | B61: 22 | C61: 2212 | D61: Příjem sankčních plateb přijatých od jiných subjektů | E61: 2299 | F61: Ostatní záležitosti v dopravě | H61: 500 | I61: 500 | J61: 1770.94436 | K61: -1270.94436 | L61: 354.188872 | M61: 400 | N61: 400 | O61: 400 | P61: 0 | Q61: 400 | R61: 22.58681916 | S61: -20 | T61: ukončení výměrů D1 k 30.11.2022 9112 za 1000,- a překlopení na správní řízení na kod 9119
A62: 2 | B62: 22 | C62: 2212 | D62: Příjem sankčních plateb přijatých od jiných subjektů | E62: 3319 | F62: Ostatní záležitosti kultury | H62: 0 | I62: 0 | J62: 302.13978 | K62: -302.13978 | L62: 0 | P62: 0 | R62: 0
A63: 2 | B63: 22 | C63: 2212 | D63: Příjem sankčních plateb přijatých od jiných subjektů | E63: 3612 | F63: Bytové hospodářství | H63: 50 | I63: 50 | J63: 229.8094 | K63: -179.8094 | L63: 459.6188 | M63: 20 | N63: 20 | O63: 20 | P63: 0 | Q63: 20 | R63: 8.7028642 | S63: -60
A64: 2 | B64: 22 | C64: 2212 | D64: Příjem sankčních plateb přijatých od jiných subjektů | E64: 3769 | F64: Ostatní správa v ochraně životního prostředí | H64: 50 | I64: 50 | J64: 62.6 | K64: -12.6 | L64: 125.2 | M64: 50 | N64: 50 | O64: 50 | P64: 0 | Q64: 50 | R64: 79.87220447 | S64: 0
A65: 2 | B65: 22 | C65: 2212 | D65: Příjem sankčních plateb přijatých od jiných subjektů | E65: 5311 | F65: Bezpečnost a veřejný pořádek | H65: 70 | I65: 70 | J65: 138.39824 | K65: -68.39824 | L65: 197.7117714 | M65: 70 | N65: 70 | O65: 70 | P65: 0 | Q65: 70 | R65: 50.57867788 | S65: 0
A66: 2 | B66: 22 | C66: 2229 | D66: Ostatní přijaté vratky transferů a podobné příjmy | E66: 3113 | F66: Základní škola Hradská | G66: 322 | H66: 1.115 | I66: 1.115 | J66: 1.115 | K66: 0 | L66: 100 | M66: 180.99755 | N66: 180.99755 | P66: 180.99755 | R66: 16232.96413 | S66: 16132.96413
A67: 2 | B67: 22 | C67: 2229 | D67: Ostatní přijaté vratky transferů a podobné příjmy | E67: 3113 | F67: Základní škola Hálkova | G67: 321 | M67: 348 | N67: 348
A68: 2 | B68: 22 | C68: 2229 | D68: Ostatní přijaté vratky transferů a podobné příjmy | E68: 3111 | F68: Mateřská škola | M68: 16.912 | N68: 16.912
A69: 2 | B69: 22 | C69: 2229 | D69: Ostatní přijaté vratky transferů a podobné příjmy | E69: 3319 | F69: MěKIS | M69: 235 | N69: 235
A70: 2 | B70: 22 | C70: 2229 | D70: Ostatní přijaté vratky transferů a podobné příjmy | E70: 6402 | F70: Středisko volného času | M70: 5.843 | N70: 5.843 | P70: 5.843
A71: 2 | B71: 22 | C71: 2229 | D71: Ostatní přijaté vratky transferů a podobné příjmy | E71: 6402 | F71: Finanční vypořádání - vratky veřejnopr.dotací r. 2022 | H71: 0 | I71: 0 | J71: 574.41861 | K71: -574.41861 | L71: 0 | M71: 476.434 | N71: 476.434 | P71: 476.434 | R71: 82.94195064 | S71: =M71/I71*100-100 -> 
A72: 2 | B72: 22 | C72: 2229 | D72: Ostatní přijaté vratky transferů a podobné příjmy | E72: 6402 | F72: Finanční vypořádání-Kraj-Potrav.pomoc dětem ZŠ Hálkova | G72: 0000321003 | H72: 0 | I72: 30 | J72: 30 | K72: 0 | L72: 100 | P72: 0 | R72: 0 | S72: -100
A73: 2 | B73: 22 | C73: 2229 | D73: Ostatní přijaté vratky transferů a podobné příjmy | E73: 6402 | F73: Finanční vypořádání-ZUŠ-průtok-dotace ŠABLONY II-vratka | G73: 0323100002 | H73: 0 | I73: 81.424 | J73: 81.424 | K73: 0 | L73: 100 | P73: 0 | R73: 0 | S73: -100
A74: POL(2) 22 Přijaté sankční platby a vratky transferů | H74: 681.12 | I74: 792.54 | J74: 3201.85 | K74: -2409.31 | L74: 404 | M74: =SUM(M59:M73) -> 1939.18655 | O74: =SUM(O59:O73) -> 550 | P74: 1389.18655 | R74: 60.5645658 | S74: 144.6799594
A75: 2 | B75: 23 | C75: 2310 | D75: Příjem z prodeje krátkodobého a drobného dlouhodobého neinvestičního majetku | E75: 6171 | F75: Činnost místní správy | H75: 1 | I75: 1 | J75: 0.638 | K75: 0.362 | L75: 63.8 | M75: 1 | N75: 1 | O75: 1 | P75: 0 | Q75: 1 | R75: 156.7398119 | S75: 0
A76: 2 | B76: 23 | C76: 2322 | D76: Příjem z pojistných náhrad | E76: 6171 | F76: Činnost místní správy | H76: 200 | I76: 200 | J76: 278.025 | K76: -78.025 | L76: 139.0125 | M76: 100 | N76: 100 | O76: 100 | P76: =M76-O76 -> 0 | Q76: 100 | R76: =M76/J76*100 -> 35.96798849 | S76: -50
A77: 2 | B77: 23 | C77: 2324 | D77: Přijaté neinvestiční příspěvky a náhrady | E77: 1036 | F77: Správa v lesním hospodářství-Projekt-Lesní hospodářské osnovy Želivsko | H77: 0 | I77: 30.4 | J77: 30.4 | K77: 0 | L77: 100 | P77: 0 | R77: 0
A78: 2 | B78: 23 | C78: 2324 | D78: Přijaté neinvestiční příspěvky a náhrady | E78: 2169 | F78: Ostatní správa v průmyslu,stavebnictví, obchodu a službách | H78: 2 | I78: 2 | J78: 1 | K78: 1 | L78: 50 | M78: 2 | N78: 2 | O78: 2 | P78: 0 | Q78: 2 | R78: 200 | S78: =M78/I78*100-100 -> 0
A79: 2 | B79: 23 | C79: 2324 | D79: Přijaté neinvestiční příspěvky a náhrady | E79: 2299 | F79: Ostatní záležitosti v dopravě | H79: 10 | I79: 10 | J79: 67.21542 | K79: -57.21542 | L79: 672.1542 | M79: 10 | N79: 10 | O79: 10 | P79: 0 | Q79: 10 | R79: 14.87753852 | S79: 0
A80: 2 | B80: 23 | C80: 2324 | D80: Přijaté neinvestiční příspěvky a náhrady | E80: 3632 | F80: Pohřebnictví | H80: 50 | I80: 50 | J80: 65.11589 | K80: -15.11589 | L80: 130.23178 | M80: 50 | N80: 50 | O80: 50 | P80: 0 | Q80: 50 | R80: 76.78617308 | S80: 0
A81: 2 | B81: 23 | C81: 2324 | D81: Přijaté neinvestiční příspěvky a náhrady | E81: 5311 | F81: Bezpečnost a veřejný pořádek | H81: 5 | I81: 5 | J81: 25.379 | K81: -20.379 | L81: 507.58 | M81: 5 | N81: 5 | O81: 5 | P81: 0 | Q81: 5 | R81: 19.70132787 | S81: 0
A82: 2 | B82: 23 | C82: 2324 | D82: Přijaté neinvestiční příspěvky a náhrady | E82: 6171 | F82: Činnost místní správy | H82: 5 | I82: 5 | J82: 29.2602 | K82: -24.2602 | L82: 585.204 | M82: 5 | N82: 5 | O82: 5 | P82: 0 | Q82: 5 | R82: 17.08805818 | S82: 0
A83: 2 | B83: 23 | C83: 2329 | D83: Ostatní nedaňové příjmy jinde nezařazené | E83: 6171 | F83: Činnost místní správy | H83: 50 | I83: 50 | J83: 37.14904 | K83: 12.85096 | L83: 74.29808 | M83: 10 | N83: 10 | O83: 10 | P83: 0 | Q83: 10 | R83: 26.91859601 | S83: -80
A84: 2 | B84: 23 | C84: 2329 | D84: Ostatní nedaňové příjmy jinde nezařazené | E84: 6409 | F84: Ostatní činnosti jinde nezařazené | H84: 0 | I84: 0 | J84: 5.736 | K84: -5.736 | L84: 0 | M84: 0 | N84: 0 | O84: 0 | P84: 0 | Q84: 0 | R84: 0
A85: POL(2) 23 Příjem z prodeje neinvestičního majetku, ostatní nedaňové příjmy | H85: 323 | I85: 353.4 | J85: 539.94 | K85: -186.54 | L85: 152.78 | M85: =SUM(M75:M84) -> 183 | O85: =SUM(O75:O84) -> 183 | P85: 0 | R85: 33.89265474 | S85: -48.21731749
A86: 2 | B86: 24 | C86: 2412 | D86: Splátky půjčených prostředků od podnikatelských nefinančních subjektů - právnických osob | F86: TS bezúročná zápůjčka | M86: 15000 | N86: 15000 | O86: 0 | P86: 15000 | Q86: 0
A87: 2 | B87: 24 | C87: 2460 | D87: Splátky půjčených prostředků od obyvatelstva | F87: SF | H87: 10 | I87: 10 | J87: 0 | K87: 10 | L87: 0 | M87: 10 | N87: 10 | O87: 10 | P87: 0 | Q87: 10 | S87: 0
A88: POL(2) 24 Přijaté splátky půjčených prostředků | H88: 10 | I88: 10 | J88: 0 | K88: 10 | L88: 0 | M88: =SUM(M86:M87) -> 15010 | O88: =SUM(O86:O87) -> 10 | P88: 15000 | S88: 150000
A89: POL(1) 2 Nedaňové příjmy | H89: 105168.22 | I89: 149010.04 | J89: 164937.26 | K89: -15927.22 | L89: 110.69 | M89: =SUM(M88,M85,M74,M58) -> 121309.3075 | O89: =SUM(O88,O85,O74,O58) -> 104933.121 | P89: 16376.18655 | R89: 73.54875881 | S89: -18.58984297
A90: 3 | B90: 31 | C90: 3111 | D90: Příjem z prodeje pozemků | E90: 3639 | F90: Komunální služby a územní rozvoj jinde nezařazené | H90: 300 | I90: 5339.9 | J90: 5391.404 | K90: -51.504 | L90: 100.9645124 | M90: 300 | N90: 300 | O90: 300 | P90: 0 | Q90: 300 | R90: 5.564413277 | S90: =M90/I90*100-100 -> -94.38191726
A91: 3 | B91: 31 | C91: 3121 | D91: Přijaté dary na pořízení dlouhodobého majetku | E91: 2219 | F91: Ostatní záležitosti pozemních komunikací-Chodník Světlice část B - od Pretol s.r.o. | H91: 0 | I91: 1200 | J91: 1200 | K91: 0 | L91: 100 | M91: 0 | N91: 0 | O91: 0 | P91: 0 | R91: 0 | S91: -100
A92: 3 | B92: 31 | C92: 3121 | D92: Přijaté dary na pořízení dlouhodobého majetku | E92: 3412 | F92: Sportovní zařízení ve vlastnictví obce- na herní prvky od KLM s.r.o. | H92: 0 | I92: 500 | J92: 500 | K92: 0 | L92: 100 | M92: 0 | N92: 0 | O92: 0 | P92: 0 | R92: 0 | S92: -100
A93: POL(2) 31 Příjem z prodeje dlouhodobého majetku a ostatní kapitálové příjmy | H93: 300 | I93: 7039.9 | J93: 7091.4 | K93: -51.5 | L93: 100.73 | M93: =SUM(M90:M92) -> 300 | O93: =SUM(O90:O92) -> 300 | P93: 0 | R93: 4.230476352 | S93: -95.73857583
A94: POL(1) 3 Kapitálové příjmy | H94: 300 | I94: 7039.9 | J94: 7091.4 | K94: -51.5 | L94: 100.73 | M94: =SUM(M93) -> 300 | O94: =SUM(O93) -> 300 | P94: 0 | R94: 4.230476352 | S94: -95.73857583
A95: 4 | B95: 41 | C95: 4111 | D95: Neinvestiční přijaté transfery z všeobecné pokladní správy státního rozpočtu | F95: Volby-zastupit.obcí a Senátu PČR | G95: 0000006115 | H95: 0 | I95: 409.83141 | J95: 409.83141 | K95: 0 | L95: 100 | P95: 0 | R95: 0 | S95: -100
A96: 4 | B96: 41 | C96: 4111 | D96: Neinvestiční přijaté transfery z všeobecné pokladní správy státního rozpočtu | F96: Volba prezidenta ČR | G96: 0000098008 | H96: 0 | I96: 156 | J96: 156 | K96: 0 | L96: 100 | M96: 594 | N96: 594 | O96: 0 | P96: 594 | Q96: 0 | R96: 380.7692308 | S96: 280.7692308
A97: 4 | B97: 41 | C97: 4111 | D97: Neinvestiční přijaté transfery z všeobecné pokladní správy státního rozpočtu | F97: Komp.přísp.sdíl.daní ze SR od 22.11.21-2022 dle z.519/2021 Sb.bez FV | G97: 0000098043 | H97: 0 | I97: 748.45407 | J97: 748.45407 | K97: 0 | L97: 100 | P97: 0 | R97: 0 | S97: -100
A98: 4 | B98: 41 | C98: 4112 | D98: Neinvestiční přijaté transfery ze SR v rámci souhrnného dotačního vztahu | H98: 21111.5 | I98: 21111.5 | J98: 21111.5 | K98: 0 | L98: 100 | M98: 22497.9 | N98: 22497.9 | O98: 22497.9 | P98: 0 | Q98: 22497.9 | R98: 106.5670369 | S98: 6.567036923
A99: 4 | B99: 41 | C99: 4116 | D99: Ostatní neinvestiční přijaté transfery ze státního rozpočtu | F99: SPOD dotace doplatek r.2021 | G99: 0000013011 | H99: 0 | I99: 172.24345 | J99: 172.24345 | K99: 0 | L99: 100 | P99: 0 | R99: 0 | S99: -100
A100: 4 | B100: 41 | C100: 4116 | D100: Ostatní neinvestiční přijaté transfery ze státního rozpočtu | F100: dotace na výkon sociální práce (vyjma SPOD) | G100: 0000013015 | H100: 0 | I100: 463.144 | J100: 463.144 | K100: 0 | L100: 100 | P100: 0 | R100: 0 | S100: -100
A101: 4 | B101: 41 | C101: 4116 | D101: Ostatní neinvestiční přijaté transfery ze státního rozpočtu | F101: SPOD dotace od r. 2022 | G101: 0000013024 | H101: 0 | I101: 2305.1 | J101: 2305.1 | K101: 0 | L101: 100 | P101: 0 | R101: 0 | S101: -100
A102: 4 | B102: 41 | C102: 4116 | D102: Ostatní neinvestiční přijaté transfery ze státního rozpočtu | F102: ZŠ Hradská-průtok.neinv.dotace-ŠABLONY OP JAK | G102: 0000322004 | H102: 0 | I102: 2031.07 | J102: 2031.07 | K102: 0 | L102: 100 | P102: 0 | R102: 0 | S102: -100
A103: 4 | B103: 41 | C103: 4116 | D103: Ostatní neinvestiční přijaté transfery ze státního rozpočtu | F103: SVČ-neinv.průtok.dotace Šablony (OP JAK) | G103: 0323300002 | H103: 0 | I103: 1931.925 | J103: 1931.925 | K103: 0 | L103: 100 | P103: 0 | R103: 0 | S103: -100
A104: 4 | B104: 41 | C104: 4116 | D104: Ostatní neinvestiční přijaté transfery ze státního rozpočtu | F104: OÚE SDH-akceschopnost JPO-MVČR 2022 | G104: 0551200008 | H104: 0 | I104: 81.2 | J104: 81.2 | K104: 0 | L104: 100 | P104: 0 | R104: 0 | S104: -100
A105: 4 | B105: 41 | C105: 4116 | D105: Ostatní neinvestiční přijaté transfery ze státního rozpočtu | F105: OÚE-Humpolec pomáhá při integraci držitelů dočasné ochrany | G105: 0622100003 | H105: 0 | I105: 199.5 | J105: 199.5 | K105: 0 | L105: 100 | P105: 0 | R105: 0 | S105: -100
A106: 4 | B106: 41 | C106: 4121 | D106: Neinvestiční přijaté transfery od obcí | H106: 0 | I106: 488.41 | J106: 488.41 | K106: 0 | L106: 100 | P106: 0 | R106: 0 | S106: -100
A107: 4 | B107: 41 | C107: 4122 | D107: Neinvestiční přijaté transfery od krajů | F107: Místní agenda 21 | G107: 0000003900 | H107: 0 | I107: 36 | J107: 36 | K107: 0 | L107: 100 | P107: 0 | R107: 0 | S107: -100
A108: 4 | B108: 41 | C108: 4122 | D108: Neinvestiční přijaté transfery od krajů | F108: Kraj-Potrav.pomoc dětem -MŠ | G108: 0000301003 | H108: 0 | I108: 31.35925 | J108: 31.35925 | K108: 0 | L108: 100 | P108: 0 | R108: 0 | S108: -100
A109: 4 | B109: 41 | C109: 4122 | D109: Neinvestiční přijaté transfery od krajů | F109: Kraj-Potrav.pomoc dětem ZŠ Hálkova | G109: 0000321003 | H109: 0 | I109: 107.76488 | J109: 107.76488 | K109: 0 | L109: 100 | P109: 0 | R109: 0 | S109: -100
A110: 4 | B110: 41 | C110: 4122 | D110: Neinvestiční přijaté transfery od krajů | F110: OÚE Akceschopnost JPO - Kraj Vysočina | G110: 0000551201 | H110: 0 | I110: 30 | J110: 30 | K110: 0 | L110: 100 | P110: 0 | R110: 0 | S110: -100
A111: 4 | B111: 41 | C111: 4122 | D111: Neinvestiční přijaté transfery od krajů | F111: Průtok-Humpolecké léto-grant z Fondu Vys. pro MěKIS | G111: 0003319002 | H111: 0 | I111: 60 | J111: 60 | K111: 0 | L111: 100 | P111: 0 | R111: 0 | S111: -100
A112: 4 | B112: 41 | C112: 4122 | D112: Neinvestiční přijaté transfery od krajů | F112: Průtok-MěKIS neinv.dotace od Kraje-S koloběžkou kolem Humpolce | G112: 0003319009 | H112: 0 | I112: 35.503 | J112: 35.503 | K112: 0 | L112: 100 | P112: 0 | R112: 0 | S112: -100
A113: 4 | B113: 41 | C113: 4122 | D113: Neinvestiční přijaté transfery od krajů | F113: ZUŠ-průtok-neinv.dotace-Podpora okr.a kraj.kol soutěží a přehlídek v zájm.vzdělávání pro r.2022 | G113: 0323100003 | H113: 0 | I113: 15 | J113: 15 | K113: 0 | L113: 100 | P113: 0 | R113: 0 | S113: -100
A114: 4 | B114: 41 | C114: 4122 | D114: Neinvestiční přijaté transfery od krajů | F114: SVČ-neinv.průtok.dotace Míčkování anebo zatočíme s rýmou a kašlem | G114: 0323300001 | H114: 0 | I114: 20 | J114: 20 | K114: 0 | L114: 100 | P114: 0 | R114: 0 | S114: -100
A115: POL(2) 41 Neinvestiční přijaté transfery | H115: 21111.5 | I115: 30433.99 | J115: 30433.99 | K115: 0 | L115: 100 | M115: =SUM(M95:M114) -> 23091.9 | O115: =SUM(O95:O114) -> 22497.9 | P115: 594 | R115: 75.87536173 | S115: -24.12463827
A116: 4 | B116: 42 | C116: 4213 | D116: Investiční přijaté transfery ze státních fondů | F116: OÚE-Pořízení mobiliáře-Turistické odpočívadlo Hněvkovice a Humpolec | G116: 0341200098 | H116: 0 | I116: 79.52 | J116: 79.52 | K116: 0 | L116: 100 | P116: 0 | R116: 0 | S116: -100
A117: 4 | B117: 42 | C117: 4216 | D117: Ostatní investiční přijaté transfery ze státního rozpočtu | F117: OÚE-Byt.hosp.-výtah Fügnerova čp.19 (Bezbariéry 2021) | G117: 0000001904 | H117: 0 | I117: 657.8 | J117: 657.8 | K117: 0 | L117: 100 | P117: 0 | R117: 0 | S117: -100
A118: 4 | B118: 42 | C118: 4216 | D118: Ostatní investiční přijaté transfery ze státního rozpočtu | F118: OÚE-Kamerový syst. Humpolec-prevence kriminality (dotace MVČR) | G118: 0531100004 | H118: 0 | I118: 294.288 | J118: 294.288 | K118: 0 | L118: 100 | P118: 0 | R118: 0 | S118: -100
A119: 4 | B119: 42 | C119: 4222 | D119: Investiční přijaté transfery od krajů | F119: Průtok-MěKIS inv.dotace od Kraje-Modernizace vybavení v infocentru Humpolec | G119: 0003319010 | H119: 0 | I119: 60 | J119: 60 | K119: 0 | L119: 100 | P119: 0 | R119: 0 | S119: -100
A120: 4 | B120: 42 | C120: 4222 | D120: Investiční přijaté transfery od krajů | F120: Cyklostezka Hadina II.etapa | G120: 0221900077 | H120: 0 | I120: 1401.973 | J120: 1401.973 | K120: 0 | L120: 100 | P120: 0 | R120: 0 | S120: -100
A121: 4 | B121: 42 | C121: 4222 | D121: Investiční přijaté transfery od krajů | F121: ZUŠ-průtok-kraj.inv.dotace-Učební pomůcky 2022 | G121: 0323100004 | H121: 0 | I121: 35.025 | J121: 35.025 | K121: 0 | L121: 100 | P121: 0 | R121: 0 | S121: -100
A122: 4 | B122: 42 | C122: 4222 | D122: Investiční přijaté transfery od krajů | F122: OÚE - hřiště ve Světlici | G122: 0341200117 | H122: 0 | I122: 127 | J122: 127 | K122: 0 | L122: 100 | P122: 0 | R122: 0 | S122: -100
A123: 4 | B123: 42 | C123: 4222 | D123: Investiční přijaté transfery od krajů | F123: OÚE - ICT 2021-disková virtual. na VMW serverech | G123: 0617100014 | H123: 0 | I123: 150 | J123: 150 | K123: 0 | L123: 100 | P123: 0 | R123: 0 | S123: -100
A124: 4 | B124: 42 | C124: 4222 | D124: Investiční přijaté transfery od krajů | F124: OÚE - ICT 2021-Rozšíření služeb Portálu občana | G124: 0617100017 | H124: 0 | I124: 80 | J124: 80 | K124: 0 | L124: 100 | P124: 0 | R124: 0 | S124: -100
A125: 4 | B125: 42 | C125: 4222 | D125: Investiční přijaté transfery od krajů | F125: OÚE-ICT 2021-Realiz.napojení kamer pro PČR na optickou síť a trasování | G125: 0617100018 | H125: 0 | I125: 250 | J125: 250 | K125: 0 | L125: 100 | P125: 0 | R125: 0 | S125: =M125/I125*100-100 -> -100
A126: 4 | B126: 42 | C126: 4222 | D126: Investiční přijaté transfery od krajů | F126: OÚE-Napojení LPR kamer PČR na optickou síť a trasování-směr Želiv | M126: 209.206 | N126: 209.206 | O126: 0 | P126: 209.206
A127: POL(2) 42 Investiční přijaté transfery | H127: 0 | I127: 3135.61 | J127: 3135.61 | K127: 0 | L127: 100 | M127: =SUM(M116:M126) -> 209.206 | O127: =SUM(O116:O126) -> 0 | P127: 209.206 | R127: 6.671939431 | S127: -93.32806057
A128: POL(1) 4 Přijaté transfery | H128: 21111.5 | I128: 33569.6 | J128: 33569.6 | K128: 0 | L128: 100 | M128: =M127+M115 -> 23301.106 | O128: =O127+O115 -> 22497.9 | P128: 803.206 | R128: 69.41133049 | S128: -30.58866951
A129: Celkem | H129: 335534.72 | I129: 423582.2 | J129: 461978.94 | K129: -38396.74 | L129: 109.06 | M129: =SUM(M128,M94,M89,M28) -> 414315.4135 | N129: =SUM(N7:N128) -> 414315.4135 | O129: =SUM(O128,O94,O89,O28) -> 393136.021 | P129: 21179.39255 | Q129: =SUM(Q7:Q128) -> 393136.021 | R129: 89.68274908 | S129: -2.18771857
A131: Podmínka: AND POL=8*
A132: POL(1) | B132: POL(2) | C132: POL(4) | D132: Popis | E132: ODPA(4) | F132: Popis | G132: ORG | H132: 2022 | M132: 2023 | Q132: kontr.sl.
H133: Schválený rozp. | I133: Upravený rozp. | J133: Skutečnost | K133: Plnění v Kč k UR | L133: Plnění v % k UR | M133: Návrh | N133: Návrh 2023 | O133: Návrh 2023 prac. ZM | P133: rozdíl oproti prac.ZM | Q133: Návrh 2023 | S133: % změna návrhu 2023/UR 2022
A134: 8 | B134: 81 | C134: 8115 | D134: z toho: | F134: Změny stavů krátk. prostř. na BÚ- z toho: | H134: 125431.5703 | I134: 54545.0738 | J134: -80689.37444 | K134: 135234.4482
A135: 8 | B135: 81 | C135: 8115 | D135: Změny stavů krátkod. prostředků na bank.účtech (zapojení přebytků k 31.12. ostatní účty) | F135: Změny stavů krátk. prostř. na BÚ | H135: 104142.5703 | I135: =I134-SUM(I136:I147) -> 38463.38739 | J135: -72123.99778 | M135: =M166-M161+1487.94232-M137-M136-M151-M150-3000 -> 182078.5847 | N135: =M135 -> 182078.5847 | O135: =45000+O159 -> 76170.60832 | P135: =M135-O135 -> 105907.9764
A136: 8 | B136: 81 | C136: 8115 | D136: Zapojení přebytků-bytový účet | F136: Změny stavů krátk. prostř. na BÚ | H136: 5000 | I136: 5000 | J136: =-4023.60295 -> -4023.60295 | M136: 5770 | N136: 5770 | P136: 5770
A137: 8 | B137: 81 | C137: 8115 | D137: Zapojení přebytků k 31.12.- účet vodního hospodářství | F137: Změny stavů krátk. prostř. na BÚ | H137: =11668 -> 11668 | I137: 11668 | J137: -4121.02553 | M137: 18232.13217 | N137: 18232.13217 | P137: 18232.13217
A138: 8 | B138: 81 | C138: 8115 | D138: Zapojení FBI(Fondu bydlení a infrastruktury) v r. 2022: Rek.MK ul.Jihlavská | F138: Změny stavů krátk. prostř. na BÚ | H138: 3400 | I138: 3400 | J138: 3400 | P138: 0
A139: 8 | B139: 81 | C139: 8115 | D139: Zapojení FBI (Fondu bydlení a infrastruktury) v r. 2023: investiční akce: Rek. Chodník (lávka) ul. Lužická | F139: Změny stavů krátk. prostř. na BÚ | M139: 4500 | N139: 4500 | O139: 3000 | P139: 1500
A140: 8 | B140: 81 | C140: 8115 | D140: Zapojení FBI na Rek. ul.5.května,Jihlavská, II. etapa | F140: Změny stavů krátk. prostř. na BÚ | H140: 0 | I140: 22.58641 | J140: 22.58641 | P140: 0
A141: 8 | B141: 81 | C141: 8115 | D141: Zapojení FBI(Fondu bydlení a infrastruktury) v r. 2022: Chodník Světlice část B - dar od Pretol s.r.o. | F141: Změny stavů krátk. prostř. na BÚ | H141: 0 | I141: 1200 | J141: 1200 | P141: 0
A142: 8 | B142: 81 | C142: 8115 | D142: Zapojení FIPO(Fondu investic PO) z přebytků: akce: MŠ Podhrad | F142: Změny stavů krátk. prostř. na BÚ | H142: 2250 | I142: 2250 | J142: 2250 | P142: 0
A143: 8 | B143: 81 | C143: 8115 | D143: Zapojení FIPO(Fondu investic PO) akce: MŠ Podhrad | F143: Změny stavů krátk. prostř. na BÚ | H143: 2750 | I143: 2750 | J143: 2750 | M143: 3000 | N143: 3000 | O143: 3000 | P143: 0
A144: 8 | B144: 81 | C144: 8115 | D144: Odvod odpisů do FIPO | F144: Změny stavů krátk. prostř. na BÚ | H144: =-SUM(H39:H44) -> -3620 | I144: =-SUM(I39:I44) -> -3620 | J144: =-SUM(J39:J44) -> -3515.33142 | M144: =-SUM(M39:M44) -> -3428 | N144: =-SUM(N39:N44) -> -3428 | O144: =-SUM(O39:O44) -> -3428 | P144: 0
A145: 8 | B145: 81 | C145: 8115 | D145: Odvod do FBI z prodejů pozemků (a bank.úroků) | F145: Změny stavů krátk. prostř. na BÚ | H145: =-H94 -> -300 | I145: =-6739.9 -> -6739.9 | J145: -6407.98055 | M145: -300 | N145: -300 | O145: -300 | P145: 0
A146: 8 | B146: 81 | C146: 8115 | D146: Odvod do Fondu ekologie z POL 1334 dle směrnice | F146: Změny stavů krátk. prostř. na BÚ | J146: =-J15 -> -170.9193 | P146: 0
A147: 8 | B147: 81 | C147: 8115 | D147: Sociální fond | F147: Změny stavů krátk. prostř. na BÚ | H147: 151 | I147: 151 | J147: 50.89668 | M147: 21 | N147: 21 | O147: 0 | P147: 21
A148: 8 | B148: 81 | C148: 8117 | D148: Aktivní krátkodobé operace řízení likvidity - příjmy | H148: 0 | I148: 159500 | J148: 159495 | K148: 5 | L148: 99.9968652 | M148: 167000 | N148: 167000 | O148: 100000 | P148: 67000
A149: 8 | B149: 81 | C149: 8118 | D149: Aktivní krátkodobé operace řízení likvidity - výdaje | H149: 0 | I149: -159500 | J149: -159500 | K149: 0 | L149: 100 | M149: -167000 | N149: -167000 | P149: -167000
A150: 8 | B150: 81 | C150: 8124 | D150: Uhrazené splátky dlouhodobých přijatých půjčených prostř. | F150: ČS, a.s. - ZTV Blanická | H150: -3000 | I150: -3000 | J150: -3000 | K150: 0 | L150: 100 | M150: ='Návrh rozpočtu 2023 agregát'!D85 -> -11085.02504 | N150: =M150 -> -11085.02504 | O150: -3000 | P150: -8085.02504
A151: 8 | B151: 81 | C151: 8124 | D151: Uhrazené splátky dlouhodobých přijatých půjčených prostř. | F151: ČSOB, a.s. - výkup pozemků | M151: -20465.26 | N151: =M151 -> -20465.26 | O151: 0 | P151: -20465.26
A152: 8 | B152: 81 | C152: 8124 | D152: Uhrazené splátky dlouhodobých přijatých půjčených prostř. | F152: SFŽP - technologie ZS Humpolec | H152: -2280.94232 | I152: -2280.94232 | J152: -2280.94232 | K152: 0 | L152: 100 | M152: -2280.94232 | N152: -2280.94232 | O152: -2280.94232 | P152: 0
A153: POL(2) 81 Financování z tuzemska | H153: 120150.628 | I153: 49264.13 | J153: -85975.31 | K153: 135239.45 | M153: =SUM(M135:M152) -> 176042.4895 | N153: =SUM(N135:N152) -> 176042.4895 | O153: =SUM(O135:O152) -> 173161.666 | P153: 2880.82349
A154: 8 | B154: 89 | C154: 8901 | D154: Operace z peněžních účtů organizace nemající charakter příjmů/výdajů | F154: DPH | H154: 0 | I154: 0 | J154: 253.05394 | K154: -253.05394 | L154: 0 | M154: 0 | N154: 0 | O154: 0 | P154: 0
A155: POL(2) 89 Opravné položky k peněžním operacím | H155: 0 | I155: 0 | J155: 253.05 | K155: -253.05 | L155: 0 | M155: =SUM(M154) -> 0 | N155: =SUM(N154) -> 0 | O155: 0 | P155: 0
A156: POL(1) 8 Financování | H156: 120150.63 | I156: 49264.13 | J156: -85722.26282 | K156: 134986.4 | M156: =SUM(M153,M155) -> 176042.4895 | N156: =SUM(N153,N155) -> 176042.4895 | O156: =O166-O161 -> 173161.666 | P156: 2880.82349
A157: Celkem PŘÍJMY + FINANCOVÁNÍ | H157: =H156+H129 -> 455685.35 | I157: =I156+I129 -> 472846.33 | J157: =J156+J129 -> 376256.6772 | K157: =K156+K129 -> 96589.66 | L157: =J157/I157*100 -> 79.57271809 | M157: =M156+M129 -> 590357.903 | N157: =N156+N129 -> 590357.903 | O157: =O156+O129 -> 566297.687 | P157: 24060.21604
O158: z toho:
N159: navýš. přebytků: | O159: 31170.60832
A161: PŘÍJMY | H161: =H129 -> 335534.72 | I161: =I129 -> 423582.2 | J161: =J129 -> 461978.94 | K161: =K129 -> -38396.74 | L161: =J161/I161*100 -> 109.0647671 | M161: =M129 -> 414315.4135 | N161: =N129 -> 414315.4135 | O161: =O129 -> 393136.021 | P161: 21179.39255
A163: Běžné výdaje | H163: 287420.35 | I163: 320828.88 | J163: 270671.43 | K163: 50157.56 | L163: 84.37 | M163: ='BV návrh 2023'!Z629 -> 363339.903 | N163: ='BV návrh 2023'!AA629 -> 363339.903 | O163: ='BV návrh 2023'!V629 -> 353808.687 | P163: 9531.21604
A164: z toho: | C164: 5171 | D164: opravy a udržování | H164: 38153 | I164: 42221.5 | J164: 25425.38024 | K164: =I164-J164 -> 16796.11976 | L164: =J164/I164*100 -> 60.21903589 | M164: 41356 | N164: 41356 | O164: 51951 | P164: -10595
A165: Kapitálové výdaje | H165: 168265 | I165: 152017.47 | J165: 105585.22 | K165: 46432.27 | L165: 69.46 | M165: ='KV návrh 2023'!Z201 -> 227018 | N165: =M165 -> 227018 | O165: ='KV návrh 2023'!V201 -> 212489 | P165: 14529
A166: Celkem výdaje | H166: =SUM(H165,H163) -> 455685.35 | I166: =SUM(I165,I163) -> 472846.35 | J166: 376256.65 | K166: 96589.83 | L166: =J166/I166*100 -> 79.57270898 | M166: 590357.903 | N166: =SUM(N165,N163) -> 590357.903 | O166: 566297.687 | P166: 24060.21604
A167: Rozpočtový výsledek hospodaření: | H167: =H161-H166 -> -120150.63 | I167: =I161-I166 -> -49264.15 | J167: 85722.29 | K167: -134986.57 | M167: -176042.4895 | N167: =N161-N166 -> -176042.4895 | O167: =O161-O166 -> -173161.666 | P167: -2880.82349
A168: Běžné příjmy (třída 1 + 2 + tř.4 neinvestiční transfery) | H168: =H28+H89+H115 -> 335234.72 | I168: =I28+I89+I115 -> 413406.69 | J168: =J28+J89+J115 -> 451751.93 | K168: =K28+K89+K115 -> -38345.24 | L168: =J168/I168*100 -> 109.275428 | M168: =M28+M89+M115 -> 413806.2076 | N168: =M168 -> 413806.2076 | O168: =O28+O89+O115 -> 392836.021 | P168: 20970.18655
A169: Běžné výdaje | H169: =H163 -> 287420.35 | I169: =I163 -> 320828.88 | J169: 270671.43 | K169: 50157.56 | M169: =M163 -> 363339.903 | N169: =N163 -> 363339.903 | O169: =O163 -> 353808.687 | P169: 9531.21604
A170: Provozní saldo (běžné příjmy mínus běžné výdaje) | H170: =H168-H169 -> 47814.37 | I170: =I168-I169 -> 92577.81 | J170: 181080.5 | K170: -88502.8 | M170: 50466.30451 | N170: =N168-N169 -> 50466.30451 | O170: 39027.334 | P170: 11438.97051
A171: Ukazatel provozního salda, tj. % podíl provozního salda na běžných příjmech | H171: =H170/H168*100 -> 14.26295283 | I171: =I170/I168*100 -> 22.39388289 | J171: =J170/J168*100 -> 40.08405675 | M171: =M170/M168*100 -> 12.19563738 | N171: =N170/N168*100 -> 12.19563738 | O171: =O170/O168*100 -> 9.934764613
M172: musí být min. 10 % | N172: musí být min. 10 %

Sheet BV návrh 2023
A1: 00248266 Město Humpolec
A2: Horní náměstí 300 Humpolec
A3: Návrh rozpisu rozpočtu běžných výdajů 2023 v tisících Kč
A5: ODPA(2) | B5: Popis | C5: ODPA(4) | D5: Popis | E5: POL(4) | F5: Popis | G5: ORG | H5: Popis | I5: POPIS 2023 (změny oproti 2022) | J5: Pozn. | K5: 2022 | L5: 2022 | N5: 2022 | V5: Pracovní ZM | Y5: od prac. ZM | Z5: 2023 | AA5: kontr. Sl.
K6: Schválený rozp. | L6: Upravený rozp. | M6: Skutečnost k 31. 12. | N6: Plnění v Kč k UR | O6: Plnění v % k UR | P6: ORG | Q6: ODPA | R6: POL | S6: Návrh 2023 Kontr.sl. | T6: 1.Návrh 2023 | U6: Změny v návrhu 2023 | V6: Návrh 2023 k 25.11.2022 | W6: Návrh 2023 z 25.11.22/UR 2022 % | X6: komentář | Y6: Změny 2023 +- | Z6: Návrh | AA6: Návrh 2023 k 31.01.2023 | AB6: Návrh 2023 z 31.01.22/UR 2022 % | AC6: Návrh 2023 z 31.01.23 mínus SK 2022 tis.Kč | AD6: Návrh 2023 z 31.01.23/SK 2022 % | AE6: Provizorium 2023 | AF6: Správce rozpočtu
A7: 10 | B7: Zemědělství, lesní hospodářství a rybářství | C7: 1014 | D7: Ozdravování hospodářských zvířat, polních a speciálních plodin a zvláštní veterinární péče | E7: 5169 | F7: Nákup ostatních služeb | G7: 0101400001 | H7: Péče o opuštěná zvířata | K7: 330 | L7: 330 | M7: 286.0956 | N7: 43.9044 | O7: 86.69563636 | P7: 0101400001 | Q7: 1014 | R7: 5169 | S7: 330 | T7: 330 | U7: =V7-T7 -> 70 | V7: 400 | W7: =V7/L7*100 -> 121.2121212 | Z7: 400 | AA7: 400 | AB7: =Z7/L7*100 -> 121.2121212 | AC7: =Z7-M7 -> 113.9044 | AD7: =Z7/M7*100 -> 139.813405 | AF7: Kocmanová | AH7: =Z7-V7 -> 0 | AI7: =AH7-Y7 -> 0
A8: 10 | B8: Zemědělství, lesní hospodářství a rybářství | C8: 1014 | D8: Ozdravování hospodářských zvířat, polních a speciálních plodin a zvláštní veterinární péče | E8: 5137 | F8: Drobný dlouhodobý hmotný majetek | G8: 0101400001 | H8: Péče o opuštěná zvířata | Y8: 10 | Z8: 10 | AA8: 10 | AB8: =Z8/L8*100 ->  | AC8: =Z8-M8 -> 10 | AF8: Kocmanová | AH8: 10 | AI8: =AH8-Y8 -> 0
A9: 10 | B9: Zemědělství, lesní hospodářství a rybářství | C9: 1014 | D9: Ozdravování hospodářských zvířat, polních a speciálních plodin a zvláštní veterinární péče | E9: 5492 | F9: Dary obyvatelstvu | H9: Kastrace koček | Y9: 50 | Z9: 50 | AA9: 50 | AF9: Kocmanová | AH9: 50 | AI9: 0
A10: 10 | B10: Zemědělství, lesní hospodářství a rybářství | C10: 1014 | D10: Ozdravování hospodářských zvířat, polních a speciálních plodin a zvláštní veterinární péče | E10: 5169 | F10: Nákup ostatních služeb | H10: Kastrace koček | Y10: 20 | Z10: 20 | AA10: 20 | AF10: Kocmanová | AH10: =Z10-V10 -> 20 | AI10: =AH10-Y10 -> 0
A11: 10 | B11: Zemědělství, lesní hospodářství a rybářství | C11: 1014 | D11: Ozdravování hospodářských zvířat, polních a speciálních plodin a zvláštní veterinární péče | E11: 5169 | F11: Nákup ostatních služeb | G11: 0101400002 | H11: Deratizace | K11: 198 | L11: 198 | M11: 165.01545 | N11: 32.98455 | O11: 83.34113636 | P11: 0101400002 | Q11: 1014 | R11: 5169 | S11: 198 | T11: 198 | U11: 0 | V11: 198 | W11: 100 | Z11: 198 | AA11: 198 | AB11: 100 | AC11: 32.98455 | AD11: 119.9887647 | AF11: Kocmanová | AH11: 0 | AI11: 0
A12: 10 | B12: Zemědělství, lesní hospodářství a rybářství | C12: 1036 | D12: Správa v lesním hospodářství | E12: 5169 | F12: Nákup ostatních služeb | G12: 0103600002 | H12: Projekt-Lesní hosp.osnovy Želivsko | K12: 0 | L12: 31 | M12: 30.613 | N12: 0.387 | O12: 98.7516129 | P12: 0103600002 | Q12: 1036 | R12: 5169 | U12: 0 | W12: 0 | AB12: 0 | AC12: -30.613 | AD12: 0 | AH12: 0 | AI12: 0
A13: 10 | B13: Zemědělství, lesní hospodářství a rybářství | C13: 1039 | D13: Ostatní záležitosti lesního hospodářství | E13: 5169 | F13: Nákup ostatních služeb | G13: 0103900001 | H13: Lesní hosp.-odborný lesní hospodář | K13: 230 | L13: 250 | M13: 219.5 | N13: 30.5 | O13: 87.8 | P13: 0103900001 | Q13: 1039 | R13: 5169 | S13: 270 | T13: 270 | U13: 0 | V13: 270 | W13: 108 | Z13: 270 | AA13: 270 | AB13: 108 | AC13: 50.5 | AD13: 123.0068337 | AF13: Zeman | AH13: 0 | AI13: 0
A14: 10 | B14: Zemědělství, lesní hospodářství a rybářství | C14: 1039 | D14: Ostatní záležitosti lesního hospodářství | E14: 5169 | F14: Nákup ostatních služeb | G14: 0103900004 | H14: Ostatní lesnické práce | K14: 20 | L14: 0 | M14: 0 | N14: 0 | O14: 0 | P14: 0103900004 | Q14: 1039 | R14: 5169 | S14: 20 | T14: 20 | U14: 0 | V14: 20 | Z14: 20 | AA14: 20 | AC14: 20 | AF14: Zeman | AH14: 0 | AI14: 0
A15: 10 | B15: Zemědělství, lesní hospodářství a rybářství | C15: 1039 | D15: Ostatní záležitosti lesního hospodářství | E15: 5171 | F15: Opravy a udržování | G15: 0103900005 | H15: Opravy lesních cest | K15: 600 | L15: 600 | M15: 356.051 | N15: 243.949 | O15: 59.34183333 | P15: 0103900005 | Q15: 1039 | R15: 5171 | S15: 600 | T15: 600 | U15: 0 | V15: 600 | W15: 100 | Z15: 600 | AA15: 600 | AB15: 100 | AC15: 243.949 | AD15: 168.5151846 | AF15: Zeman | AH15: 0 | AI15: 0
A16: 10 | B16: Zemědělství, lesní hospodářství a rybářství | C16: 1039 | D16: Ostatní záležitosti lesního hospodářství | E16: 5179 | F16: Ostatní nákupy jinde nezařazené | G16: 0103900006 | H16: Sdružení vlastníků obecních a soukromých lesů ČR-členský příspěvek | K16: 10 | L16: 10 | M16: 5.61 | N16: 4.39 | O16: 56.1 | P16: 0103900006 | Q16: 1039 | R16: 5179 | S16: 12 | T16: 12 | U16: 0 | V16: 12 | W16: 120 | Z16: 12 | AA16: 12 | AB16: 120 | AC16: 6.39 | AD16: 213.9037433 | AF16: Zeman | AH16: 0 | AI16: 0
A17: ODPA(2) 10 Zemědělství, lesní hospodářství a rybářství | K17: 1388 | L17: 1419 | M17: 1062.89 | N17: 356.11 | O17: 74.9 | T17: =SUM(T7:T16) -> 1430 | U17: 70 | V17: =SUM(V7:V16) -> 1500 | W17: 105.7082452 | Z17: =SUM(Z7:Z16) -> 1580 | AB17: 111.3460183 | AC17: 517.11 | AD17: 148.6513186 | AE17: =SUM(AE7:AE16) -> 0 | AH17: 80 | AI17: 80
A18: 21 | B18: Průmysl, stavebnictví, obchod a služby | C18: 2141 | D18: Vnitřní obchod | E18: 5137 | F18: Drobný dlouhodobý hmotný majetek | G18: 0214100003 | H18: Farmářské trhy - DDHM | K18: 0 | L18: 16 | M18: 15.85423 | N18: 0.14577 | O18: 99.0889375 | P18: 0214100003 | Q18: 2141 | R18: 5137 | S18: 15 | T18: 15 | U18: 0 | V18: 15 | W18: 93.75 | Z18: 15 | AA18: 15 | AB18: 93.75 | AC18: -0.85423 | AD18: 94.61197422 | AF18: Augustová | AH18: 0 | AI18: 0
A19: 21 | B19: Průmysl, stavebnictví, obchod a služby | C19: 2141 | D19: Vnitřní obchod | E19: 5139 | F19: Nákup materiálu j.n. | G19: 0214100001 | H19: Farmářské trhy-materiál | K19: 20 | L19: 4 | M19: 1.35 | N19: 2.65 | O19: 33.75 | P19: 0214100001 | Q19: 2141 | R19: 5139 | S19: 20 | T19: 20 | U19: 0 | V19: 20 | W19: 500 | Z19: 20 | AA19: 20 | AB19: 500 | AC19: 18.65 | AD19: 1481.481481 | AF19: Augustová | AH19: 0 | AI19: 0
A20: 21 | B20: Průmysl, stavebnictví, obchod a služby | C20: 2141 | D20: Vnitřní obchod | E20: 5169 | F20: Nákup ostatních služeb | G20: 0214100002 | H20: Farmářské trhy-služby | K20: 130 | L20: 130 | M20: 59.483 | N20: 70.517 | O20: 45.75615385 | P20: 0214100002 | Q20: 2141 | R20: 5169 | S20: 140 | T20: 140 | U20: 0 | V20: 140 | W20: 107.6923077 | Z20: 140 | AA20: 140 | AB20: 107.6923077 | AC20: 80.517 | AD20: 235.3613638 | AF20: Augustová | AH20: 0 | AI20: 0
A21: ODPA(2) 21 Průmysl, stavebnictví, obchod a služby | K21: 150 | L21: 150 | M21: 76.68 | N21: 73.32 | O21: 51.12 | T21: =SUM(T18:T20) -> 175 | U21: 0 | V21: =SUM(V18:V20) -> 175 | W21: 116.6666667 | Z21: =SUM(Z18:Z20) -> 175 | AB21: 116.6666667 | AC21: 98.32 | AD21: 228.2211789 | AE21: =SUM(AE18:AE20) -> 0 | AH21: 0 | AI21: 0
A22: 22 | B22: Doprava | C22: 2212 | D22: Silnice | E22: 5166 | F22: Konzultační, poradenské a právní služby | G22: 0221200001 | H22: Studie komunikací | K22: 100 | L22: 100 | M22: 47.08 | N22: 52.92 | O22: 47.08 | P22: 0221200001 | Q22: 2212 | R22: 5166 | S22: 100 | T22: 100 | U22: 900 | V22: 1000 | W22: 1000 | Y22: -500 | Z22: 500 | AA22: 500 | AB22: 500 | AC22: 452.92 | AD22: 1062.02209 | AE22: 1000 | AF22: Vaňkát/Machek | AH22: -500 | AI22: 0
A23: 22 | B23: Doprava | C23: 2212 | D23: Silnice | E23: 5166 | F23: Konzultační, poradenské a právní služby | G23: 0221200147 | H23: Studie dopravy v klidu | K23: 400 | L23: 450 | M23: 418.176 | N23: 31.824 | O23: 92.928 | P23: 0221200147 | Q23: 2212 | R23: 5166 | S23: 200 | T23: 200 | U23: 0 | V23: 200 | W23: 44.44444444 | Y23: -200 | Z23: 0 | AA23: 0 | AB23: 0 | AC23: -418.176 | AD23: 0 | AF23: Vaňkát/Machek | AH23: -200 | AI23: 0
A24: 22 | B24: Doprava | C24: 2212 | D24: Silnice | E24: 5166 | F24: Konzultační, poradenské a právní služby | G24: nový | H24: Dopravní model města | Y24: 300 | Z24: 300 | AA24: 300 | AF24: Machek | AH24: 300 | AI24: 0
A25: 22 | B25: Doprava | C25: 2212 | D25: Silnice | E25: 5166 | F25: Konzultační, poradenské a právní služby | G25: 0221200148 | H25: Studie dopravy MK Pelhřimovská | K25: 600 | L25: 350 | M25: 181.5 | N25: 168.5 | O25: 51.85714286 | P25: 0221200148 | Q25: 2212 | R25: 5166 | U25: 0 | W25: 0 | AB25: 0 | AC25: -181.5 | AD25: 0 | AH25: 0 | AI25: 0
A26: 22 | B26: Doprava | C26: 2212 | D26: Silnice | E26: 5169 | F26: Nákup ostatních služeb | G26: 0221200002 | H26: Čištění komunikací | K26: 2700 | L26: 2700 | M26: 2493.186 | N26: 206.814 | O26: 92.34022222 | P26: 0221200002 | Q26: 2212 | R26: 5169 | S26: 3100 | T26: 3100 | U26: 0 | V26: 3100 | W26: 114.8148148 | Z26: 3100 | AA26: 3100 | AB26: 114.8148148 | AC26: 606.814 | AD26: 124.3388981 | AE26: 3100 | AF26: Zeman | AH26: 0 | AI26: 0
A27: 22 | B27: Doprava | C27: 2212 | D27: Silnice | E27: 5169 | F27: Nákup ostatních služeb | G27: 0221200003 | H27: Čištění MK- vybrané akce | K27: 100 | L27: 100 | M27: 93.597 | N27: 6.403 | O27: 93.597 | P27: 0221200003 | Q27: 2212 | R27: 5169 | S27: 120 | T27: 120 | U27: 0 | V27: 120 | W27: 120 | Z27: 120 | AA27: 120 | AB27: 120 | AC27: 26.403 | AD27: 128.2092375 | AF27: Zeman | AH27: 0 | AI27: 0
A28: 22 | B28: Doprava | C28: 2212 | D28: Silnice | E28: 5169 | F28: Nákup ostatních služeb | G28: 0221200004 | H28: Čištění MK- psí exkrementy | K28: 600 | L28: 600 | M28: 414.984 | N28: 185.016 | O28: 69.164 | P28: 0221200004 | Q28: 2212 | R28: 5169 | S28: 700 | T28: 700 | U28: 0 | V28: 700 | W28: 116.6666667 | Z28: 700 | AA28: 700 | AB28: 116.6666667 | AC28: 285.016 | AD28: 168.6812022 | AF28: Zeman | AH28: 0 | AI28: 0
A29: 22 | B29: Doprava | C29: 2212 | D29: Silnice | E29: 5169 | F29: Nákup ostatních služeb | G29: 0221200005 | H29: Zimní údržba komunikací | K29: 2500 | L29: 2800 | M29: 2535.68884 | N29: 264.31116 | O29: 90.56031571 | P29: 0221200005 | Q29: 2212 | R29: 5169 | S29: 2800 | T29: 2800 | U29: 0 | V29: 2800 | W29: 100 | Z29: 2800 | AA29: 2800 | AB29: 100 | AC29: 264.31116 | AD29: 110.4236433 | AE29: 2800 | AF29: Zeman | AH29: 0 | AI29: 0
A30: 22 | B30: Doprava | C30: 2212 | D30: Silnice | E30: 5171 | F30: Opravy a udržování | G30: 0221200006 | H30: Dopravní značení-zrcadla | K30: 90 | L30: 90 | M30: 18.524 | N30: 71.476 | O30: 20.58222222 | P30: 0221200006 | Q30: 2212 | R30: 5171 | S30: 90 | T30: 90 | U30: 0 | V30: 90 | W30: 100 | Z30: 90 | AA30: 90 | AB30: 100 | AC30: 71.476 | AD30: 485.8561866 | AF30: Palánová | AH30: 0 | AI30: 0
A31: 22 | B31: Doprava | C31: 2212 | D31: Silnice | E31: 5171 | F31: Opravy a udržování | G31: 0221200008 | H31: Údržba kanalizačních vpustí | K31: 400 | L31: 400 | M31: 280.974 | N31: 119.026 | O31: 70.2435 | P31: 0221200008 | Q31: 2212 | R31: 5171 | S31: 400 | T31: 400 | U31: 0 | V31: 400 | W31: 100 | Z31: 400 | AA31: 400 | AB31: 100 | AC31: 119.026 | AD31: 142.3619267 | AF31: Palánová | AH31: 0 | AI31: 0
A32: 22 | B32: Doprava | C32: 2212 | D32: Silnice | E32: 5171 | F32: Opravy a udržování | G32: 0221200009 | H32: Opravy MK město | K32: 1700 | L32: 1900 | M32: 1769.01387 | N32: 130.98613 | O32: 93.10599316 | P32: 0221200009 | Q32: 2212 | R32: 5171 | S32: 2000 | T32: 2000 | U32: 0 | V32: 2000 | W32: 105.2631579 | Z32: 2000 | AA32: 2000 | AB32: 105.2631579 | AC32: 230.98613 | AD32: 113.0573385 | AF32: Palánová | AH32: 0 | AI32: 0
A33: 22 | B33: Doprava | C33: 2212 | D33: Silnice | E33: 5171 | F33: Opravy a udržování | G33: 0221200010 | H33: Opravy MK-místní části | K33: 1300 | L33: 1300 | M33: 778.696 | N33: 521.304 | O33: 59.89969231 | P33: 0221200010 | Q33: 2212 | R33: 5171 | S33: 1300 | T33: 1300 | U33: 0 | V33: 1300 | W33: 100 | Y33: 700 | Z33: 2000 | AA33: 2000 | AB33: 153.8461538 | AC33: 1221.304 | AD33: 256.8396396 | AF33: Hložková/Machek | AH33: 700 | AI33: 0
A34: 22 | B34: Doprava | C34: 2212 | D34: Silnice | E34: 5171 | F34: Opravy a udržování | G34: 0221200021 | H34: Dopravní značení - město | K34: 300 | L34: 300 | M34: 294.57194 | N34: 5.42806 | O34: 98.19064667 | P34: 0221200021 | Q34: 2212 | R34: 5171 | S34: 300 | T34: 300 | U34: 0 | V34: 300 | W34: 100 | Z34: 300 | AA34: 300 | AB34: 100 | AC34: 5.42806 | AD34: 101.8426942 | AF34: Palánová | AH34: 0 | AI34: 0
A35: 22 | B35: Doprava | C35: 2212 | D35: Silnice | E35: 5171 | F35: Opravy a udržování | G35: 0221200022 | H35: Údržba přechodů | K35: 300 | L35: 300 | M35: 123.417 | N35: 176.583 | O35: 41.139 | P35: 0221200022 | Q35: 2212 | R35: 5171 | S35: 300 | T35: 300 | U35: 0 | V35: 300 | W35: 100 | Z35: 300 | AA35: 300 | AB35: 100 | AC35: 176.583 | AD35: 243.0783442 | AF35: Palánová | AH35: 0 | AI35: 0
A36: 22 | B36: Doprava | C36: 2212 | D36: Silnice | E36: 5171 | F36: Opravy a udržování | G36: 0221200062 | H36: Dopravní značení MČ | K36: 130 | L36: 130 | M36: 32.389 | N36: 97.611 | O36: 24.91461538 | P36: 0221200062 | Q36: 2212 | R36: 5171 | S36: 130 | T36: 130 | U36: 0 | V36: 130 | W36: 100 | Z36: 130 | AA36: 130 | AB36: 100 | AC36: 97.611 | AD36: 401.3708358 | AF36: Hložková | AH36: 0 | AI36: 0
A37: 22 | B37: Doprava | C37: 2212 | D37: Silnice | E37: 5171 | F37: Opravy a udržování | G37: 0221200072 | H37: Opravy MK - metoda infra | K37: 700 | L37: 700 | M37: 698.412 | N37: 1.588 | O37: 99.77314286 | P37: 0221200072 | Q37: 2212 | R37: 5171 | S37: 700 | T37: 700 | U37: 0 | V37: 700 | W37: 100 | Z37: 700 | AA37: 700 | AB37: 100 | AC37: 1.588 | AD37: 100.227373 | AF37: Palánová | AH37: 0 | AI37: 0
A38: 22 | B38: Doprava | C38: 2212 | D38: Silnice | E38: 5171 | F38: Opravy a udržování | G38: 0221200140 | H38: Označení ulic-nové cedule | K38: 180 | L38: 180 | M38: 0 | N38: 180 | O38: 0 | P38: 0221200140 | Q38: 2212 | R38: 5171 | S38: 180 | T38: 180 | U38: 0 | V38: 180 | W38: 100 | Z38: 180 | AA38: 180 | AB38: 100 | AC38: 180 | AF38: Palánová | AH38: 0 | AI38: 0
A39: 22 | B39: Doprava | C39: 2212 | D39: Silnice | E39: 5171 | F39: Opravy a udržování | G39: 0221200149 | H39: Radary měření rychlosti-opravy | K39: 100 | L39: 100 | M39: 0 | N39: 100 | O39: 0 | P39: 0221200149 | Q39: 2212 | R39: 5171 | S39: 100 | T39: 100 | U39: 0 | V39: 100 | W39: 100 | Z39: 100 | AA39: 100 | AB39: 100 | AC39: 100 | AF39: Palánová | AH39: 0 | AI39: 0
A40: 22 | B40: Doprava | C40: 2219 | D40: Ostatní záležitosti pozemních komunikací | E40: 5166 | F40: Konzultační, poradenské a právní služby | G40: 0221900001 | H40: Studie a projekty chodníků | K40: 100 | L40: 100 | M40: 0 | N40: 100 | O40: 0 | P40: 0221900001 | Q40: 2219 | R40: 5166 | S40: 100 | T40: 100 | U40: 0 | V40: 100 | W40: 100 | Y40: 150 | Z40: 250 | AA40: 250 | AB40: 250 | AC40: 250 | AF40: Vaňkát/Machek | AH40: 150 | AI40: 0
A41: 22 | B41: Doprava | C41: 2219 | D41: Ostatní záležitosti pozemních komunikací | E41: 5169 | F41: Nákup ostatních služeb | G41: 0221900007 | H41: Zimní údržba chodníků | K41: 900 | L41: 1200 | M41: 1019.064 | N41: 180.936 | O41: 84.922 | P41: 0221900007 | Q41: 2219 | R41: 5169 | S41: 1200 | T41: 1200 | U41: 0 | V41: 1200 | W41: 100 | Z41: 1200 | AA41: 1200 | AB41: 100 | AC41: 180.936 | AD41: 117.7551165 | AE41: 1200 | AF41: Zeman | AH41: 0 | AI41: 0
A42: 22 | B42: Doprava | C42: 2219 | D42: Ostatní záležitosti pozemních komunikací | E42: 5169 | F42: Nákup ostatních služeb | G42: 0221900074 | H42: Mlžící rám město-zařízení pro osvěž.vzduchu-inst. | K42: 5 | L42: 5 | M42: 1.629 | N42: 3.371 | O42: 32.58 | P42: 0221900074 | Q42: 2219 | R42: 5169 | S42: 5 | T42: 5 | U42: 0 | V42: 5 | W42: 100 | Z42: 5 | AA42: 5 | AB42: 100 | AC42: 3.371 | AD42: 306.936771 | AF42: Palánová | AH42: =Z42-V42 -> 0 | AI42: 0
A43: 22 | B43: Doprava | C43: 2219 | D43: Ostatní záležitosti pozemních komunikací | E43: 5171 | F43: Opravy a udržování | G43: 0221900002 | H43: Opravy chodníků | K43: 450 | L43: 250 | M43: 137.263 | N43: 112.737 | O43: 54.9052 | P43: 0221900002 | Q43: 2219 | R43: 5171 | S43: 450 | T43: 450 | U43: 0 | V43: 450 | W43: 180 | Z43: 450 | AA43: 450 | AB43: 180 | AC43: 312.737 | AD43: 327.8378004 | AF43: Palánová | AH43: 0 | AI43: 0
A44: 22 | B44: Doprava | C44: 2221 | D44: Provoz veřejné silniční dopravy | E44: 5171 | F44: Opravy a udržování | G44: 0222100001 | H44: Opravy autobusových čekáren | K44: 100 | L44: 100 | M44: 84.303 | N44: 15.697 | O44: 84.303 | P44: 0222100001 | Q44: 2221 | R44: 5171 | S44: 100 | T44: 100 | U44: 0 | V44: 100 | W44: 100 | Z44: 100 | AA44: 100 | AB44: 100 | AC44: 15.697 | AD44: 118.6197407 | AF44: Hložková | AH44: 0 | AI44: 0
A45: 22 | B45: Doprava | C45: 2229 | D45: Ostatní záležitosti v silniční dopravě | E45: 5169 | F45: Nákup ostatních služeb | G45: 0222900001 | H45: Likvidace autovraků | K45: 50 | L45: 50 | M45: 0 | N45: 50 | O45: 0 | P45: 0222900001 | Q45: 2229 | R45: 5169 | S45: 20 | T45: 20 | U45: 0 | V45: 20 | W45: 40 | Z45: 20 | AA45: 20 | AB45: 40 | AC45: 20 | AF45: Zeman | AH45: 0 | AI45: 0
A46: 22 | B46: Doprava | C46: 2292 | D46: Dopravní obslužnost veřejnými službami-linková | E46: 5213 | F46: Neinvestiční transfery nefinančním podnikatelským subjektům-právnickým osobám | G46: 0229200002 | H46: Dopravní obslužnost | K46: 80 | L46: 100 | M46: 39.16651 | N46: 60.83349 | O46: 39.16651 | P46: 0229200002 | Q46: 2292 | R46: 5213 | S46: 120 | T46: 120 | U46: 0 | V46: 120 | W46: 120 | Y46: -40 | Z46: 80 | AA46: 80 | AB46: 80 | AC46: 40.83349 | AD46: 204.2561362 | AF46: Zeman | AH46: -40 | AI46: 0
A47: 22 | B47: Doprava | C47: 2212 | D47: Silnice | E47: 5166 | F47: Konzultační, poradenské a právní služby | H47: Studie - křižovatka Billa | Y47: 400 | Z47: 400 | AA47: 400 | AC47: 400 | AF47: Vaňkát | AH47: 400 | AI47: 0
A48: ODPA(2) 22 Doprava | K48: 13885 | L48: 14305 | M48: 11461.63 | N48: 2843.37 | O48: 80.12 | T48: =SUM(T22:T46) -> 14515 | U48: 900 | V48: =SUM(V22:V46) -> 15415 | W48: 107.7595246 | Z48: =SUM(Z22:Z47) -> 16225 | AB48: 113.4218805 | AC48: 4763.37 | AD48: 141.5592721 | AE48: =SUM(AE22:AE46) -> 8100 | AH48: 810 | AI48: 810
A49: 23 | B49: Vodní hospodářství | C49: 2310 | D49: Pitná voda | E49: 5151 | F49: Studená voda včetně stočného a poplatku za odvod dešťových vod | G49: 0231000001 | H49: Voda - nákup pitné vody | K49: 8000 | L49: 7996 | M49: 7747.954 | N49: 248.046 | O49: 96.89787394 | P49: 0231000001 | Q49: 2310 | R49: 5151 | S49: 8000 | T49: 8000 | U49: 0 | V49: 8000 | W49: 100.050025 | Z49: 8000 | AA49: 8000 | AB49: 100.050025 | AC49: 252.046 | AD49: 103.2530653 | AF49: Jůzl | AH49: 0 | AI49: 0
A50: 23 | C50: 2310 | D50: Pitná voda | E50: 5164 | F50: Nájemné | G50: 0231000001 | H50: Voda - nákup pitné vody | K50: 0 | L50: 4 | M50: 3.615 | N50: 0.385 | O50: 90.375 | W50: 0 | Y50: 4 | Z50: 4 | AA50: 4 | AB50: 100 | AC50: 0.385 | AD50: 110.6500692 | AF50: Jůzl/Kocmanová | AH50: 4 | AI50: 0
A51: 23 | B51: Vodní hospodářství | C51: 2310 | D51: Pitná voda | E51: 5166 | F51: Konzultační, poradenské a právní služby | G51: 0231000002 | H51: Voda - nové studie | K51: 50 | L51: 27 | M51: 21.054 | N51: 5.946 | O51: 77.97777778 | P51: 0231000002 | Q51: 2310 | R51: 5166 | S51: 50 | T51: 50 | U51: 0 | V51: 50 | W51: 185.1851852 | Y51: 50 | Z51: 100 | AA51: 100 | AB51: 370.3703704 | AC51: 78.946 | AD51: 474.969127 | AF51: Jůzl/Machek | AH51: 50 | AI51: 0
A52: 23 | B52: Vodní hospodářství | C52: 2310 | D52: Pitná voda | E52: 5169 | F52: Nákup ostatních služeb | G52: 0231000010 | H52: Vodovod - provozovatelská smlouva | K52: 12900 | L52: 12900 | M52: 12629.38455 | N52: 270.61545 | O52: 97.90220581 | P52: 0231000010 | Q52: 2310 | R52: 5169 | S52: 14200 | T52: 14200 | U52: 0 | V52: 14200 | W52: 110.0775194 | Z52: 14200 | AA52: 14200 | AB52: 110.0775194 | AC52: 1570.61545 | AD52: 112.4361994 | AF52: Jůzl | AH52: 0 | AI52: 0
A53: 23 | B53: Vodní hospodářství | C53: 2310 | D53: Pitná voda | E53: 5169 | F53: Nákup ostatních služeb | G53: 0231000053 | H53: Úprava PD Oprava vodovodu ul. Jihlavská | K53: 0 | L53: 24.5 | M53: 24.01184 | N53: 0.48816 | O53: 98.0075102 | P53: 0231000053 | Q53: 2310 | R53: 5169 | W53: 0 | AB53: 0 | AC53: -24.01184 | AD53: 0 | AH53: 0 | AI53: 0
A54: 23 | B54: Vodní hospodářství | C54: 2310 | D54: Pitná voda | E54: 5169 | F54: Nákup ostatních služeb | H54: PD- oprava vodovodu 5. května | Q54: 2310 | R54: 5169 | S54: 150 | T54: 150 | U54: =V54-T54 -> 0 | V54: 150 | Y54: 10 | Z54: 160 | AA54: 160 | AC54: 160 | AF54: Jůzl | AH54: 10 | AI54: 0
A55: 23 | B55: Vodní hospodářství | C55: 2310 | D55: Pitná voda | E55: 5169 | F55: Nákup ostatních služeb | H55: PD- oprava vodovodu Hradská | Q55: 2310 | R55: 5169 | S55: 200 | T55: 200 | U55: =V55-T55 -> 0 | V55: 200 | Y55: -70 | Z55: 130 | AA55: 130 | AC55: 130 | AF55: Jůzl | AH55: -70 | AI55: 0
A56: 23 | B56: Vodní hospodářství | C56: 2310 | D56: Pitná voda | E56: 5169 | F56: Nákup ostatních služeb | H56: PD- oprava vodovodu Vosmíkova | Q56: 2310 | R56: 5169 | S56: 120 | T56: 120 | U56: =V56-T56 -> 0 | V56: 120 | Z56: 120 | AA56: 120 | AC56: 120 | AF56: Jůzl | AH56: 0 | AI56: 0
A57: 23 | B57: Vodní hospodářství | C57: 2310 | D57: Pitná voda | E57: 5171 | F57: Opravy a udržování | G57: 0231000011 | H57: Vodovod - běžné opravy | K57: 5360 | L57: 4796 | M57: 3963.8363 | N57: 832.1637 | O57: 82.64879691 | P57: 0231000011 | Q57: 2310 | R57: 5171 | S57: 5000 | T57: 5000 | U57: =V57-T57 -> 0 | V57: 5000 | W57: 104.2535446 | Y57: -3000 | Z57: 2000 | AA57: 2000 | AB57: 41.70141785 | AC57: -1963.8363 | AD57: 50.45617045 | AF57: Jůzl | AH57: -3000 | AI57: 0
A58: 23 | B58: Vodní hospodářství | C58: 2310 | D58: Pitná voda | E58: 5171 | F58: Opravy a udržování | G58: 0231000051 | H58: Oprava vodovodu ul. Jihlavská | K58: 2500 | L58: 3062.5 | M58: 3062.19204 | N58: 0.30796 | O58: 99.98994416 | P58: 0231000051 | Q58: 2310 | R58: 5171 | W58: 0 | AB58: 0 | AC58: -3062.19204 | AD58: 0 | AH58: 0 | AI58: 0
A59: 23 | B59: Vodní hospodářství | C59: 2310 | D59: Pitná voda | E59: 5171 | F59: Opravy a udržování | H59: Oprava vodovodu ul. Mánesova | Q59: 2310 | R59: 5171 | S59: 4100 | T59: 4100 | U59: =V59-T59 -> 0 | V59: 4100 | Y59: -4100 | Z59: 0 | AA59: 0 | AC59: 0 | AE59: 4100 | AF59: Jůzl | AH59: -4100 | AI59: 0
A60: 23 | B60: Vodní hospodářství | C60: 2321 | D60: Odvádění a čištění odpadních vod a nakládání s kaly | E60: 5166 | F60: Konzultační, poradenské a právní služby | G60: 0232100001 | H60: Kanalizace-studie | I60: (ČOV Humpolec) | K60: 250 | L60: 1086 | M60: 495.6168 | N60: 590.3832 | O60: 45.63690608 | P60: 0232100001 | Q60: 2321 | R60: 5166 | S60: 250 | T60: 250 | U60: =V60-T60 -> 0 | V60: 250 | W60: 23.02025783 | Z60: 250 | AA60: 250 | AB60: 23.02025783 | AC60: -245.6168 | AD60: 50.44219647 | AF60: Jůzl | AH60: 0 | AI60: 0
A61: 23 | B61: Vodní hospodářství | C61: 2321 | D61: Odvádění a čištění odpadních vod a nakládání s kaly | E61: 5166 | F61: Konzultační, poradenské a právní služby | H61: Čištění Světlice-Plačkov (studie proveditelnosti ) | P61: 2321 | Q61: 6121 | S61: 500 | T61: 500 | V61: 500 | Z61: 500 | AA61: 500 | AC61: 500 | AF61: Jůzl | AH61: 0 | AI61: 0
A62: 23 | B62: Vodní hospodářství | C62: 2321 | D62: Odvádění a čištění odpadních vod a nakládání s kaly | E62: 5166 | F62: Konzultační, poradenské a právní služby | G62: 0232100042 | H62: Předprojekt.příprava-zadávací dokumentace-čištění OV MČ | K62: 250 | L62: 500 | M62: 284.978 | N62: 215.022 | O62: 56.9956 | P62: 0232100042 | Q62: 2321 | R62: 5166 | S62: 500 | T62: 500 | U62: =V62-T62 -> 0 | V62: 500 | W62: 100 | Y62: -500 | Z62: 0 | AA62: 0 | AB62: 0 | AC62: -284.978 | AD62: 0 | AF62: Jůzl | AH62: -500 | AI62: 0
A63: 23 | B63: Vodní hospodářství | C63: 2321 | D63: Odvádění a čištění odpadních vod a nakládání s kaly | E63: 5169 | F63: Nákup ostatních služeb | G63: 0232100004 | H63: Provoz ČOV v LTRN | K63: 290 | L63: 290 | M63: 244.9788 | N63: 45.0212 | O63: 84.47544828 | P63: 0232100004 | Q63: 2321 | R63: 5169 | S63: 300 | T63: 300 | U63: 0 | V63: 300 | W63: 103.4482759 | Z63: 300 | AA63: 300 | AB63: 103.4482759 | AC63: 55.0212 | AD63: 122.4595761 | AF63: Jůzl | AH63: 0 | AI63: 0
A64: 23 | B64: Vodní hospodářství | C64: 2321 | D64: Odvádění a čištění odpadních vod a nakládání s kaly | E64: 5169 | F64: Nákup ostatních služeb | G64: 0232100007 | H64: Kanalizace - provozovatelská smlouva | K64: 14200 | L64: 14200 | M64: 14143.85832 | N64: 56.14168 | O64: 99.60463606 | P64: 0232100007 | Q64: 2321 | R64: 5169 | S64: 17100 | T64: 17100 | U64: 0 | V64: 17100 | W64: 120.4225352 | Z64: 17100 | AA64: 17100 | AB64: 120.4225352 | AC64: 2956.14168 | AD64: 120.9005323 | AF64: Jůzl | AH64: 0 | AI64: 0
A65: 23 | B65: Vodní hospodářství | C65: 2321 | D65: Odvádění a čištění odpadních vod a nakládání s kaly | E65: 5169 | F65: Nákup ostatních služeb | H65: PD- oprava kanalizace 5. května | Q65: 2321 | R65: 5169 | U65: 0 | V65: 0 | Y65: 120 | Z65: 120 | AA65: 120 | AC65: 120 | AF65: Jůzl | AH65: 120 | AI65: 0
A66: 23 | B66: Vodní hospodářství | C66: 2321 | D66: Odvádění a čištění odpadních vod a nakládání s kaly | E66: 5169 | F66: Nákup ostatních služeb | H66: PD- oprava kanalizace Hradská | Q66: 2321 | R66: 5169 | U66: 0 | V66: 0 | Y66: 200 | Z66: 200 | AA66: 200 | AC66: 200 | AF66: Jůzl | AH66: 200 | AI66: 0
A67: 23 | B67: Vodní hospodářství | C67: 2321 | D67: Odvádění a čištění odpadních vod a nakládání s kaly | E67: 5169 | F67: Nákup ostatních služeb | H67: PD- oprava kanalizace Vosmíkova | Q67: 2321 | R67: 5169 | U67: 0 | V67: 0 | Y67: 160 | Z67: 160 | AA67: 160 | AC67: 160 | AF67: Jůzl | AH67: 160 | AI67: 0
A68: 23 | B68: Vodní hospodářství | C68: 2321 | D68: Odvádění a čištění odpadních vod a nakládání s kaly | E68: 5171 | F68: Opravy a udržování | G68: 0232100008 | H68: Kanalizace - běžné opravy | K68: 1482 | L68: 1192 | M68: 446.17738 | N68: 745.82262 | O68: 37.43098826 | P68: 0232100008 | Q68: 2321 | R68: 5171 | S68: 1500 | T68: 1500 | U68: 0 | V68: 1500 | W68: 125.8389262 | Y68: 500 | Z68: 2000 | AA68: 2000 | AB68: 167.7852349 | AC68: 1553.82262 | AD68: 448.2522175 | AF68: Jůzl | AH68: 500 | AI68: 0
A69: 23 | B69: Vodní hospodářství | C69: 2321 | D69: Odvádění a čištění odpadních vod a nakládání s kaly | E69: 5171 | F69: Opravy a udržování | G69: 0232100045 | H69: Oprava kanalizace ul.Jihlavská | K69: 2500 | L69: 2540 | M69: 2534.58261 | N69: 5.41739 | O69: 99.78671693 | P69: 0232100045 | Q69: 2321 | R69: 5171 | U69: 0 | W69: 0 | AB69: 0 | AC69: -2534.58261 | AD69: 0 | AF69: Jůzl | AH69: 0 | AI69: 0
A70: 23 | B70: Vodní hospodářství | C70: 2321 | D70: Odvádění a čištění odpadních vod a nakládání s kaly | E70: 5171 | F70: Opravy a udržování | H70: Oprava kanalizace ul.Mánesova | Q70: 2321 | R70: 5171 | S70: 4000 | T70: 4000 | U70: 0 | V70: 4000 | Y70: -4000 | Z70: 0 | AA70: 0 | AC70: 0 | AE70: 4000 | AF70: Jůzl | AH70: -4000 | AI70: 0
A71: 23 | B71: Vodní hospodářství | C71: 2341 | D71: Vodní díla v zemědělské krajině | E71: 5169 | F71: Nákup ostatních služeb | G71: 0234100001 | H71: Oprava návesních rybníků Petrovice | K71: 100 | L71: 200 | M71: 134.4794 | N71: 65.5206 | O71: 67.2397 | P71: 0234100001 | Q71: 2341 | R71: 5169 | S71: 100 | T71: 100 | U71: 0 | V71: 100 | W71: 50 | X71: TDI+DOTACE,ŘÍZENÍ | Y71: 100 | Z71: 200 | AA71: 200 | AB71: 100 | AC71: 65.5206 | AD71: 148.7216629 | AE71: 100 | AF71: Jůzl | AH71: 100 | AI71: 0
A72: 23 | B72: Vodní hospodářství | C72: 2341 | D72: Vodní díla v zemědělské krajině | E72: 5171 | F72: Opravy a udržování | G72: 0234100001 | H72: Oprava návesních rybníků Petrovice | K72: 6500 | L72: 6400 | M72: 0 | N72: 6400 | O72: 0 | P72: 0234100001 | Q72: 2341 | R72: 5171 | S72: 5600 | T72: 5600 | U72: 0 | V72: 5600 | W72: 87.5 | Y72: 900 | Z72: 6500 | AA72: 6500 | AB72: 101.5625 | AC72: 6500 | AE72: 5600 | AF72: Jůzl | AH72: 900 | AI72: =AH72-Y72 -> 0
A73: ODPA(2) 23 Vodní hospodářství | K73: 54382 | L73: 55218 | M73: 45736.72 | N73: 9481.29 | O73: 82.83 | T73: =SUM(T49:T72) -> 61670 | U73: 0 | V73: =SUM(V49:V72) -> 61670 | W73: 111.6845956 | Z73: =SUM(Z49:Z72) -> 52044 | AB73: 94.25187439 | AC73: 6307.28 | AD73: 113.7904074 | AE73: =SUM(AE49:AE72) -> 13800 | AH73: -9626 | AI73: -9626
A74: 31 | B74: Vzdělávání a školské služby | C74: 3111 | D74: Mateřské školy | E74: 5137 | F74: Drobný dlouhodobý hmotný majetek | G74: 0311100005 | H74: Vnitřní vybavení MŠ Podhrad | K74: 0 | L74: 2000 | M74: 0 | N74: 2000 | O74: 0 | P74: 0311100005 | Q74: 3111 | R74: 5137 | W74: =V74/L74*100 -> 0 | AB74: 0 | AC74: 0 | AD74: =Z74/M74*100 ->  | AH74: =Z74-V74 -> 0 | AI74: 0
A75: 31 | C75: 3111 | D75: Mateřské školy | E75: 5901 | F75: Nespecifikované rezervy | G75: 0311100005 | H75: Provoz a drobné vybavení pracoviště a zahrady MŠ Podhrad | I75: opravit ORG | U75: =V75-T75 -> 2000 | V75: 2000 | Z75: 2000 | AA75: 2000 | AB75: =Z75/L75*100 ->  | AC75: =Z75-M75 -> 2000 | AF75: Koudelková | AH75: 0 | AI75: 0
A76: 31 | B76: Vzdělávání a školské služby | C76: 3111 | D76: Mateřské školy | E76: 5331 | F76: Neinvestiční příspěvky zřízeným příspěvkovým organizacím | G76: 0000000301 | H76: Mateřská škola | K76: 4713 | L76: 4803 | M76: 4803 | N76: 0 | O76: 100 | P76: 0000000301 | Q76: 3111 | R76: 5331 | S76: 5768 | T76: 5768 | U76: =V76-T76 -> 322 | V76: =5768+322 -> 6090 | W76: 126.7957527 | Z76: 6090 | AA76: 6090 | AB76: 126.7957527 | AC76: 1287 | AD76: 126.7957527 | AF76: Koudelková | AH76: 0 | AI76: 0
A77: 31 | B77: Vzdělávání a školské služby | C77: 3111 | D77: Mateřské školy | E77: 5331 | F77: Neinvestiční příspěvky zřízeným příspěvkovým organizacím | G77: 0311100301 | H77: MŠ spec.pedagog | K77: 100 | L77: 112.95 | M77: 112.95 | N77: 0 | O77: 100 | P77: 0311100301 | Q77: 3111 | R77: 5331 | S77: 100 | T77: 100 | U77: =V77-T77 -> 0 | V77: 100 | W77: 88.53474989 | Z77: 100 | AA77: 100 | AB77: 88.53474989 | AC77: -12.95 | AD77: 88.53474989 | AF77: Koudelková | AH77: 0 | AI77: 0
A78: 31 | B78: Vzdělávání a školské služby | C78: 3111 | D78: Mateřské školy | E78: 5336 | F78: Neinvestiční transfery zřízeným příspěvkovým organizacím | G78: 0000301003 | H78: Kraj-Potrav.pomoc dětem -MŠ | K78: 0 | L78: 31.35925 | M78: 31.35925 | N78: 0 | O78: 100 | P78: 0000301003 | Q78: 3111 | R78: 5336 | W78: 0 | AB78: 0 | AC78: -31.35925 | AD78: 0 | AH78: 0 | AI78: 0
A79: 31 | B79: Vzdělávání a školské služby | C79: 3113 | D79: Základní školy | E79: 5169 | F79: Nákup ostatních služeb | G79: 0311300004 | H79: Rozšíř.kapacity zákl.škol v Humpolci | K79: 400 | L79: 400 | M79: 325.683 | N79: 74.317 | O79: 81.42075 | P79: 0311300004 | Q79: 3113 | R79: 5169 | W79: 0 | AB79: 0 | AC79: -325.683 | AD79: 0 | AH79: 0 | AI79: 0
A80: 31 | B80: Vzdělávání a školské služby | C80: 3113 | D80: Základní školy | E80: 5166 | F80: Konzultační, poradenské a právní služby | G80: 0311300004 | H80: Rozšíření kapacit základních škol v Humpolci | Y80: 800 | Z80: 800 | AA80: 800 | AC80: 800 | AF80: Hrala/Machek | AH80: 800 | AI80: 0
A81: 31 | B81: Vzdělávání a školské služby | C81: 3113 | D81: Základní školy | E81: 5331 | F81: Neinvestiční příspěvky zřízeným příspěvkovým organizacím | G81: 0000000321 | H81: ZŠ Hálkova | K81: 7879 | L81: 8227 | M81: 8227 | N81: 0 | O81: 100 | P81: 0000000321 | Q81: 3113 | R81: 5331 | S81: 11819 | T81: 11819 | U81: =V81-T81 -> -1432 | V81: =11819+1068-2500 -> 10387 | W81: 126.255014 | Y81: 200 | Z81: 10587 | AA81: 10587 | AB81: 128.6860338 | AC81: 2360 | AD81: 128.6860338 | AF81: Koudelková | AH81: =Z81-V81 -> 200 | AI81: 0
A82: 31 | B82: Vzdělávání a školské služby | C82: 3113 | D82: Základní školy | E82: 5331 | F82: Neinvestiční příspěvky zřízeným příspěvkovým organizacím | G82: 0000000322 | H82: ZŠ Hradská | K82: 7236 | L82: 7236 | M82: 7236 | N82: 0 | O82: 100 | P82: 0000000322 | Q82: 3113 | R82: 5331 | S82: 8332 | T82: 8332 | U82: =V82-T82 -> -340 | V82: =8332-340 -> 7992 | W82: 110.4477612 | Z82: 7992 | AA82: 7992 | AB82: 110.4477612 | AC82: 756 | AD82: 110.4477612 | AF82: Koudelková | AH82: 0 | AI82: 0
A83: 31 | B83: Vzdělávání a školské služby | C83: 3113 | D83: Základní školy | E83: 5331 | F83: Neinvestiční příspěvky zřízeným příspěvkovým organizacím | G83: 0311300001 | H83: ZŠ spec.pedag, šk.psycholog | K83: 400 | L83: 387.05 | M83: 199.86 | N83: 187.19 | O83: 51.63673944 | P83: 0311300001 | Q83: 3113 | R83: 5331 | S83: 400 | T83: 400 | U83: =V83-T83 -> 0 | V83: 400 | W83: 103.345821 | Z83: 400 | AA83: 400 | AB83: 103.345821 | AC83: 200.14 | AD83: 200.1400981 | AF83: Koudelková | AH83: 0 | AI83: 0
A84: 31 | B84: Vzdělávání a školské služby | C84: 3113 | D84: Základní školy | E84: 5331 | F84: Neinvestiční příspěvky zřízeným příspěvkovým organizacím | G84: 0999000321 | H84: Neinv.příspěvek-ZŠ Hálkova-participativní rozpočet | K84: 0 | L84: 100 | M84: 100 | N84: 0 | O84: 100 | P84: 0999000321 | Q84: 3113 | R84: 5331 | W84: 0 | Y84: 100 | Z84: 100 | AA84: 100 | AB84: 100 | AC84: 0 | AD84: 100 | AF84: Koudelková | AH84: 100 | AI84: 0
A85: 31 | B85: Vzdělávání a školské služby | C85: 3113 | D85: Základní školy | E85: 5331 | F85: Neinvestiční příspěvky zřízeným příspěvkovým organizacím | G85: 0999000322 | H85: Neinv.příspěvek-ZŠ Hradská-participativní rozpočet | K85: 0 | L85: 100 | M85: 100 | N85: 0 | O85: 100 | P85: 0999000322 | Q85: 3113 | R85: 5331 | W85: 0 | Y85: 100 | Z85: 100 | AA85: 100 | AB85: 100 | AC85: 0 | AD85: 100 | AF85: Koudelková | AH85: 100 | AI85: 0
A86: 31 | B86: Vzdělávání a školské služby | C86: 3113 | D86: Základní školy | E86: 5336 | F86: Neinvestiční transfery zřízeným příspěvkovým organizacím | G86: 0000321003 | H86: Kraj-Potrav.pomoc dětem ZŠ Hálkova | K86: 0 | L86: 107.76488 | M86: 107.76488 | N86: 0 | O86: 100 | P86: 0000321003 | Q86: 3113 | R86: 5336 | W86: 0 | AB86: 0 | AC86: -107.76488 | AD86: 0 | AH86: 0 | AI86: 0
A87: 31 | B87: Vzdělávání a školské služby | C87: 3113 | D87: Základní školy | E87: 5336 | F87: Neinvestiční transfery zřízeným příspěvkovým organizacím | G87: 0000322004 | H87: ZŠ Hradská-průtok.neinv.dotace-ŠABLONY OP JAK | K87: 0 | L87: 2031.07 | M87: 2031.07 | N87: 0 | O87: 100 | W87: 0 | AB87: 0 | AC87: -2031.07 | AD87: 0 | AI87: 0
A88: 31 | B88: Vzdělávání a školské služby | C88: 3113 | D88: Základní školy | E88: 5901 | F88: Nespecifikované rezervy | G88: 0311300002 | H88: ZŠ rezerva | K88: 1490 | L88: 1490 | M88: 0 | N88: 1490 | O88: 0 | P88: 0311300002 | Q88: 3113 | R88: 5901 | W88: 0 | AB88: 0 | AC88: 0 | AH88: =Z88-V88 -> 0 | AI88: 0
A89: 31 | B89: Vzdělávání a školské služby | C89: 3119 | D89: Ostatní záležitosti základního vzdělávání | E89: 5169 | F89: Nákup ostatních služeb | G89: 0311900001 | H89: Projekt Post Bellum | K89: 130 | L89: 130 | M89: 0 | N89: 130 | O89: 0 | P89: 0311900001 | Q89: 3119 | R89: 5169 | S89: 130 | T89: 130 | U89: =V89-T89 -> 0 | V89: 130 | W89: 100 | Y89: 20 | Z89: 150 | AA89: 150 | AB89: 115.3846154 | AC89: 150 | AF89: Koudelková | AH89: 20 | AI89: 0
A90: 31 | B90: Vzdělávání a školské služby | C90: 3121 | D90: Gymnázia | E90: 5339 | F90: Neinvestiční transfery cizím příspěvkovým organizacím | G90: 0999312101 | H90: Dar particip.rozpočet-Gymnázium Dr.A.Hrdličky | K90: 0 | L90: 100 | M90: 100 | N90: 0 | O90: 100 | P90: 0999312101 | Q90: 3121 | R90: 5339 | U90: =V90-T90 -> 0 | W90: 0 | Y90: 100 | Z90: 100 | AA90: 100 | AB90: 100 | AC90: 0 | AD90: 100 | AF90: Koudelková | AH90: 100 | AI90: 0
A91: ODPA(2) 31 Vzdělávání a školské služby | K91: 22348 | L91: 27256.19 | M91: 23374.68 | N91: 3881.51 | O91: 85.76 | T91: =SUM(T74:T90) -> 26549 | U91: =V91-T91 -> 550 | V91: =SUM(V74:V90) -> 27099 | W91: 99.42328697 | Z91: =SUM(Z74:Z90) -> 28419 | AB91: 104.2662236 | AC91: 5044.32 | AD91: 121.580274 | AE91: =SUM(AE74:AE90) -> 0 | AH91: 1320 | AI91: 1320
A92: 32 | B92: Vzdělávání a školské služby | C92: 3231 | D92: Základní umělecké školy | E92: 5331 | F92: Neinvestiční příspěvky zřízeným příspěvkovým organizacím | G92: 0000000324 | H92: ZUŠ | K92: 256 | L92: 299 | M92: 299 | N92: 0 | O92: 100 | P92: 0000000324 | Q92: 3231 | R92: 5331 | S92: 600 | T92: 600 | U92: =V92-T92 -> 280 | V92: 880 | W92: 294.3143813 | Z92: 880 | AA92: 880 | AB92: 294.3143813 | AC92: 581 | AD92: 294.3143813 | AF92: Koudelková | AH92: 0 | AI92: 0
A93: 32 | B93: Vzdělávání a školské služby | C93: 3231 | D93: Základní umělecké školy | E93: 5336 | F93: Neinvestiční transfery zřízeným příspěvkovým organizacím | G93: 0323100003 | H93: ZUŠ-průtok-neinv.dotace-Podpora okr.a kraj.kol soutěží a přehlídek v zájm.vzdělávání pro r.2022 | K93: 0 | L93: 15 | M93: 15 | N93: 0 | O93: 100 | P93: 0323100003 | Q93: 3231 | R93: 5336 | W93: 0 | AB93: 0 | AC93: -15 | AD93: 0 | AH93: 0 | AI93: 0
A94: 32 | B94: Vzdělávání a školské služby | C94: 3233 | D94: Střediska volného času | E94: 5331 | F94: Neinvestiční příspěvky zřízeným příspěvkovým organizacím | G94: 0000000325 | H94: SVČ | K94: 2900 | L94: 2900 | M94: 2900 | N94: 0 | O94: 100 | P94: 0000000325 | Q94: 3233 | R94: 5331 | S94: 3866 | T94: 3866 | U94: =V94-T94 -> 0 | V94: 3866 | W94: 133.3103448 | Z94: 3866 | AA94: 3866 | AB94: 133.3103448 | AC94: 966 | AD94: 133.3103448 | AF94: Koudelková | AH94: 0 | AI94: 0
A95: 32 | B95: Vzdělávání a školské služby | C95: 3233 | D95: Střediska volného času | E95: 5336 | F95: Neinvestiční transfery zřízeným příspěvkovým organizacím | G95: 0323300001 | H95: SVČ-neinv.průtok.dotace Míčkování anebo zatočíme s rýmou a kašlem | K95: 0 | L95: 20 | M95: 20 | N95: 0 | O95: 100 | P95: 0323300001 | Q95: 3233 | R95: 5336 | W95: 0 | AB95: 0 | AC95: -20 | AD95: 0 | AH95: 0 | AI95: 0
A96: 32 | B96: Vzdělávání a školské služby | C96: 3233 | D96: Střediska volného času | E96: 5336 | F96: Neinvestiční transfery zřízeným příspěvkovým organizacím | G96: 0323300002 | H96: SVČ-neinv.průtok.dotace Šablony (OP JAK) | K96: 0 | L96: 1931.925 | M96: 1931.925 | N96: 0 | O96: 100 | W96: 0 | AB96: 0 | AC96: -1931.925 | AD96: 0 | AI96: 0
A97: 32 | B97: Vzdělávání a školské služby | C97: 3299 | D97: Ostatní záležitosti vzdělávání | E97: 5222 | F97: Neinvestiční transfery spolkům | G97: 0329900001 | H97: Dotace B2-Vzdělávání pro budoucnost,z.s. (činnost) - převod z oddílu 33 | K97: 16 | L97: 16 | M97: 16 | N97: 0 | O97: 100 | P97: 0329900001 | Q97: 3299 | R97: 5222 | W97: 0 | Y97: 18 | Z97: 18 | AA97: 18 | AB97: 112.5 | AC97: 2 | AD97: 112.5 | AH97: =Z97-V97 -> 18 | AI97: 0
A98: ODPA(2) 32 Vzdělávání a školské služby | K98: 3172 | L98: 5181.93 | M98: 5181.93 | N98: 0 | O98: 100 | T98: =SUM(T92:T97) -> 4466 | U98: =V98-T98 -> 280 | V98: =SUM(V92:V97) -> 4746 | W98: 91.58749732 | Z98: =SUM(Z92:Z97) -> 4764 | AB98: 91.93485825 | AC98: -417.93 | AD98: 91.93485825 | AE98: =SUM(AE92:AE97) -> 0 | AH98: 18 | AI98: 18
A99: 33 | B99: Kultura, církve a sdělovací prostředky | C99: 3313 | D99: Filmová tvorba, distribuce, kina a shromažďování audiovizuál. archiválií | E99: 5221 | F99: Neinvestiční transfery fundacím, ústavům a obecně prospěšným společnostem | G99: 0331300001 | H99: Dotace-Castrum (film.a folk.festival) | K99: 55 | L99: 55 | M99: 55 | N99: 0 | O99: 100 | P99: 0331300001 | Q99: 3313 | R99: 5221 | W99: 0 | AB99: 0 | AC99: -55 | AD99: 0 | AH99: 0 | AI99: 0
A100: 33 | B100: Kultura, církve a sdělovací prostředky | C100: 3315 | D100: Činnosti muzeí a galerií | E100: 5492 | F100: Dary obyvatelstvu | G100: 0331500005 | H100: Odměny za práce studentů s Antropolog.tematikou | K100: 20 | L100: 20 | M100: 20 | N100: 0 | O100: 100 | P100: 0331500005 | Q100: 3315 | R100: 5492 | W100: 0 | AB100: 0 | AC100: -20 | AD100: 0 | AH100: 0 | AI100: 0
A101: 33 | B101: Kultura, církve a sdělovací prostředky | C101: 3319 | D101: Ostatní záležitosti kultury | E101: 5137 | F101: Drobný dlouhodobý hmotný majetek | G101: 0331900019 | H101: Spolk.dům.čp.59-výkup vybavení | K101: 0 | L101: 100 | M101: 100 | N101: 0 | O101: 100 | P101: 0331900019 | Q101: 3319 | R101: 5137 | W101: 0 | AB101: 0 | AC101: -100 | AD101: 0 | AH101: 0 | AI101: 0
A102: 33 | B102: Kultura, církve a sdělovací prostředky | C102: 3319 | D102: Ostatní záležitosti kultury | E102: 5151 | F102: Studená voda včetně stočného a poplatku za odvod dešťových vod | G102: 0331900020 | H102: Spolk.dům.čp.59 | K102: 0 | L102: 100 | M102: 1.936 | N102: 98.064 | O102: 1.936 | P102: 0331900020 | Q102: 3319 | R102: 5151 | S102: 400 | T102: 400 | U102: =V102-T102 -> -200 | V102: 200 | W102: 200 | Y102: 200 | Z102: 400 | AA102: 400 | AB102: 400 | AC102: 398.064 | AD102: 20661.15702 | AF102: Hložková/Machek | AH102: 200 | AI102: 0
A103: 33 | B103: Kultura, církve a sdělovací prostředky | C103: 3319 | D103: Ostatní záležitosti kultury | E103: 5153 | F103: Plyn | G103: 0331900020 | H103: Spolk.dům.čp.59 | K103: 0 | L103: 100 | M103: 11.4 | N103: 88.6 | O103: 11.4 | P103: 0331900020 | Q103: 3319 | R103: 5153 | S103: =130*4 -> 520 | T103: 520 | U103: =V103-T103 -> -270 | V103: 250 | W103: 250 | Y103: 250 | Z103: 500 | AA103: 500 | AB103: 500 | AC103: 488.6 | AD103: 4385.964912 | AF103: Hložková/Machek | AH103: 250 | AI103: 0
A104: 33 | B104: Kultura, církve a sdělovací prostředky | C104: 3319 | D104: Ostatní záležitosti kultury | E104: 5154 | F104: Elektrická energie | G104: 0331900020 | H104: Spolk.dům.čp.59 | K104: 0 | L104: 200 | M104: 10 | N104: 190 | O104: 5 | P104: 0331900020 | Q104: 3319 | R104: 5154 | S104: =200*1.3*4 -> 1040 | T104: 1040 | U104: =V104-T104 -> -540 | V104: 500 | W104: 250 | Y104: 500 | Z104: 1000 | AA104: 1000 | AB104: 500 | AC104: 990 | AD104: 10000 | AF104: Hložková/Machek | AH104: 500 | AI104: 0
A105: 33 | B105: Kultura, církve a sdělovací prostředky | C105: 3319 | D105: Ostatní záležitosti kultury | E105: 5169 | F105: Nákup ostatních služeb | G105: 0331900012 | H105: Varhanní koncerty Concentus Moraviae-festival Varhanní Vysočina | K105: 90 | L105: 90 | M105: 30 | N105: 60 | O105: 33.33333333 | P105: 0331900012 | Q105: 3319 | R105: 5169 | W105: 0 | Y105: 50 | Z105: 50 | AA105: 50 | AB105: 55.55555556 | AC105: 20 | AD105: 166.6666667 | AH105: 50 | AI105: 0
A106: 33 | B106: Kultura, církve a sdělovací prostředky | C106: 3319 | D106: Ostatní záležitosti kultury | E106: 5169 | F106: Nákup ostatních služeb | G106: 0331900016 | H106: Administrace dotace PKC-Centrum Mikádo | K106: 62 | L106: 62 | M106: 0 | N106: 62 | O106: 0 | P106: 0331900016 | Q106: 3319 | R106: 5169 | S106: 10 | T106: 10 | U106: =V106-T106 -> 0 | V106: 10 | W106: 16.12903226 | Z106: 10 | AA106: 10 | AB106: 16.12903226 | AC106: 10 | AF106: Augustová | AH106: 0 | AI106: 0
A107: 33 | B107: Kultura, církve a sdělovací prostředky | C107: 3319 | D107: Ostatní záležitosti kultury | E107: 5169 | F107: Nákup ostatních služeb | G107: 0331900017 | H107: Pěvecký koncert-Ant.Dvořák | K107: 25 | L107: 25 | M107: 19 | N107: 6 | O107: 76 | P107: 0331900017 | Q107: 3319 | R107: 5169 | U107: 0 | W107: 0 | AB107: 0 | AC107: -19 | AD107: 0 | AH107: 0 | AI107: 0
A108: 33 | B108: Kultura, církve a sdělovací prostředky | C108: 3319 | D108: Ostatní záležitosti kultury | E108: 5166 | F108: Konzultační, poradenské a právní služby | H108: Studie využití městského bloku "SPOLKOVÝ DŮM-HUSOVA" | S108: 0 | T108: 0 | U108: 2000 | V108: 2000 | Y108: -1000 | Z108: 1000 | AA108: 1000 | AC108: 1000 | AF108: Machek | AH108: -1000 | AI108: 0
A109: 33 | B109: Kultura, církve a sdělovací prostředky | C109: 3319 | D109: Ostatní záležitosti kultury | E109: 5169 | F109: Nákup ostatních služeb | G109: 0331900020 | H109: Spolk.dům.čp.59 | K109: 0 | L109: 100 | M109: 61.67138 | N109: 38.32862 | O109: 61.67138 | P109: 0331900020 | Q109: 3319 | R109: 5169 | S109: 100 | T109: 100 | U109: 0 | V109: 100 | W109: 100 | Z109: 100 | AA109: 100 | AB109: 100 | AC109: 38.32862 | AD109: 162.1497687 | AF109: Hložková | AH109: 0 | AI109: 0
A110: 33 | B110: Kultura, církve a sdělovací prostředky | C110: 3319 | D110: Ostatní záležitosti kultury | E110: 5169 | F110: Nákup ostatních služeb | G110: 0331900021 | H110: TS-odměna správa-Spolk.dům.čp.59 | K110: 0 | L110: 120 | M110: 77.44 | N110: 42.56 | O110: 64.53333333 | P110: 0331900021 | Q110: 3319 | R110: 5169 | S110: 280 | T110: 280 | U110: 0 | V110: 280 | W110: 233.3333333 | Y110: 40 | Z110: 320 | AA110: 320 | AB110: 266.6666667 | AC110: 242.56 | AD110: 413.2231405 | AF110: Hložková | AH110: 40 | AI110: 0
A111: 33 | B111: Kultura, církve a sdělovací prostředky | C111: 3319 | D111: Ostatní záležitosti kultury | E111: 5171 | F111: Opravy a udržování | G111: 0331900020 | H111: Spolk.dům.čp.59 | K111: 0 | L111: 2000 | M111: 418.11241 | N111: 1581.88759 | O111: 20.9056205 | P111: 0331900020 | Q111: 3319 | R111: 5171 | S111: 1000 | T111: 1000 | U111: 0 | V111: 1000 | W111: 50 | Z111: 1000 | AA111: 1000 | AB111: 50 | AC111: 581.88759 | AD111: 239.1701313 | AF111: Hložková | AH111: 0 | AI111: 0
A112: 33 | B112: Kultura, církve a sdělovací prostředky | C112: 3319 | D112: Ostatní záležitosti kultury | E112: 5222 | F112: Neinvestiční transfery spolkům | G112: 0331900002 | H112: Dotace-Veřejná Platforma (kulturní akce) | K112: 101 | L112: 101 | M112: 101 | N112: 0 | O112: 100 | P112: 0331900002 | Q112: 3319 | R112: 5222 | W112: 0 | AB112: 0 | AC112: -101 | AD112: 0 | AH112: 0 | AI112: 0
A113: 33 | B113: Kultura, církve a sdělovací prostředky | C113: 3319 | D113: Ostatní záležitosti kultury | E113: 5331 | F113: Neinvestiční příspěvky zřízeným příspěvkovým organizacím | G113: 0000000376 | H113: MěKIS | K113: 13394 | L113: 13129 | M113: 13129 | N113: 0 | O113: 100 | P113: 0000000376 | Q113: 3319 | R113: 5331 | S113: 17076 | T113: 17076 | U113: =V113-T113 -> 442 | V113: =17076+442 -> 17518 | W113: 133.4298119 | Y113: -419 | Z113: 17099 | AA113: 17099 | AB113: 130.2384035 | AC113: 3970 | AD113: 130.2384035 | AF113: Koudelková | AH113: -419 | AI113: 0
A114: 33 | B114: Kultura, církve a sdělovací prostředky | C114: 3319 | D114: Ostatní záležitosti kultury | E114: 5336 | F114: Neinvestiční transfery zřízeným příspěvkovým organizacím | G114: 0003319002 | H114: Průtok-Humpolecké léto-grant z Fondu Vys. pro MěKIS | K114: 0 | L114: 60 | M114: 60 | N114: 0 | O114: 100 | P114: 0003319002 | Q114: 3319 | R114: 5336 | W114: 0 | AB114: 0 | AC114: -60 | AD114: 0 | AH114: 0 | AI114: 0
A115: 33 | B115: Kultura, církve a sdělovací prostředky | C115: 3319 | D115: Ostatní záležitosti kultury | E115: 5336 | F115: Neinvestiční transfery zřízeným příspěvkovým organizacím | G115: 0003319009 | H115: Průtok-MěKIS neinv.dotace od Kraje-S koloběžkou kolem Humpolce | K115: 0 | L115: 35.503 | M115: 35.503 | N115: 0 | O115: 100 | P115: 0003319009 | Q115: 3319 | R115: 5336 | W115: 0 | AB115: 0 | AC115: -35.503 | AD115: 0 | AH115: 0 | AI115: 0
A116: 33 | B116: Kultura, církve a sdělovací prostředky | C116: 3319 | D116: Ostatní záležitosti kultury | E116: 5339 | F116: Neinvestiční transfery cizím příspěvkovým organizacím | G116: 0312200001 | H116: Dotace-Česká zem.akademie (akce školy) | K116: 17 | L116: 17 | M116: 17 | N116: 0 | O116: 100 | P116: 0312200001 | Q116: 3319 | R116: 5339 | W116: 0 | AB116: 0 | AC116: -17 | AD116: 0 | AH116: 0 | AI116: 0
A117: 33 | B117: Kultura, církve a sdělovací prostředky | C117: 3319 | D117: Ostatní záležitosti kultury | E117: 5493 | F117: Účelové neinvestiční transfery fyzickým osobám | G117: 0331900001 | H117: Dotace-Zabloudilová(pořádání sletu čarodějnic) | K117: 13 | L117: 13 | M117: 13 | N117: 0 | O117: 100 | P117: 0331900001 | Q117: 3319 | R117: 5493 | W117: 0 | AB117: 0 | AC117: -13 | AD117: 0 | AH117: 0 | AI117: 0
A118: 33 | B118: Kultura, církve a sdělovací prostředky | C118: 3319 | D118: Ostatní záležitosti kultury | E118: 5901 | F118: Nespecifikované rezervy | G118: 0000000020 | H118: Rezerva na Dotace 2022 B "Zásad"-obl. kultury (116 tis. Kč) a D "Zásad"-obl.obnovy kult.památek (50 tis. Kč) | K118: 166 | L118: 0 | M118: 0 | N118: 0 | O118: 0 | P118: 0000000020 | Q118: 3319 | R118: 5901 | AC118: 0 | AH118: 0 | AI118: 0
A119: 33 | B119: Kultura, církve a sdělovací prostředky | C119: 3322 | D119: Zachování a obnova kulturních památek | E119: 5137 | F119: Drobný dlouhodobý hmotný majetek | G119: 0332200002 | H119: Hrad Orlík-provozní výdaje | K119: 30 | L119: 30 | M119: 30 | N119: 0 | O119: 100 | P119: 0332200002 | Q119: 3322 | R119: 5137 | W119: 0 | AB119: 0 | AC119: -30 | AD119: 0 | AF119: Kocman | AH119: 0 | AI119: 0
A120: 33 | B120: Kultura, církve a sdělovací prostředky | C120: 3322 | D120: Zachování a obnova kulturních památek | E120: 5154 | F120: Elektrická energie | G120: 0332200010 | H120: Budova čp. 338 Zichpil | K120: 20 | L120: 20 | M120: 6.87461 | N120: 13.12539 | O120: 34.37305 | P120: 0332200010 | Q120: 3322 | R120: 5154 | S120: 30 | T120: 30 | U120: =V120-T120 -> 0 | V120: 30 | W120: 150 | Z120: 30 | AA120: 30 | AB120: 150 | AC120: 23.12539 | AD120: 436.3883915 | AF120: Kocman | AH120: 0 | AI120: 0
A121: 33 | B121: Kultura, církve a sdělovací prostředky | C121: 3322 | D121: Zachování a obnova kulturních památek | E121: 5166 | F121: Konzultační, poradenské a právní služby | G121: 0332200001 | H121: Státní památková péče -posudky | K121: 20 | L121: 20 | M121: 0 | N121: 20 | O121: 0 | P121: 0332200001 | Q121: 3322 | R121: 5166 | S121: 20 | T121: 20 | U121: 0 | V121: 20 | W121: 100 | Z121: 20 | AA121: 20 | AB121: 100 | AC121: 20 | AF121: Kocman | AH121: 0 | AI121: 0
A122: 33 | B122: Kultura, církve a sdělovací prostředky | C122: 3322 | D122: Zachování a obnova kulturních památek | E122: 5169 | F122: Nákup ostatních služeb | G122: 0332200002 | H122: Hrad Orlík-provozní výdaje | K122: 200 | L122: 200 | M122: 142.642 | N122: 57.358 | O122: 71.321 | P122: 0332200002 | Q122: 3322 | R122: 5169 | S122: 200 | T122: 200 | U122: 0 | V122: 200 | W122: 100 | Z122: 200 | AA122: 200 | AB122: 100 | AC122: 57.358 | AD122: 140.211158 | AF122: Kocman | AH122: 0 | AI122: 0
A123: 33 | B123: Kultura, církve a sdělovací prostředky | C123: 3322 | D123: Zachování a obnova kulturních památek | E123: 5169 | F123: Nákup ostatních služeb | G123: 0332200003 | H123: Budova čp. 253 Dol. náměstí -údržba, revize, opravy | K123: 30 | L123: 30 | M123: 0.09168 | N123: 29.90832 | O123: 0.3056 | P123: 0332200003 | Q123: 3322 | R123: 5169 | S123: 30 | T123: 30 | U123: 0 | V123: 30 | W123: 100 | Z123: 30 | AA123: 30 | AB123: 100 | AC123: 29.90832 | AD123: 32722.51309 | AF123: Kocman | AH123: 0 | AI123: 0
A124: 33 | B124: Kultura, církve a sdělovací prostředky | C124: 3322 | D124: Zachování a obnova kulturních památek | E124: 5169 | F124: Nákup ostatních služeb | G124: 0332200010 | H124: Budova čp. 338 Zichpil | K124: 2 | L124: 9 | M124: 7.65168 | N124: 1.34832 | O124: 85.01866667 | P124: 0332200010 | Q124: 3322 | R124: 5169 | S124: 3 | T124: 3 | U124: 0 | V124: 3 | W124: 33.33333333 | Z124: 3 | AA124: 3 | AB124: 33.33333333 | AC124: -4.65168 | AD124: 39.20707609 | AF124: Kocman | AH124: 0 | AI124: 0
A125: 33 | B125: Kultura, církve a sdělovací prostředky | C125: 3322 | D125: Zachování a obnova kulturních památek | E125: 5171 | F125: Opravy a udržování | G125: 0332200002 | H125: Hrad Orlík-provozní výdaje | K125: 400 | L125: 440 | M125: 419.39275 | N125: 20.60725 | O125: 95.31653409 | P125: 0332200002 | Q125: 3322 | R125: 5171 | S125: 500 | T125: 500 | U125: 0 | V125: 500 | W125: 113.6363636 | Z125: 500 | AA125: 500 | AB125: 113.6363636 | AC125: 80.60725 | AD125: 119.2199913 | AF125: Kocman | AH125: 0 | AI125: 0
A126: 33 | B126: Kultura, církve a sdělovací prostředky | C126: 3322 | D126: Zachování a obnova kulturních památek | E126: 5171 | F126: Opravy a udržování | G126: 0332200003 | H126: Budova čp. 253 Dol. náměstí -údržba, revize, opravy | K126: 50 | L126: 50 | M126: 8.303 | N126: 41.697 | O126: 16.606 | P126: 0332200003 | Q126: 3322 | R126: 5171 | S126: 100 | T126: 100 | U126: 0 | V126: 100 | W126: 200 | Z126: 100 | AA126: 100 | AB126: 200 | AC126: 91.697 | AD126: 1204.383958 | AF126: Kocman | AH126: 0 | AI126: 0
A127: 33 | B127: Kultura, církve a sdělovací prostředky | C127: 3322 | D127: Zachování a obnova kulturních památek | E127: 5171 | F127: Opravy a udržování | G127: 0332200006 | H127: St.pam.péče - opr.neudržitelných památek | K127: 10 | L127: 10 | M127: 0 | N127: 10 | O127: 0 | P127: 0332200006 | Q127: 3322 | R127: 5171 | S127: 10 | T127: 10 | U127: 0 | V127: 10 | W127: 100 | Z127: 10 | AA127: 10 | AB127: 100 | AC127: 10 | AF127: Kocman | AH127: 0 | AI127: 0
A128: 33 | B128: Kultura, církve a sdělovací prostředky | C128: 3322 | D128: Zachování a obnova kulturních památek | E128: 5171 | F128: Opravy a udržování | G128: 0332200009 | H128: Budova čp. 250 Dolní náměstí | K128: 80 | L128: 80 | M128: 0 | N128: 80 | O128: 0 | P128: 0332200009 | Q128: 3322 | R128: 5171 | S128: 30 | T128: 30 | U128: 0 | V128: 30 | W128: 37.5 | Z128: 30 | AA128: 30 | AB128: 37.5 | AC128: 30 | AF128: Kocman | AH128: 0 | AI128: 0
A129: 33 | B129: Kultura, církve a sdělovací prostředky | C129: 3322 | D129: Zachování a obnova kulturních památek | E129: 5171 | F129: Opravy a udržování | G129: 0332200010 | H129: Budova čp. 338 Zichpil | K129: 20 | L129: 25 | M129: 5.179 | N129: 19.821 | O129: 20.716 | P129: 0332200010 | Q129: 3322 | R129: 5171 | S129: 20 | T129: 20 | U129: 0 | V129: 20 | W129: 80 | Y129: 150 | Z129: 170 | AA129: 170 | AB129: 680 | AC129: 164.821 | AD129: 3282.486967 | AF129: Kocman | AH129: 150 | AI129: 0
A130: 33 | B130: Kultura, církve a sdělovací prostředky | C130: 3322 | D130: Zachování a obnova kulturních památek | E130: 5171 | F130: Opravy a udržování | G130: 0332200031 | H130: Boží muka Krasoňov-opravy | K130: 0 | L130: 100 | M130: 82.159 | N130: 17.841 | O130: 82.159 | P130: 0332200031 | Q130: 3322 | R130: 5171 | U130: 0 | W130: 0 | AB130: 0 | AC130: -82.159 | AD130: 0 | AH130: 0 | AI130: 0
A131: 33 | B131: Kultura, církve a sdělovací prostředky | C131: 3326 | D131: Pořízení, zachování a obnova hodnot místního kulturního, národního a historického povědomí | E131: 5154 | F131: Elektrická energie | G131: 0332600004 | H131: Toleranční kostel | K131: 4 | L131: 4 | M131: 1.73222 | N131: 2.26778 | O131: 43.3055 | P131: 0332600004 | Q131: 3326 | R131: 5154 | S131: 8 | T131: 8 | U131: 0 | V131: 8 | W131: 200 | Z131: 8 | AA131: 8 | AB131: 200 | AC131: 6.26778 | AD131: 461.8351018 | AF131: Kocman | AH131: 0 | AI131: 0
A132: 33 | B132: Kultura, církve a sdělovací prostředky | C132: 3326 | D132: Pořízení, zachování a obnova hodnot místního kulturního, národního a historického povědomí | E132: 5169 | F132: Nákup ostatních služeb | G132: 0332600001 | H132: Kapličky - revize | K132: 20 | L132: 20 | M132: 19.058 | N132: 0.942 | O132: 95.29 | P132: 0332600001 | Q132: 3326 | R132: 5169 | S132: 25 | T132: 25 | U132: 0 | V132: 25 | W132: 125 | Z132: 25 | AA132: 25 | AB132: 125 | AC132: 5.942 | AD132: 131.1785077 | AF132: Hložková | AH132: 0 | AI132: 0
A133: 33 | B133: Kultura, církve a sdělovací prostředky | C133: 3326 | D133: Pořízení, zachování a obnova hodnot místního kulturního, národního a historického povědomí | E133: 5171 | F133: Opravy a udržování | G133: 0332600002 | H133: Boží muka, křížky - opravy | K133: 10 | L133: 10 | M133: 0 | N133: 10 | O133: 0 | P133: 0332600002 | Q133: 3326 | R133: 5171 | S133: 10 | T133: 10 | U133: 0 | V133: 10 | W133: 100 | Z133: 10 | AA133: 10 | AB133: 100 | AC133: 10 | AF133: Kocman | AH133: 0 | AI133: 0
A134: 33 | B134: Kultura, církve a sdělovací prostředky | C134: 3326 | D134: Pořízení, zachování a obnova hodnot místního kulturního, národního a historického povědomí | E134: 5171 | F134: Opravy a udržování | G134: 0332600003 | H134: Kapličky - opravy | K134: 90 | L134: 90 | M134: 21.223 | N134: 68.777 | O134: 23.58111111 | P134: 0332600003 | Q134: 3326 | R134: 5171 | S134: 100 | T134: 100 | U134: 0 | V134: 100 | W134: 111.1111111 | Y134: 60 | Z134: 160 | AA134: 160 | AB134: 177.7777778 | AC134: 138.777 | AD134: 753.8990718 | AF134: Hložková/Machek | AH134: 60 | AI134: 0
A135: 33 | B135: Kultura, církve a sdělovací prostředky | C135: 3326 | D135: Pořízení, zachování a obnova hodnot místního kulturního, národního a historického povědomí | E135: 5171 | F135: Opravy a udržování | G135: 0332600005 | H135: Zvonička Hněvkovice-oprava | K135: 5 | L135: 5 | M135: 0 | N135: 5 | O135: 0 | P135: 0332600005 | Q135: 3326 | R135: 5171 | S135: 0 | T135: 0 | U135: 0 | V135: 0 | W135: 0 | Y135: 5 | Z135: 5 | AA135: 5 | AB135: 100 | AC135: 5 | AF135: Kocman | AH135: 5 | AI135: 0
A136: 33 | B136: Kultura, církve a sdělovací prostředky | C136: 3326 | D136: Pořízení, zachování a obnova hodnot místního kulturního, národního a historického povědomí | E136: 5171 | F136: Opravy a udržování | G136: 0332600029 | H136: Zvonička Petrovice | K136: 10 | L136: 10 | M136: 0 | N136: 10 | O136: 0 | P136: 0332600029 | Q136: 3326 | R136: 5171 | S136: 0 | T136: 0 | U136: 0 | V136: 0 | W136: 0 | Z136: 0 | AA136: 0 | AB136: 0 | AC136: 0 | AF136: Kocman | AH136: 0 | AI136: =AH136-Y136 -> 0
A137: 33 | B137: Kultura, církve a sdělovací prostředky | C137: 3326 | D137: Pořízení, zachování a obnova hodnot místního kulturního, národního a historického povědomí | E137: 5493 | F137: Účelové neinvestiční transfery fyzickým osobám | G137: 0332600032 | H137: Dotace-Kalivoda (obnova fasády čp.255 Dolní nám. HU) | K137: 0 | L137: 106 | M137: 106 | N137: 0 | O137: 100 | W137: 0 | AB137: 0 | AC137: -106 | AD137: 0 | AH137: 0 | AI137: 0
A138: 33 | B138: Kultura, církve a sdělovací prostředky | C138: 3326 | D138: Pořízení, zachování a obnova hodnot místního kulturního, národního a historického povědomí | E138: 5493 | F138: Účelové neinvestiční transfery fyzickým osobám | G138: 0332600033 | H138: Dotace-Pecháček (obnova fasády Poděbradova čp.868, HU) | K138: 0 | L138: 179.287 | M138: 179.287 | N138: 0 | O138: 100 | W138: =V138/L138*100 -> 0 | AB138: 0 | AC138: -179.287 | AD138: =Z138/M138*100 -> 0 | AH138: 0 | AI138: 0
A139: 33 | B139: Kultura, církve a sdělovací prostředky | C139: 3326 | D139: Pořízení, zachování a obnova hodnot místního kulturního, národního a historického povědomí | E139: 5901 | F139: Nespecifikované rezervy | G139: 0332600022 | H139: rezerva-Dotace na opravu fasád hist.objektů | K139: 500 | L139: 214.713 | M139: 0 | N139: 214.713 | O139: 0 | P139: 0332600022 | Q139: 3326 | R139: 5901 | S139: 500 | T139: 500 | U139: 0 | V139: 500 | W139: 232.8689926 | Y139: 500 | Z139: 1000 | AA139: 1000 | AB139: =Z139/L139*100 -> 465.7379851 | AC139: =Z139-M139 -> 1000 | AF139: Kocman/Machek | AH139: =Z139-V139 -> 500 | AI139: 0
A140: 33 | B140: Kultura, církve a sdělovací prostředky | C140: 3329 | D140: Ostatní záležitosti ochrany památek a péče o kulturní dědictví | E140: 5169 | F140: Nákup ostatních služeb | G140: 0332900001 | H140: Kameny zmizelých | K140: 100 | L140: 100 | M140: 56.315 | N140: 43.685 | O140: 56.315 | P140: 0332900001 | Q140: 3329 | R140: 5169 | W140: 0 | AB140: 0 | AC140: -56.315 | AD140: 0 | AH140: 0 | AI140: 0
A141: 33 | B141: Kultura, církve a sdělovací prostředky | C141: 3330 | D141: Činnosti registrovaných církví a náboženských společností | E141: 5223 | F141: Neinvestiční transfery církvím a náboženským společnostem | G141: 0333000003 | H141: Dotace-Čes.církev evangel. (oprava v areálu evang.kostela) | K141: 250 | L141: 250 | M141: 250 | N141: 0 | O141: 100 | P141: 0333000003 | Q141: 3330 | R141: 5223 | W141: 0 | AB141: 0 | AC141: -250 | AD141: 0 | AH141: 0 | AI141: 0
A142: 33 | B142: Kultura, církve a sdělovací prostředky | C142: 3330 | D142: Činnosti registrovaných církví a náboženských společností | E142: 5223 | F142: Neinvestiční transfery církvím a náboženským společnostem | G142: 0333000004 | H142: Dotace-Římskokat. církev (výchova mládeže) | K142: 12 | L142: 12 | M142: 12 | N142: 0 | O142: 100 | P142: 0333000004 | Q142: 3330 | R142: 5223 | W142: 0 | AB142: 0 | AC142: -12 | AD142: 0 | AH142: 0 | AI142: 0
A143: 33 | B143: Kultura, církve a sdělovací prostředky | C143: 3392 | D143: Zájmová činnost v kultuře | E143: 5222 | F143: Neinvestiční transfery spolkům | G143: 0339200001 | H143: Dotace-Divadlo za Komínem-představení pro děti | K143: 40 | L143: 40 | M143: 40 | N143: 0 | O143: 100 | P143: 0339200001 | Q143: 3392 | R143: 5222 | W143: 0 | AB143: 0 | AC143: -40 | AD143: 0 | AH143: 0 | AI143: 0
A144: 33 | B144: Kultura, církve a sdělovací prostředky | C144: 3399 | D144: Ostatní záležitosti kultury, církví a sdělovacích prostředků | E144: 5139 | F144: Nákup materiálu j.n. | G144: 0339900001 | H144: KPOZ-materiál | K144: 70 | L144: 70 | M144: 54.181 | N144: 15.819 | O144: 77.40142857 | P144: 0339900001 | Q144: 3399 | R144: 5139 | S144: 70 | T144: 70 | U144: =V144-T144 -> 0 | V144: 70 | W144: 100 | Z144: 70 | AA144: 70 | AB144: 100 | AC144: 15.819 | AD144: 129.1965818 | AF144: Bartáková | AH144: 0 | AI144: 0
A145: 33 | B145: Kultura, církve a sdělovací prostředky | C145: 3399 | D145: Ostatní záležitosti kultury, církví a sdělovacích prostředků | E145: 5169 | F145: Nákup ostatních služeb | G145: 0339900002 | H145: KPOZ-služby | K145: 30 | L145: 50 | M145: 37.7649 | N145: 12.2351 | O145: 75.5298 | P145: 0339900002 | Q145: 3399 | R145: 5169 | S145: 30 | T145: 30 | U145: =V145-T145 -> 0 | V145: 30 | W145: 60 | Z145: 30 | AA145: 30 | AB145: 60 | AC145: -7.7649 | AD145: 79.43884401 | AF145: Bartáková | AH145: 0 | AI145: 0
A146: 33 | B146: Kultura, církve a sdělovací prostředky | C146: 3399 | D146: Ostatní záležitosti kultury, církví a sdělovacích prostředků | E146: 5194 | F146: Výdaje na věcné dary | G146: 0339900003 | H146: KPOZ-věcné dary | K146: 660 | L146: 640 | M146: 444.493 | N146: 195.507 | O146: 69.45203125 | P146: 0339900003 | Q146: 3399 | R146: 5194 | S146: 700 | T146: 700 | U146: =V146-T146 -> 0 | V146: 700 | W146: 109.375 | Z146: 700 | AA146: 700 | AB146: 109.375 | AC146: 255.507 | AD146: 157.482795 | AF146: Bartáková | AH146: 0 | AI146: 0
A147: 33 | B147: Kultura, církve a sdělovací prostředky | C147: 3399 | D147: Ostatní záležitosti kultury, církví a sdělovacích prostředků | E147: 5212 | F147: Neinvestiční transfery nefinančním podnikatelským subjektům-fyzickým osobám | G147: 0339900010 | H147: Dotace B2-Ing.Vaněček-kult.program advent | K147: 25 | L147: 25 | M147: 25 | N147: 0 | O147: 100 | P147: 0339900010 | Q147: 3399 | R147: 5212 | W147: 0 | AB147: 0 | AC147: -25 | AD147: 0 | AH147: 0 | AI147: 0
A148: 33 | B148: Kultura, církve a sdělovací prostředky | C148: 3399 | D148: Ostatní záležitosti kultury, církví a sdělovacích prostředků | E148: 5213 | F148: Neinvestiční transfery nefinančním podnikatelským subjektům-právnickým osobám | G148: 0339900011 | H148: Dotace B2- MŠ a ZŠ Bambi-kult.akce | K148: 10 | L148: 10 | M148: 10 | N148: 0 | O148: 100 | P148: 0339900011 | Q148: 3399 | R148: 5213 | W148: 0 | AB148: 0 | AC148: -10 | AD148: 0 | AH148: 0 | AI148: 0
A149: 33 | B149: Kultura, církve a sdělovací prostředky | C149: 3399 | D149: Ostatní záležitosti kultury, církví a sdělovacích prostředků | E149: 5222 | F149: Neinvestiční transfery spolkům | G149: 0339900007 | H149: Dotace B2-Cowork.družstvo Spolu-diskusní setkání akt. témata | K149: 7 | L149: 7 | M149: 7 | N149: 0 | O149: 100 | P149: 0339900007 | Q149: 3399 | R149: 5222 | W149: 0 | AB149: 0 | AC149: -7 | AD149: 0 | AH149: 0 | AI149: 0
E150: 5222 | F150: plus 5213,5212,5221…5493 | H150: Rezerva na Dotace "Zásad" obl. B | S150: 500 | T150: 500 | U150: =V150-T150 -> 0 | V150: 500 | Z150: 500 | AA150: 500 | AC150: 500 | AH150: 0 | AI150: 0
E151: 5222 | H151: Převod rezervy na Dotace "Zásad" obl.B do oddílu 32 | Y151: -18 | Z151: -18 | AA151: -18
E152: 5222/5223 | H152: Převod z rezervy na Dotace "Zásad" obl. C z oddílu 34 | Y152: 23 | Z152: 23
E153: 5222 | F153: plus 5213,5212,5221…5493 | H153: Rezerva na Dotace "Zásad" obl. D | S153: 500 | T153: 500 | U153: 0 | V153: 500 | Z153: 500 | AA153: 500 | AC153: 500 | AH153: 0 | AI153: 0
A154: ODPA(2) 33 Kultura, církve a sdělovací prostředky | K154: 16648 | L154: 19184.5 | M154: 16126.39 | N154: 3058.12 | O154: 84.06 | T154: =SUM(T99:T153) -> 23812 | U154: 1432 | V154: =SUM(V99:V153) -> 25244 | W154: 131.5853945 | Z154: =SUM(Z99:Z153) -> 25585 | AB154: 133.3628711 | AC154: 9458.61 | AD154: 158.6529905 | AE154: =SUM(AE99:AE153) -> 0 | AH154: 341 | AI154: 341
A155: 34 | B155: Sport a zájmová činnost | C155: 3412 | D155: Sportovní zařízení ve vlastnictví obce | E155: 5137 | F155: Drobný dlouhodobý hmotný majetek | G155: 0341200108 | H155: Vybavení šaten na ZS | K155: 400 | L155: 550 | M155: 516.213 | N155: 33.787 | O155: 93.85690909 | P155: 0341200108 | Q155: 3412 | R155: 5137 | U155: 0 | W155: 0 | AB155: 0 | AC155: -516.213 | AD155: 0 | AH155: 0 | AI155: 0
A156: 34 | B156: Sport a zájmová činnost | C156: 3412 | D156: Sportovní zařízení ve vlastnictví obce | E156: 5137 | F156: Drobný dlouhodobý hmotný majetek | G156: 0341200109 | H156: Zdrav.vybav.1.pomoc-ZS a Žabák | K156: 50 | L156: 0 | M156: 0 | N156: 0 | O156: 0 | P156: 0341200109 | Q156: 3412 | R156: 5137 | S156: 50 | T156: 50 | U156: 0 | V156: 50 | Z156: 50 | AA156: 50 | AC156: 50 | AF156: Hložková | AH156: 0 | AI156: 0
A157: 34 | B157: Sport a zájmová činnost | C157: 3412 | D157: Sportovní zařízení ve vlastnictví obce | E157: 5137 | F157: Drobný dlouhodobý hmotný majetek | G157: 0341200121 | H157: Vybavení sportovišť-místní části | L157: 157 | M157: 154.833 | N157: 2.167 | O157: 98.61974522 | W157: 0 | Y157: 100 | Z157: 100 | AA157: 100 | AB157: 63.69426752 | AC157: -54.833 | AD157: 64.58571493 | AF157: Hložková/Machek | AH157: 100 | AI157: 0
A158: 34 | B158: Sport a zájmová činnost | C158: 3412 | D158: Sportovní zařízení ve vlastnictví obce | E158: 5137 | F158: Drobný dlouhodobý hmotný majetek | G158: 0341200122 | H158: Vybavení sportovišť-město | Y158: 40 | Z158: 40 | AA158: 40 | AC158: 40 | AF158: Hložková | AH158: 40 | AI158: 0
A159: 34 | B159: Sport a zájmová činnost | C159: 3412 | D159: Sportovní zařízení ve vlastnictví obce | E159: 5139 | F159: Nákup materiálu j.n. | G159: 0341200118 | H159: Městská hřiště | K159: 0 | L159: 7 | M159: 0 | N159: 7 | O159: 0 | P159: 341200118 | Q159: 3412 | R159: 5139 | S159: 10 | T159: 10 | U159: 0 | V159: 10 | W159: 142.8571429 | Z159: 10 | AA159: 10 | AB159: 142.8571429 | AC159: 10 | AF159: Hložková | AH159: 0 | AI159: 0
A160: 34 | B160: Sport a zájmová činnost | C160: 3412 | D160: Sportovní zařízení ve vlastnictví obce | E160: 5169 | F160: Nákup ostatních služeb | G160: 0341200029 | H160: Sportoviště - revize, kontroly | K160: 350 | L160: 545 | M160: 357.65065 | N160: 187.34935 | O160: 65.62397248 | P160: 0341200029 | Q160: 3412 | R160: 5169 | S160: 550 | T160: 550 | U160: 0 | V160: 550 | W160: 100.9174312 | Y160: -50 | Z160: 500 | AA160: 500 | AB160: 91.74311927 | AC160: 142.34935 | AD160: 139.8012278 | AF160: Hložková | AH160: -50 | AI160: 0
A161: 34 | B161: Sport a zájmová činnost | C161: 3412 | D161: Sportovní zařízení ve vlastnictví obce | E161: 5169 | F161: Nákup ostatních služeb | G161: 0341200066 | H161: Provoz tenisových hal | K161: 100 | L161: 100 | M161: 70.785 | N161: 29.215 | O161: 70.785 | P161: 0341200066 | Q161: 3412 | R161: 5169 | U161: 0 | W161: 0 | Z161: 0 | AA161: 0 | AB161: 0 | AC161: -70.785 | AD161: 0 | AF161: Hložková | AH161: 0 | AI161: 0
A162: 34 | B162: Sport a zájmová činnost | C162: 3412 | D162: Sportovní zařízení ve vlastnictví obce | E162: 5169 | F162: Nákup ostatních služeb | G162: 0341200088 | H162: Revize motorů atrakcí | K162: 100 | L162: 0 | M162: 0 | N162: 0 | O162: 0 | P162: 0341200088 | Q162: 3412 | R162: 5169 | S162: 100 | T162: 100 | U162: 0 | V162: 100 | Z162: 100 | AA162: 100 | AC162: 100 | AF162: Hložková | AH162: 0 | AI162: 0
A163: 34 | B163: Sport a zájmová činnost | C163: 3412 | D163: Sportovní zařízení ve vlastnictví obce | E163: 5169 | F163: Nákup ostatních služeb | G163: 0341200089 | H163: Zimní stadion-administrace | K163: 15 | L163: 15 | M163: 0 | N163: 15 | O163: 0 | P163: 0341200089 | Q163: 3412 | R163: 5169 | S163: 15 | T163: 15 | U163: 0 | V163: 15 | W163: 100 | Z163: 15 | AA163: 15 | AB163: 100 | AC163: 15 | AF163: Hložková/Augustová | AH163: 0 | AI163: 0
A164: 34 | B164: Sport a zájmová činnost | C164: 3412 | D164: Sportovní zařízení ve vlastnictví obce | E164: 5169 | F164: Nákup ostatních služeb | G164: 0341200119 | H164: TS-sportoviště-provoz-příkazní smlouva | K164: 0 | L164: 726 | M164: 726 | N164: 0 | O164: 100 | P164: 0341200119 | Q164: 3412 | R164: 5169 | S164: 4800 | T164: 4800 | U164: 3200 | V164: 8000 | W164: 1101.928375 | Z164: 8000 | AA164: 8000 | AB164: 1101.928375 | AC164: 7274 | AD164: 1101.928375 | AE164: 1300 | AF164: Hložková/TS | AH164: 0 | AI164: 0
A165: 34 | B165: Sport a zájmová činnost | C165: 3412 | D165: Sportovní zařízení ve vlastnictví obce | E165: 5171 | F165: Opravy a udržování | G165: 0341200001 | H165: Údržba městských hřišť | K165: 700 | L165: 900 | M165: 727.7938 | N165: 172.2062 | O165: 80.86597778 | P165: 0341200001 | Q165: 3412 | R165: 5171 | S165: 1000 | T165: 1000 | U165: 0 | V165: 1000 | W165: 111.1111111 | Z165: 1000 | AA165: 1000 | AB165: 111.1111111 | AC165: 272.2062 | AD165: 137.4015552 | AF165: Hložková | AH165: 0 | AI165: 0
A166: 34 | B166: Sport a zájmová činnost | C166: 3412 | D166: Sportovní zařízení ve vlastnictví obce | E166: 5171 | F166: Opravy a udržování | G166: 0341200002 | H166: Údržba hřišť v místních částech | K166: 300 | L166: 445 | M166: 396.71761 | N166: 48.28239 | O166: 89.15002472 | P166: 0341200002 | Q166: 3412 | R166: 5171 | S166: 700 | T166: 700 | U166: 0 | V166: 700 | W166: 157.3033708 | Z166: 700 | AA166: 700 | AB166: 157.3033708 | AC166: 303.28239 | AD166: 176.4479273 | AF166: Hložková | AH166: 0 | AI166: 0
A167: 34 | B167: Sport a zájmová činnost | C167: 3412 | D167: Sportovní zařízení ve vlastnictví obce | E167: 5171 | F167: Opravy a udržování | G167: 0341200003 | H167: Sportovní areál Okružní - opravy | K167: 1100 | L167: 1347 | M167: 1030.45074 | N167: 316.54926 | O167: 76.49968374 | P167: 0341200003 | Q167: 3412 | R167: 5171 | S167: 1300 | T167: 1300 | U167: 0 | V167: 1300 | W167: 96.51076466 | Z167: 1300 | AA167: 1300 | AB167: 96.51076466 | AC167: 269.54926 | AD167: 126.1583839 | AF167: Hložková | AH167: 0 | AI167: 0
A168: 34 | B168: Sport a zájmová činnost | C168: 3412 | D168: Sportovní zařízení ve vlastnictví obce | E168: 5171 | F168: Opravy a udržování | G168: 0341200050 | H168: Fotbalové hřiště - údržba přírodní trávy | K168: 250 | L168: 448 | M168: 400.93445 | N168: 47.06555 | O168: 89.49429688 | P168: 0341200050 | Q168: 3412 | R168: 5171 | S168: 450 | T168: 450 | U168: 0 | V168: 450 | W168: 100.4464286 | Z168: 450 | AA168: 450 | AB168: 100.4464286 | AC168: 49.06555 | AD168: 112.2377985 | AF168: Hložková | AH168: 0 | AI168: 0
A169: 34 | B169: Sport a zájmová činnost | C169: 3412 | D169: Sportovní zařízení ve vlastnictví obce | E169: 5171 | F169: Opravy a udržování | G169: 0341200063 | H169: Tenisová hala Hálkova - údržba | K169: 70 | L169: 38.9 | M169: 0 | N169: 38.9 | O169: 0 | P169: 0341200063 | Q169: 3412 | R169: 5171 | S169: 0 | T169: 0 | U169: 0 | V169: 0 | W169: 0 | Y169: 20 | Z169: 20 | AA169: 20 | AB169: 51.41388175 | AC169: 20 | AF169: Hložková | AH169: 20 | AI169: 0
A170: 34 | B170: Sport a zájmová činnost | C170: 3412 | D170: Sportovní zařízení ve vlastnictví obce | E170: 5171 | F170: Opravy a udržování | G170: 0341200067 | H170: Tenisová hala Hradská - údržba | K170: 70 | L170: 90 | M170: 67.07237 | N170: 22.92763 | O170: 74.52485556 | P170: 0341200067 | Q170: 3412 | R170: 5171 | S170: 0 | T170: 0 | U170: 0 | V170: 0 | W170: 0 | Y170: 20 | Z170: 20 | AA170: 20 | AB170: 22.22222222 | AC170: -47.07237 | AD170: 29.8185378 | AF170: Hložková | AH170: 20 | AI170: 0
A171: 34 | B171: Sport a zájmová činnost | C171: 3412 | D171: Sportovní zařízení ve vlastnictví obce | E171: 5171 | F171: Opravy a udržování | H171: Tenisová hala Hálkova-výmalba | Q171: 3412 | R171: 5171 | S171: 150 | T171: 150 | U171: 0 | V171: 150 | Z171: 150 | AA171: 150 | AC171: 150 | AF171: Hložková | AH171: 0 | AI171: 0
A172: 34 | B172: Sport a zájmová činnost | C172: 3412 | D172: Sportovní zařízení ve vlastnictví obce | E172: 5171 | F172: Opravy a udržování | H172: ZS generální oprava rolby | Q172: 3412 | R172: 5171 | S172: 300 | T172: 300 | U172: 0 | V172: 300 | Z172: 300 | AA172: 300 | AC172: 300 | AF172: Hložková | AH172: 0 | AI172: 0
A173: 34 | B173: Sport a zájmová činnost | C173: 3412 | D173: Sportovní zařízení ve vlastnictví obce | E173: 5171 | F173: Opravy a udržování | H173: ZS výmalba šaten (bočních)+chodba | Q173: 3412 | R173: 5171 | S173: 150 | T173: 150 | U173: 0 | V173: 150 | Z173: 150 | AA173: 150 | AC173: 150 | AF173: Hložková | AH173: =Z173-V173 -> 0 | AI173: 0
A174: 34 | B174: Sport a zájmová činnost | C174: 3412 | D174: Sportovní zařízení ve vlastnictví obce | E174: 5171 | F174: Opravy a udržování | H174: Dopravní hřiště-oprava VDZ (vodorovn.dopr.značení) | Q174: 3412 | R174: 5171 | S174: 600 | T174: 600 | U174: -600 | V174: 0 | Z174: 0 | AA174: 0 | AC174: 0 | AF174: Hložková | AH174: 0 | AI174: 0
A175: 34 | C175: 3412 | D175: Sportovní zařízení ve vlastnictví obce | E175: 5171 | F175: Opravy a udržování | H175: Žabák, FS - předláždění zpevněných ploch | S175: 300 | T175: 300 | U175: -300 | V175: 0 | Z175: 0 | AA175: 0 | AC175: 0 | AF175: Hložková | AH175: 0 | AI175: 0
A176: 34 | B176: Sport a zájmová činnost | C176: 3412 | D176: Sportovní zařízení ve vlastnictví obce | E176: 5192 | F176: Poskytnuté náhrady | G176: 0341200029 | H176: Sportoviště - revize, kontroly | K176: 0 | L176: 4.5 | M176: 4.452 | N176: 0.048 | O176: 98.93333333 | P176: 0341200029 | Q176: 3412 | R176: 5192 | U176: 0 | W176: 0 | AB176: 0 | AC176: -4.452 | AD176: 0 | AH176: 0 | AI176: 0
A177: 34 | B177: Sport a zájmová činnost | C177: 3412 | D177: Sportovní zařízení ve vlastnictví obce | E177: 5363 | F177: Úhrady sankcí jiným rozpočtům | G177: 0341200029 | H177: Sportoviště - revize, kontroly | K177: 0 | L177: 0.5 | M177: 0.5 | N177: 0 | O177: 100 | P177: 0341200029 | Q177: 3412 | R177: 5363 | U177: 0 | W177: 0 | AB177: 0 | AC177: -0.5 | AD177: 0 | AH177: 0 | AI177: 0
A178: 34 | B178: Sport a zájmová činnost | C178: 3419 | D178: Ostatní sportovní činnost | E178: 5139 | F178: Nákup materiálu j.n. | G178: 0341900026 | H178: Sportovní akce města a jejich podpora (např. Kemp vítězů) | K178: 50 | L178: 0 | M178: 0 | N178: 0 | O178: 0 | P178: 0341900026 | Q178: 3419 | R178: 5139 | S178: 5 | T178: 5 | U178: 0 | V178: 5 | Z178: 5 | AA178: 5 | AC178: 5 | AF178: Vaňkát | AH178: 0 | AI178: 0
A179: 34 | B179: Sport a zájmová činnost | C179: 3419 | D179: Ostatní sportovní činnost | E179: 5169 | F179: Nákup ostatních služeb | G179: 0341900026 | H179: Sportovní akce města a jejich podpora (např. Kemp vítězů) | J179: RM schválit sml. o spolupořadatelství | K179: 0 | L179: 40 | M179: 40 | N179: 0 | O179: 100 | P179: 0341900026 | Q179: 3419 | R179: 5169 | U179: 0 | W179: 0 | Y179: 40 | Z179: 40 | AA179: 40 | AB179: 100 | AC179: 0 | AD179: 100 | AF179: Hrala | AH179: 40 | AI179: 0
A180: 34 | B180: Sport a zájmová činnost | C180: 3419 | D180: Ostatní sportovní činnost | E180: 5175 | F180: Pohoštění | G180: 0341900026 | H180: Sportovní akce města a jejich podpora (např. Kemp vítězů) | K180: 50 | L180: 0 | M180: 0 | N180: 0 | O180: 0 | P180: 0341900026 | Q180: 3419 | R180: 5175 | S180: 5 | T180: 5 | U180: 0 | V180: 5 | Z180: 5 | AA180: 5 | AC180: 5 | AF180: Vaňkát | AH180: 0 | AI180: 0
A181: 34 | B181: Sport a zájmová činnost | C181: 3419 | D181: Ostatní sportovní činnost | E181: 5221 | F181: Neinvestiční transfery fundacím, ústavům a obecně prospěšným společnostem | G181: 0341900008 | H181: Dotace-Soutěže podkovy (Zlatá podkova) | K181: 175 | L181: 175 | M181: 175 | N181: 0 | O181: 100 | P181: 0341900008 | Q181: 3419 | R181: 5221 | U181: 0 | W181: 0 | AB181: 0 | AC181: -175 | AD181: 0 | AH181: 0 | AI181: 0
A182: 34 | B182: Sport a zájmová činnost | C182: 3419 | D182: Ostatní sportovní činnost | E182: 5222 | F182: Neinvestiční transfery spolkům | G182: 0341900002 | H182: Dotace-TJ Jiskra (činnost) | K182: 3000 | L182: 3000 | M182: 3000 | N182: 0 | O182: 100 | P182: 0341900002 | Q182: 3419 | R182: 5222 | U182: 0 | W182: 0 | AB182: 0 | AC182: -3000 | AD182: 0 | AH182: 0 | AI182: 0
A183: 34 | B183: Sport a zájmová činnost | C183: 3419 | D183: Ostatní sportovní činnost | E183: 5222 | F183: Neinvestiční transfery spolkům | G183: 0341900003 | H183: Dotace-TJ Jiskra (trenéři mládeže) | K183: 742 | L183: 742 | M183: 742 | N183: 0 | O183: 100 | P183: 0341900003 | Q183: 3419 | R183: 5222 | U183: 0 | W183: 0 | AB183: 0 | AC183: -742 | AD183: 0 | AH183: 0 | AI183: 0
A184: 34 | B184: Sport a zájmová činnost | C184: 3419 | D184: Ostatní sportovní činnost | E184: 5222 | F184: Neinvestiční transfery spolkům | G184: 0341900004 | H184: Dotace-LTC (činnost,nájemné) | K184: 1225 | L184: 1225 | M184: 1225 | N184: 0 | O184: 100 | P184: 0341900004 | Q184: 3419 | R184: 5222 | U184: 0 | W184: 0 | AB184: 0 | AC184: -1225 | AD184: 0 | AH184: 0 | AI184: 0
A185: 34 | B185: Sport a zájmová činnost | C185: 3419 | D185: Ostatní sportovní činnost | E185: 5222 | F185: Neinvestiční transfery spolkům | G185: 0341900005 | H185: Dotace-LTC (trenéři mládeže) | K185: 113 | L185: 113 | M185: 108 | N185: 5 | O185: 95.57522124 | P185: 0341900005 | Q185: 3419 | R185: 5222 | U185: 0 | W185: 0 | AB185: 0 | AC185: -108 | AD185: 0 | AH185: 0 | AI185: 0
A186: 34 | B186: Sport a zájmová činnost | C186: 3419 | D186: Ostatní sportovní činnost | E186: 5222 | F186: Neinvestiční transfery spolkům | G186: 0341900013 | H186: Dotace-Spolek přátel Krasoňova (pořádání akcí) | K186: 10 | L186: 10 | M186: 10 | N186: 0 | O186: 100 | P186: 0341900013 | Q186: 3419 | R186: 5222 | U186: 0 | W186: 0 | AB186: 0 | AC186: -10 | AD186: 0 | AH186: 0 | AI186: 0
A187: 34 | B187: Sport a zájmová činnost | C187: 3419 | D187: Ostatní sportovní činnost | E187: 5222 | F187: Neinvestiční transfery spolkům | G187: 0341900014 | H187: Dotace-TJ Krasoňov (sportovní a kulturní akce) | K187: 15 | L187: 15 | M187: 15 | N187: 0 | O187: 100 | P187: 0341900014 | Q187: 3419 | R187: 5222 | U187: 0 | W187: 0 | AB187: 0 | AC187: -15 | AD187: 0 | AH187: 0 | AI187: 0
A188: 34 | B188: Sport a zájmová činnost | C188: 3419 | D188: Ostatní sportovní činnost | E188: 5222 | F188: Neinvestiční transfery spolkům | G188: 0341900016 | H188: Dotace-C1- Vysočina Petrovice z.s.(sportovní a kulturní akce) | K188: 55 | L188: 55 | M188: 55 | N188: 0 | O188: 100 | P188: 0341900016 | Q188: 3419 | R188: 5222 | U188: 0 | W188: 0 | AB188: 0 | AC188: -55 | AD188: 0 | AH188: 0 | AI188: 0
A189: 34 | B189: Sport a zájmová činnost | C189: 3419 | D189: Ostatní sportovní činnost | E189: 5222 | F189: Neinvestiční transfery spolkům | G189: 0341900017 | H189: Dotace-TJ Plačkov (provozní náklady, provoz hřiště) | K189: 65 | L189: 65 | M189: 64.798 | N189: 0.202 | O189: 99.68923077 | P189: 0341900017 | Q189: 3419 | R189: 5222 | U189: 0 | W189: 0 | AB189: 0 | AC189: -64.798 | AD189: 0 | AH189: 0 | AI189: 0
A190: 34 | B190: Sport a zájmová činnost | C190: 3419 | D190: Ostatní sportovní činnost | E190: 5222 | F190: Neinvestiční transfery spolkům | G190: 0341900018 | H190: Dotace-Automotoklub (závody) | K190: 560 | L190: 560 | M190: 533.123 | N190: 26.877 | O190: 95.20053571 | P190: 0341900018 | Q190: 3419 | R190: 5222 | U190: 0 | W190: 0 | AB190: 0 | AC190: -533.123 | AD190: 0 | AH190: 0 | AI190: 0
A191: 34 | B191: Sport a zájmová činnost | C191: 3419 | D191: Ostatní sportovní činnost | E191: 5222 | F191: Neinvestiční transfery spolkům | G191: 0341900019 | H191: Dotace-Jezdecký klub(závody) | K191: 26 | L191: 26 | M191: 26 | N191: 0 | O191: 100 | P191: 0341900019 | Q191: 3419 | R191: 5222 | U191: 0 | W191: 0 | AB191: 0 | AC191: -26 | AD191: 0 | AH191: 0 | AI191: 0
A192: 34 | B192: Sport a zájmová činnost | C192: 3419 | D192: Ostatní sportovní činnost | E192: 5222 | F192: Neinvestiční transfery spolkům | G192: 0341900021 | H192: Dotace-Jezdecký klub(trenéři) | K192: 15 | L192: 15 | M192: 15 | N192: 0 | O192: 100 | P192: 0341900021 | Q192: 3419 | R192: 5222 | U192: 0 | W192: 0 | AB192: 0 | AC192: -15 | AD192: 0 | AH192: 0 | AI192: 0
A193: 34 | B193: Sport a zájmová činnost | C193: 3419 | D193: Ostatní sportovní činnost | E193: 5222 | F193: Neinvestiční transfery spolkům | G193: 0341900027 | H193: Dar ZM-TJ Jiskra-provoz sportovišť a činností oddílů v r.2022 (454/25/ZM/2022) | K193: 0 | L193: 1500 | M193: 1500 | N193: 0 | O193: 100 | P193: 0341900027 | Q193: 3419 | R193: 5222 | U193: 0 | W193: 0 | AB193: 0 | AC193: -1500 | AD193: 0 | AH193: 0 | AI193: 0
A194: 34 | B194: Sport a zájmová činnost | C194: 3419 | D194: Ostatní sportovní činnost | E194: 5222 | F194: Neinvestiční transfery spolkům | G194: 0551200004 | H194: Dotace-SDH Hněvkovice (trenéři mládeže) | K194: 30 | L194: 30 | M194: 30 | N194: 0 | O194: 100 | P194: 0551200004 | Q194: 3419 | R194: 5222 | U194: 0 | W194: 0 | AB194: 0 | AC194: -30 | AD194: 0 | AH194: 0 | AI194: 0
A195: 34 | B195: Sport a zájmová činnost | C195: 3419 | D195: Ostatní sportovní činnost | E195: 5909 | F195: Ostatní neinvestiční výdaje jinde nezařazené | G195: 0341900030 | H195: Sportoviště - místní části | K195: 0 | L195: 115 | M195: 114.83883 | N195: 0.16117 | O195: 99.85985217 | W195: 0 | Y195: 20 | Z195: 20 | AA195: 20 | AB195: 17.39130435 | AC195: -94.83883 | AD195: 17.41571209 | AF195: Hložková | AH195: 20 | AI195: 0
A196: 34 | B196: Sport a zájmová činnost | C196: 3421 | D196: Využití volného času dětí a mládeže | E196: 5137 | F196: Drobný dlouhodobý hmotný majetek | G196: 0342100002 | H196: Dopravní hřiště | K196: 30 | L196: 30 | M196: 0 | N196: 30 | O196: 0 | P196: 0342100002 | Q196: 3421 | R196: 5137 | S196: 30 | T196: 30 | U196: 0 | V196: 30 | W196: 100 | Z196: 30 | AA196: 30 | AB196: 100 | AC196: 30 | AF196: Koudelková | AH196: =Z196-V196 -> 0 | AI196: 0
A197: 34 | B197: Sport a zájmová činnost | C197: 3421 | D197: Využití volného času dětí a mládeže | E197: 5139 | F197: Nákup materiálu j.n. | G197: 0342100002 | H197: Dopravní hřiště | K197: 12 | L197: 12 | M197: 3.672 | N197: 8.328 | O197: 30.6 | P197: 0342100002 | Q197: 3421 | R197: 5139 | S197: 12 | T197: 12 | U197: 0 | V197: 12 | W197: 100 | Z197: 12 | AA197: 12 | AB197: 100 | AC197: 8.328 | AD197: 326.7973856 | AF197: Koudelková | AH197: 0 | AI197: 0
A198: 34 | B198: Sport a zájmová činnost | C198: 3421 | D198: Využití volného času dětí a mládeže | E198: 5169 | F198: Nákup ostatních služeb | G198: 0342100002 | H198: Dopravní hřiště | K198: 5 | L198: 5 | M198: 0 | N198: 5 | O198: 0 | P198: 0342100002 | Q198: 3421 | R198: 5169 | S198: 5 | T198: 5 | U198: 0 | V198: 5 | W198: 100 | Z198: 5 | AA198: 5 | AB198: 100 | AC198: 5 | AF198: Koudelková | AH198: 0 | AI198: 0
A199: 34 | B199: Sport a zájmová činnost | C199: 3421 | D199: Využití volného času dětí a mládeže | E199: 5171 | F199: Opravy a udržování | G199: 0342100001 | H199: Dopravní hřiště - opravy kol | K199: 15 | L199: 15 | M199: 0 | N199: 15 | O199: 0 | P199: 0342100001 | Q199: 3421 | R199: 5171 | S199: 15 | T199: 15 | U199: 0 | V199: 15 | W199: 100 | Z199: 15 | AA199: 15 | AB199: 100 | AC199: 15 | AF199: Koudelková | AH199: 0 | AI199: 0
A200: 34 | B200: Sport a zájmová činnost | C200: 3421 | D200: Využití volného času dětí a mládeže | E200: 5175 | F200: Pohoštění | G200: 0342100002 | H200: Dopravní hřiště | K200: 8 | L200: 8 | M200: 2.596 | N200: 5.404 | O200: 32.45 | P200: 0342100002 | Q200: 3421 | R200: 5175 | S200: 8 | T200: 8 | U200: 0 | V200: 8 | W200: 100 | Z200: 8 | AA200: 8 | AB200: 100 | AC200: 5.404 | AD200: 308.1664099 | AF200: Koudelková | AH200: 0 | AI200: 0
A201: 34 | B201: Sport a zájmová činnost | C201: 3421 | D201: Využití volného času dětí a mládeže | E201: 5222 | F201: Neinvestiční transfery spolkům | G201: 0342100003 | H201: Dotace-AFC (činnost) | K201: 2292 | L201: 2292 | M201: 2292 | N201: 0 | O201: 100 | P201: 0342100003 | Q201: 3421 | R201: 5222 | U201: 0 | W201: 0 | AB201: 0 | AC201: -2292 | AD201: 0 | AH201: 0 | AI201: 0
... 431 more rows

Sheet KV návrh 2023
A1: 00248266 Město Humpolec
A2: Horní náměstí 300 Humpolec
A3: Návrh rozpisu rozpočtu kapitálových výdajů 2023 v tisících Kč
A5: ODPA(2) | B5: Popis | C5: ODPA(4) | D5: Popis | E5: POL(4) | F5: Popis | G5: ORG | H5: Popis | I5: POPIS 2023 (změny oproti 2022) | J5: Pozn. | L5: 2022 | V5: Pracovní ZM | Y5: od prac. ZM | Z5: 2023 | AA5: kontr.sl.
K6: Schválený rozp. | L6: Upravený rozp. | M6: Skutečnost k 31. 12. | N6: Plnění v Kč k UR | O6: Plnění v % k UR | P6: ODPA(4) | Q6: POL(4) | R6: ORG | S6: Návrh 2023 Kontr.sl. | T6: 1.Návrh 2023 | U6: Změny v návrhu 2023 | V6: Návrh 2023 k 25.11.2022 | W6: Návrh 2023/UR 2022 % | X6: komentář | Y6: Změny 2023 +- | Z6: Návrh | AA6: Návrh 2023 k 31.01.2023 | AB6: Provizorium 2023 | AC6: Správce rozpočtu
A7: 10 | B7: Zemědělství, lesní hospodářství a rybářství | C7: 1036 | D7: Správa v lesním hospodářství | E7: 6119 | F7: Ostatní nákup dlouhodobého nehmotného majetku | G7: 0103600002 | H7: Projekt-Lesní hosp.osnovy Želivsko | K7: 31 | L7: 0 | M7: 0 | N7: 0 | O7: 0 | P7: 1036 | Q7: 6119 | R7: 0103600002 | W7: =V7/L7*100 ->  | AE7: =Z7-V7 -> 0 | AF7: =Y7-AE7 -> 0
A8: 10 | B8: Zemědělství, lesní hospodářství a rybářství | C8: 1036 | D8: Správa v lesním hospodářství | E8: 6119 | F8: Ostatní nákup dlouhodobého nehmotného majetku | G8: 0103600003 | H8: Projekt-Lesní hosp.plán Město Humpolec | K8: 0 | L8: 30 | M8: 30 | N8: 0 | O8: 100 | P8: 1036 | Q8: 6119 | R8: 0103600003 | S8: 260 | T8: 260 | U8: =V8-T8 -> 0 | V8: 260 | W8: =V8/L8*100 -> 866.6666667 | Z8: 260 | AA8: 260 | AC8: Zeman | AE8: =Z8-V8 -> 0 | AF8: =Y8-AE8 -> 0
A9: 10 | B9: Zemědělství, lesní hospodářství a rybářství | C9: 1036 | D9: Správa v lesním hospodářství | E9: 6119 | F9: Ostatní nákup dlouhodobého nehmotného majetku | H9: Projekt-Lesní hosp.osnovy Humpolecko | K9: 0 | P9: 1036 | Q9: 6119 | S9: 740 | T9: 740 | U9: 0 | V9: 740 | Z9: 740 | AA9: 740 | AC9: Kocman | AE9: 0 | AF9: 0
A10: ODPA(2) 10 Zemědělství, lesní hospodářství a rybářství | K10: 31 | L10: 30 | M10: 30 | N10: 0 | O10: 100 | T10: =SUM(T7:T9) -> 1000 | U10: 0 | V10: =SUM(V7:V9) -> 1000 | W10: 3333.333333 | Z10: =SUM(Z7:Z9) -> 1000 | AB10: =SUM(AB7:AB9) -> 0 | AE10: 0 | AF10: 0
A11: 22 | B11: Doprava | C11: 2212 | D11: Silnice | E11: 6121 | F11: Stavby | G11: 0221200097 | H11: Rekonstr.-zpev.ploch u BD čp.109-112 | K11: 7200 | L11: 7200 | M11: 5146.33976 | N11: 2053.66024 | O11: 71.47694111 | P11: 2212 | Q11: 6121 | R11: 0221200097 | U11: 0 | W11: 0 | AE11: 0 | AF11: 0
A12: 22 | B12: Doprava | C12: 2212 | D12: Silnice | E12: 6121 | F12: Stavby | G12: 0221200110 | H12: Rekonstr.zpev.ploch.ul.Máchova/Fügn.- revitalizace | K12: 6400 | L12: 6400 | M12: 4909.52345 | N12: 1490.47655 | O12: 76.71130391 | P12: 2212 | Q12: 6121 | R12: 0221200110 | U12: 0 | W12: 0 | AE12: 0 | AF12: 0
A13: 22 | B13: Doprava | C13: 2212 | D13: Silnice | E13: 6121 | F13: Stavby | G13: 0221200112 | H13: MK U Stadionu - rekonstrukce | K13: 1500 | L13: 800 | M13: 651.00654 | N13: 148.99346 | O13: 81.3758175 | P13: 2212 | Q13: 6121 | R13: 0221200112 | U13: 0 | W13: 0 | AE13: 0 | AF13: 0
A14: 22 | B14: Doprava | C14: 2212 | D14: Silnice | E14: 6121 | F14: Stavby | G14: 0221200115 | H14: Rekonstrukce MK Jihlavská | K14: 9200 | L14: 10200 | M14: 9061.24098 | N14: 1138.75902 | O14: 88.83569588 | P14: 2212 | Q14: 6121 | R14: 0221200115 | U14: 0 | W14: 0 | AE14: 0 | AF14: 0
A15: 22 | B15: Doprava | C15: 2212 | D15: Silnice | E15: 6121 | F15: Stavby | G15: 0221200132 | H15: PD a příprava rekonstr.mostu Kletečná | K15: 400 | L15: 100 | M15: 0 | N15: 100 | O15: 0 | P15: 2212 | Q15: 6121 | R15: 0221200132 | S15: 150 | T15: 150 | U15: 0 | V15: 150 | W15: 150 | Z15: 150 | AA15: 150 | AC15: Hložková | AE15: 0 | AF15: 0
A16: 22 | B16: Doprava | C16: 2212 | D16: Silnice | E16: 6121 | F16: Stavby | G16: 0221200133 | H16: Rekonstrukce MK Kletečná | K16: 3000 | L16: 1000 | M16: 964.55106 | N16: 35.44894 | O16: 96.455106 | P16: 2212 | Q16: 6121 | R16: 0221200133 | U16: 0 | W16: 0 | AE16: 0 | AF16: 0
A17: 22 | B17: Doprava | C17: 2212 | D17: Silnice | E17: 6121 | F17: Stavby | G17: 0221200134 | H17: Revitalizace území na Skalce | I17: PD MK ul.Na Skalce (DPS)-revitalizace | K17: 350 | L17: 350 | M17: 343.41 | N17: 6.59 | O17: 98.11714286 | P17: 2212 | Q17: 6121 | R17: 0221200134 | S17: 27000 | T17: 27000 | U17: -27000 | V17: 0 | W17: 0 | AC17: Vaňkát | AE17: 0 | AF17: 0
A18: 22 | B18: Doprava | C18: 2212 | D18: Silnice | E18: 6121 | F18: Stavby | G18: 0221200139 | H18: PD-obchvat u Humpolce | I18: DÚR | K18: 750 | L18: 750 | M18: 700.59 | N18: 49.41 | O18: 93.412 | P18: 2212 | Q18: 6121 | R18: 0221200139 | S18: 1500 | T18: 1500 | U18: -1500 | V18: 0 | W18: 0 | AC18: Vaňkát | AE18: 0 | AF18: 0
A19: 22 | B19: Doprava | C19: 2212 | D19: Silnice | E19: 6121 | F19: Stavby | G19: 0221200142 | H19: Rek.ul.5.května,Jihlavská II.et. | K19: 520 | L19: 520 | M19: 198.93 | N19: 321.07 | O19: 38.25576923 | P19: 2212 | Q19: 6121 | R19: 0221200142 | U19: 0 | W19: 0 | AE19: 0 | AF19: 0
A20: 22 | B20: Doprava | C20: 2212 | D20: Silnice | E20: 6121 | F20: Stavby | G20: 0221200150 | H20: Rek.MK ul.Sluníčkova.II.etapa | K20: 21000 | L20: 10000 | M20: 7133.41773 | N20: 2866.58227 | O20: 71.3341773 | P20: 2212 | Q20: 6121 | R20: 0221200150 | U20: 0 | W20: 0 | AE20: 0 | AF20: 0
A21: 22 | B21: Doprava | C21: 2212 | D21: Silnice | E21: 6121 | F21: Stavby | G21: 0221200151 | H21: Rekonstrukce MK Plačkov (Číhadlo) | K21: 800 | L21: 50 | M21: 21.78 | N21: 28.22 | O21: 43.56 | P21: 2212 | Q21: 6121 | R21: 0221200151 | S21: 800 | T21: 800 | U21: -800 | V21: 0 | W21: 0 | AC21: Hložková | AE21: 0 | AF21: 0
A22: 22 | B22: Doprava | C22: 2212 | D22: Silnice | E22: 6121 | F22: Stavby | G22: 0221200152 | H22: Rekonstrukce MK Plačkov par.č.488/19 | K22: 800 | L22: 50 | M22: 14.52 | N22: 35.48 | O22: 29.04 | P22: 2212 | Q22: 6121 | R22: 0221200152 | S22: 800 | T22: 800 | U22: -800 | V22: 0 | W22: 0 | AC22: Hložková | AE22: 0 | AF22: 0
A23: 22 | B23: Doprava | C23: 2212 | D23: Silnice | E23: 6121 | F23: Stavby | G23: 0221200153 | H23: PD-rekonstrukce ul. Spojovací | I23: DSP | K23: 300 | L23: 50 | M23: 42.35 | N23: 7.65 | O23: 84.7 | P23: 2212 | Q23: 6121 | R23: 0221200153 | S23: 400 | T23: 400 | U23: -400 | V23: 0 | W23: 0 | AE23: 0 | AF23: 0
A24: 22 | B24: Doprava | C24: 2212 | D24: Silnice | E24: 6121 | F24: Stavby | G24: 0221200154 | H24: PD-rekonstrukce MK Na Závodí | K24: 300 | L24: 200 | M24: 10 | N24: 190 | O24: 5 | P24: 2212 | Q24: 6121 | R24: 0221200154 | U24: 0 | W24: 0 | AE24: 0 | AF24: 0
A25: 22 | B25: Doprava | C25: 2212 | D25: Silnice | E25: 6121 | F25: Stavby | G25: 0221200155 | H25: Vítací cedule (dle vizuálu) | K25: 500 | L25: 500 | M25: 0 | N25: 500 | O25: 0 | P25: 2212 | Q25: 6121 | R25: 0221200155 | U25: 0 | W25: 0 | AE25: 0 | AF25: 0
A26: 22 | B26: Doprava | C26: 2212 | D26: Silnice | E26: 6121 | F26: Stavby | G26: 0221200156 | H26: Přístřešek na mobiliář Rozkoš | K26: 500 | L26: 0 | M26: 0 | N26: 0 | O26: 0 | P26: 2212 | Q26: 6121 | R26: 0221200156 | U26: 0 | AE26: 0 | AF26: 0
A27: 22 | B27: Doprava | C27: 2219 | D27: Ostatní záležitosti pozemních komunikací | E27: 6121 | F27: Stavby | G27: 0221900001 | H27: Studie a projekty chodníků | K27: 100 | L27: 100 | M27: 90.75 | N27: 9.25 | O27: 90.75 | P27: 2219 | Q27: 6121 | R27: 0221900001 | S27: 100 | T27: 100 | U27: 0 | V27: 100 | W27: 100 | Y27: 400 | Z27: 500 | AA27: 500 | AC27: Vaňkát/Machek | AE27: 400 | AF27: 0
A28: 22 | B28: Doprava | C28: 2219 | D28: Ostatní záležitosti pozemních komunikací | E28: 6121 | F28: Stavby | G28: 0221900015 | H28: Chodník Světlice část B | K28: 1200 | L28: 1700 | M28: 1658.199 | N28: 41.801 | O28: 97.54111765 | P28: 2219 | Q28: 6121 | R28: 0221900015 | U28: 0 | W28: 0 | AE28: 0 | AF28: 0
A29: 22 | B29: Doprava | C29: 2219 | D29: Ostatní záležitosti pozemních komunikací | E29: 6121 | F29: Stavby | G29: 0221900021 | H29: Chodník(lávka) ul. Lužická | K29: 8000 | L29: 2600 | M29: 1455.62719 | N29: 1144.37281 | O29: 55.98566115 | P29: 2219 | Q29: 6121 | R29: 0221900021 | S29: 10000 | T29: 10000 | U29: 0 | V29: 10000 | W29: 384.6153846 | X29: zapojení FBI 4500 tis. Kč | Z29: 10000 | AA29: 10000 | AB29: 10000 | AC29: Hložková | AE29: 0 | AF29: 0
A30: 22 | B30: Doprava | C30: 2219 | D30: Ostatní záležitosti pozemních komunikací | E30: 6121 | F30: Stavby | G30: 0221900072 | H30: Cyklostezka Hadina I.etapa | K30: 800 | L30: 800 | M30: 789.44 | N30: 10.56 | O30: 98.68 | P30: 2219 | Q30: 6121 | R30: 0221900072 | U30: 0 | W30: 0 | AE30: 0 | AF30: 0
A31: 22 | B31: Doprava | C31: 2219 | D31: Ostatní záležitosti pozemních komunikací | E31: 6121 | F31: Stavby | G31: 0221900075 | H31: Chodník ul. Zahradní | K31: 230 | L31: 10 | M31: 6.776 | N31: 3.224 | O31: 67.76 | P31: 2219 | Q31: 6121 | R31: 0221900075 | U31: 0 | W31: 0 | AE31: 0 | AF31: 0
A32: 22 | B32: Doprava | C32: 2219 | D32: Ostatní záležitosti pozemních komunikací | E32: 6121 | F32: Stavby | G32: 0221900076 | H32: MK Hálkova (PD) | I32: Projekty-rek.chodníku ul.Hálkova,Cihelna | J32: opravit ORG | K32: 190 | L32: 190 | M32: 94.38 | N32: 95.62 | O32: 49.67368421 | P32: 2219 | Q32: 6121 | R32: 0221900076 | S32: 200 | T32: 200 | U32: 0 | V32: 200 | W32: =V32/L32*100 -> 105.2631579 | Z32: 200 | AA32: 200 | AC32: Vaňkát | AE32: 0 | AF32: 0
A33: 22 | B33: Doprava | C33: 2219 | D33: Ostatní záležitosti pozemních komunikací | E33: 6121 | F33: Stavby | G33: 0221900077 | H33: Cyklostezka Hadina II.etapa | K33: 4500 | L33: 3200 | M33: 2804.94838 | N33: 395.05162 | O33: 87.65463687 | P33: 2219 | Q33: 6121 | R33: 0221900077 | U33: 0 | W33: 0 | AE33: 0 | AF33: 0
A34: 22 | B34: Doprava | C34: 2219 | D34: Ostatní záležitosti pozemních komunikací | E34: 6121 | F34: Stavby | G34: 0221900078 | H34: Chodník Světlice část A | K34: 2800 | L34: 0 | M34: 0 | N34: 0 | O34: 0 | P34: 2219 | Q34: 6121 | R34: 0221900078 | S34: 2800 | T34: 2800 | U34: 0 | V34: 2800 | Z34: 2800 | AA34: 2800 | AB34: 2800 | AC34: Hložková | AE34: 0 | AF34: 0
A35: 22 | B35: Doprava | C35: 2219 | D35: Ostatní záležitosti pozemních komunikací | E35: 6121 | F35: Stavby | G35: 0221900079 | H35: PD-Cyklostezka Hadina III.etapa | K35: 150 | L35: 150 | M35: 45.98 | N35: 104.02 | O35: 30.65333333 | P35: 2219 | Q35: 6121 | R35: 0221900079 | U35: 0 | W35: 0 | AE35: 0 | AF35: 0
A36: 22 | B36: Doprava | C36: 2219 | D36: Ostatní záležitosti pozemních komunikací | E36: 6121 | F36: Stavby | G36: 0221900080 | H36: PD-Stezky pro chodce | K36: 500 | L36: 300 | M36: 164.56 | N36: 135.44 | O36: 54.85333333 | P36: 2219 | Q36: 6121 | R36: 0221900080 | S36: 300 | T36: 300 | U36: -300 | V36: 0 | W36: 0 | AC36: Vaňkát | AE36: 0 | AF36: 0
A37: 22 | B37: Doprava | C37: 2219 | D37: Ostatní záležitosti pozemních komunikací | E37: 6121 | F37: Stavby | G37: 0221900081 | H37: Vnitroblok Hálkova x Lnářská (STUDIE) | I37: Studie Lnářská-vnitroblok | K37: 300 | L37: 150 | M37: 110.715 | N37: 39.285 | O37: 73.81 | P37: 2219 | Q37: 6121 | R37: 0221900081 | S37: 300 | T37: 300 | U37: 200 | V37: 500 | W37: 333.3333333 | Y37: -250 | Z37: 250 | AA37: 250 | AC37: Vaňkát/Machek | AE37: -250 | AF37: 0
A38: 22 | C38: 2212 | E38: 6121 | F38: Stavby | H38: PD-Cyklostezka Hadina IV.etapa | P38: 2212 | Q38: 6121 | S38: 150 | T38: 150 | U38: -150 | V38: 0 | AE38: 0 | AF38: 0
A39: 22 | C39: 2212 | E39: 6121 | F39: Stavby | H39: Projekty komunikací | P39: 2212 | Q39: 6121 | S39: 150 | T39: 150 | U39: 0 | V39: 150 | Y39: 850 | Z39: 1000 | AA39: 1000 | AC39: Vaňkát/Machek | AE39: 850 | AF39: 0
A40: 22 | C40: 2212 | E40: 6121 | F40: Stavby | H40: MK Pelhřimovská (PD) | P40: 2212 | Q40: 6121 | S40: 500 | T40: 500 | U40: 0 | V40: 500 | Z40: 500 | AA40: 500 | AC40: Vaňkát | AE40: 0 | AF40: 0
A41: 22 | C41: 2212 | E41: 6121 | F41: Stavby | H41: Rekonstrukce MK Mánesova | P41: 2212 | Q41: 6121 | S41: 15000 | T41: 15000 | U41: 0 | V41: 15000 | Y41: -15000 | Z41: 0 | AA41: 0 | AB41: 15000 | AC41: Vaňkát | AE41: -15000 | AF41: 0
A42: 22 | C42: 2212 | E42: 6121 | F42: Stavby | H42: PD - 5.května, Hradská, Vosmíkova (PDPS) | P42: 2212 | Q42: 6121 | S42: 350 | T42: 350 | U42: 0 | V42: 350 | Y42: -350 | Z42: 0 | AA42: 0 | AC42: Vaňkát | AE42: -350 | AF42: 0
A43: 22 | C43: 2212 | E43: 6121 | F43: Stavby | H43: MK 5. května (PD) | Y43: 150 | Z43: 150 | AA43: 150 | AC43: Machek | AE43: 150 | AF43: 0
A44: 22 | C44: 2212 | E44: 6121 | F44: Stavby | H44: MK Hradská (PD) | Y44: 150 | Z44: 150 | AA44: 150 | AC44: Machek | AE44: 150 | AF44: 0
A45: 22 | C45: 2212 | E45: 6121 | F45: Stavby | H45: MK Vosmíkova (PD) | Y45: 150 | Z45: 150 | AA45: 150 | AC45: Machek | AE45: 150 | AF45: 0
A46: 22 | C46: 2212 | E46: 6121 | F46: Stavby | H46: MK Mánesova (PD) | Y46: 400 | Z46: 400 | AA46: 400 | AC46: Machek | AE46: 400 | AF46: 0
A47: 22 | C47: 2112 | E47: 6121 | F47: Stavby | H47: MK ul. Máchova/Boční (PD) | P47: 2112 | Q47: 6121 | S47: 300 | T47: 300 | U47: -300 | V47: 0 | AE47: 0 | AF47: 0
A48: 22 | C48: 2219 | E48: 6121 | F48: Stavby | G48: ORG starý | H48: Chodník Hněvkovice | P48: 2219 | Q48: 6121 | R48: ORG starý | S48: 6500 | T48: 6500 | U48: 0 | V48: 6500 | Z48: 6500 | AA48: 6500 | AB48: 6500 | AC48: Vaňkát | AE48: 0 | AF48: 0
A49: 22 | C49: 2219 | E49: 6121 | F49: Stavby | H49: Stoupací pruh I/34 (PD) | P49: 2219 | Q49: 6121 | S49: 2000 | T49: 2000 | U49: 0 | V49: 2000 | X49: (realizace ŘSD, spoluúčast města) | Z49: 2000 | AA49: 2000 | AC49: Vaňkát | AE49: 0 | AF49: 0
A50: 22 | C50: 2219 | E50: 6121 | F50: Stavby | H50: Prostor mezi kinem a obchodním domem (STUDIE) | Y50: 250 | Z50: 250 | AA50: 250 | AC50: Machek | AE50: 250 | AF50: 0
A51: 22 | C51: 2219 | E51: 6121 | F51: Stavby | H51: Zastávka Světlice (STAVBA) | Y51: 600 | Z51: 600 | AA51: 600 | AC51: Machek | AE51: 600 | AF51: 0
A52: 22 | B52: Vodní hospodářství | C52: 2219 | D52: Odvádění a čištění odpadních vod a nakládání s kaly | E52: 6121 | F52: Stavby | H52: Zastávka Kletečná (STAVBA) | P52: 2219 | Q52: 6121 | S52: 600 | T52: 600 | U52: 400 | V52: 1000 | X52: Přesunutí zastávky Kletečná (ze soukr.pozemku-bourání+nová zastávka ) | Y52: -400 | Z52: 600 | AA52: 600 | AC52: Hložková/Machek | AE52: -400 | AF52: 0
A53: ODPA(2) 22 Doprava | K53: 72290 | L53: 47370 | M53: 36419.05 | N53: 10950.96 | O53: 76.88 | T53: =SUM(T11:T52) -> 69900 | U53: -30650 | V53: =SUM(V11:V52) -> 39250 | W53: 82.85834917 | Z53: =SUM(Z11:Z52) -> 26200 | AB53: =SUM(AB11:AB52) -> 34300 | AE53: -13050 | AF53: 13050
A54: 23 | B54: Vodní hospodářství | C54: 2310 | D54: Pitná voda | E54: 6121 | F54: Stavby | G54: 0231000043 | H54: Vodovod U Stadionu-rekonstrukce | K54: 186 | L54: 0 | M54: 0 | N54: 0 | O54: 0 | P54: 2310 | Q54: 6121 | R54: 0231000043 | U54: 0 | AE54: 0 | AF54: 0
A55: 23 | B55: Vodní hospodářství | C55: 2310 | D55: Pitná voda | E55: 6121 | F55: Stavby | G55: 0231000045 | H55: Posílení vodního zdroje Lhotka-napojení vrtané studny | K55: 1000 | L55: 1000 | M55: 81.07 | N55: 918.93 | O55: 8.107 | P55: 2310 | Q55: 6121 | R55: 0231000045 | S55: 1000 | T55: 1000 | U55: 0 | V55: 1000 | W55: 100 | Z55: 1000 | AA55: 1000 | AB55: 1000 | AC55: Jůzl | AE55: 0 | AF55: 0
A56: 23 | B56: Vodní hospodářství | C56: 2310 | D56: Pitná voda | E56: 6121 | F56: Stavby | G56: 0231000048 | H56: Rek.vodov.dle Plánu obnovy | K56: 500 | L56: 500 | M56: 0 | N56: 500 | O56: 0 | P56: 2310 | Q56: 6121 | R56: 0231000048 | U56: 0 | W56: 0 | AE56: 0 | AF56: 0
A57: 23 | B57: Vodní hospodářství | C57: 2310 | D57: Pitná voda | E57: 6121 | F57: Stavby | H57: Plán obnovy-vodovodu ul. Pražská-Na Kasárnách | P57: 2310 | Q57: 6121 | S57: 5300 | T57: 5300 | U57: 0 | V57: 5300 | Y57: 2200 | Z57: 7500 | AA57: 7500 | AB57: 5300 | AC57: Jůzl | AE57: 2200 | AF57: 0
A58: 23 | B58: Vodní hospodářství | C58: 2310 | D58: Pitná voda | E58: 6121 | F58: Stavby | G58: 0231000052 | H58: Vodovod ul.Sluníčkova,II.etapa | K58: 3450 | L58: 2750 | M58: 2501.98232 | N58: 248.01768 | O58: 90.98117527 | P58: 2310 | Q58: 6121 | R58: 0231000052 | U58: 0 | W58: 0 | AE58: 0 | AF58: 0
A59: 23 | B59: Vodní hospodářství | C59: 2310 | D59: Pitná voda | E59: 6121 | F59: Stavby | H59: Vodovod Plačkov, poz.parc.č. 470/5 a 464/1 (PD) | P59: 2310 | Q59: 6121 | S59: 125 | T59: 125 | V59: 125 | Y59: 25 | Z59: 150 | AA59: 150 | AC59: Jůzl | AE59: 25 | AF59: 0
A60: 23 | B60: Vodní hospodářství | C60: 2310 | D60: Pitná voda | E60: 6121 | F60: Stavby | H60: Pelhřimovská vodovod (PD) | P60: 2310 | Q60: 6121 | S60: 250 | T60: 250 | V60: 250 | Z60: 250 | AA60: 250 | AE60: 0 | AF60: 0
A61: 23 | B61: Vodní hospodářství | C61: 2321 | D61: Odvádění a čištění odpadních vod a nakládání s kaly | E61: 6121 | F61: Stavby | G61: 0232100038 | H61: Rek.kanaliz.dle Plánu obnovy | K61: 500 | L61: 100 | M61: 0 | N61: 100 | O61: 0 | P61: 2321 | Q61: 6121 | R61: 0232100038 | W61: 0 | AE61: 0 | AF61: 0
A62: 23 | B62: Vodní hospodářství | C62: 2321 | D62: Odvádění a čištění odpadních vod a nakládání s kaly | E62: 6121 | F62: Stavby | G62: 0232100041 | H62: Kanalizace ul.U Stadionu-rekonstrukce | K62: 250 | L62: 0 | M62: 0 | N62: 0 | O62: 0 | P62: 2321 | Q62: 6121 | R62: 0232100041 | AE62: 0 | AF62: 0
A63: 23 | B63: Vodní hospodářství | C63: 2321 | D63: Odvádění a čištění odpadních vod a nakládání s kaly | E63: 6121 | F63: Stavby | G63: 0232100043 | H63: PD-rozšíř.zemního poldru u ZTV Blanická | K63: 300 | L63: 300 | M63: 272.008 | N63: 27.992 | O63: 90.66933333 | P63: 2321 | Q63: 6121 | R63: 0232100043 | W63: 0 | AE63: 0 | AF63: 0
A64: 23 | B64: Vodní hospodářství | C64: 2321 | D64: Odvádění a čištění odpadních vod a nakládání s kaly | E64: 6121 | F64: Stavby | G64: 0232100046 | H64: Kanalizace ul. Sluníčkova,II.etapa | K64: 4000 | L64: 3300 | M64: 3118.82107 | N64: 181.17893 | O64: 94.50972939 | P64: 2321 | Q64: 6121 | R64: 0232100046 | W64: 0 | AE64: 0 | AF64: 0
A65: 23 | B65: Vodní hospodářství | C65: 2321 | D65: Odvádění a čištění odpadních vod a nakládání s kaly | E65: 6121 | F65: Stavby | G65: 0232100047 | H65: PD-studie odtokových poměrů Humpolec | K65: 100 | L65: 100 | M65: 0 | N65: 100 | O65: 0 | P65: 2321 | Q65: 6121 | R65: 0232100047 | W65: 0 | AE65: 0 | AF65: 0
A66: 23 | B66: Vodní hospodářství | C66: 2321 | D66: Odvádění a čištění odpadních vod a nakládání s kaly | E66: 6121 | F66: Stavby | G66: 0232100048 | H66: Dešťová kanalizace ul. Lužická | K66: 0 | L66: 1400 | M66: 1342.614 | N66: 57.386 | O66: 95.901 | P66: 2321 | Q66: 6121 | R66: 0232100048 | S66: 2500 | T66: 2500 | U66: =V66-T66 -> 0 | V66: 2500 | W66: 178.5714286 | Z66: 2500 | AA66: 2500 | AB66: 2500 | AC66: Jůzl | AE66: 0 | AF66: 0
A67: 23 | B67: Vodní hospodářství | C67: 2321 | D67: Odvádění a čištění odpadních vod a nakládání s kaly | E67: 6121 | F67: Stavby | H67: Plán obnovy - kanalizace ul. Pražská-Na kasárnách | P67: 2321 | Q67: 6121 | S67: 17000 | T67: 17000 | V67: 17000 | Y67: 6200 | Z67: 23200 | AA67: 23200 | AB67: 17000 | AC67: Jůzl | AE67: 6200 | AF67: 0
A68: 23 | B68: Vodní hospodářství | C68: 2321 | D68: Odvádění a čištění odpadních vod a nakládání s kaly | E68: 6121 | F68: Stavby | H68: Dešťová a splašková kanalizace ZTV Blanická-Na Závodí-Spojovací (PD) | P68: 2321 | Q68: 6121 | S68: 100 | T68: 100 | V68: 100 | Z68: 100 | AA68: 100 | AC68: Jůzl | AE68: 0 | AF68: 0
A69: 23 | B69: Vodní hospodářství | C69: 2321 | D69: Odvádění a čištění odpadních vod a nakládání s kaly | E69: 6121 | F69: Stavby | H69: ČOV Humpolec (PD) | P69: 2321 | Q69: 6121 | S69: 6000 | T69: 6000 | V69: 6000 | Z69: 6000 | AA69: 6000 | AC69: Jůzl | AE69: 0 | AF69: 0
A70: 23 | B70: Vodní hospodářství | C70: 2321 | D70: Odvádění a čištění odpadních vod a nakládání s kaly | E70: 6121 | F70: Stavby | H70: Kanalizace Plačkov, poz.parc.č. 470/5 a 464/1 (PD) | P70: 2321 | Q70: 6121 | S70: 130 | T70: 130 | V70: 130 | Y70: 20 | Z70: 150 | AA70: 150 | AC70: Jůzl | AE70: 20 | AF70: 0
A71: 23 | B71: Vodní hospodářství | C71: 2321 | D71: Odvádění a čištění odpadních vod a nakládání s kaly | E71: 6121 | F71: Stavby | H71: Pelhřimovská kanalizace (PD) | P71: 2321 | Q71: 6121 | S71: 250 | T71: 250 | V71: 250 | Z71: 250 | AA71: 250 | AC71: Jůzl | AE71: 0 | AF71: 0
A72: ODPA(2) 23 Vodní hospodářství | K72: 10286 | L72: 9450 | M72: 7316.49 | N72: 2133.51 | O72: 77.42 | T72: =SUM(T54:T71) -> 32655 | U72: =V72-T72 -> 0 | V72: =SUM(V54:V71) -> 32655 | W72: 345.5555556 | Z72: =SUM(Z54:Z71) -> 41100 | AB72: =SUM(AB54:AB71) -> 25800 | AE72: 8445 | AF72: =Y72-AE72 -> -8445
A73: 31 | B73: Vzdělávání a školské služby | C73: 3111 | D73: Mateřské školy | E73: 6121 | F73: Stavby | G73: 0311100001 | H73: MŠ Podhrad | K73: 30000 | L73: 28000 | M73: 18589.90482 | N73: 9410.09518 | O73: 66.39251721 | P73: 3111 | Q73: 6121 | R73: 0311100001 | S73: 55000 | T73: 55000 | U73: 0 | V73: 55000 | W73: 196.4285714 | X73: zapojení FIPO 3000 tis. Kč | Z73: 55000 | AA73: 55000 | AB73: 55000 | AC73: Hložková | AE73: 0 | AF73: 0
G74: 0311100001 | H74: MŠ Podhrad | P74: 3111 | Q74: 6121 | R74: 0311100001 | S74: 3153 | T74: 3153 | U74: 0 | V74: 3153 | X74: (4% z přiznané dotace-žádost o 65 133 347,62 Kč) | Z74: 3153 | AA74: 3153 | AB74: 3153 | AC74: Augustová | AE74: 0 | AF74: 0
A75: 31 | B75: Vzdělávání a školské služby | C75: 3111 | D75: Mateřské školy | E75: 6122 | F75: Stroje, přístroje a zařízení | G75: 0311100004 | H75: Vnitřní vybavení MŠ Podhrad | I75: PD-vnitřního vybavení MŠ Podhrad | K75: 605 | L75: 605 | M75: 605 | N75: 0 | O75: 100 | P75: 3111 | Q75: 6121 | R75: 0311100004 | S75: 5100 | T75: 5100 | U75: 0 | V75: 5100 | W75: 842.9752066 | Z75: 5100 | AA75: 5100 | AB75: 5100 | AC75: Hložková | AE75: 0 | AF75: 0
A76: 31 | B76: Vzdělávání a školské služby | C76: 3111 | D76: Mateřské školy | E76: 6351 | F76: Investiční transfery zřízeným příspěvkovým organizacím | G76: 0000000301 | H76: Mateřská škola - chodníky MŠ Na Skalce 3.et. 600 tis. Kč, kuchyňský robot šk.jíd.Na Skalce 250 tis. Kč, automobil na dopravu stravy MŠ Podhrad 500 tis. Kč | K76: 1839 | L76: 1839 | M76: 775.022 | N76: 1063.978 | O76: 42.14366504 | P76: 3111 | Q76: 6351 | R76: 0000000301 | S76: =1567+1000 -> 2567 | T76: 2567 | U76: -867 | V76: 1700 | W76: =V76/L76*100 -> 92.44154432 | Y76: -350 | Z76: 1350 | AA76: 1350 | AC76: Koudelková | AE76: =Z76-V76 -> -350 | AF76: 0
A77: 31 | B77: Vzdělávání a školské služby | C77: 3113 | D77: Základní školy | E77: 6121 | F77: Stavby | G77: 0311300003 | H77: PD- rek.budovy ZŠ Husova | K77: 110 | L77: 110 | M77: 108.9 | N77: 1.1 | O77: 99 | P77: 3113 | Q77: 6121 | R77: 0311300003 | S77: 2500 | T77: 2500 | U77: -2000 | V77: 500 | W77: 454.5454545 | Y77: -500 | Z77: 0 | AA77: 0 | AC77: Machek | AE77: -500 | AF77: 0
A78: 31 | B78: Vzdělávání a školské služby | C78: 3113 | D78: Základní školy | E78: 6351 | F78: Investiční transfery zřízeným příspěvkovým organizacím | G78: 0000000321 | H78: ZŠ Hálkova - mlatové chodníčky - úprava zahrady Školní ul. | K78: 610 | L78: 610 | M78: 327.56904 | N78: 282.43096 | O78: 53.69984262 | P78: 3113 | Q78: 6351 | R78: 0000000321 | S78: 7120 | T78: 7120 | U78: -5320 | V78: 1800 | W78: 295.0819672 | Y78: -1700 | Z78: 100 | AA78: 100 | AC78: Koudelková | AE78: -1700 | AF78: 0
A79: 31 | B79: Vzdělávání a školské služby | C79: 3113 | D79: Základní školy | E79: 6351 | F79: Investiční transfery zřízeným příspěvkovým organizacím | G79: 0000000322 | H79: ZŠ Hradská - rekonstr. cvičné kuchyně | K79: 290 | L79: 290 | M79: 290 | N79: 0 | O79: 100 | P79: 3113 | Q79: 6351 | R79: 0000000322 | S79: 250 | T79: 250 | U79: 0 | V79: 250 | W79: 86.20689655 | Y79: 250 | Z79: 500 | AA79: 500 | AC79: Koudelková | AE79: 250 | AF79: 0
A80: ODPA(2) 31 Vzdělávání a školské služby | K80: 33454 | L80: 31454 | M80: 20696.39 | N80: 10757.61 | O80: 65.8 | T80: =SUM(T73:T79) -> 75690 | U80: -8187 | V80: =SUM(V73:V79) -> 67503 | W80: 214.6086348 | Z80: =SUM(Z73:Z79) -> 65203 | AB80: =SUM(AB73:AB79) -> 63253 | AE80: -2300 | AF80: 2300
A81: 32 | B81: Vzdělávání a školské služby | C81: 3231 | D81: Základní umělecké školy | E81: 6351 | F81: Investiční transfery zřízeným příspěvkovým organizacím | G81: 0000000324 | H81: ZUŠ | K81: 380 | L81: 380 | M81: 379.5 | N81: 0.5 | O81: 99.86842105 | P81: 3231 | Q81: 6351 | R81: 0000000324 | S81: 380 | T81: 380 | U81: 0 | V81: 380 | W81: 100 | Y81: -380 | Z81: 0 | AA81: 0 | AC81: Koudelková | AE81: -380 | AF81: 0
A82: 32 | B82: Vzdělávání a školské služby | C82: 3231 | D82: Základní umělecké školy | E82: 6356 | F82: Jiné investiční transfery zřízeným příspěvkovým organizacím | G82: 0323100004 | H82: ZUŠ-průtok-kraj.inv.dotace-Učební pomůcky 2022 | K82: 0 | L82: 35.025 | M82: 35.025 | N82: 0 | O82: 100 | AF82: 0
A83: 32 | B83: Vzdělávání a školské služby | C83: 3233 | D83: Střediska volného času | E83: 6351 | F83: Investiční transfery zřízeným příspěvkovým organizacím | G83: 0000000325 | H83: SVČ - rekonstr.kolejiště - kroužek železniční modeláři | K83: 1500 | L83: 1500 | M83: 1015.23519 | N83: 484.76481 | O83: 67.682346 | P83: 3233 | Q83: 6351 | R83: 0000000325 | S83: 1200 | T83: 1200 | U83: -700 | V83: 500 | W83: 33.33333333 | Z83: 500 | AA83: 500 | AC83: Koudelková | AE83: 0 | AF83: 0
A84: ODPA(2) 32 Vzdělávání a školské služby | K84: 1880 | L84: 1915.03 | M84: 1429.77 | N84: 485.26 | O84: 74.66 | T84: =SUM(T81:T83) -> 1580 | U84: -700 | V84: =SUM(V81:V83) -> 880 | W84: 45.95228273 | Z84: =SUM(Z81:Z83) -> 500 | AB84: =SUM(AB81:AB83) -> 0 | AE84: -380 | AF84: 380
A85: 33 | B85: Kultura, církve a sdělovací prostředky | C85: 3319 | D85: Ostatní záležitosti kultury | E85: 6121 | F85: Stavby | G85: 0331900018 | H85: Spolkový dům č.p.59-výkup | K85: 0 | L85: 13684.8 | M85: 13616.8 | N85: 68 | O85: 99.50309833 | P85: 3319 | Q85: 6121 | R85: 0331900018 | S85: 14050 | T85: 14050 | U85: 0 | V85: 14050 | W85: 102.6686543 | Z85: 14050 | AA85: 14050 | AB85: 14050 | AC85: Kocmanová | AE85: 0 | AF85: 0
A86: 33 | B86: Kultura, církve a sdělovací prostředky | C86: 3319 | D86: Ostatní záležitosti kultury | E86: 6356 | F86: Jiné investiční transfery zřízeným příspěvkovým organizacím | G86: 0003319010 | H86: Průtok-MěKIS inv.dotace od Kraje-Modernizace vybavení v infocentru Humpolec | K86: 0 | L86: 60 | M86: 60 | N86: 0 | O86: 100 | P86: 3319 | Q86: 6356 | R86: 0003319010 | U86: 0 | W86: 0 | AE86: 0 | AF86: 0
A87: 33 | B87: Kultura, církve a sdělovací prostředky | C87: 3319 | E87: 6351 | F87: Investiční transfery zřízeným příspěvkovým organizacím | G87: 376 | H87: MěKIS - PD -nová národopisná expozice 600 tis. Kč, venkovní bibliobox 200 tis. Kč, redigitalizace a ozvučení kina 3880 tis. Kč | Y87: 4680 | Z87: 4680 | AA87: 4680 | AC87: Koudelková | AE87: 4680 | AF87: 0
A88: 33 | B88: Kultura, církve a sdělovací prostředky | C88: 3322 | D88: Zachování a obnova kulturních památek | E88: 6121 | F88: Stavby | G88: 0332200022 | H88: Hrad Orlík - zastropení sklepení | K88: 700 | L88: 760 | M88: 678.00475 | N88: 81.99525 | O88: 89.21115132 | P88: 3322 | Q88: 6121 | R88: 0332200022 | S88: 300 | T88: 300 | U88: 0 | V88: 300 | W88: 39.47368421 | Y88: 100 | Z88: 400 | AA88: 400 | AC88: Kocman | AE88: 100 | AF88: 0
A89: 33 | B89: Kultura, církve a sdělovací prostředky | C89: 3326 | D89: Pořízení, zachování a obnova hodnot místního kulturního, národního a historického povědomí | E89: 6121 | F89: Stavby | G89: 0332600030 | H89: Zichpil zastřešení (studie+PD) | K89: 100 | L89: 100 | M89: 0 | N89: 100 | O89: 0 | P89: 3326 | Q89: 6121 | R89: 0332600030 | S89: 200 | T89: 200 | U89: 0 | V89: 200 | W89: 200 | Y89: -200 | Z89: 0 | AA89: 0 | AC89: Kocman/Machek | AE89: -200 | AF89: 0
A90: 33 | B90: Kultura, církve a sdělovací prostředky | C90: 3326 | D90: Pořízení, zachování a obnova hodnot místního kulturního, národního a historického povědomí | E90: 6121 | F90: Stavby | G90: 0332600031 | H90: Kaplička Vilémov zvonění-elektrifikace | K90: 150 | L90: 150 | M90: 4 | N90: 146 | O90: 2.666666667 | P90: 3326 | Q90: 6121 | R90: 0332600031 | S90: 150 | T90: 150 | U90: 0 | V90: 150 | W90: 100 | Z90: 150 | AA90: 150 | AC90: Hložková | AE90: 0 | AF90: 0
A91: ODPA(2) 33 Kultura, církve a sdělovací prostředky | K91: 950 | L91: 14754.8 | M91: 14358.8 | N91: 396 | O91: 97.32 | T91: =SUM(T85:T90) -> 14700 | U91: 0 | V91: =SUM(V85:V90) -> 14700 | W91: 99.62859544 | Z91: =SUM(Z85:Z90) -> 19280 | AB91: =SUM(AB85:AB90) -> 14050 | AE91: 4580 | AF91: -4580
A92: 34 | B92: Sport a zájmová činnost | C92: 3412 | D92: Sportovní zařízení ve vlastnictví obce | E92: 6121 | F92: Stavby | G92: 0341200015 | H92: Městská hřiště - herní prvky | K92: 600 | L92: 534 | M92: 450.6547 | N92: 83.3453 | O92: 84.39226592 | P92: 3412 | Q92: 6121 | R92: 0341200015 | S92: 600 | T92: 600 | U92: 0 | V92: 600 | W92: 112.3595506 | Z92: 600 | AA92: 600 | AC92: Hložková | AE92: 0 | AF92: 0
A93: 34 | B93: Sport a zájmová činnost | C93: 3412 | D93: Sportovní zařízení ve vlastnictví obce | E93: 6121 | F93: Stavby | G93: 0341200091 | H93: Fotbal.stadion-rekonstr.stupňů a plochy | I93: PD-Fotbal.stadion-rekonstr.stupňů (DPS) | K93: 450 | L93: 450 | M93: 427.13 | N93: 22.87 | O93: 94.91777778 | P93: 3412 | Q93: 6121 | R93: 0341200091 | S93: 70000 | T93: 70000 | U93: -66000 | V93: 4000 | W93: 888.8888889 | Y93: 6000 | Z93: 10000 | AA93: 10000 | AC93: Vaňkát | AE93: 6000 | AF93: 0
A94: 34 | B94: Sport a zájmová činnost | C94: 3412 | D94: Sportovní zařízení ve vlastnictví obce | E94: 6121 | F94: Stavby | H94: Fotbal.stadion - rekonstr. Zázemí (STUDIE) | Y94: 250 | Z94: 250 | AA94: 250 | AC94: Machek | AE94: 250 | AF94: 0
A95: 34 | B95: Sport a zájmová činnost | C95: 3412 | D95: Sportovní zařízení ve vlastnictví obce | E95: 6121 | F95: Stavby | G95: 0341200096 | H95: Hřiště Hněvkovice (PD) | I95: opravit ORG | K95: 200 | L95: 200 | M95: 0 | N95: 200 | O95: 0 | P95: 3412 | Q95: 6121 | R95: 0341200096 | S95: 200 | T95: 200 | U95: 0 | V95: 200 | W95: 100 | Y95: 50 | Z95: 250 | AA95: 250 | AC95: Vaňkát | AE95: 50 | AF95: 0
A96: 34 | B96: Sport a zájmová činnost | C96: 3412 | D96: Sportovní zařízení ve vlastnictví obce | E96: 6121 | F96: Stavby | G96: 0341200097 | H96: Hřiště Krasoňov (PD) | I96: opravit ORG | K96: 100 | L96: 100 | M96: 0 | N96: 100 | O96: 0 | P96: 3412 | Q96: 6121 | R96: 0341200097 | S96: 100 | T96: 100 | U96: 0 | V96: 100 | W96: 100 | Y96: 150 | Z96: 250 | AA96: 250 | AC96: Vaňkát | AE96: 150 | AF96: 0
A97: 34 | C97: 3412 | E97: 6121 | F97: Stavby | H97: Rekonstrukce sportovní haly TJ JISKRA (PD) | I97: přejde do majetku města v r. 2024, je zpracovaná studie - hradila TJ Jiskra -Ing. Mihulkou | Y97: 1000 | Z97: 1000 | AA97: 1000 | AC97: Machek | AE97: 1000 | AF97: 0
A98: 34 | B98: Sport a zájmová činnost | C98: 3412 | D98: Sportovní zařízení ve vlastnictví obce | E98: 6121 | F98: Stavby | G98: 0341200099 | H98: Šatny ZS st.úpravy | K98: 2300 | L98: 289 | M98: 70 | N98: 219 | O98: 24.22145329 | P98: 3412 | Q98: 6121 | R98: 0341200099 | S98: 3000 | T98: 3000 | U98: -3000 | V98: 0 | W98: 0 | X98: prověřit možnost dotace v r. 2023 | AC98: Hložková | AE98: 0 | AF98: 0
A99: 34 | B99: Sport a zájmová činnost | C99: 3412 | D99: Sportovní zařízení ve vlastnictví obce | E99: 6121 | F99: Stavby | G99: 0341200102 | H99: Zakrytí mantinelů ZS | K99: 130 | L99: 130 | M99: 0 | N99: 130 | O99: 0 | P99: 3412 | Q99: 6121 | R99: 0341200102 | S99: 200 | T99: 200 | U99: 0 | V99: 200 | W99: 153.8461538 | Z99: 200 | AA99: 200 | AC99: Hložková | AE99: 0 | AF99: 0
A100: 34 | B100: Sport a zájmová činnost | C100: 3412 | D100: Sportovní zařízení ve vlastnictví obce | E100: 6121 | F100: Stavby | G100: 0341200104 | H100: Rek.hřiště TJ JISKRA-nár.házené -výměna umělého povrchu | K100: 3976 | L100: 0 | M100: 0 | N100: 0 | O100: 0 | P100: 3412 | Q100: 6121 | R100: 0341200104 | U100: 0 | AE100: 0 | AF100: 0
A101: 34 | B101: Sport a zájmová činnost | C101: 3412 | D101: Sportovní zařízení ve vlastnictví obce | E101: 6121 | F101: Stavby | G101: 0341200105 | H101: Sport.areál Plačkov-revitalizace přír.koupaliště | K101: 5000 | L101: 5000 | M101: 4887.81578 | N101: 112.18422 | O101: 97.7563156 | P101: 3412 | Q101: 6121 | R101: 0341200105 | U101: 0 | W101: 0 | AE101: 0 | AF101: 0
A102: 34 | B102: Sport a zájmová činnost | C102: 3412 | D102: Sportovní zařízení ve vlastnictví obce | E102: 6121 | F102: Stavby | G102: 0341200110 | H102: PD-multifunkční hala Podhrad | K102: 1600 | L102: 250 | M102: 89.777 | N102: 160.223 | O102: 35.9108 | P102: 3412 | Q102: 6121 | R102: 0341200110 | S102: 2000 | T102: 2000 | U102: -2000 | V102: 0 | W102: 0 | Z102: 0 | AA102: 0 | AC102: Vaňkát | AE102: 0 | AF102: 0
A103: 34 | B103: Sport a zájmová činnost | C103: 3412 | D103: Sportovní zařízení ve vlastnictví obce | E103: 6121 | F103: Stavby | G103: 0341200111 | H103: Rekonstrukce soc.zařízení na ZS | K103: 100 | L103: 202 | M103: 201.31738 | N103: 0.68262 | O103: 99.66206931 | P103: 3412 | Q103: 6121 | R103: 0341200111 | U103: 0 | W103: 0 | AE103: 0 | AF103: 0
A104: 34 | B104: Sport a zájmová činnost | C104: 3412 | D104: Sportovní zařízení ve vlastnictví obce | E104: 6121 | F104: Stavby | G104: 0341200112 | H104: Prohloubení sněžné jámy na ZS | K104: 300 | L104: 300 | M104: 0 | N104: 300 | O104: 0 | P104: 3412 | Q104: 6121 | R104: 0341200112 | U104: 0 | W104: 0 | AE104: 0 | AF104: 0
A105: 34 | B105: Sport a zájmová činnost | C105: 3412 | D105: Sportovní zařízení ve vlastnictví obce | E105: 6121 | F105: Stavby | G105: 0341200113 | H105: Rekonstrukce-vodov.přípojka fotbal.stadion | K105: 300 | L105: 350 | M105: 0 | N105: 350 | O105: 0 | P105: 3412 | Q105: 6121 | R105: 0341200113 | U105: 0 | W105: 0 | AE105: 0 | AF105: 0
A106: 34 | B106: Sport a zájmová činnost | C106: 3412 | D106: Sportovní zařízení ve vlastnictví obce | E106: 6121 | F106: Stavby | G106: 0341200114 | H106: Rekonstrukce šaten fotb.stadion | K106: 1600 | L106: 2200 | M106: 69.427 | N106: 2130.573 | O106: 3.155772727 | P106: 3412 | Q106: 6121 | R106: 0341200114 | U106: 0 | W106: 0 | Y106: 2200 | Z106: 2200 | AA106: 2200 | AC106: Hložková | AE106: 2200 | AF106: 0
A107: 34 | B107: Sport a zájmová činnost | C107: 3412 | D107: Sportovní zařízení ve vlastnictví obce | E107: 6121 | F107: Stavby | G107: 0341200116 | H107: Pumpskatetrack-dráha-plocha po LC | K107: 2500 | L107: 1500 | M107: 236.797 | N107: 1263.203 | O107: 15.78646667 | P107: 3412 | Q107: 6121 | R107: 0341200116 | S107: 17000 | T107: 17000 | U107: -17000 | V107: 0 | W107: 0 | X107: prověřit možnost dotace v r. 2023 | Y107: 750 | Z107: 750 | AA107: 750 | AC107: Hložková | AE107: 750 | AF107: 0
A108: 34 | B108: Sport a zájmová činnost | C108: 3412 | D108: Sportovní zařízení ve vlastnictví obce | E108: 6121 | F108: Stavby | G108: 0341200117 | H108: OÚE - hřiště ve Světlici | K108: 0 | L108: 235 | M108: 234.74 | N108: 0.26 | O108: 99.8893617 | AF108: 0
A109: 34 | B109: Sport a zájmová činnost | C109: 3412 | D109: Sportovní zařízení ve vlastnictví obce | E109: 6121 | F109: Stavby | G109: 0341200120 | H109: Přístřešek na mobiliář Rozkoš | K109: 0 | L109: 500 | M109: 498.28 | N109: 1.72 | O109: 99.656 | AF109: 0
A110: 34 | B110: Sport a zájmová činnost | C110: 3412 | D110: Sportovní zařízení ve vlastnictví obce | E110: 6122 | F110: Stroje, přístroje a zařízení | G110: 0341200115 | H110: Rezervní čerpadlo HYDROVAR-Žabák | K110: 100 | L110: 264 | M110: 263.76306 | N110: 0.23694 | O110: 99.91025 | P110: 3412 | Q110: 6122 | R110: 0341200115 | U110: 0 | W110: 0 | AE110: 0 | AF110: 0
A111: 34 | B111: Sport a zájmová činnost | C111: 3412 | D111: Sportovní zařízení ve vlastnictví obce | E111: 6122 | F111: Stroje, přístroje a zařízení | G111: 341200121 | H111: Vybavení sportovišť-místní části | Y111: 50 | Z111: 50 | AA111: 50 | AE111: 50 | AF111: 0
A112: 34 | B112: Sport a zájmová činnost | C112: 3412 | D112: Sportovní zařízení ve vlastnictví obce | E112: 6122 | F112: Stroje, přístroje a zařízení | G112: 0341200122 | H112: Vybavení sportovišť-město | L112: 92 | M112: 44.18315 | N112: 47.81685 | O112: 48.02516304 | Y112: 50 | Z112: 50 | AA112: 50 | AE112: 50 | AF112: 0
A113: 34 | B113: Sport a zájmová činnost | C113: 3419 | D113: Ostatní sportovní činnost | E113: 6322 | F113: Investiční transfery spolkům | G113: 0341900028 | H113: Dotace-Rek.hřiště TJ JISKRA-nár.házené -výměna umělého povrchu | K113: 0 | L113: 3302.152 | M113: 3302.152 | N113: 0 | O113: 100 | P113: 3419 | Q113: 6322 | R113: 0341900028 | U113: 0 | W113: 0 | AE113: 0 | AF113: 0
A114: 34 | B114: Sport a zájmová činnost | C114: 3419 | D114: Ostatní sportovní činnost | E114: 6322 | F114: Investiční transfery spolkům | G114: 0341900029 | H114: Dar ZM-TJ Jiskra-investice v r.2022 (471/26/ZM/2022) | K114: 0 | L114: 674 | M114: 674 | N114: 0 | O114: 100 | P114: 3419 | Q114: 6322 | R114: 0341900029 | U114: 0 | W114: 0 | AE114: 0 | AF114: 0
A115: 34 | C115: 3412 | E115: 6121 | F115: Stavby | H115: Tenisová hala Hradská-výměna koberce-nová technologie | P115: 3412 | Q115: 6121 | S115: 1500 | T115: 1500 | U115: -1500 | V115: 0 | AC115: Hložková | AE115: 0 | AF115: 0
A116: 34 | C116: 3412 | E116: 6121 | F116: Stavby | H116: ZS Vstupní dveře pokladna | P116: 3412 | Q116: 6121 | S116: 200 | T116: 200 | U116: 0 | V116: 200 | Z116: 200 | AA116: 200 | AC116: Hložková | AE116: 0 | AF116: 0
A117: 34 | C117: 3412 | E117: 6122 | F117: Stavby | H117: ZS Ozvučení + výměna časomíry | P117: 3412 | Q117: 6122 | S117: 500 | T117: 500 | U117: -500 | V117: 0 | AC117: Hložková | AE117: 0 | AF117: 0
A118: 34 | C118: 3412 | E118: 6121 | F118: Stavby | H118: Dětské hřiště Smetanova - opatření proti vandalismu (oplocení ) | P118: 3412 | Q118: 6121 | S118: 500 | T118: 500 | U118: 0 | V118: 500 | Z118: 500 | AA118: 500 | AC118: Hložková | AE118: 0 | AF118: 0
A119: 34 | C119: 3412 | E119: 6122 | F119: Stroje, přístroje a zařízení | H119: Rezervní čerpadlo Žabák | P119: 3412 | Q119: 6122 | S119: 200 | T119: 200 | U119: 0 | V119: 200 | Z119: 200 | AA119: 200 | AC119: Hložková | AE119: 0 | AF119: 0
A120: 34 | C120: 3412 | E120: 6122 | F120: Stroje, přístroje a zařízení | H120: Vřetenová sekačka FS+Plačkov | P120: 3412 | Q120: 6122 | S120: 2000 | T120: 2000 | U120: -2000 | V120: 0 | AC120: Hložková | AE120: 0 | AF120: 0
A121: 34 | C121: 3412 | E121: 6121 | F121: Opravy a udržování | H121: Vybavení šaten FS | I121: nad 40 tis. /položku? | P121: 3412 | Q121: 6121 | S121: 1000 | T121: 1000 | U121: -500 | V121: 500 | Z121: 500 | AA121: 500 | AC121: Hložková | AE121: 0 | AF121: 0
A122: 34 | C122: 3412 | E122: 6122 | F122: Stroje, přístroje a zařízení | H122: Žabák digitální ukazatel teploty vody, ovzduší, čas ( požadavek KHS ) | P122: 3412 | Q122: 6122 | S122: 200 | T122: 200 | U122: 0 | V122: 200 | Z122: 200 | AA122: 200 | AC122: Hložková | AE122: 0 | AF122: 0
A123: 34 | C123: 3412 | E123: 6121 | F123: Stavby | H123: Tenisová hala Hradská-výměna osvětlení ( LED ) | P123: 3412 | Q123: 6121 | S123: 1500 | T123: 1500 | U123: 0 | V123: 1500 | Z123: 1500 | AA123: 1500 | AC123: Hložková | AE123: 0 | AF123: 0
A124: 34 | C124: 3412 | E124: 6121 | F124: Stavby | H124: Budova ve sport. areálu Plačkov | V124: 300 | Y124: -300 | Z124: 0 | AA124: 0 | AC124: Machek | AE124: -300 | AF124: 0
A125: 34 | C125: 3412 | E125: 6121 | F125: Stavby | H125: Instalace sauny - Pařezáč | P125: 3412 | Q125: 6121 | S125: 500 | T125: 500 | U125: -500 | V125: 0 | AC125: Hložková | AE125: 0 | AF125: 0
A126: ODPA(2) 34 Sport a zájmová činnost | K126: 19256 | L126: 16572.15 | M126: 11450.04 | N126: 5122.11 | O126: 69.09 | T126: =SUM(T92:T125) -> 101200 | U126: -92700 | V126: =SUM(V92:V125) -> 8500 | W126: 51.29087053 | Z126: =SUM(Z92:Z125) -> 18700 | AB126: =SUM(AB92:AB125) -> 0 | AE126: 10200 | AF126: -10200
A127: 36 | B127: Bydlení, komunální služby a územní rozvoj | C127: 3612 | D127: Bytové hospodářství | E127: 6121 | F127: Stavby | G127: 0000001903 | H127: Byt.hosp.-celk.rekonstr. bytů čp 19 | K127: 600 | L127: 600 | M127: 417.2138 | N127: 182.7862 | O127: 69.53563333 | P127: 3612 | Q127: 6121 | R127: 0000001903 | S127: 600 | T127: 600 | U127: 0 | V127: 600 | W127: 100 | Z127: 600 | AA127: 600 | AC127: Hložková/TS | AE127: 0 | AF127: 0
A128: 36 | B128: Bydlení, komunální služby a územní rozvoj | C128: 3612 | D128: Bytové hospodářství | E128: 6121 | F128: Stavby | G128: 0000007303 | H128: Byt.hosp.-celk.rekonstr. bytů čp 73 | K128: 600 | L128: 600 | M128: 0 | N128: 600 | O128: 0 | P128: 3612 | Q128: 6121 | R128: 0000007303 | S128: 600 | T128: 600 | U128: 0 | V128: 600 | W128: 100 | Z128: 600 | AA128: 600 | AC128: Hložková/TS | AE128: 0 | AF128: 0
A129: 36 | B129: Bydlení, komunální služby a územní rozvoj | C129: 3612 | D129: Bytové hospodářství | E129: 6121 | F129: Stavby | G129: 0000007403 | H129: Byt.hosp.-celk.rekonstr. bytů čp 74 | K129: 400 | L129: 400 | M129: 0 | N129: 400 | O129: 0 | P129: 3612 | Q129: 6121 | R129: 0000007403 | S129: 400 | T129: 400 | U129: 0 | V129: 400 | W129: 100 | Z129: 400 | AA129: 400 | AC129: Hložková/TS | AE129: 0 | AF129: 0
A130: 36 | B130: Bydlení, komunální služby a územní rozvoj | C130: 3612 | D130: Bytové hospodářství | E130: 6121 | F130: Stavby | G130: 0000073004 | H130: Byt.hosp.-PD-výtah Školní čp 730 | K130: 107 | L130: 107 | M130: 0 | N130: 107 | O130: 0 | P130: 3612 | Q130: 6121 | R130: 0000073004 | S130: 3000 | T130: 3000 | U130: 0 | V130: 3000 | W130: 2803.738318 | Z130: 3000 | AA130: 3000 | AC130: Hložková/TS | AE130: 0 | AF130: 0
A131: 36 | B131: Bydlení, komunální služby a územní rozvoj | C131: 3612 | D131: Bytové hospodářství | E131: 6121 | F131: Stavby | G131: 0000073005 | H131: Byt.hosp.-odizol.zdiva čp 730 | K131: 500 | L131: 100 | M131: 0 | N131: 100 | O131: 0 | P131: 3612 | Q131: 6121 | R131: 0000073005 | S131: 500 | T131: 500 | U131: 0 | V131: 500 | W131: 500 | Z131: 500 | AA131: 500 | AC131: Hložková/TS | AE131: 0 | AF131: 0
A132: 36 | B132: Bydlení, komunální služby a územní rozvoj | C132: 3612 | D132: Bytové hospodářství | E132: 6121 | F132: Stavby | G132: 0000092606 | H132: Byt.-Instalace měřidel tepla kotelna čp 926 | K132: 100 | L132: 87.3 | M132: 87.05615 | N132: 0.24385 | O132: 99.72067583 | P132: 3612 | Q132: 6121 | R132: 0000092606 | S132: 100 | T132: 100 | U132: -100 | V132: 0 | W132: 0 | Z132: 0 | AA132: 0 | AC132: Hložková/TS | AE132: 0 | AF132: 0
A133: 36 | B133: Bydlení, komunální služby a územní rozvoj | C133: 3612 | D133: Bytové hospodářství | E133: 6121 | F133: Stavby | G133: 0000131303 | H133: Byt.hosp.-celk.rekonstr. bytů čp 1313 | K133: 600 | L133: 274 | M133: 0 | N133: 274 | O133: 0 | P133: 3612 | Q133: 6121 | R133: 0000131303 | S133: 600 | T133: 600 | U133: 0 | V133: 600 | W133: 218.9781022 | Z133: 600 | AA133: 600 | AC133: Hložková/TS | AE133: 0 | AF133: 0
A134: 36 | B134: Bydlení, komunální služby a územní rozvoj | C134: 3612 | D134: Bytové hospodářství | E134: 6121 | F134: Stavby | G134: 0000132603 | H134: Byt.hosp.-celk.rekonstr.bytů čp 1326 | K134: 500 | L134: 500 | M134: 469.13365 | N134: 30.86635 | O134: 93.82673 | P134: 3612 | Q134: 6121 | R134: 0000132603 | S134: 600 | T134: 600 | U134: 0 | V134: 600 | W134: 120 | Z134: 600 | AA134: 600 | AC134: Hložková/TS | AE134: 0 | AF134: 0
A135: 36 | B135: Bydlení, komunální služby a územní rozvoj | C135: 3612 | D135: Bytové hospodářství | E135: 6121 | F135: Stavby | G135: 0000135306 | H135: Byt.-Instalace měřidel tepla kotelna čp 1353 | K135: 100 | L135: 112.7 | M135: 112.6839 | N135: 0.0161 | O135: 99.98571429 | P135: 3612 | Q135: 6121 | R135: 0000135306 | S135: 100 | T135: 100 | U135: -100 | V135: 0 | W135: 0 | Z135: 0 | AA135: 0 | AC135: Hložková/TS | AE135: 0 | AF135: 0
A136: 36 | B136: Bydlení, komunální služby a územní rozvoj | C136: 3612 | D136: Bytové hospodářství | E136: 6121 | F136: Stavby | G136: 0000160703 | H136: Byt.hosp.-rekonstr.bytu čp 1607 | K136: 0 | L136: 198 | M136: 197.6137 | N136: 0.3863 | O136: 99.80489899 | P136: 3612 | Q136: 6121 | R136: 0000160703 | S136: 600 | T136: 600 | U136: 0 | V136: 600 | W136: 303.030303 | Z136: 600 | AA136: 600 | AC136: Hložková/TS | AE136: 0 | AF136: =Y136-AE136 -> 0
A137: 36 | B137: Bydlení, komunální služby a územní rozvoj | C137: 3612 | D137: Bytové hospodářství | E137: 6121 | F137: Stavby | G137: 0361200004 | H137: PD-Regenerace sídliště Lužická (SP) | K137: 500 | L137: 500 | M137: 160.65 | N137: 339.35 | O137: 32.13 | P137: 3612 | Q137: 6121 | R137: 0361200004 | W137: 0 | AE137: 0 | AF137: 0
A138: 36 | B138: Bydlení, komunální služby a územní rozvoj | C138: 3612 | D138: Bytové hospodářství | E138: 6121 | F138: Stavby | G138: 0361200013 | H138: Bytový dům Hálkova (PD) | I138: PD-Bytový dům Hálkova | K138: 3500 | L138: 3090 | M138: 996.18 | N138: 2093.82 | O138: 32.23883495 | P138: 3612 | Q138: 6121 | R138: 0361200013 | S138: 30000 | T138: 30000 | U138: -30000 | V138: 0 | W138: 0 | Y138: 3500 | Z138: 3500 | AA138: 3500 | AC138: Vaňkát | AE138: 3500 | AF138: 0
A139: 36 | B139: Bydlení, komunální služby a územní rozvoj | C139: 3612 | D139: Bytové hospodářství | E139: 6121 | F139: Stavby | G139: 0361200015 | H139: PD-Demolice domu čp 457 | I139: sloučit k ORGU 361200013 | K139: 110 | L139: 110 | M139: 25.19576 | N139: 84.80424 | O139: 22.90523636 | P139: 3612 | Q139: 6121 | R139: 0361200015 | U139: 0 | W139: 0 | AE139: 0 | AF139: 0
A140: 36 | B140: Bydlení, komunální služby a územní rozvoj | C140: 3612 | D140: Bytové hospodářství | E140: 6121 | F140: Stavby | G140: 0361200014 | H140: PD-domy na bydlení ul. Panskodomská | K140: 550 | L140: 960 | M140: 952.149 | N140: 7.851 | O140: 99.1821875 | P140: 3612 | Q140: 6121 | R140: 0361200014 | S140: 1600 | T140: 1600 | U140: -1600 | V140: 0 | W140: 0 | Z140: 0 | AA140: 0 | AC140: Vaňkát | AE140: 0 | AF140: 0
A141: 36 | B141: Bydlení, komunální služby a územní rozvoj | C141: 3612 | D141: Bytové hospodářství | E141: 6121 | F141: Stavby | G141: 0361200016 | H141: PD-ZTV Podkova | K141: 200 | L141: 200 | M141: 99.25872 | N141: 100.74128 | O141: 49.62936 | P141: 3612 | Q141: 6121 | R141: 0361200016 | S141: 800 | T141: 800 | U141: =V141-T141 -> 0 | V141: 800 | W141: 400 | Z141: 800 | AA141: 800 | AC141: Vaňkát | AE141: 0 | AF141: 0
A142: 36 | B142: Bydlení, komunální služby a územní rozvoj | C142: 3613 | D142: Nebytové hospodářství | E142: 6121 | F142: Stavby | H142: Nebyt.-rekonstrukce budov OV (STUDIE) | Y142: 500 | Z142: 500 | AA142: 500 | AC142: Machek | AE142: 500 | AF142: 0
A143: 36 | B143: Bydlení, komunální služby a územní rozvoj | C143: 3613 | D143: Nebytové hospodářství | E143: 6121 | F143: Stavby | H143: Nebyt.-budova u hřiště v Plačkově (STUDIE) | Y143: 400 | Z143: 400 | AA143: 400 | AC143: Machek | AE143: 400 | AF143: 0
A144: 36 | B144: Bydlení, komunální služby a územní rozvoj | C144: 3613 | D144: Nebytové hospodářství | E144: 6121 | F144: Stavby | H144: Nebyt.-výměna oken - chata Bělice | Y144: 50 | Z144: 50 | AA144: 50 | AC144: Hložková | AE144: =Z144-V144 -> 50 | AF144: 0
A145: 36 | B145: Bydlení, komunální služby a územní rozvoj | C145: 3613 | D145: Nebytové hospodářství | E145: 6121 | F145: Stavby | G145: 0361300148 | H145: Nebyt.-čp.803 LTRN-izolace zdiva | K145: 250 | L145: 250 | M145: 0 | N145: 250 | O145: 0 | P145: 3613 | Q145: 6121 | R145: 0361300148 | S145: 250 | T145: 250 | U145: 0 | V145: 250 | W145: 100 | Z145: 250 | AA145: 250 | AC145: Hložková | AE145: 0 | AF145: 0
A146: 36 | B146: Bydlení, komunální služby a územní rozvoj | C146: 3613 | D146: Nebytové hospodářství | E146: 6121 | F146: Stavby | G146: 0361300167 | H146: Nebyt.-Máchova čp.1607-rekonstr.-příprava na ordinaci | K146: 500 | L146: 500 | M146: 0 | N146: 500 | O146: 0 | P146: 3613 | Q146: 6121 | R146: 0361300167 | S146: 500 | T146: 500 | U146: -500 | V146: 0 | W146: 0 | Z146: 0 | AA146: 0 | AC146: Hložková | AE146: 0 | AF146: 0
A147: 36 | B147: Bydlení, komunální služby a územní rozvoj | C147: 3613 | D147: Nebytové hospodářství | E147: 6121 | F147: Stavby | G147: 0361300173 | H147: Nebyt.-čp.389-kotelna instalace měřidel tepla | K147: 100 | L147: 100 | M147: 74.25528 | N147: 25.74472 | O147: 74.25528 | P147: 3613 | Q147: 6121 | R147: 0361300173 | S147: 100 | T147: 100 | U147: -100 | V147: 0 | W147: 0 | Z147: 0 | AA147: 0 | AC147: Hložková | AE147: 0 | AF147: 0
A148: 36 | B148: Bydlení, komunální služby a územní rozvoj | C148: 3613 | D148: Nebytové hospodářství | E148: 6121 | F148: Stavby | G148: 0361300174 | H148: Nebyt.-čp.885-kotelna instalace měřidel tepla | K148: 100 | L148: 100 | M148: 74.25528 | N148: 25.74472 | O148: 74.25528 | P148: 3613 | Q148: 6121 | R148: 0361300174 | S148: 100 | T148: 100 | U148: -100 | V148: 0 | W148: 0 | Z148: 0 | AA148: 0 | AC148: Hložková | AE148: =Z148-V148 -> 0 | AF148: 0
A149: 36 | B149: Bydlení, komunální služby a územní rozvoj | C149: 3613 | D149: Nebytové hospodářství | E149: 6121 | F149: Stavby | G149: 0361300175 | H149: Nebyt.-Čp.885-rekonstrukce ordinace | K149: 300 | L149: 300 | M149: 0 | N149: 300 | O149: 0 | P149: 3613 | Q149: 6121 | R149: 0361300175 | S149: 500 | T149: 500 | U149: 0 | V149: 500 | W149: 166.6666667 | Z149: 500 | AA149: 500 | AC149: Hložková | AE149: 0 | AF149: 0
A150: 36 | B150: Bydlení, komunální služby a územní rozvoj | C150: 3613 | D150: Nebytové hospodářství | E150: 6121 | F150: Stavby | G150: 0361300176 | H150: Nebyt.-čp.250-budova ČS instalace MaR | K150: 0 | L150: 150 | M150: 117.52125 | N150: 32.47875 | O150: 78.3475 | P150: 3613 | Q150: 6121 | R150: 0361300176 | U150: 0 | W150: 0 | AE150: 0 | AF150: 0
A151: 36 | B151: Bydlení, komunální služby a územní rozvoj | C151: 3613 | D151: Nebytové hospodářství | E151: 6122 | F151: Stroje, přístroje a zařízení | G151: 0361300177 | H151: Nebyt.-čp.885-poliklinika-kamerový systém | K151: 0 | L151: 150 | M151: 148.45853 | N151: 1.54147 | O151: 98.97235333 | P151: 3613 | Q151: 6122 | R151: 0361300177 | U151: 0 | W151: =V151/L151*100 -> 0 | AE151: 0 | AF151: 0
A152: 36 | B152: Bydlení, komunální služby a územní rozvoj | C152: 3613 | D152: Nebytové hospodářství | E152: 6122 | F152: Stroje, přístroje a zařízení | G152: 0361300178 | H152: Nebyt.-čp.389-DZS-kamerový systém | K152: 0 | L152: 100 | M152: 99.48257 | N152: 0.51743 | O152: 99.48257 | P152: 3613 | Q152: 6122 | R152: 0361300178 | U152: 0 | W152: 0 | AE152: 0 | AF152: 0
A153: 36 | B153: Bydlení, komunální služby a územní rozvoj | C153: 3631 | D153: Veřejné osvětlení | E153: 6121 | F153: Stavby | G153: 0363100043 | H153: VO Hněvkovice | K153: 500 | L153: 500 | M153: 479.23744 | N153: 20.76256 | O153: 95.847488 | P153: 3631 | Q153: 6121 | R153: 0363100043 | S153: 500 | T153: 500 | U153: 0 | V153: 500 | W153: 100 | X153: podél nového chodníku | Y153: 1000 | Z153: 1500 | AA153: 1500 | AB153: 1000 | AC153: Hložková | AE153: 1000 | AF153: 0
A154: 36 | B154: Bydlení, komunální služby a územní rozvoj | C154: 3631 | D154: Veřejné osvětlení | E154: 6121 | F154: Stavby | H154: VO Kletečná | S154: 0 | U154: 250 | V154: 250 | Z154: 250 | AA154: 250 | AB154: 250 | AC154: Hložková | AE154: 0 | AF154: 0
A155: 36 | B155: Bydlení, komunální služby a územní rozvoj | C155: 3631 | D155: Veřejné osvětlení | E155: 6121 | F155: Stavby | G155: 0363100058 | H155: VO ul.Zahradní | K155: 400 | L155: 173 | M155: 172.52543 | N155: 0.47457 | O155: 99.72568208 | P155: 3631 | Q155: 6121 | R155: 0363100058 | U155: 0 | W155: 0 | AE155: 0 | AF155: 0
A156: 36 | B156: Bydlení, komunální služby a územní rozvoj | C156: 3631 | D156: Veřejné osvětlení | E156: 6121 | F156: Stavby | G156: 0363100059 | H156: VO nové akce | K156: 600 | L156: 1377 | M156: 976.65397 | N156: 400.34603 | O156: 70.92621423 | P156: 3631 | Q156: 6121 | R156: 0363100059 | S156: 600 | T156: 600 | U156: 0 | V156: 600 | W156: 43.57298475 | Z156: 600 | AA156: 600 | AC156: Palánová | AE156: 0 | AF156: 0
A157: 36 | B157: Bydlení, komunální služby a územní rozvoj | C157: 3631 | D157: Veřejné osvětlení | E157: 6121 | F157: Stavby | G157: 0363100062 | H157: VO ul. Lužická | K157: 2100 | L157: 850 | M157: 726.34304 | N157: 123.65696 | O157: 85.45212235 | P157: 3631 | Q157: 6121 | R157: 0363100062 | S157: 2500 | T157: 2500 | U157: 0 | V157: 2500 | W157: 294.1176471 | Z157: 2500 | AA157: 2500 | AB157: 2500 | AC157: Hložková | AE157: 0 | AF157: 0
A158: 36 | B158: Bydlení, komunální služby a územní rozvoj | C158: 3631 | D158: Veřejné osvětlení | E158: 6121 | F158: Stavby | G158: 0363100063 | H158: PD VO ul. Panskodomská | K158: 175 | L158: 175 | M158: 0 | N158: 175 | O158: 0 | P158: 3631 | Q158: 6121 | R158: 0363100063 | U158: 0 | W158: 0 | AE158: 0 | AF158: 0
A159: 36 | B159: Bydlení, komunální služby a územní rozvoj | C159: 3631 | D159: Veřejné osvětlení | E159: 6121 | F159: Stavby | G159: 0363100064 | H159: PD VO ul. Máchova | K159: 175 | L159: 175 | M159: 0 | N159: 175 | O159: 0 | P159: 3631 | Q159: 6121 | R159: 0363100064 | U159: 0 | W159: 0 | AE159: 0 | AF159: 0
A160: 36 | B160: Bydlení, komunální služby a územní rozvoj | C160: 3631 | D160: Veřejné osvětlení | E160: 6121 | F160: Stavby | H160: PD-VO nové akce | P160: 3631 | Q160: 6121 | S160: 100 | T160: 100 | U160: 0 | V160: 100 | Z160: 100 | AA160: 100 | AC160: Vaňkát | AE160: 0 | AF160: 0
A161: 36 | B161: Bydlení, komunální služby a územní rozvoj | C161: 3632 | D161: Pohřebnictví | E161: 6121 | F161: Stavby | G161: 0363200016 | H161: Hřbitov, UH - rekonstrukce cest | K161: 1000 | L161: 930 | M161: 0 | N161: 930 | O161: 0 | P161: 3632 | Q161: 6121 | R161: 0363200016 | S161: 1000 | T161: 1000 | U161: 0 | V161: 1000 | W161: 107.5268817 | Z161: 1000 | AA161: 1000 | AC161: Kocmanová | AE161: 0 | AF161: 0
A162: 36 | B162: Bydlení, komunální služby a územní rozvoj | C162: 3632 | D162: Pohřebnictví | E162: 6121 | F162: Stavby | G162: 0363200022 | H162: Pohř.-přístřešek +cesta čp.934 SOS (STUDIE) | Y162: 150 | Z162: 150 | AA162: 150 | AC162: Hložková/Kocmanová/Machek | AE162: =Z162-V162 -> 150 | AF162: =Y162-AE162 -> 0
A163: 36 | B163: Bydlení, komunální služby a územní rozvoj | C163: 3632 | D163: Pohřebnictví | E163: 6121 | F163: Stavby | G163: 0363200020 | H163: Pohřebnictví - hřbitov-pítko (výtokový stojan) | K163: 60 | L163: 60 | M163: 0 | N163: 60 | O163: 0 | P163: 3632 | Q163: 6121 | R163: 0363200020 | U163: 0 | W163: 0 | AE163: 0 | AF163: 0
A164: 36 | B164: Bydlení, komunální služby a územní rozvoj | C164: 3632 | D164: Pohřebnictví | E164: 6122 | F164: Stroje, přístroje a zařízení | H164: Pohřebn.-kuchyňská linka SOS čp.-934 | Y164: 50 | Z164: 50 | AA164: 50 | AC164: Kocmanová | AE164: 50 | AF164: 0
A165: 36 | B165: Bydlení, komunální služby a územní rozvoj | C165: 3635 | D165: Územní plánování | E165: 6119 | F165: Ostatní nákup dlouhodobého nehmotného majetku | G165: 0363500015 | H165: Územní plán-příprava nového ÚP | K165: 700 | L165: 700 | M165: 216 | N165: 484 | O165: 30.85714286 | P165: 3635 | Q165: 6119 | R165: 0363500015 | S165: 2000 | T165: 2000 | U165: 500 | V165: 2500 | W165: 357.1428571 | Z165: 2500 | AA165: 2500 | AB165: 2500 | AC165: Vaňkát | AE165: 0 | AF165: 0
A166: 36 | B166: Bydlení, komunální služby a územní rozvoj | C166: 3639 | D166: Komunální služby a územní rozvoj jinde nezařazené | E166: 6121 | F166: Stavby | G166: 0363900040 | H166: ZTV-Terasy Humpolec-výkup | K166: 61 | L166: 63 | M166: 51.653 | N166: 11.347 | O166: 81.98888889 | P166: 3639 | Q166: 6121 | R166: 0363900040 | S166: 61 | T166: 61 | U166: 0 | V166: 61 | W166: 96.82539683 | Y166: -61 | Z166: 0 | AA166: 0 | AC166: Jůzl | AE166: -61 | AF166: 0
A167: 36 | B167: Bydlení, komunální služby a územní rozvoj | C167: 3639 | D167: Komunální služby a územní rozvoj jinde nezařazené | E167: 6130 | F167: Pozemky | G167: 0363900020 | H167: Komunální služby-Výkup nemovitostí | K167: 10000 | L167: 10331.2 | M167: =3679.77203+0.347 -> 3680.11903 | N167: =L167-M167 -> 6651.08097 | O167: =M167/L167*100 -> 35.62140923 | P167: 3639 | Q167: 6130 | R167: 0363900020 | S167: 10000 | T167: 10000 | U167: 0 | V167: 10000 | W167: 96.79417686 | Z167: 10000 | AA167: 10000 | AB167: 2000 | AC167: Kocmanová | AE167: 0 | AF167: 0
A168: ODPA(2) 36 Bydlení, komunální služby a územní rozvoj | K168: 25388 | L168: 24823.2 | M168: 10333.64 | N168: 14489.56 | O168: 41.63 | T168: =SUM(T127:T167) -> 57711 | U168: -31750 | V168: =SUM(V127:V167) -> 25961 | W168: 104.5836153 | Z168: =SUM(Z127:Z167) -> 31550 | AB168: =SUM(AB127:AB167) -> 8250 | AE168: 5589 | AF168: -5589
A169: 37 | B169: Ochrana životního prostředí | C169: 3722 | D169: Sběr a svoz komunálních odpadů | E169: 6121 | F169: Stavby | G169: 0372200016 | H169: Nové kontejn.stání Světlice +BIO | K169: 300 | L169: 320 | M169: 316.345 | N169: 3.655 | O169: 98.8578125 | P169: 3722 | Q169: 6121 | R169: 0372200016 | S169: 0 | T169: 0 | U169: 0 | V169: 0 | W169: 0 | AE169: 0 | AF169: 0
A170: 37 | B170: Ochrana životního prostředí | C170: 3745 | D170: Péče o vzhled obcí a veřejnou zeleň | E170: 6119 | F170: Ostatní nákup dlouhodobého nehmotného majetku | G170: 0374500104 | H170: Digitálně technická mapa města-doplnění pasportu zeleně | K170: 500 | L170: 0 | M170: 0 | N170: 0 | O170: 0 | P170: 3745 | Q170: 6119 | R170: 0374500104 | S170: 500 | T170: 500 | U170: 0 | V170: 500 | Z170: 500 | AA170: 500 | AC170: Kocman | AE170: 0 | AF170: 0
A171: 37 | B171: Ochrana životního prostředí | C171: 3725 | D171: Péče o vzhled obcí a veřejnou zeleň | E171: 6121 | F171: Stavby | H171: Kompostárna, stav.úpravy plochy, likvidace cesty | P171: 3745 | Q171: 6121 | S171: 6000 | T171: 6000 | U171: 0 | V171: 6000 | Z171: 6000 | AA171: 6000 | AB171: 6000 | AC171: Zeman | AE171: 0 | AF171: 0
A172: 37 | B172: Ochrana životního prostředí | C172: 3745 | D172: Péče o vzhled obcí a veřejnou zeleň | E172: 6121 | F172: Stavby | G172: 0374500049 | H172: Veř.zeleň-Vodní plocha u Dvoráku | K172: 430 | L172: 190 | M172: 125.477 | N172: 64.523 | O172: 66.04052632 | P172: 3745 | Q172: 6121 | R172: 0374500049 | S172: 700 | T172: 700 | U172: 0 | V172: 700 | W172: 368.4210526 | Z172: 700 | AA172: 700 | AC172: Kocman | AE172: 0 | AF172: 0
A173: 37 | B173: Ochrana životního prostředí | C173: 3745 | D173: Péče o vzhled obcí a veřejnou zeleň | E173: 6121 | F173: Stavby | G173: 0374500080 | H173: Péče o vzhled obce-protihluková stěna Okružní-Stodůlky | K173: 190 | L173: 0 | M173: 0 | N173: 0 | O173: 0 | P173: 3745 | Q173: 6121 | R173: 0374500080 | S173: 30 | T173: 30 | U173: 0 | V173: 30 | Z173: 30 | AA173: 30 | AC173: Kocman | AE173: 0 | AF173: 0
A174: 37 | B174: Ochrana životního prostředí | C174: 3745 | D174: Péče o vzhled obcí a veřejnou zeleň | E174: 6121 | F174: Stavby | G174: 0374500083 | H174: Péče o vzhled obce-protihluková stěna u D1 | K174: 300 | L174: 0 | M174: 0 | N174: 0 | O174: 0 | P174: 3745 | Q174: 6121 | R174: 0374500083 | S174: 100 | T174: 100 | U174: 0 | V174: 100 | Y174: 200 | Z174: 300 | AA174: 300 | AC174: Kocman | AE174: 200 | AF174: 0
A175: 37 | B175: Ochrana životního prostředí | C175: 3745 | D175: Péče o vzhled obcí a veřejnou zeleň | E175: 6121 | F175: Stavby | G175: 0374500091 | H175: Veř.zeleň-parkové úpravy Plačkov | K175: 180 | L175: 200 | M175: 197.5719 | N175: 2.4281 | O175: 98.78595 | P175: 3745 | Q175: 6121 | R175: 0374500091 | S175: 100 | T175: 100 | U175: 0 | V175: 100 | W175: 50 | Z175: 100 | AA175: 100 | AC175: Kocman | AE175: 0 | AF175: 0
A176: 37 | B176: Ochrana životního prostředí | C176: 3745 | D176: Péče o vzhled obcí a veřejnou zeleň | E176: 6121 | F176: Stavby | G176: 0374500105 | H176: Veřejná zeleň-pěšina Lnářská | K176: 100 | L176: 110 | M176: 0 | N176: 110 | O176: 0 | P176: 3745 | Q176: 6121 | R176: 0374500105 | S176: 30 | T176: 30 | U176: 0 | V176: 30 | W176: 27.27272727 | Y176: 110 | Z176: 140 | AA176: 140 | AC176: Kocman | AE176: 110 | AF176: 0
A177: 37 | B177: Ochrana životního prostředí | C177: 3745 | D177: Péče o vzhled obcí a veřejnou zeleň | E177: 6121 | F177: Stavby | H177: Veřejná zeleň-závlaha Stromovka | P177: 3745 | Q177: 6121 | S177: 300 | T177: 300 | U177: 0 | V177: 300 | Z177: 300 | AA177: 300 | AC177: Kocman | AE177: 0 | AF177: 0
A178: ODPA(2) 37 Ochrana životního prostředí | K178: 2000 | L178: 820 | M178: 639.4 | N178: 180.61 | O178: 77.98 | T178: =SUM(T169:T177) -> 7760 | U178: 0 | V178: =SUM(V169:V177) -> 7760 | W178: 946.3414634 | Z178: =SUM(Z169:Z177) -> 8070 | AB178: =SUM(AB169:AB177) -> 6000 | AE178: 310 | AF178: -310
A179: 52 | B179: Civilní připravenost na krizové stavy | C179: 5273 | D179: Ostatní správa v oblasti krizového řízení | E179: 6122 | F179: Stroje, přístroje a zařízení | G179: 0527300001 | H179: OÚE-Rozšíř.digit.povodň.plánu a varovného inf.systému pro město Humpolec | K179: 0 | L179: 335 | M179: 181.5 | N179: 153.5 | O179: 54.17910448 | P179: 5273 | Q179: 6122 | R179: 0527300001 | S179: 10000 | T179: 10000 | U179: 0 | V179: 10000 | W179: 2985.074627 | X179: Žádost o dotaci | Z179: 10000 | AA179: 10000 | AB179: 10000 | AC179: Vacatová | AE179: 0 | AF179: 0
A180: ODPA(2) 52 Civilní připravenost na krizové stavy | K180: 0 | L180: 335 | M180: 181.5 | N180: 153.5 | O180: 54.18 | T180: =SUM(T179) -> 10000 | U180: 0 | V180: 10000 | W180: 2985.074627 | Z180: =SUM(Z179) -> 10000 | AB180: =SUM(AB179) -> 10000 | AE180: 0 | AF180: 0
A181: 53 | B181: Bezpečnost a veřejný pořádek | C181: 5311 | D181: Bezpečnost a veřejný pořádek | E181: 6121 | F181: Stavby | G181: 0531100003 | H181: Kamerový systém-nové kamery | K181: 0 | L181: 61 | M181: 60.24469 | N181: 0.75531 | O181: 98.76178689 | P181: 5311 | Q181: 6121 | R181: 0531100003 | S181: 100 | T181: 100 | U181: 0 | V181: 100 | W181: 163.9344262 | Z181: 100 | AA181: 100 | AC181: Jos.Fiala | AE181: 0 | AF181: 0
A182: 53 | B182: Bezpečnost a veřejný pořádek | C182: 5311 | D182: Bezpečnost a veřejný pořádek | E182: 6122 | F182: Stroje, přístroje a zařízení | G182: 0531100003 | H182: Kamerový systém-nové kamery | K182: 600 | L182: 506.301 | M182: 52.37122 | N182: 453.92978 | O182: 10.34389029 | P182: 5311 | Q182: 6122 | R182: 0531100003 | S182: 600 | T182: 600 | U182: 0 | V182: 600 | W182: 118.5065801 | X182: Žádost o dotaci - MVČR | Z182: 600 | AA182: 600 | AC182: Jos.Fiala | AE182: 0 | AF182: 0
A183: 53 | B183: Bezpečnost a veřejný pořádek | C183: 5311 | D183: Bezpečnost a veřejný pořádek | E183: 6122 | F183: Stroje, přístroje a zařízení | G183: 0531100004 | H183: OÚE-Kamerový syst. Humpolec-prevence kriminality (dotace MVČR) | K183: 0 | L183: 326.987 | M183: 326.987 | N183: 0 | O183: 100 | AF183: 0
A184: ODPA(2) 53 Bezpečnost a veřejný pořádek | K184: 600 | L184: 894.29 | M184: 439.6 | N184: 454.69 | O184: 49.16 | T184: =SUM(T181:T182) -> 700 | U184: 0 | V184: 700 | W184: 78.27438527 | Z184: =SUM(Z181:Z182) -> 700 | AB184: =SUM(AB181:AB182) -> 0 | AE184: 0 | AF184: 0
A185: 55 | B185: Požární ochrana a integrovaný záchranný systém | C185: 5512 | D185: Požární ochrana-dobrovolná část | E185: 6121 | F185: Stavby | G185: 0551200010 | H185: Novostavba budovy SDH Humpolec | K185: 0 | L185: 295 | M185: 290.4 | N185: 4.6 | O185: 98.44067797 | P185: 5512 | Q185: 6121 | R185: 0551200010 | S185: 1200 | T185: 1200 | U185: 0 | V185: 1200 | W185: 406.779661 | Z185: 1200 | AA185: 1200 | AC185: Vacatová | AE185: 0 | AF185: 0
A186: ODPA(2) 55 Požární ochrana a integrovaný záchranný systém | K186: 0 | L186: 295 | M186: 290.4 | N186: 4.6 | O186: 98.44 | T186: =SUM(T185) -> 1200 | U186: 0 | V186: 1200 | W186: 406.779661 | Z186: =SUM(Z185) -> 1200 | AB186: =SUM(AB185) -> 0 | AE186: 0 | AF186: 0
A187: 61 | B187: Státní moc,státní správa,územní samospráva a politické strany | C187: 6171 | D187: Činnost místní správy | E187: 6111 | F187: Programové vybavení | G187: 0617100022 | H187: Správa MěÚ-Portál občana | K187: 150 | L187: 220 | M187: 185.51478 | N187: 34.48522 | O187: 84.3249 | P187: 6171 | Q187: 6111 | R187: 0617100022 | S187: 150 | T187: 150 | U187: 0 | V187: 150 | W187: 68.18181818 | Z187: 150 | AA187: 150 | AC187: Jiří Fiala | AE187: 0 | AF187: 0
A188: 61 | B188: Státní moc,státní správa,územní samospráva a politické strany | C188: 6171 | D188: Činnost místní správy | E188: 6111 | F188: Programové vybavení | G188: 0617100025 | H188: Správa MěÚ-antivir a antispam | K188: 0 | L188: 230 | M188: 119.4512 | N188: 110.5488 | O188: 51.93530435 | P188: 6171 | Q188: 6111 | R188: 0617100025 | S188: 220 | T188: 220 | U188: 0 | V188: 220 | W188: 95.65217391 | Y188: -220 | Z188: 0 | AA188: 0 | AC188: Jiří Fiala | AE188: -220 | AF188: 0
A189: 61 | B189: Státní moc,státní správa,územní samospráva a politické strany | C189: 6171 | D189: Činnost místní správy | E189: 6111 | F189: Programové vybavení | G189: 0617100025 | H189: Správa MěÚ-DMS program - St.úřad | I189: Document management systém - převodový můstek k vyhledávání v archivu | Y189: 650 | Z189: 650 | AA189: 650 | AC189: Jiří Fiala | AE189: 650 | AF189: 0
A190: 61 | B190: Státní moc,státní správa,územní samospráva a politické strany | C190: 6171 | D190: Činnost místní správy | E190: 6119 | F190: Ostatní nákup dlouhodobého nehmotného majetku | G190: 0617100028 | H190: Správa MěÚ-zhotovení www města | I190: (společná doména MěKIS) | K190: 0 | L190: 100 | M190: 0 | N190: 100 | O190: 0 | V190: 400 | W190: 400 | Z190: 400 | AA190: 400 | AB190: 400 | AC190: Machek | AE190: 0 | AF190: 0
A191: 61 | B191: Státní moc,státní správa,územní samospráva a politické strany | C191: 6171 | D191: Činnost místní správy | E191: 6119 | F191: Ostatní nákup dlouhodobého nehmotného majetku | H191: Správa MěÚ-infokiosek u Infocentra Humpolec | Y191: 105 | Z191: 105 | AA191: 105 | AC191: Jiří Fiala/Novák | AE191: 105 | AF191: 0
A192: 61 | B192: Státní moc,státní správa,územní samospráva a politické strany | C192: 6171 | D192: Činnost místní správy | E192: 6121 | F192: Stavby | G192: 0617100005 | H192: Správa MěÚ-metropolitní síť | K192: 600 | L192: 262.759 | M192: 0 | N192: 262.759 | O192: 0 | P192: 6171 | Q192: 6121 | R192: 0617100005 | S192: 1000 | T192: 1000 | U192: 0 | V192: 1000 | W192: 380.5768784 | X192: vč. TZ metrop.sítě -z nových kamer | Z192: 1000 | AA192: 1000 | AC192: Jiří Fiala | AE192: 0 | AF192: 0
A193: 61 | B193: Státní moc,státní správa,územní samospráva a politické strany | C193: 6171 | D193: Činnost místní správy | E193: 6121 | F193: Stavby | G193: 0617100027 | H193: OÚE-ICT 2022-Napojení LPR kamer PČR na optickou síť a trasování směr Želiv | K193: 0 | L193: 337.241 | M193: 337.241 | N193: 0 | O193: 100 | AF193: 0
A194: 61 | B194: Státní moc,státní správa,územní samospráva a politické strany | C194: 6171 | D194: Činnost místní správy | E194: 6122 | F194: Stroje, přístroje a zařízení | G194: 0617100023 | H194: Ozvučení a vysílání zased.ZM v Mikádu | K194: 650 | L194: 650 | M194: 608.62555 | N194: 41.37445 | O194: 93.6347 | P194: 6171 | Q194: 6122 | R194: 0617100023 | U194: =V194-T194 -> 0 | W194: =V194/L194*100 -> 0 | AE194: =Z194-V194 -> 0 | AF194: 0
A195: 61 | B195: Státní moc,státní správa,územní samospráva a politické strany | C195: 6171 | D195: Činnost místní správy | E195: 6122 | F195: Stroje, přístroje a zařízení | G195: 0617100024 | H195: Správa MěÚ-klimatizace serverovny Stav.úřad | K195: 120 | L195: 120 | M195: 100.04522 | N195: 19.95478 | O195: 83.37101667 | P195: 6171 | Q195: 6122 | R195: 0617100024 | U195: =V195-T195 -> 0 | W195: =V195/L195*100 -> 0 | AE195: =Z195-V195 -> 0 | AF195: 0
A196: 61 | B196: Státní moc,státní správa,územní samospráva a politické strany | C196: 6171 | D196: Činnost místní správy | E196: 6122 | F196: Stroje, přístroje a zařízení | G196: 0617100026 | H196: Správa MěÚ-elektronická úřední deska | K196: 0 | L196: 490 | M196: 236.75968 | N196: 253.24032 | O196: 48.31830204 | P196: 6171 | Q196: 6122 | R196: 0617100026 | U196: 0 | W196: 0 | AE196: 0 | AF196: 0
A197: 61 | B197: Státní moc,státní správa,územní samospráva a politické strany | C197: 6171 | D197: Činnost místní správy | E197: 6122 | F197: Stroje, přístroje a zařízení | G197: 0617100029 | H197: Správa MěÚ-kuchyňská linka ODSH | K197: 0 | L197: 84 | M197: 83.16058 | N197: 0.83942 | O197: 99.00069048 | AF197: 0
A198: 61 | B198: Státní moc,státní správa,územní samospráva a politické strany | C198: 6171 | E198: 6123 | F198: Dopravní prostředky | H198: Správa MěÚ-služební auto | Y198: 600 | Z198: 600 | AA198: 600 | AC198: Jiří Fiala | AE198: 600 | AF198: 0
A199: 61 | B199: Státní moc,státní správa,územní samospráva a politické strany | C199: 6171 | D199: Činnost místní správy | E199: 6125 | F199: Informační a komunikační technologie | G199: 0617100009 | H199: Správa MěÚ-výpočetní technika | K199: 610 | L199: 810 | M199: 329.34264 | N199: 480.65736 | O199: 40.65958519 | P199: 6171 | Q199: 6125 | R199: 0617100009 | S199: 610 | T199: 610 | U199: 0 | V199: 610 | W199: 75.30864198 | Z199: 610 | AA199: 610 | AC199: Jiří Fiala | AE199: 0 | AF199: 0
A200: ODPA(2) 61 Státní moc,státní správa,územní samospráva a politické strany | K200: 2130 | L200: 3304 | M200: 2000.14 | N200: 1303.86 | O200: 60.54 | T200: =SUM(T187:T199) -> 1980 | U200: 400 | V200: =SUM(V187:V199) -> 2380 | W200: 72.03389831 | Z200: =SUM(Z187:Z199) -> 3515 | AB200: =SUM(AB187:AB199) -> 400 | AE200: 1135 | AF200: -1135
A201: Celkem | K201: 168265 | L201: 152017.47 | M201: 105585.22 | N201: 46432.27 | O201: 69.46 | S201: =SUM(S7:S199) -> 376076 | T201: =SUM(T200,T186,T184,T180,T178,T168,T126,T91,T84,T80,T72,T53,T10) -> 376076 | U201: -163587 | V201: =SUM(V200,V186,V184,V180,V178,V168,V126,V91,V84,V80,V72,V53,V10) -> 212489 | W201: 139.7793293 | Y201: =SUM(Y7:Y199) -> 14529 | Z201: =SUM(Z200,Z186,Z184,Z180,Z178,Z168,Z126,Z91,Z84,Z80,Z72,Z53,Z10) -> 227018 | AA201: =SUM(AA6:AA200) -> 227018 | AB201: =SUM(AB200,AB186,AB184,AB180,AB178,AB168,AB126,AB91,AB84,AB80,AB72,AB53,AB10) -> 162053 | AE201: 14529 | AF201: =Y201-AE201 -> 0
... 2 more rows

Sheet HK k 31.12.2022 ZBÚ,TV,fondy,úv
A1: 00248266 Město Humpolec
A2: Horní náměstí 300 Humpolec
A3: Hlavní kniha zkrácená k 31.12.2022 v Kč
A4: Podmínka: AND SU=(231,236,261,244,245,451)
A5: SU | B5: AU | C5: Popis | D5: PS | E5: MD Celkem | F5: DAL Celkem | G5: Zůstatek | H5: Změna stavu | I5: obrácená ZS | P5: PS k 1.1.2023 | Q5: Příjem 2023 | R5: Běžné výdaje | S5: Kapit.výdaje | T5: ZS 2023
A6: 231 | B6: 0123 | C6: Základní běžný účet ÚSC - vodní hospodářství | D6: 14111106.64 | E6: 73414489.29 | F6: 69293463.76 | G6: 18232132.17 | H6: =G6-D6 -> 4121025.53 | I6: =D6-G6 -> -4121025.53 | J6: =I6/1000 -> -4121.02553 | K6: -4121.02553 | M6: =D6-G6 -> -4121025.53 | P6: =G6/1000 -> 18232.13217 | Q6: ='Př vč financ návrh 2023'!M31 -> 55000 | R6: =-'BV návrh 2023'!Z73 -> -52044 | S6: =-'KV návrh 2023'!Z72 -> -41100 | T6: =SUM(Q6:S6) -> -38144
A7: 231 | B7: 0136 | C7: Základní běžný účet - bytové hospodářství | D7: 12385431.43 | E7: 36566517.97 | F7: 32542915.02 | G7: 16409034.38 | H7: =G7-D7 -> 4023602.95 | I7: -4023602.95 | J7: =I7/1000 -> -4023.60295 | K7: -4023.60295 | M7: =D7-G7 -> -4023602.95 | P7: =G7/1000 -> 16409.03438 | Q7: =20+'Př vč financ návrh 2023'!M32+'Př vč financ návrh 2023'!M48 -> 22620 | R7: =-SUM('BV návrh 2023'!Z287,'BV návrh 2023'!Z270:Z286,'BV návrh 2023'!Z253,'BV návrh 2023'!Z248:Z251,'BV návrh 2023'!Z247,'BV návrh 2023'!Z246,'BV návrh 2023'!Z237,'BV návrh 2023'!Z236) -> -21490 | S7: =-SUM('KV návrh 2023'!Z127:Z131,'KV návrh 2023'!Z133:Z134,'KV návrh 2023'!Z136) -> -6900 | T7: =SUM(Q7:S7) -> -5770
A8: 231 | B8: 0210 | C8: Základní běžný účet - ČS | D8: 247136.05 | E8: 4147611.64 | F8: 3952284.4 | G8: 442463.29 | H8: 195327.24 | I8: -195327.24 | J8: -195.32724 | K8: -195.32724 | L8: =SUM(I8:I15) -> -72123997.78 | M8: -195327.24
A9: 231 | B9: 0410 | C9: Základní běžný účet ÚSC 9005 | D9: 2400871.1 | E9: 17600176 | F9: 17501178 | G9: 2499869.1 | H9: 98998 | I9: -98998 | J9: -98.998 | K9: -98.998 | M9: -98998
A10: 231 | B10: 0510 | C10: ZBÚ - ČNB | D10: 10182.89 | E10: 32387218.65 | F10: 31550920.52 | G10: 846481.02 | H10: 836298.13 | I10: -836298.13 | J10: -836.29813 | K10: -836.29813 | M10: -836298.13 | N10: =SUM(M8:M15) -> -72123997.78
A11: 231 | B11: 0610 | C11: Základní běžný účet-příjmy | D11: 546586.95 | E11: 323779116.9 | F11: 317717224.5 | G11: 6608479.3 | H11: 6061892.35 | I11: -6061892.35 | J11: -6061.89235 | K11: -6061.89235 | M11: -6061892.35
A12: 231 | B12: 0611 | C12: ZBÚ - příjmy - úsekové měření | D12: 14530983.72 | E12: 355747.22 | F12: 14687772.3 | G12: 198958.64 | H12: -14332025.08 | I12: 14332025.08 | J12: 14332.02508 | K12: 14332.02508 | M12: 14332025.08
A13: 231 | B13: 0630 | C13: ZBÚ - příjmy-ČSOB-spořící účet | D13: 110865928.5 | E13: 230017126.5 | F13: 158500000 | G13: 182383054.9 | H13: 71517126.47 | I13: -71517126.47 | J13: -71517.12647 | K13: -71517.12647 | M13: -71517126.47
A14: 231 | B14: 0631 | C14: ZBÚ - příjmy-ČSOB-běžný účet | D14: 88491.53 | E14: 159790022 | F14: 159736053.8 | G14: 142459.78 | H14: 53968.25 | I14: -53968.25 | J14: -53.96825 | K14: -53.96825 | M14: -53968.25
A15: 231 | B15: 0810 | C15: Základní běžný účet ÚSC - výdaje | D15: 6050104.34 | E15: 339265954 | F15: 331573541.6 | G15: 13742516.76 | H15: 7692412.42 | I15: -7692412.42 | J15: -7692.41242 | K15: -7692.41242 | M15: -7692412.42
C16: Celkem ZBÚ | D16: =SUM(D6:D15) -> 161236823.1 | E16: =SUM(E6:E15) -> 1217323980 | F16: 1137055354 | G16: 241505449.4 | H16: 80268626.26 | I16: -80268626.26 | J16: -80268.62626 | K16: -80268.62626 | M16: -80268626.26
A17: 244 | B17: 0300 | C17: Termínované vklady krátkodobé - ČSOB | D17: 0 | E17: 165239538.6 | F17: 165234538.6 | G17: 5000 | H17: 5000 | I17: -5000 | J17: -5 | K17: -5 | M17: -5000
C18: Celkem ZBÚ + TV | D18: =SUM(D17,D16) -> 161236823.1 | E18: =SUM(E17,E16) -> 1382563519 | F18: 1302289893 | G18: 241510449.4 | H18: 80273626.26 | I18: -80273626.26 | J18: -80273.62626 | K18: -80273.62626 | M18: -80273626.26 | P18: PS | Q18: Příjem | R18: Běžné výdaje | S18: Kapit.výdaje | T18: ZS 2023 | U18: KS
A19: 236 | B19: 0100 | C19: Běžné účty fondů ÚSC - sociální fond | D19: 581760.99 | E19: 1155833.32 | F19: 1206730 | G19: 530864.31 | H19: -50896.68 | I19: 50896.68 | J19: =I19/1000 -> 50.89668 | K19: 50.89668 | M19: 50896.68 | P19: =G19/1000 -> 530.86431 | Q19: 1336 | R19: -1357 | S19: 0 | T19: =SUM(Q19:S19) -> -21 | U19: =P19+T19 -> 509.86431
A20: 236 | B20: 0140 | C20: Fond bydlení a rozvoje infrastruktury | D20: 3443908.89 | E20: 6426668.05 | F20: 4641273.91 | G20: 5229303.03 | H20: 1785394.14 | I20: -1785394.14 | J20: =I20/1000 -> -1785.39414 | K20: -1785.39414 | M20: -1785394.14 | P20: =G20/1000 -> 5229.30303 | Q20: 300 | S20: -4500 | T20: =SUM(Q20:S20) -> -4200 | U20: =P20+T20 -> 1029.30303
A21: 236 | B21: 0160 | C21: Fond ekologie | D21: 296540 | E21: 170919.3 | F21: 0 | G21: 467459.3 | H21: 170919.3 | I21: -170919.3 | J21: -170.9193 | K21: -170.9193 | M21: -170919.3 | P21: =G21/1000 -> 467.4593 | T21: =SUM(Q21:S21) -> 0 | U21: =P21+T21 -> 467.4593
A22: 236 | B22: 0180 | C22: Fond příspěvkových organizací | D22: 2277725.5 | E22: 3515331.42 | F22: 5000000 | G22: 793056.92 | H22: -1484668.58 | I22: 1484668.58 | J22: 1484.66858 | K22: 1484.66858 | M22: 1484668.58 | P22: 793.05692 | Q22: ='Př vč financ návrh 2023'!M39+'Př vč financ návrh 2023'!M40+'Př vč financ návrh 2023'!M41+'Př vč financ návrh 2023'!M42+'Př vč financ návrh 2023'!M43+'Př vč financ návrh 2023'!M44 -> 3428 | S22: -3000 | T22: 428 | U22: 1221.05692
A23: 236 | B23: 0190 | C23: Fond benefiční | D23: 24973 | E23: 0 | F23: 0 | G23: 24973 | H23: 0 | I23: 0 | J23: 0 | K23: 0 | M23: 0 | P23: Celkem | T23: =SUM(T19:T22) -> -3793 | U23: =SUM(U19:U22) -> 3227.68356
C24: Celkem fondy | D24: =SUM(D19:D23) -> 6624908.38 | E24: =SUM(E19:E23) -> 11268752.09 | F24: 10848003.91 | G24: 7045656.56 | H24: 420748.18 | I24: -420748.18 | J24: -420.74818 | K24: -420.74818 | M24: -420748.18
H25: 0 | M25: 0
A26: Celkem ZBÚ, TV, fondy | D26: =SUM(D24,D18) -> 167861731.5 | E26: =SUM(E24,E18) -> 1393832271 | F26: 1313137896 | G26: 248556105.9 | H26: =G26-D26 -> 80694374.44 | I26: -80694374.44 | M26: -80694374.44
C29: Úvěry | D29: PS | E29: splátky | F29: přijaté | G29: KS
A30: 451 | B30: 0101 | C30: Dlouhodobé úvěry-zápůjčka SFŽP | D30: -20528480.68 | E30: 2280942.32 | F30: 0 | G30: -18247538.36 | H30: do 2030 0,45 % p.a.
A31: 451 | B31: 0102 | C31: Dlouhodobé úvěry- ČSOB - nepřímo čerpaný | D31: -20465260 | E31: 0 | F31: 0 | G31: -20465260 | H31: do 12/2024 0,08% p.a.+1M PRIBOR, 0,78% od 01/2025-2034
A32: 451 | B32: 0201 | C32: Dlouhodobé úvěry přímo čerpané - ČS | D32: -14085025.04 | E32: 3000000 | F32: 0 | G32: -11085025.04 | H32: do 09/2026 0,07% p.a.+1M PRIBOR
A33: SU 451 Dlouhodobé úvěry | D33: =SUM(D30:D32) -> -55078765.72 | E33: =SUM(E30:E32) -> 5280942.32 | F33: 0 | G33: -49797823.4
A35: 245 | B35: 0040 | C35: Depozitní účet - cizí prostředky | D35: 4906518.14 | E35: 11615571.03 | F35: 9561147.85 | G35: 6960941.32 | H35: =D35-G35 -> -2054423.18
A37: 261 | B37: 0100 | C37: Pokladna | D37: 0 | G37: 0
A38: 261 | B38: 0111 | C38: Pokladna BHS | D38: 0 | G38: 0

Sheet Fin.rezerva, splátky úvěrů
A1: 00248266 Město Humpolec
A2: Horní náměstí 300 Humpolec
O4: tis. Kč | P4: Návrh rozpočtu 2023 | X4: Fin.rezerva
A5: SU | B5: AU | C5: Popis | D5: PS | E5: MD Celkem | F5: DAL Celkem | G5: Zůstatek | H5: Změna stavu | I5: obrácená ZS | O5: PS k 1.1.2023 | P5: Příjem | Q5: Běžné výdaje | R5: Kapit.výdaje | S5: Celk. výdaje | T5: ZS 2023 | U5: Dofinanc. ze ZBÚ města | V5: splátky úvěrů | W5: ZAPOJENÉ PŘEBYTKY K 31.12.2022 | X5: KS k 31. 12. 2023
A6: 231 | B6: 0123 | C6: Základní běžný účet ÚSC - vodní hospodářství | D6: 14111106.64 | E6: 73414489.29 | F6: 69293463.76 | G6: 18232132.17 | H6: =G6-D6 -> 4121025.53 | I6: =D6-G6 -> -4121025.53 | J6: =I6/1000 -> -4121.02553 | K6: -4121.02553 | M6: =D6-G6 -> -4121025.53 | O6: =G6/1000 -> 18232.13217 | P6: ='Př vč financ návrh 2023'!M31 -> 55000 | Q6: =-'BV návrh 2023'!Z73 -> -52044 | R6: =-'KV návrh 2023'!Z72 -> -41100 | S6: =SUM(Q6:R6) -> -93144 | T6: =SUM(P6:R6) -> -38144 | U6: =O6+T6 -> -19911.86783 | X6: 0
A7: 231 | B7: 0136 | C7: Základní běžný účet - bytové hospodářství | D7: 12385431.43 | E7: 36566517.97 | F7: 32542915.02 | G7: 16409034.38 | H7: =G7-D7 -> 4023602.95 | I7: -4023602.95 | J7: =I7/1000 -> -4023.60295 | K7: -4023.60295 | M7: =D7-G7 -> -4023602.95 | O7: =G7/1000 -> 16409.03438 | P7: =20+'Př vč financ návrh 2023'!M32+'Př vč financ návrh 2023'!M48 -> 22620 | Q7: =-SUM('BV návrh 2023'!Z287,'BV návrh 2023'!Z270:Z286,'BV návrh 2023'!Z253,'BV návrh 2023'!Z248:Z251,'BV návrh 2023'!Z247,'BV návrh 2023'!Z246,'BV návrh 2023'!Z237,'BV návrh 2023'!Z236) -> -21490 | R7: =-SUM('KV návrh 2023'!Z127:Z131,'KV návrh 2023'!Z133:Z134,'KV návrh 2023'!Z136) -> -6900 | S7: =SUM(Q7:R7) -> -28390 | T7: =SUM(P7:R7) -> -5770 | X7: =O7+T7 -> 10639.03438
A8: 231 | B8: 0210 | C8: Základní běžný účet - ČS | D8: 247136.05 | E8: 4147611.64 | F8: 3952284.4 | G8: 442463.29 | H8: 195327.24 | I8: -195327.24 | J8: -195.32724 | K8: -195.32724 | L8: =SUM(I8:I15) -> -72123997.78 | M8: -195327.24 | O8: =G8/1000 -> 442.46329 | T8: =SUM(P8:R8) -> 0
A9: 231 | B9: 0410 | C9: Základní běžný účet ÚSC 9005 | D9: 2400871.1 | E9: 17600176 | F9: 17501178 | G9: 2499869.1 | H9: 98998 | I9: -98998 | J9: -98.998 | K9: -98.998 | M9: -98998 | O9: 2499.8691 | T9: 0
A10: 231 | B10: 0510 | C10: ZBÚ - ČNB | D10: 10182.89 | E10: 32387218.65 | F10: 31550920.52 | G10: 846481.02 | H10: 836298.13 | I10: -836298.13 | J10: -836.29813 | K10: -836.29813 | M10: -836298.13 | N10: =SUM(M8:M15) -> -72123997.78 | O10: 846.48102 | T10: 0
A11: 231 | B11: 0610 | C11: Základní běžný účet-příjmy | D11: 546586.95 | E11: 323779116.9 | F11: 317717224.5 | G11: 6608479.3 | H11: 6061892.35 | I11: -6061892.35 | J11: -6061.89235 | K11: -6061.89235 | M11: -6061892.35 | O11: 6608.4793 | T11: 0
A12: 231 | B12: 0611 | C12: ZBÚ - příjmy - úsekové měření | D12: 14530983.72 | E12: 355747.22 | F12: 14687772.3 | G12: 198958.64 | H12: -14332025.08 | I12: 14332025.08 | J12: 14332.02508 | K12: 14332.02508 | M12: 14332025.08 | O12: 198.95864 | T12: 0
A13: 231 | B13: 0630 | C13: ZBÚ - příjmy-ČSOB-spořící účet | D13: 110865928.5 | E13: 230017126.5 | F13: 158500000 | G13: 182383054.9 | H13: 71517126.47 | I13: -71517126.47 | J13: -71517.12647 | K13: -71517.12647 | M13: -71517126.47 | O13: 182383.0549 | T13: 0
A14: 231 | B14: 0631 | C14: ZBÚ - příjmy-ČSOB-běžný účet | D14: 88491.53 | E14: 159790022 | F14: 159736053.8 | G14: 142459.78 | H14: 53968.25 | I14: -53968.25 | J14: -53.96825 | K14: -53.96825 | M14: -53968.25 | O14: 142.45978 | T14: 0
A15: 231 | B15: 0810 | C15: Základní běžný účet ÚSC - výdaje | D15: 6050104.34 | E15: 339265954 | F15: 331573541.6 | G15: 13742516.76 | H15: 7692412.42 | I15: -7692412.42 | J15: -7692.41242 | K15: -7692.41242 | M15: -7692412.42 | O15: 13742.51676 | T15: 0
C16: Celkem ZBÚ | D16: =SUM(D6:D15) -> 161236823.1 | E16: =SUM(E6:E15) -> 1217323980 | F16: =SUM(F6:F15) -> 1137055354 | G16: =SUM(G6:G15) -> 241505449.4 | H16: 80268626.26 | I16: -80268626.26 | J16: -80268.62626 | K16: -80268.62626 | M16: -80268626.26 | O16: 241505.4494 | T16: 0
A17: 244 | B17: 0300 | C17: Termínované vklady krátkodobé - ČSOB | D17: 0 | E17: 165239538.6 | F17: 165234538.6 | G17: 5000 | H17: 5000 | I17: -5000 | J17: -5 | K17: -5 | M17: -5000 | O17: 5 | T17: 0
C18: Celkem ZBÚ + TV | D18: =SUM(D17,D16) -> 161236823.1 | E18: =SUM(E17,E16) -> 1382563519 | F18: 1302289893 | G18: 241510449.4 | H18: 80273626.26 | I18: -80273626.26 | J18: -80273.62626 | K18: -80273.62626 | M18: -80273626.26 | O18: 241510.4494 | P18: Příjem | Q18: Běžné výdaje | R18: Kapit.výdaje | T18: 0 | X18: KS
A19: 236 | B19: 0100 | C19: Běžné účty fondů ÚSC - sociální fond | D19: 581760.99 | E19: 1155833.32 | F19: 1206730 | G19: 530864.31 | H19: -50896.68 | I19: 50896.68 | J19: =I19/1000 -> 50.89668 | K19: 50.89668 | M19: 50896.68 | O19: 530.86431 | P19: 1336 | Q19: -1357 | R19: 0 | T19: -21 | X19: =O19+T19 -> 509.86431
A20: 236 | B20: 0140 | C20: Fond bydlení a rozvoje infrastruktury | D20: 3443908.89 | E20: 6426668.05 | F20: 4641273.91 | G20: 5229303.03 | H20: 1785394.14 | I20: -1785394.14 | J20: =I20/1000 -> -1785.39414 | K20: -1785.39414 | M20: -1785394.14 | O20: 5229.30303 | P20: 300 | R20: -4500 | T20: -4200 | X20: =O20+T20 -> 1029.30303
A21: 236 | B21: 0160 | C21: Fond ekologie | D21: 296540 | E21: 170919.3 | F21: 0 | G21: 467459.3 | H21: 170919.3 | I21: -170919.3 | J21: -170.9193 | K21: -170.9193 | M21: -170919.3 | O21: 467.4593 | T21: 0 | X21: =O21+T21 -> 467.4593
A22: 236 | B22: 0180 | C22: Fond příspěvkových organizací | D22: 2277725.5 | E22: 3515331.42 | F22: 5000000 | G22: 793056.92 | H22: -1484668.58 | I22: 1484668.58 | J22: 1484.66858 | K22: 1484.66858 | M22: 1484668.58 | O22: 793.05692 | P22: ='Př vč financ návrh 2023'!M39+'Př vč financ návrh 2023'!M40+'Př vč financ návrh 2023'!M41+'Př vč financ návrh 2023'!M42+'Př vč financ návrh 2023'!M43+'Př vč financ návrh 2023'!M44 -> 3428 | R22: -3000 | T22: 428 | X22: 1221.05692
A23: 236 | B23: 0190 | C23: Fond benefiční | D23: 24973 | E23: 0 | F23: 0 | G23: 24973 | H23: 0 | I23: 0 | J23: 0 | K23: 0 | M23: 0 | O23: 24.973 | T23: 0 | X23: =SUM(X19:X22) -> 3227.68356
C24: Celkem fondy | D24: =SUM(D19:D23) -> 6624908.38 | E24: =SUM(E19:E23) -> 11268752.09 | F24: 10848003.91 | G24: 7045656.56 | H24: 420748.18 | I24: -420748.18 | J24: -420.74818 | K24: -420.74818 | M24: -420748.18 | O24: 7045.65656 | T24: 0
H25: 0 | M25: 0 | O25: 0 | T25: 0
A26: Celkem ZBÚ, TV, fondy | D26: =SUM(D24,D18) -> 167861731.5 | E26: =SUM(E24,E18) -> 1393832271 | F26: 1313137896 | G26: 248556105.9 | H26: =G26-D26 -> 80694374.44 | I26: -80694374.44 | M26: -80694374.44 | O26: 248556.1059 | T26: 0
A27: 231, 236, 244 Ostatní ZBÚ, fondy, TV | D27: =D26-D7-D6 -> 141365193.4 | E27: =E26-E7-E6 -> 1283851264 | F27: 1211301518 | G27: 213914939.4 | H27: 72549745.96 | I27: -80694374.44 | M27: -80694374.44 | O27: 213914.9394 | P27: ='Př vč financ návrh 2023'!M129-P7-P6 -> 336695.4135 | Q27: =-'BV návrh 2023'!Z629-Q7-Q6 -> -289805.903 | R27: =-'KV návrh 2023'!Z201-R7-R6 -> -179018 | S27: =SUM(Q27:R27) -> -468823.903 | T27: -132128.4895 | U27: =U6 -> -19911.86783 | V27: ='Návrh rozpočtu 2023 agregát'!D85+'Návrh rozpočtu 2023 agregát'!D87+'Návrh rozpočtu 2023 agregát'!D86 -> -33831.22736 | X27: =O27+T27+U27+V27 -> 28043.35469
C28: Celkem | D28: =SUM(D27,D7,D6) -> 167861731.5 | E28: =SUM(E27,E7,E6) -> 1393832271 | F28: 1313137896 | G28: 248556105.9 | H28: 80694374.44 | I28: -88839002.92 | J28: -8144.62848 | K28: -8144.62848 | L28: 0 | M28: -88839002.92 | N28: 0 | O28: 248556.1059 | P28: =SUM(P27,P7,P6) -> 414315.4135 | Q28: =SUM(Q27,Q7,Q6) -> -363339.903 | R28: -227018 | S28: -590357.903 | T28: -176042.4895 | V28: =SUM(V27) -> -33831.22736 | W28: =SUM(V28,T28) -> -209873.7168 | X28: =SUM(X27,X7,X6) -> 38682.38907
C30: z toho fondy: | R30: zapojení fondů: | X30: z toho:
A31: 236 | B31: 0100 | C31: Sociální fond | D31: 581760.99 | E31: 1155833.32 | F31: 1206730 | G31: 530864.31 | H31: -50896.68 | I31: 50896.68 | J31: 50.89668 | K31: 50.89668 | M31: 50896.68 | O31: 530.86431 | P31: 1336 | Q31: -1357 | S31: =SUM(Q31:R31) -> -1357 | T31: -21 | W31: =T31 -> -21 | X31: =O31+P31+Q31+R31 -> 509.86431
A32: 236 | B32: 0140 | C32: Fond bydlení a rozvoje infrastruktury | D32: 3443908.89 | E32: 6426668.05 | F32: 4641273.91 | G32: 5229303.03 | H32: 1785394.14 | I32: -1785394.14 | J32: -1785.39414 | K32: -1785.39414 | M32: -1785394.14 | O32: 5229.30303 | P32: 300 | R32: -4500 | S32: =SUM(Q32:R32) -> -4500 | T32: -4200 | W32: =T32 -> -4200 | X32: =O32+P32+Q32+R32 -> 1029.30303
A33: 236 | B33: 0160 | C33: Fond ekologie | D33: 296540 | E33: 170919.3 | F33: 0 | G33: 467459.3 | H33: 170919.3 | I33: -170919.3 | J33: -170.9193 | K33: -170.9193 | M33: -170919.3 | O33: 467.4593 | S33: 0 | T33: 0 | W33: =T33 -> 0 | X33: 467.4593
A34: 236 | B34: 0180 | C34: Fond příspěvkových organizací | D34: 2277725.5 | E34: 3515331.42 | F34: 5000000 | G34: 793056.92 | H34: -1484668.58 | I34: 1484668.58 | J34: 1484.66858 | K34: 1484.66858 | M34: 1484668.58 | O34: 793.05692 | P34: 3428 | R34: -3000 | S34: -3000 | T34: 428 | W34: 0 | X34: 1221.05692
A35: 236 | B35: 0190 | C35: Fond benefiční | D35: 24973 | E35: 0 | F35: 0 | G35: 24973 | H35: 0 | I35: 0 | J35: 0 | K35: 0 | M35: 0 | O35: 24.973 | S35: 0 | T35: 0 | W35: 0 | X35: 24.973
C36: Celkem fondy | D36: 6624908.38 | E36: 11268752.09 | F36: 10848003.91 | G36: 7045656.56 | H36: 420748.18 | I36: -420748.18 | J36: -420.74818 | K36: -420.74818 | M36: -420748.18 | O36: 7045.65656 | P36: =SUM(P31:P35) -> 5064 | Q36: =SUM(Q31:Q35) -> -1357 | R36: =SUM(R31:R35) -> -7500 | S36: -8857 | T36: =SUM(T31:T35) -> -3793 | W36: =SUM(W31:W35) -> -4221 | X36: =SUM(X31:X35) -> 3252.65656
O39: Návrh rozpočtu 2023
C40: Úvěry | D40: PS | E40: splátky | F40: přijaté | G40: KS | O40: PS k 1.1.2023 | P40: splátky úvěrů | Q40: KS k 31. 12. 2023
A41: 451 | B41: 0101 | C41: Dlouhodobé úvěry-zápůjčka SFŽP | D41: -20528480.68 | E41: 2280942.32 | F41: 0 | G41: -18247538.36 | H41: do 2030 0,45 % p.a. | O41: =-G41/1000 -> 18247.53836 | P41: =-E41/1000 -> -2280.94232 | Q41: =O41+P41 -> 15966.59604
A42: 451 | B42: 0102 | C42: Dlouhodobé úvěry- ČSOB - nepřímo čerpaný | D42: -20465260 | E42: 0 | F42: 0 | G42: -20465260 | H42: do 12/2024 0,08% p.a.+1M PRIBOR, 0,78% od 01/2025-2034 | O42: =-G42/1000 -> 20465.26 | P42: =-O42 -> -20465.26 | Q42: =O42+P42 -> 0
A43: 451 | B43: 0201 | C43: Dlouhodobé úvěry přímo čerpané - ČS | D43: -14085025.04 | E43: 3000000 | F43: 0 | G43: -11085025.04 | H43: do 09/2026 0,07% p.a.+1M PRIBOR | O43: =-G43/1000 -> 11085.02504 | P43: =-O43 -> -11085.02504 | Q43: =O43+P43 -> 0
A44: SU 451 Dlouhodobé úvěry | D44: =SUM(D41:D43) -> -55078765.72 | E44: =SUM(E41:E43) -> 5280942.32 | F44: 0 | G44: -49797823.4 | O44: =SUM(O41:O43) -> 49797.8234 | P44: =SUM(P41:P43) -> -33831.22736 | Q44: =SUM(Q41:Q43) -> 15966.59604

Sheet Změny od prac.ZM-zdroje rozpočt
A1: 00248266 Město Humpolec | G1: DOKUMENT NA VĚDOMÍ
A2: Horní náměstí 300 Humpolec
A3: Návrh rozpočtu 2023 v tisících Kč - změny příjmů a financování od prac. ZM ze dne 1. 12. 2022
A5: POL(1) | B5: POL(2) | C5: POL(4) | D5: Popis | E5: ODPA(4) | F5: Popis | G5: ORG | H5: 2022 | M5: 2023 | N5: KONTR. SL. | P5: od prac. ZM | Q5: kontr.sl.
H6: Schválený rozp. | I6: Upravený rozp. | J6: Skutečnost k 31. 12. | K6: Plnění v Kč k UR | L6: Plnění v % k UR | M6: Návrh | N6: Návrh k 31. 01. 2023 | O6: Návrh 2023 prac. ZM | P6: Změny 2023 +- | Q6: Návrh 2023 prac. | R6: % změna návrhu 2023/SK 2022 | S6: % změna návrhu 2023/UR 2022
A7: 1 | B7: 11 | C7: 1111 | D7: Příjem z daně z příjmů fyzických osob placené plátci | H7: 30800 | I7: 30800 | J7: 33193.94953 | K7: -2393.94953 | L7: 107.7725634 | M7: 36100 | N7: 36100 | O7: 36100 | P7: =M7-O7 -> 0 | Q7: 36100 | R7: =M7/J7*100 -> 108.7547596 | S7: =M7/I7*100-100 -> 17.20779221
A8: 1 | B8: 11 | C8: 1112 | D8: Příjem z daně z příjmů fyzických osob placené poplatníky | H8: 1150 | I8: 2150 | J8: 2808.21357 | K8: -658.21357 | L8: 130.6145847 | M8: 2200 | N8: 2200 | O8: 2200 | P8: =M8-O8 -> 0 | Q8: 2200 | R8: =M8/J8*100 -> 78.34161986 | S8: 2.325581395
A9: 1 | B9: 11 | C9: 1113 | D9: Příjem z daně z příjmů fyzických osob vybírané srážkou podle zvláštní sazby daně | H9: 4800 | I9: 5600 | J9: 6242.61795 | K9: -642.61795 | L9: 111.4753205 | M9: 7100 | N9: 7100 | O9: 7100 | P9: 0 | Q9: 7100 | R9: 113.7343348 | S9: 26.78571429
A10: 1 | B10: 11 | C10: 1121 | D10: Příjem z daně z příjmů právnických osob | H10: 34500 | I10: 38750 | J10: 47189.29931 | K10: -8439.29931 | L10: 121.7788369 | M10: 48750 | N10: 48750 | O10: 48750 | P10: 0 | Q10: 48750 | R10: 103.3073191 | S10: 25.80645161
A11: 1 | B11: 11 | C11: 1122 | D11: Příjem z daně z příjmů právnických osob v případech, kdy poplatníkem je obec | H11: 15000 | I11: 14157.66 | J11: 14157.66 | K11: 0 | L11: 100 | M11: 15000 | N11: 15000 | O11: 15000 | P11: 0 | Q11: 15000 | R11: 105.949712 | S11: 5.949712029
A12: POL(2) 11 Daně z příjmů, zisku a kapitálových výnosů | H12: 86250 | I12: 91457.66 | J12: 103591.74 | K12: -12134.08 | L12: 113.27 | M12: =SUM(M7:M11) -> 109150 | O12: =SUM(O7:O11) -> 109150 | P12: 0 | R12: 105.3655436 | S12: 19.34484219
A13: 1 | B13: 12 | C13: 1211 | D13: Příjem z daně z přidané hodnoty | H13: 91900 | I13: 98700 | J13: 107252.4904 | K13: -8552.49044 | L13: 108.6651372 | M13: 117000 | N13: 117000 | O13: 117000 | P13: =M13-O13 -> 0 | Q13: 117000 | R13: 109.088376 | S13: 18.54103343
A14: POL(2) 12 Daně, poplatky a jiná obdobná peněžitá plnění ze zboží a služeb v tuzemsku | H14: 91900 | I14: 98700 | J14: 107252.49 | K14: -8552.49 | L14: 108.67 | M14: =SUM(M13) -> 117000 | O14: =SUM(O13) -> 117000 | P14: 0 | R14: 109.0883764 | S14: 18.54103343
A15: 1 | B15: 13 | C15: 1334 | D15: Příjem z odvodů za odnětí půdy ze zemědělského půdního fondu podle zákona na ochranu ZPF | H15: 0 | I15: 0 | J15: 170.9193 | K15: -170.9193 | L15: 0 | P15: 0 | R15: 0 | T15: plnění Ekofondu
A16: 1 | B16: 13 | C16: 1335 | D16: Příjem z poplatku za odnětí pozemku podle lesního zákona | H16: 5 | I16: 5 | J16: 2.4504 | K16: 2.5496 | L16: 49.008 | M16: 5 | N16: 5 | O16: 5 | P16: 0 | Q16: 5 | R16: 204.0483186 | S16: 0
A17: 1 | B17: 13 | C17: 1341 | D17: Příjem z poplatku ze psů | H17: 250 | I17: 250 | J17: 288.965 | K17: -38.965 | L17: 115.586 | M17: 250 | N17: 250 | O17: 250 | P17: 0 | Q17: 250 | R17: 86.51566799 | S17: 0
A18: 1 | B18: 13 | C18: 1343 | D18: Příjem z poplatku za užívání veřejného prostranství | H18: 200 | I18: 200 | J18: 320.932 | K18: -120.932 | L18: 160.466 | M18: 150 | N18: 150 | O18: 150 | P18: 0 | Q18: 150 | R18: 46.73887303 | S18: -25
A19: 1 | B19: 13 | C19: 1345 | D19: Příjem z poplatku za odpadové hospodářství a odkládání komunálního odpadu z nemovité věci | H19: 7500 | I19: 7500 | J19: 7836.38978 | K19: -336.38978 | L19: 104.4851971 | M19: 7500 | N19: 7500 | O19: 7500 | P19: 0 | Q19: 7500 | R19: 95.70733731 | S19: 0
A20: 1 | B20: 13 | C20: 1353 | D20: Příjem za zkoušky z odborné způsobilosti od žadatelů o řidičské oprávnění | H20: 250 | I20: 250 | J20: 295.3 | K20: -45.3 | L20: 118.12 | M20: 250 | N20: 250 | O20: 250 | P20: 0 | Q20: 250 | R20: 84.65966813 | S20: 0
A21: 1 | B21: 13 | C21: 1361 | D21: Příjem ze správních poplatků | H21: 4700 | I21: 4700 | J21: 5100.695 | K21: -400.695 | L21: 108.5254255 | M21: 4700 | N21: 4700 | O21: 4700 | P21: 0 | Q21: 0 | R21: 92.14430582 | S21: =#REF!/I21*100-100 -> 
A22: 1 | B22: 13 | C22: 1381 | D22: Příjem z daně z hazardních her s výjimkou dílčí daně z technických her | H22: 1000 | I22: 1500 | J22: 1516.20508 | K22: -16.20508 | L22: 101.0803387 | M22: 1500 | N22: 1500 | O22: 1500 | P22: 0 | Q22: 4700 | R22: 98.93120791 | S22: =M21/I22*100-100 -> 213.3333333
A23: 1 | B23: 13 | C23: 1382 | D23: Příjem ze zrušeného odvodu z loterií a podobných her kromě odvodu z výherních hracích přístrojů | H23: 0 | I23: 0 | J23: 1.091 | K23: -1.091 | L23: 0 | M23: 0 | N23: 0 | O23: 0 | P23: 0 | Q23: 1500 | R23: 0 | S23: =M22/I23*100-100 -> 
A24: 1 | B24: 13 | C24: 1385 | D24: Příjem z dílčí daně z technických her | H24: 7000 | I24: 19500 | J24: 19751.87835 | K24: -251.87835 | L24: 101.2916838 | M24: 19000 | N24: 19000 | O24: 15000 | P24: 4000 | Q24: 15000 | R24: 96.19338305 | S24: -2.564102564
A25: POL(2) 13 Daně a poplatky z vybraných činností a služeb | H25: 20905 | I25: 33905 | J25: 35284.84 | K25: -1379.84 | L25: 104.07 | M25: =SUM(M15:M24) -> 33355 | O25: 29355 | P25: 4000 | R25: 94.5306823 | S25: -1.62217962
A26: 1 | B26: 15 | C26: 1511 | D26: Příjem z daně z nemovitých věcí | H26: 9900 | I26: 9900 | J26: 10251.6052 | K26: -351.6052 | L26: 103.5515677 | M26: 9900 | N26: 9900 | O26: 9900 | P26: 0 | Q26: 9900 | R26: 96.57024248 | S26: 0
A27: POL(2) 15 Příjem z majetkových daní | H27: 9900 | I27: 9900 | J27: 10251.61 | K27: -351.61 | L27: 103.55 | M27: =SUM(M26) -> 9900 | O27: 9900 | P27: 0 | R27: 96.57019727 | S27: 0
A28: POL(1) 1 Daňové příjmy | H28: 208955 | I28: 233962.66 | J28: 256380.68 | K28: -22418.02 | L28: 109.58 | M28: =M27+M25+M14+M12 -> 269405 | O28: 265405 | P28: 4000 | R28: 105.0800708 | S28: 15.14871647
A29: z toho sdílené daně (POL 1111+1112+1113+1121+1211) | H29: =H7+H8+H9+H10+H13 -> 163150 | I29: =I7+I8+I9+I10+I13 -> 176000 | J29: =J7+J8+J9+J10+J13 -> 196686.5708 | K29: =K7+K8+K9+K10+K13 -> -20686.5708 | L29: =J29/I29*100 -> 111.7537334 | M29: =M7+M8+M9+M10+M13 -> 211150 | O29: 211150 | P29: 0 | R29: 107.3535418 | S29: 19.97159091
A30: 2 | B30: 21 | C30: 2111 | D30: Příjem z poskytování služeb, výrobků, prací, výkonů a práv | E30: 1039 | F30: Ostatní záležitosti lesního hospodářství | H30: 5 | I30: 5 | J30: 1.687 | K30: 3.313 | L30: 33.74 | M30: 2 | N30: 2 | O30: 2 | P30: 0 | Q30: 2 | R30: 118.5536455 | S30: -60
A31: 2 | B31: 21 | C31: 2111 | D31: Příjem z poskytování služeb, výrobků, prací, výkonů a práv | E31: 2310 | F31: Pitná voda | H31: 53000 | I31: 53000 | J31: 55247.43518 | K31: -2247.43518 | L31: 104.2404437 | M31: 55000 | N31: 55000 | O31: 55000 | P31: 0 | Q31: 55000 | R31: 99.55213273 | S31: 3.773584906
A32: 2 | B32: 21 | C32: 2111 | D32: Příjem z poskytování služeb, výrobků, prací, výkonů a práv | E32: 3612 | F32: Bytové hospodářství | H32: 5500 | I32: 5500 | J32: 6687.82676 | K32: -1187.82676 | L32: 121.5968502 | M32: 7900 | N32: 7900 | O32: 7900 | P32: 0 | Q32: 7900 | R32: 118.1250694 | S32: 43.63636364 | T32: oznámeno nájemníkům navýšení záloh na teplo o 1000,-paušálně od 1. 1. 2023
A33: 2 | B33: 21 | C33: 2111 | D33: Příjem z poskytování služeb, výrobků, prací, výkonů a práv | E33: 3613 | F33: Nebytové hospodářství | H33: 10 | I33: 10 | J33: 10.08 | K33: -0.08 | L33: 100.8 | M33: 10 | N33: 10 | O33: 10 | P33: 0 | Q33: 10 | R33: 99.20634921 | S33: 0
A34: 2 | B34: 21 | C34: 2111 | D34: Příjem z poskytování služeb, výrobků, prací, výkonů a práv | E34: 3722 | F34: Sběr a svoz komunálních odpadů-Odměna za vytříděné složky odpadu | G34: 0372200017 | H34: 0 | I34: 2500 | J34: 2158.58676 | K34: 341.41324 | L34: 86.3434704 | M34: 3000 | N34: 3000 | O34: 3000 | P34: 0 | Q34: 3000 | R34: 138.9798203 | S34: 20
A35: 2 | B35: 21 | C35: 2111 | D35: Příjem z poskytování služeb, výrobků, prací, výkonů a práv | E35: 3900 | F35: Ostatní činnosti související se službami pro obyvatelstvo | H35: 10 | I35: 10 | J35: 81.373 | K35: -71.373 | L35: 813.73 | M35: 20 | N35: 20 | O35: 20 | P35: 0 | Q35: 20 | R35: 24.57817704 | S35: 100
A36: 2 | B36: 21 | C36: 2111 | D36: Příjem z poskytování služeb, výrobků, prací, výkonů a práv | E36: 6171 | F36: Činnost místní správy | H36: 20 | I36: 20 | J36: 2.337 | K36: 17.663 | L36: 11.685 | M36: 10 | N36: 10 | O36: 10 | P36: 0 | Q36: 10 | R36: 427.8990158 | S36: -50
A37: 2 | B37: 21 | C37: 2112 | D37: Příjem z prodeje zboží (již nakoupeného za účelem prodeje) | E37: 6171 | F37: Činnost místní správy | H37: 2 | I37: 2 | J37: 12.565 | K37: -10.565 | L37: 628.25 | M37: 2 | N37: 2 | O37: 2 | P37: 0 | Q37: 2 | R37: 15.9172304 | S37: 0
A38: 2 | B38: 21 | C38: 2119 | D38: Ostatní příjmy z vlastní činnosti | E38: 6171 | F38: Činnost místní správy | H38: 120 | I38: 120 | J38: 649.24795 | K38: -529.24795 | L38: 541.0399583 | M38: 120 | N38: 120 | O38: 120 | P38: 0 | Q38: 120 | R38: 18.4829232 | S38: 0
A39: 2 | B39: 21 | C39: 2122 | D39: Příjem z odvodů příspěvkových organizací - FIPO | E39: 3111 | F39: Mateřské školy | H39: 481 | I39: 481 | J39: 486.152 | K39: -5.152 | L39: 101.0711019 | M39: 509 | N39: 509 | O39: 509 | P39: 0 | Q39: 509 | R39: 104.6997647 | S39: 5.821205821 | T39: =SUM(M39:M44) -> 3428
A40: 2 | B40: 21 | C40: 2122 | D40: Příjem z odvodů příspěvkových organizací - FIPO | E40: 3113 | F40: Základní školy-ZŠ Hálkova | G40: 0000000321 | H40: 1030 | I40: 1030 | J40: 1035.8957 | K40: -5.8957 | L40: 100.5723981 | M40: 1040 | N40: 1040 | O40: 1040 | P40: 0 | Q40: 1040 | R40: 100.3962078 | S40: 0.9708737864
A41: 2 | B41: 21 | C41: 2122 | D41: Příjem z odvodů příspěvkových organizací - FIPO | E41: 3113 | F41: Základní školy-ZŠ Hradská | G41: 0000000322 | H41: 916 | I41: 916 | J41: 918.19972 | K41: -2.19972 | L41: 100.2401441 | M41: 801 | N41: 801 | O41: 801 | P41: 0 | Q41: 801 | R41: 87.23592292 | S41: -12.55458515
A42: 2 | B42: 21 | C42: 2122 | D42: Příjem z odvodů příspěvkových organizací - FIPO | E42: 3231 | F42: Základní umělecká škola | H42: 83 | I42: 83 | J42: 82.56 | K42: 0.44 | L42: 99.46987952 | M42: 82 | N42: 82 | O42: 82 | P42: 0 | Q42: 82 | R42: 99.32170543 | S42: -1.204819277
A43: 2 | B43: 21 | C43: 2122 | D43: Příjem z odvodů příspěvkových organizací - FIPO | E43: 3233 | F43: Středisko volného času | H43: 278 | I43: 278 | J43: 278.248 | K43: -0.248 | L43: 100.0892086 | M43: 282 | N43: 282 | O43: 282 | P43: 0 | Q43: 282 | R43: 101.3484374 | S43: 1.438848921
A44: 2 | B44: 21 | C44: 2122 | D44: Příjem z odvodů příspěvkových organizací - FIPO | E44: 3319 | F44: Ostatní záležitosti kultury - MěKIS | H44: 832 | I44: 832 | J44: 714.276 | K44: 117.724 | L44: 85.85048077 | M44: 714 | N44: 714 | O44: 714 | P44: 0 | Q44: 714 | R44: 99.96135947 | S44: -14.18269231
A45: 2 | B45: 21 | C45: 2131 | D45: Příjem z pronájmu pozemků | E45: 1039 | F45: Ostatní záležitosti lesního hospodářství | H45: 20000 | I45: 60500 | J45: 60588.17996 | K45: -88.17996 | L45: 100.145752 | M45: 7260 | N45: 7260 | O45: 7260 | P45: 0 | Q45: 7260 | R45: 11.98253522 | S45: -88
A46: 2 | B46: 21 | C46: 2131 | D46: Příjem z pronájmu pozemků | E46: 3639 | F46: Komunální služby a územní rozvoj jinde nezařazené | H46: 784 | I46: 784 | J46: 1113.87124 | K46: -329.87124 | L46: 142.0754133 | M46: 782 | N46: 782 | O46: 845 | P46: -63 | Q46: 845 | R46: 70.20560114 | S46: -0.2551020408
A47: 2 | B47: 21 | C47: 2132 | D47: Příjem z pronájmu ostatních nemovitých věcí a jejich částí | E47: 2310 | F47: Pitná voda | H47: 0.1 | I47: 0.1 | J47: 0.121 | K47: -0.021 | L47: 121 | M47: 0.121 | N47: 0.121 | O47: 0.121 | P47: 0 | Q47: 0.121 | R47: 100 | S47: 21
A48: 2 | B48: 21 | C48: 2132 | D48: Příjem z pronájmu ostatních nemovitých věcí a jejich částí | E48: 3612 | F48: Bytové hospodářství | H48: 14000 | I48: 14000 | J48: 14224.09819 | K48: -224.09819 | L48: 101.6007014 | M48: 14700 | N48: 14700 | O48: 14700 | P48: 0 | Q48: 14700 | R48: 103.3457433 | S48: 5
A49: 2 | B49: 21 | C49: 2132 | D49: Příjem z pronájmu ostatních nemovitých věcí a jejich částí | E49: 3613 | F49: Nebytové hospodářství | H49: 6100 | I49: 6100 | J49: 7251.9643 | K49: -1151.9643 | L49: 118.8846607 | M49: 6400 | N49: 6400 | O49: 6400 | P49: 0 | Q49: 6400 | R49: 88.25195127 | S49: 4.918032787
A50: 2 | B50: 21 | C50: 2132 | D50: Příjem z pronájmu ostatních nemovitých věcí a jejich částí | E50: 3639 | F50: Komunální služby a územní rozvoj jinde nezařazené | H50: 6 | I50: 6 | J50: 6.05 | K50: -0.05 | L50: 100.8333333 | M50: 6 | N50: 6 | O50: 6 | P50: 0 | Q50: 6 | R50: 99.17355372 | S50: 0
A51: 2 | B51: 21 | C51: 2132 | D51: Příjem z pronájmu ostatních nemovitých věcí a jejich částí | E51: 6221 | F51: Humanitární zahraniční pomoc přímá | H51: 0 | I51: 0 | J51: 186.2 | K51: -186.2 | L51: 0 | M51: =36+14 -> 50 | N51: 50 | P51: 50 | R51: 26.8528464
A52: 2 | B52: 21 | C52: 2133 | D52: Příjem z pronájmu movitých věcí | E52: 3639 | F52: Komunální služby a územní rozvoj jinde nezařazené | H52: 175 | I52: 175 | J52: 172.6202 | K52: 2.3798 | L52: 98.64011429 | M52: 175 | N52: 175 | O52: 175 | P52: 0 | Q52: 175 | R52: 101.3786336 | S52: 0
A53: 2 | B53: 21 | C53: 2139 | D53: Ostatní příjmy z pronájmu majetku | E53: 3632 | F53: Pohřebnictví | H53: 200 | I53: 200 | J53: 238.505 | K53: -38.505 | L53: 119.2525 | M53: 200 | N53: 200 | O53: 200 | P53: 0 | Q53: 200 | R53: 83.85568437 | S53: 0
A54: 2 | B54: 21 | C54: 2139 | D54: Ostatní příjmy z pronájmu majetku | E54: 3639 | F54: Komunální služby a územní rozvoj jinde nezařazené | H54: 100 | I54: 100 | J54: 94.501 | K54: 5.499 | L54: 94.501 | M54: 100 | N54: 100 | O54: 100 | P54: 0 | Q54: 100 | R54: 105.818986 | S54: 0
A55: 2 | B55: 21 | C55: 2141 | D55: Příjem z úroků | E55: 6310 | F55: Obecné příjmy a výdaje z finančních operací | H55: 500 | I55: 1200 | J55: 8953.20042 | K55: -7753.20042 | L55: 746.100035 | M55: 5000 | N55: 5000 | O55: 5000 | P55: 0 | Q55: 5000 | R55: 55.8459519 | S55: 316.6666667
D56: z toho SF: | M56: 10 | N56: 10 | O56: 10 | P56: 0
A57: 2 | B57: 21 | C57: 2143 | D57: Kursové rozdíly v příjmech | E57: 2299 | F57: Ostatní záležitosti v dopravě | H57: 2 | I57: 2 | J57: -0.34253 | K57: 2.34253 | L57: -17.1265 | M57: 2 | N57: 2 | O57: 2 | P57: 0 | Q57: 2 | R57: -583.8904621 | S57: 0
A58: POL(2) 21 Příjem z vlastní činnosti a odvody přebytků organizací s přímým vztahem | H58: 104154.1 | I58: 147854.1 | J58: 161195.47 | K58: -13341.37 | L58: 109.02 | M58: =SUM(M30:M57) -> 104177.121 | O58: =SUM(O30:O57) -> 104190.121 | P58: -13 | R58: 64.62782174 | S58: -29.54059373
A59: 2 | B59: 22 | C59: 2212 | D59: Příjem sankčních plateb přijatých od jiných subjektů | E59: 2169 | F59: Ostatní správa v průmyslu,stavebnictví, obchodu a službách | H59: 10 | I59: 10 | J59: 11 | K59: -1 | L59: 110 | M59: 10 | N59: 10 | O59: 10 | P59: 0 | Q59: 10 | R59: 90.90909091 | S59: 0
A60: 2 | B60: 22 | C60: 2212 | D60: Příjem sankčních plateb přijatých od jiných subjektů | E60: 2212 | F60: Silnice-smluvní pokuta-Eurovia | M60: 126 | N60: 126 | P60: 126
A61: 2 | B61: 22 | C61: 2212 | D61: Příjem sankčních plateb přijatých od jiných subjektů | E61: 2299 | F61: Ostatní záležitosti v dopravě | H61: 500 | I61: 500 | J61: 1770.94436 | K61: -1270.94436 | L61: 354.188872 | M61: 400 | N61: 400 | O61: 400 | P61: 0 | Q61: 400 | R61: 22.58681916 | S61: -20 | T61: ukončení výměrů D1 k 30.11.2022 9112 za 1000,- a překlopení na správní řízení na kod 9119
A62: 2 | B62: 22 | C62: 2212 | D62: Příjem sankčních plateb přijatých od jiných subjektů | E62: 3319 | F62: Ostatní záležitosti kultury | H62: 0 | I62: 0 | J62: 302.13978 | K62: -302.13978 | L62: 0 | P62: 0 | R62: 0
A63: 2 | B63: 22 | C63: 2212 | D63: Příjem sankčních plateb přijatých od jiných subjektů | E63: 3612 | F63: Bytové hospodářství | H63: 50 | I63: 50 | J63: 229.8094 | K63: -179.8094 | L63: 459.6188 | M63: 20 | N63: 20 | O63: 20 | P63: 0 | Q63: 20 | R63: 8.7028642 | S63: -60
A64: 2 | B64: 22 | C64: 2212 | D64: Příjem sankčních plateb přijatých od jiných subjektů | E64: 3769 | F64: Ostatní správa v ochraně životního prostředí | H64: 50 | I64: 50 | J64: 62.6 | K64: -12.6 | L64: 125.2 | M64: 50 | N64: 50 | O64: 50 | P64: 0 | Q64: 50 | R64: 79.87220447 | S64: 0
A65: 2 | B65: 22 | C65: 2212 | D65: Příjem sankčních plateb přijatých od jiných subjektů | E65: 5311 | F65: Bezpečnost a veřejný pořádek | H65: 70 | I65: 70 | J65: 138.39824 | K65: -68.39824 | L65: 197.7117714 | M65: 70 | N65: 70 | O65: 70 | P65: 0 | Q65: 70 | R65: 50.57867788 | S65: 0
A66: 2 | B66: 22 | C66: 2229 | D66: Ostatní přijaté vratky transferů a podobné příjmy | E66: 3113 | F66: Základní škola Hradská | G66: 322 | H66: 1.115 | I66: 1.115 | J66: 1.115 | K66: 0 | L66: 100 | M66: 180.99755 | N66: 180.99755 | P66: 180.99755 | R66: 16232.96413 | S66: 16132.96413
A67: 2 | B67: 22 | C67: 2229 | D67: Ostatní přijaté vratky transferů a podobné příjmy | E67: 3113 | F67: Základní škola Hálkova | G67: 321 | M67: 348 | N67: 348 | P67: 348
A68: 2 | B68: 22 | C68: 2229 | D68: Ostatní přijaté vratky transferů a podobné příjmy | E68: 3111 | F68: Mateřská škola | M68: 16.912 | N68: 16.912 | P68: 16.912
A69: 2 | B69: 22 | C69: 2229 | D69: Ostatní přijaté vratky transferů a podobné příjmy | E69: 3319 | F69: MěKIS | M69: 235 | N69: 235 | P69: 235
A70: 2 | B70: 22 | C70: 2229 | D70: Ostatní přijaté vratky transferů a podobné příjmy | E70: 6402 | F70: Středisko volného času | M70: 5.843 | N70: 5.843 | P70: 5.843
A71: 2 | B71: 22 | C71: 2229 | D71: Ostatní přijaté vratky transferů a podobné příjmy | E71: 6402 | F71: Finanční vypořádání - vratky veřejnopr.dotací r. 2022 | H71: 0 | I71: 0 | J71: 574.41861 | K71: -574.41861 | L71: 0 | M71: 476.434 | N71: 476.434 | P71: 476.434 | R71: 82.94195064 | S71: =M71/I71*100-100 -> 
A72: 2 | B72: 22 | C72: 2229 | D72: Ostatní přijaté vratky transferů a podobné příjmy | E72: 6402 | F72: Finanční vypořádání-Kraj-Potrav.pomoc dětem ZŠ Hálkova | G72: 0000321003 | H72: 0 | I72: 30 | J72: 30 | K72: 0 | L72: 100 | P72: 0 | R72: 0 | S72: -100
A73: 2 | B73: 22 | C73: 2229 | D73: Ostatní přijaté vratky transferů a podobné příjmy | E73: 6402 | F73: Finanční vypořádání-ZUŠ-průtok-dotace ŠABLONY II-vratka | G73: 0323100002 | H73: 0 | I73: 81.424 | J73: 81.424 | K73: 0 | L73: 100 | P73: =M73-O73 -> 0 | R73: 0 | S73: -100
A74: POL(2) 22 Přijaté sankční platby a vratky transferů | H74: 681.12 | I74: 792.54 | J74: 3201.85 | K74: -2409.31 | L74: 404 | M74: =SUM(M59:M73) -> 1939.18655 | O74: =SUM(O59:O73) -> 550 | P74: 1389.18655 | R74: 60.5645658 | S74: 144.6799594
A75: 2 | B75: 23 | C75: 2310 | D75: Příjem z prodeje krátkodobého a drobného dlouhodobého neinvestičního majetku | E75: 6171 | F75: Činnost místní správy | H75: 1 | I75: 1 | J75: 0.638 | K75: 0.362 | L75: 63.8 | M75: 1 | N75: 1 | O75: 1 | P75: 0 | Q75: 1 | R75: 156.7398119 | S75: 0
A76: 2 | B76: 23 | C76: 2322 | D76: Příjem z pojistných náhrad | E76: 6171 | F76: Činnost místní správy | H76: 200 | I76: 200 | J76: 278.025 | K76: -78.025 | L76: 139.0125 | M76: 100 | N76: 100 | O76: 100 | P76: 0 | Q76: 100 | R76: =M76/J76*100 -> 35.96798849 | S76: -50
A77: 2 | B77: 23 | C77: 2324 | D77: Přijaté neinvestiční příspěvky a náhrady | E77: 1036 | F77: Správa v lesním hospodářství-Projekt-Lesní hospodářské osnovy Želivsko | H77: 0 | I77: 30.4 | J77: 30.4 | K77: 0 | L77: 100 | P77: 0 | R77: 0
A78: 2 | B78: 23 | C78: 2324 | D78: Přijaté neinvestiční příspěvky a náhrady | E78: 2169 | F78: Ostatní správa v průmyslu,stavebnictví, obchodu a službách | H78: 2 | I78: 2 | J78: 1 | K78: 1 | L78: 50 | M78: 2 | N78: 2 | O78: 2 | P78: 0 | Q78: 2 | R78: 200 | S78: =M78/I78*100-100 -> 0
A79: 2 | B79: 23 | C79: 2324 | D79: Přijaté neinvestiční příspěvky a náhrady | E79: 2299 | F79: Ostatní záležitosti v dopravě | H79: 10 | I79: 10 | J79: 67.21542 | K79: -57.21542 | L79: 672.1542 | M79: 10 | N79: 10 | O79: 10 | P79: 0 | Q79: 10 | R79: 14.87753852 | S79: 0
A80: 2 | B80: 23 | C80: 2324 | D80: Přijaté neinvestiční příspěvky a náhrady | E80: 3632 | F80: Pohřebnictví | H80: 50 | I80: 50 | J80: 65.11589 | K80: -15.11589 | L80: 130.23178 | M80: 50 | N80: 50 | O80: 50 | P80: 0 | Q80: 50 | R80: 76.78617308 | S80: 0
A81: 2 | B81: 23 | C81: 2324 | D81: Přijaté neinvestiční příspěvky a náhrady | E81: 5311 | F81: Bezpečnost a veřejný pořádek | H81: 5 | I81: 5 | J81: 25.379 | K81: -20.379 | L81: 507.58 | M81: 5 | N81: 5 | O81: 5 | P81: 0 | Q81: 5 | R81: 19.70132787 | S81: 0
A82: 2 | B82: 23 | C82: 2324 | D82: Přijaté neinvestiční příspěvky a náhrady | E82: 6171 | F82: Činnost místní správy | H82: 5 | I82: 5 | J82: 29.2602 | K82: -24.2602 | L82: 585.204 | M82: 5 | N82: 5 | O82: 5 | P82: 0 | Q82: 5 | R82: 17.08805818 | S82: 0
A83: 2 | B83: 23 | C83: 2329 | D83: Ostatní nedaňové příjmy jinde nezařazené | E83: 6171 | F83: Činnost místní správy | H83: 50 | I83: 50 | J83: 37.14904 | K83: 12.85096 | L83: 74.29808 | M83: 10 | N83: 10 | O83: 10 | P83: 0 | Q83: 10 | R83: 26.91859601 | S83: -80
A84: 2 | B84: 23 | C84: 2329 | D84: Ostatní nedaňové příjmy jinde nezařazené | E84: 6409 | F84: Ostatní činnosti jinde nezařazené | H84: 0 | I84: 0 | J84: 5.736 | K84: -5.736 | L84: 0 | M84: 0 | N84: 0 | O84: 0 | P84: 0 | Q84: 0 | R84: 0
A85: POL(2) 23 Příjem z prodeje neinvestičního majetku, ostatní nedaňové příjmy | H85: 323 | I85: 353.4 | J85: 539.94 | K85: -186.54 | L85: 152.78 | M85: =SUM(M75:M84) -> 183 | O85: =SUM(O75:O84) -> 183 | P85: 0 | R85: 33.89265474 | S85: -48.21731749
A86: 2 | B86: 24 | C86: 2412 | D86: Splátky půjčených prostředků od podnikatelských nefinančních subjektů - právnických osob | F86: TS bezúročná zápůjčka | M86: 15000 | N86: 15000 | O86: 0 | P86: 15000 | Q86: 0
A87: 2 | B87: 24 | C87: 2460 | D87: Splátky půjčených prostředků od obyvatelstva | F87: SF | H87: 10 | I87: 10 | J87: 0 | K87: 10 | L87: 0 | M87: 10 | N87: 10 | O87: 10 | P87: 0 | Q87: 10 | S87: 0
A88: POL(2) 24 Přijaté splátky půjčených prostředků | H88: 10 | I88: 10 | J88: 0 | K88: 10 | L88: 0 | M88: =SUM(M86:M87) -> 15010 | O88: =SUM(O86:O87) -> 10 | P88: 15000 | S88: 150000
A89: POL(1) 2 Nedaňové příjmy | H89: 105168.22 | I89: 149010.04 | J89: 164937.26 | K89: -15927.22 | L89: 110.69 | M89: =SUM(M88,M85,M74,M58) -> 121309.3075 | O89: =SUM(O88,O85,O74,O58) -> 104933.121 | P89: 16376.18655 | R89: 73.54875881 | S89: -18.58984297
A90: 3 | B90: 31 | C90: 3111 | D90: Příjem z prodeje pozemků | E90: 3639 | F90: Komunální služby a územní rozvoj jinde nezařazené | H90: 300 | I90: 5339.9 | J90: 5391.404 | K90: -51.504 | L90: 100.9645124 | M90: 300 | N90: 300 | O90: 300 | P90: 0 | Q90: 300 | R90: 5.564413277 | S90: -94.38191726
A91: 3 | B91: 31 | C91: 3121 | D91: Přijaté dary na pořízení dlouhodobého majetku | E91: 2219 | F91: Ostatní záležitosti pozemních komunikací-Chodník Světlice část B - od Pretol s.r.o. | H91: 0 | I91: 1200 | J91: 1200 | K91: 0 | L91: 100 | M91: 0 | N91: 0 | O91: 0 | P91: 0 | R91: 0 | S91: -100
A92: 3 | B92: 31 | C92: 3121 | D92: Přijaté dary na pořízení dlouhodobého majetku | E92: 3412 | F92: Sportovní zařízení ve vlastnictví obce- na herní prvky od KLM s.r.o. | H92: 0 | I92: 500 | J92: 500 | K92: 0 | L92: 100 | M92: 0 | N92: 0 | O92: 0 | P92: 0 | R92: 0 | S92: -100
A93: POL(2) 31 Příjem z prodeje dlouhodobého majetku a ostatní kapitálové příjmy | H93: 300 | I93: 7039.9 | J93: 7091.4 | K93: -51.5 | L93: 100.73 | M93: =SUM(M90:M92) -> 300 | O93: =SUM(O90:O92) -> 300 | P93: 0 | R93: 4.230476352 | S93: -95.73857583
A94: POL(1) 3 Kapitálové příjmy | H94: 300 | I94: 7039.9 | J94: 7091.4 | K94: -51.5 | L94: 100.73 | M94: =SUM(M93) -> 300 | O94: =SUM(O93) -> 300 | P94: 0 | R94: 4.230476352 | S94: -95.73857583
A95: 4 | B95: 41 | C95: 4111 | D95: Neinvestiční přijaté transfery z všeobecné pokladní správy státního rozpočtu | F95: Volby-zastupit.obcí a Senátu PČR | G95: 0000006115 | H95: 0 | I95: 409.83141 | J95: 409.83141 | K95: 0 | L95: 100 | P95: 0 | R95: 0 | S95: -100
A96: 4 | B96: 41 | C96: 4111 | D96: Neinvestiční přijaté transfery z všeobecné pokladní správy státního rozpočtu | F96: Volba prezidenta ČR | G96: 0000098008 | H96: 0 | I96: 156 | J96: 156 | K96: 0 | L96: 100 | M96: 594 | N96: 594 | O96: 0 | P96: 594 | Q96: 0 | R96: 380.7692308 | S96: 280.7692308
A97: 4 | B97: 41 | C97: 4111 | D97: Neinvestiční přijaté transfery z všeobecné pokladní správy státního rozpočtu | F97: Komp.přísp.sdíl.daní ze SR od 22.11.21-2022 dle z.519/2021 Sb.bez FV | G97: 0000098043 | H97: 0 | I97: 748.45407 | J97: 748.45407 | K97: 0 | L97: 100 | P97: 0 | R97: 0 | S97: -100
A98: 4 | B98: 41 | C98: 4112 | D98: Neinvestiční přijaté transfery ze SR v rámci souhrnného dotačního vztahu | H98: 21111.5 | I98: 21111.5 | J98: 21111.5 | K98: 0 | L98: 100 | M98: 22497.9 | N98: 22497.9 | O98: 22497.9 | P98: 0 | Q98: 22497.9 | R98: 106.5670369 | S98: 6.567036923
A99: 4 | B99: 41 | C99: 4116 | D99: Ostatní neinvestiční přijaté transfery ze státního rozpočtu | F99: SPOD dotace doplatek r.2021 | G99: 0000013011 | H99: 0 | I99: 172.24345 | J99: 172.24345 | K99: 0 | L99: 100 | P99: 0 | R99: 0 | S99: -100
A100: 4 | B100: 41 | C100: 4116 | D100: Ostatní neinvestiční přijaté transfery ze státního rozpočtu | F100: dotace na výkon sociální práce (vyjma SPOD) | G100: 0000013015 | H100: 0 | I100: 463.144 | J100: 463.144 | K100: 0 | L100: 100 | P100: 0 | R100: 0 | S100: -100
A101: 4 | B101: 41 | C101: 4116 | D101: Ostatní neinvestiční přijaté transfery ze státního rozpočtu | F101: SPOD dotace od r. 2022 | G101: 0000013024 | H101: 0 | I101: 2305.1 | J101: 2305.1 | K101: 0 | L101: 100 | P101: 0 | R101: 0 | S101: -100
A102: 4 | B102: 41 | C102: 4116 | D102: Ostatní neinvestiční přijaté transfery ze státního rozpočtu | F102: ZŠ Hradská-průtok.neinv.dotace-ŠABLONY OP JAK | G102: 0000322004 | H102: 0 | I102: 2031.07 | J102: 2031.07 | K102: 0 | L102: 100 | P102: 0 | R102: 0 | S102: -100
A103: 4 | B103: 41 | C103: 4116 | D103: Ostatní neinvestiční přijaté transfery ze státního rozpočtu | F103: SVČ-neinv.průtok.dotace Šablony (OP JAK) | G103: 0323300002 | H103: 0 | I103: 1931.925 | J103: 1931.925 | K103: 0 | L103: 100 | P103: 0 | R103: 0 | S103: -100
A104: 4 | B104: 41 | C104: 4116 | D104: Ostatní neinvestiční přijaté transfery ze státního rozpočtu | F104: OÚE SDH-akceschopnost JPO-MVČR 2022 | G104: 0551200008 | H104: 0 | I104: 81.2 | J104: 81.2 | K104: 0 | L104: 100 | P104: 0 | R104: 0 | S104: -100
A105: 4 | B105: 41 | C105: 4116 | D105: Ostatní neinvestiční přijaté transfery ze státního rozpočtu | F105: OÚE-Humpolec pomáhá při integraci držitelů dočasné ochrany | G105: 0622100003 | H105: 0 | I105: 199.5 | J105: 199.5 | K105: 0 | L105: 100 | P105: 0 | R105: 0 | S105: -100
A106: 4 | B106: 41 | C106: 4121 | D106: Neinvestiční přijaté transfery od obcí | H106: 0 | I106: 488.41 | J106: 488.41 | K106: 0 | L106: 100 | P106: 0 | R106: 0 | S106: -100
A107: 4 | B107: 41 | C107: 4122 | D107: Neinvestiční přijaté transfery od krajů | F107: Místní agenda 21 | G107: 0000003900 | H107: 0 | I107: 36 | J107: 36 | K107: 0 | L107: 100 | P107: 0 | R107: 0 | S107: -100
A108: 4 | B108: 41 | C108: 4122 | D108: Neinvestiční přijaté transfery od krajů | F108: Kraj-Potrav.pomoc dětem -MŠ | G108: 0000301003 | H108: 0 | I108: 31.35925 | J108: 31.35925 | K108: 0 | L108: 100 | P108: 0 | R108: 0 | S108: -100
A109: 4 | B109: 41 | C109: 4122 | D109: Neinvestiční přijaté transfery od krajů | F109: Kraj-Potrav.pomoc dětem ZŠ Hálkova | G109: 0000321003 | H109: 0 | I109: 107.76488 | J109: 107.76488 | K109: 0 | L109: 100 | P109: 0 | R109: 0 | S109: -100
A110: 4 | B110: 41 | C110: 4122 | D110: Neinvestiční přijaté transfery od krajů | F110: OÚE Akceschopnost JPO - Kraj Vysočina | G110: 0000551201 | H110: 0 | I110: 30 | J110: 30 | K110: 0 | L110: 100 | P110: 0 | R110: 0 | S110: -100
A111: 4 | B111: 41 | C111: 4122 | D111: Neinvestiční přijaté transfery od krajů | F111: Průtok-Humpolecké léto-grant z Fondu Vys. pro MěKIS | G111: 0003319002 | H111: 0 | I111: 60 | J111: 60 | K111: 0 | L111: 100 | P111: 0 | R111: 0 | S111: -100
A112: 4 | B112: 41 | C112: 4122 | D112: Neinvestiční přijaté transfery od krajů | F112: Průtok-MěKIS neinv.dotace od Kraje-S koloběžkou kolem Humpolce | G112: 0003319009 | H112: 0 | I112: 35.503 | J112: 35.503 | K112: 0 | L112: 100 | P112: 0 | R112: 0 | S112: -100
A113: 4 | B113: 41 | C113: 4122 | D113: Neinvestiční přijaté transfery od krajů | F113: ZUŠ-průtok-neinv.dotace-Podpora okr.a kraj.kol soutěží a přehlídek v zájm.vzdělávání pro r.2022 | G113: 0323100003 | H113: 0 | I113: 15 | J113: 15 | K113: 0 | L113: 100 | P113: 0 | R113: 0 | S113: -100
A114: 4 | B114: 41 | C114: 4122 | D114: Neinvestiční přijaté transfery od krajů | F114: SVČ-neinv.průtok.dotace Míčkování anebo zatočíme s rýmou a kašlem | G114: 0323300001 | H114: 0 | I114: 20 | J114: 20 | K114: 0 | L114: 100 | P114: 0 | R114: 0 | S114: -100
A115: POL(2) 41 Neinvestiční přijaté transfery | H115: 21111.5 | I115: 30433.99 | J115: 30433.99 | K115: 0 | L115: 100 | M115: =SUM(M95:M114) -> 23091.9 | O115: =SUM(O95:O114) -> 22497.9 | P115: 594 | R115: 75.87536173 | S115: -24.12463827
A116: 4 | B116: 42 | C116: 4213 | D116: Investiční přijaté transfery ze státních fondů | F116: OÚE-Pořízení mobiliáře-Turistické odpočívadlo Hněvkovice a Humpolec | G116: 0341200098 | H116: 0 | I116: 79.52 | J116: 79.52 | K116: 0 | L116: 100 | P116: 0 | R116: 0 | S116: -100
A117: 4 | B117: 42 | C117: 4216 | D117: Ostatní investiční přijaté transfery ze státního rozpočtu | F117: OÚE-Byt.hosp.-výtah Fügnerova čp.19 (Bezbariéry 2021) | G117: 0000001904 | H117: 0 | I117: 657.8 | J117: 657.8 | K117: 0 | L117: 100 | P117: 0 | R117: 0 | S117: -100
A118: 4 | B118: 42 | C118: 4216 | D118: Ostatní investiční přijaté transfery ze státního rozpočtu | F118: OÚE-Kamerový syst. Humpolec-prevence kriminality (dotace MVČR) | G118: 0531100004 | H118: 0 | I118: 294.288 | J118: 294.288 | K118: 0 | L118: 100 | P118: 0 | R118: 0 | S118: -100
A119: 4 | B119: 42 | C119: 4222 | D119: Investiční přijaté transfery od krajů | F119: Průtok-MěKIS inv.dotace od Kraje-Modernizace vybavení v infocentru Humpolec | G119: 0003319010 | H119: 0 | I119: 60 | J119: 60 | K119: 0 | L119: 100 | P119: 0 | R119: 0 | S119: -100
A120: 4 | B120: 42 | C120: 4222 | D120: Investiční přijaté transfery od krajů | F120: Cyklostezka Hadina II.etapa | G120: 0221900077 | H120: 0 | I120: 1401.973 | J120: 1401.973 | K120: 0 | L120: 100 | P120: 0 | R120: 0 | S120: -100
A121: 4 | B121: 42 | C121: 4222 | D121: Investiční přijaté transfery od krajů | F121: ZUŠ-průtok-kraj.inv.dotace-Učební pomůcky 2022 | G121: 0323100004 | H121: 0 | I121: 35.025 | J121: 35.025 | K121: 0 | L121: 100 | P121: 0 | R121: 0 | S121: -100
A122: 4 | B122: 42 | C122: 4222 | D122: Investiční přijaté transfery od krajů | F122: OÚE - hřiště ve Světlici | G122: 0341200117 | H122: 0 | I122: 127 | J122: 127 | K122: 0 | L122: 100 | P122: 0 | R122: 0 | S122: -100
A123: 4 | B123: 42 | C123: 4222 | D123: Investiční přijaté transfery od krajů | F123: OÚE - ICT 2021-disková virtual. na VMW serverech | G123: 0617100014 | H123: 0 | I123: 150 | J123: 150 | K123: 0 | L123: 100 | P123: 0 | R123: 0 | S123: -100
A124: 4 | B124: 42 | C124: 4222 | D124: Investiční přijaté transfery od krajů | F124: OÚE - ICT 2021-Rozšíření služeb Portálu občana | G124: 0617100017 | H124: 0 | I124: 80 | J124: 80 | K124: 0 | L124: 100 | P124: 0 | R124: 0 | S124: -100
A125: 4 | B125: 42 | C125: 4222 | D125: Investiční přijaté transfery od krajů | F125: OÚE-ICT 2021-Realiz.napojení kamer pro PČR na optickou síť a trasování | G125: 0617100018 | H125: 0 | I125: 250 | J125: 250 | K125: 0 | L125: 100 | P125: 0 | R125: 0 | S125: =M125/I125*100-100 -> -100
A126: 4 | B126: 42 | C126: 4222 | D126: Investiční přijaté transfery od krajů | F126: OÚE-Napojení LPR kamer PČR na optickou síť a trasování-směr Želiv | M126: 209.206 | N126: 209.206 | P126: 209.206
A127: POL(2) 42 Investiční přijaté transfery | H127: 0 | I127: 3135.61 | J127: 3135.61 | K127: 0 | L127: 100 | M127: =SUM(M116:M126) -> 209.206 | O127: =SUM(O116:O126) -> 0 | P127: 209.206 | R127: 6.671939431 | S127: -93.32806057
A128: POL(1) 4 Přijaté transfery | H128: 21111.5 | I128: 33569.6 | J128: 33569.6 | K128: 0 | L128: 100 | M128: =M127+M115 -> 23301.106 | O128: =O127+O115 -> 22497.9 | P128: 803.206 | R128: 69.41133049 | S128: -30.58866951
A129: Celkem | H129: 335534.72 | I129: 423582.2 | J129: 461978.94 | K129: -38396.74 | L129: 109.06 | M129: =SUM(M128,M94,M89,M28) -> 414315.4135 | N129: =SUM(N7:N128) -> 414315.4135 | O129: =SUM(O128,O94,O89,O28) -> 393136.021 | P129: 21179.39255 | Q129: =SUM(Q7:Q128) -> 393126.021 | R129: 89.68274908 | S129: -2.18771857
A130: Celkem změny příjmů od pracovního ZM dne 1. 12. 2022: | P130: =SUM(P126,P96,P86,P71,P70,P69,P68,P67,P66,P60,P51,P46,P24) -> 21179.39255
A132: Podmínka: AND POL=8*
A133: POL(1) | B133: POL(2) | C133: POL(4) | D133: Popis | E133: ODPA(4) | F133: Popis | G133: ORG | H133: 2022 | M133: 2023 | P133: od prac. ZM | Q133: kontr.sl.
H134: Schválený rozp. | I134: Upravený rozp. | J134: Skutečnost | K134: Plnění v Kč k UR | L134: Plnění v % k UR | M134: Návrh | N134: Návrh 2023 | O134: Návrh 2023 prac. ZM | P134: Změny 2023 +- | Q134: Návrh 2023 | S134: % změna návrhu 2023/UR 2022
A135: 8 | B135: 81 | C135: 8115 | D135: z toho: | F135: Změny stavů krátk. prostř. na BÚ- z toho: | H135: 125431.5703 | I135: 54545.0738 | J135: -80689.37444 | K135: 135234.4482
A136: 8 | B136: 81 | C136: 8115 | D136: Změny stavů krátkod. prostředků na bank.účtech (zapojení přebytků k 31.12. ostatní účty) | F136: Změny stavů krátk. prostř. na BÚ | H136: 104142.5703 | I136: =I135-SUM(I137:I148) -> 38463.38739 | J136: -72123.99778 | M136: ='Návrh rozpočtu 2023 agregát'!D76 -> 182078.5847 | N136: =M136 -> 182078.5847 | O136: =45000 -> 45000 | P136: =M136-O136 -> 137078.5847
A137: 8 | B137: 81 | C137: 8115 | D137: Zapojení přebytků-bytový účet | F137: Změny stavů krátk. prostř. na BÚ | H137: 5000 | I137: 5000 | J137: =-4023.60295 -> -4023.60295 | M137: 5770 | N137: 5770 | P137: 5770
A138: 8 | B138: 81 | C138: 8115 | D138: Zapojení přebytků k 31.12.- účet vodního hospodářství | F138: Změny stavů krátk. prostř. na BÚ | H138: =11668 -> 11668 | I138: 11668 | J138: -4121.02553 | M138: 18232.13217 | N138: 18232.13217 | P138: 18232.13217
A139: 8 | B139: 81 | C139: 8115 | D139: Zapojení FBI(Fondu bydlení a infrastruktury) v r. 2022: Rek.MK ul.Jihlavská | F139: Změny stavů krátk. prostř. na BÚ | H139: 3400 | I139: 3400 | J139: 3400 | P139: 0
A140: 8 | B140: 81 | C140: 8115 | D140: Zapojení FBI (Fondu bydlení a infrastruktury) v r. 2023: Investiční akce: Rek. Chodník (lávka) ul. Lužická | F140: Změny stavů krátk. prostř. na BÚ | M140: 4500 | N140: 4500 | O140: 3000 | P140: 1500
A141: 8 | B141: 81 | C141: 8115 | D141: Zapojení FBI na Rek. ul.5.května,Jihlavská, II. etapa | F141: Změny stavů krátk. prostř. na BÚ | H141: 0 | I141: 22.58641 | J141: 22.58641 | P141: 0
A142: 8 | B142: 81 | C142: 8115 | D142: Zapojení FBI(Fondu bydlení a infrastruktury) v r. 2022: Chodník Světlice část B - dar od Pretol s.r.o. | F142: Změny stavů krátk. prostř. na BÚ | H142: 0 | I142: 1200 | J142: 1200 | P142: 0
A143: 8 | B143: 81 | C143: 8115 | D143: Zapojení FIPO(Fondu investic PO) z přebytků: akce: MŠ Podhrad | F143: Změny stavů krátk. prostř. na BÚ | H143: 2250 | I143: 2250 | J143: 2250 | P143: 0
A144: 8 | B144: 81 | C144: 8115 | D144: Zapojení FIPO(Fondu investic PO) akce: MŠ Podhrad | F144: Změny stavů krátk. prostř. na BÚ | H144: 2750 | I144: 2750 | J144: 2750 | M144: 3000 | N144: 3000 | O144: 3000 | P144: 0
A145: 8 | B145: 81 | C145: 8115 | D145: Odvod odpisů do FIPO | F145: Změny stavů krátk. prostř. na BÚ | H145: =-SUM(H39:H44) -> -3620 | I145: =-SUM(I39:I44) -> -3620 | J145: =-SUM(J39:J44) -> -3515.33142 | M145: =-SUM(M39:M44) -> -3428 | N145: =-SUM(N39:N44) -> -3428 | O145: =-SUM(O39:O44) -> -3428 | P145: 0
A146: 8 | B146: 81 | C146: 8115 | D146: Odvod do FBI z prodejů pozemků (a bank.úroků) | F146: Změny stavů krátk. prostř. na BÚ | H146: =-H94 -> -300 | I146: =-6739.9 -> -6739.9 | J146: -6407.98055 | M146: -300 | N146: -300 | O146: -300 | P146: 0
A147: 8 | B147: 81 | C147: 8115 | D147: Odvod do Fondu ekologie z POL 1334 dle směrnice | F147: Změny stavů krátk. prostř. na BÚ | J147: =-J15 -> -170.9193 | P147: 0
A148: 8 | B148: 81 | C148: 8115 | D148: Sociální fond | F148: Změny stavů krátk. prostř. na BÚ | H148: 151 | I148: 151 | J148: 50.89668 | M148: 21 | N148: 21 | O148: 0 | P148: 21
A149: 8 | B149: 81 | C149: 8117 | D149: Aktivní krátkodobé operace řízení likvidity - příjmy | H149: 0 | I149: 159500 | J149: 159495 | K149: 5 | L149: 99.9968652 | M149: 167000 | N149: 167000 | O149: 100000 | P149: 67000
A150: 8 | B150: 81 | C150: 8118 | D150: Aktivní krátkodobé operace řízení likvidity - výdaje | H150: 0 | I150: -159500 | J150: -159500 | K150: 0 | L150: 100 | M150: -167000 | N150: -167000 | O150: 0 | P150: -167000
A151: 8 | B151: 81 | C151: 8124 | D151: Uhrazené splátky dlouhodobých přijatých půjčených prostř. | F151: ČS, a.s. - ZTV Blanická | H151: -3000 | I151: -3000 | J151: -3000 | K151: 0 | L151: 100 | M151: ='Návrh rozpočtu 2023 agregát'!D85 -> -11085.02504 | N151: =M151 -> -11085.02504 | O151: -3000 | P151: -8085.02504
C152: 8124 | D152: Uhrazené splátky dlouhodobých přijatých půjčených prostř. | F152: ČSOB, a.s. - výkup pozemků | H152: 0 | I152: 0 | J152: 0 | M152: ='Návrh rozpočtu 2023 agregát'!D86 -> -20465.26 | N152: =M152 -> -20465.26 | O152: 0 | P152: -20465.26
A153: 8 | B153: 81 | C153: 8124 | D153: Uhrazené splátky dlouhodobých přijatých půjčených prostř. | F153: SFŽP - technologie ZS Humpolec | H153: -2280.94232 | I153: -2280.94232 | J153: -2280.94232 | K153: 0 | L153: 100 | M153: -2280.94232 | N153: -2280.94232 | O153: -2280.94232 | P153: 0
A154: POL(2) 81 Financování z tuzemska | H154: 120150.628 | I154: 49264.13 | J154: -85975.31 | K154: 135239.45 | M154: =SUM(M136:M153) -> 176042.4895 | N154: =SUM(N136:N153) -> 176042.4895 | O154: =SUM(O136:O153) -> 141991.0577 | P154: 34051.43181
A155: 8 | B155: 81 | C155: 8115 | D155: navýšení dle skut. přebytků k 31. 12. 2022 | O155: 31170.60832 | P155: =-(P154-P159) -> -31170.60832
A156: POL(2) 81 Financování z tuzemska | O156: =SUM(O155,O154) -> 173161.666
A157: 8 | B157: 89 | C157: 8901 | D157: Operace z peněžních účtů organizace nemající charakter příjmů/výdajů | F157: DPH | H157: 0 | I157: 0 | J157: 253.05394 | K157: -253.05394 | L157: 0 | M157: 0 | N157: 0 | O157: 0
A158: POL(2) 89 Opravné položky k peněžním operacím | H158: 0 | I158: 0 | J158: 253.05 | K158: -253.05 | L158: 0 | M158: =SUM(M157) -> 0 | N158: =SUM(N157) -> 0 | O158: 0
A159: POL(1) 8 Financování | H159: 120150.63 | I159: 49264.13 | J159: -85722.26282 | K159: 134986.4 | M159: =SUM(M154,M158) -> 176042.4895 | N159: =SUM(N154,N158) -> 176042.4895 | O159: =O156 -> 173161.666 | P159: =M159-O159 -> 2880.82349
A160: Celkem PŘÍJMY + FINANCOVÁNÍ - ZMĚNY OD PRAC. ZM | H160: =H159+H129 -> 455685.35 | I160: =I159+I129 -> 472846.33 | J160: =J159+J129 -> 376256.6772 | K160: =K159+K129 -> 96589.66 | L160: =J160/I160*100 -> 79.57271809 | M160: =M159+M129 -> 590357.903 | N160: =N159+N129 -> 590357.903 | O160: =O159+O129 -> 566297.687 | P160: 24060.21604
A163: PŘÍJMY | H163: =H129 -> 335534.72 | I163: =I129 -> 423582.2 | J163: =J129 -> 461978.94 | K163: =K129 -> -38396.74 | L163: =J163/I163*100 -> 109.0647671 | M163: =M129 -> 414315.4135 | N163: =N129 -> 414315.4135
A165: Běžné výdaje | H165: 287420.35 | I165: 320828.88 | J165: 270671.43 | K165: 50157.56 | L165: 84.37 | M165: ='BV návrh 2023'!Z629 -> 363339.903 | N165: ='BV návrh 2023'!AA629 -> 363339.903
A166: z toho: | C166: 5171 | D166: opravy a udržování | H166: 38153 | I166: 42221.5 | J166: 25425.38024 | K166: =I166-J166 -> 16796.11976 | L166: =J166/I166*100 -> 60.21903589 | M166: 41356 | N166: 41356
A167: Kapitálové výdaje | H167: 168265 | I167: 152017.47 | J167: 105585.22 | K167: 46432.27 | L167: 69.46 | M167: ='KV návrh 2023'!Z201 -> 227018 | N167: =M167 -> 227018
A168: Celkem výdaje | H168: =SUM(H167,H165) -> 455685.35 | I168: =SUM(I167,I165) -> 472846.35 | J168: 376256.65 | K168: 96589.83 | L168: =J168/I168*100 -> 79.57270898 | M168: 590357.903 | N168: 590357.903
A169: Rozpočtový výsledek hospodaření: | H169: =H163-H168 -> -120150.63 | I169: =I163-I168 -> -49264.15 | J169: 85722.29 | K169: -134986.57 | M169: -176042.4895 | N169: =N163-N168 -> -176042.4895
A170: Běžné příjmy (třída 1 + 2 + tř.4 neinvestiční transfery) | H170: =H28+H89+H115 -> 335234.72 | I170: =I28+I89+I115 -> 413406.69 | J170: =J28+J89+J115 -> 451751.93 | K170: =K28+K89+K115 -> -38345.24 | L170: =J170/I170*100 -> 109.275428 | M170: =M28+M89+M115 -> 413806.2076 | N170: =M170 -> 413806.2076
A171: Běžné výdaje | H171: =H165 -> 287420.35 | I171: =I165 -> 320828.88 | J171: 270671.43 | K171: 50157.56 | M171: =M165 -> 363339.903 | N171: =N165 -> 363339.903
A172: Provozní saldo (běžné příjmy mínus běžné výdaje) | H172: =H170-H171 -> 47814.37 | I172: =I170-I171 -> 92577.81 | J172: 181080.5 | K172: -88502.8 | M172: 50466.30451 | N172: 50466.30451
A173: Ukazatel provozního salda, tj. % podíl provozního salda na běžných příjmech | H173: =H172/H170*100 -> 14.26295283 | I173: =I172/I170*100 -> 22.39388289 | J173: =J172/J170*100 -> 40.08405675 | M173: =M172/M170*100 -> 12.19563738 | N173: =N172/N170*100 -> 12.19563738
M174: musí být min. 10 % | N174: musí být min. 10 %

Sheet Změny od prac.ZM-běžné výdaje
A1: 00248266 Město Humpolec
A2: Horní náměstí 300 Humpolec
A3: Změny v rozpisu rozpočtu běžných výdajů 2023 v tisících Kč -od prac. ZM 1. 12. 2022
A5: ODPA(2) | B5: Popis | C5: ODPA(4) | D5: Popis | E5: POL(4) | F5: Popis | G5: ORG | H5: Popis | I5: POPIS 2023 (změny oproti 2022) | J5: Pozn. | K5: 2022 | L5: 2022 | N5: 2022 | V5: Pracovní ZM | Y5: od prac. ZM | Z5: 2023 | AA5: kontr. Sl.
K6: Schválený rozp. | L6: Upravený rozp. | M6: Skutečnost k 31. 12. | N6: Plnění v Kč k UR | O6: Plnění v % k UR | P6: ORG | Q6: ODPA | R6: POL | S6: Návrh 2023 Kontr.sl. | T6: 1.Návrh 2023 | U6: Změny v návrhu 2023 | V6: Návrh 2023 k 25.11.2022 | W6: Návrh 2023 z 25.11.22/UR 2022 % | X6: komentář | Y6: Změny 2023 +- | Z6: Návrh | AA6: Návrh 2023 k 31.01.2023 | AB6: Návrh 2023 z 31.01.22/UR 2022 % | AC6: Návrh 2023 z 31.01.23 mínus SK 2022 tis.Kč | AD6: Návrh 2023 z 31.01.23/SK 2022 % | AE6: Provizorium 2023 | AF6: Správce rozpočtu
A7: 10 | B7: Zemědělství, lesní hospodářství a rybářství | C7: 1014 | D7: Ozdravování hospodářských zvířat, polních a speciálních plodin a zvláštní veterinární péče | E7: 5169 | F7: Nákup ostatních služeb | G7: 0101400001 | H7: Péče o opuštěná zvířata | K7: 330 | L7: 330 | M7: 286.0956 | N7: 43.9044 | O7: 86.69563636 | P7: 0101400001 | Q7: 1014 | R7: 5169 | S7: 330 | T7: 330 | U7: =V7-T7 -> 70 | V7: 400 | W7: =V7/L7*100 -> 121.2121212 | Z7: 400 | AA7: 400 | AB7: =Z7/L7*100 -> 121.2121212 | AC7: =Z7-M7 -> 113.9044 | AD7: =Z7/M7*100 -> 139.813405 | AF7: Kocmanová | AH7: =Z7-V7 -> 0 | AI7: =AH7-Y7 -> 0
A8: 10 | B8: Zemědělství, lesní hospodářství a rybářství | C8: 1014 | D8: Ozdravování hospodářských zvířat, polních a speciálních plodin a zvláštní veterinární péče | E8: 5137 | F8: Drobný dlouhodobý hmotný majetek | G8: 0101400001 | H8: Péče o opuštěná zvířata | Y8: 10 | Z8: 10 | AA8: 10 | AB8: =Z8/L8*100 ->  | AC8: =Z8-M8 -> 10 | AF8: Kocmanová | AH8: 10 | AI8: =AH8-Y8 -> 0
A9: 10 | B9: Zemědělství, lesní hospodářství a rybářství | C9: 1014 | D9: Ozdravování hospodářských zvířat, polních a speciálních plodin a zvláštní veterinární péče | E9: 5492 | F9: Dary obyvatelstvu | H9: Kastrace koček | Y9: 50 | Z9: 50 | AA9: 50 | AF9: Kocmanová | AH9: 50 | AI9: 0
A10: 10 | B10: Zemědělství, lesní hospodářství a rybářství | C10: 1014 | D10: Ozdravování hospodářských zvířat, polních a speciálních plodin a zvláštní veterinární péče | E10: 5169 | F10: Nákup ostatních služeb | H10: Kastrace koček | Y10: 20 | Z10: 20 | AA10: 20 | AF10: Kocmanová | AH10: 20 | AI10: 0
A11: 10 | B11: Zemědělství, lesní hospodářství a rybářství | C11: 1014 | D11: Ozdravování hospodářských zvířat, polních a speciálních plodin a zvláštní veterinární péče | E11: 5169 | F11: Nákup ostatních služeb | G11: 0101400002 | H11: Deratizace | K11: 198 | L11: 198 | M11: 165.01545 | N11: 32.98455 | O11: 83.34113636 | P11: 0101400002 | Q11: 1014 | R11: 5169 | S11: 198 | T11: 198 | U11: 0 | V11: 198 | W11: 100 | Z11: 198 | AA11: 198 | AB11: 100 | AC11: 32.98455 | AD11: 119.9887647 | AF11: Kocmanová | AH11: 0 | AI11: 0
A12: 10 | B12: Zemědělství, lesní hospodářství a rybářství | C12: 1036 | D12: Správa v lesním hospodářství | E12: 5169 | F12: Nákup ostatních služeb | G12: 0103600002 | H12: Projekt-Lesní hosp.osnovy Želivsko | K12: 0 | L12: 31 | M12: 30.613 | N12: 0.387 | O12: 98.7516129 | P12: 0103600002 | Q12: 1036 | R12: 5169 | U12: 0 | W12: 0 | AB12: 0 | AC12: -30.613 | AD12: 0 | AH12: 0 | AI12: 0
A13: 10 | B13: Zemědělství, lesní hospodářství a rybářství | C13: 1039 | D13: Ostatní záležitosti lesního hospodářství | E13: 5169 | F13: Nákup ostatních služeb | G13: 0103900001 | H13: Lesní hosp.-odborný lesní hospodář | K13: 230 | L13: 250 | M13: 219.5 | N13: 30.5 | O13: 87.8 | P13: 0103900001 | Q13: 1039 | R13: 5169 | S13: 270 | T13: 270 | U13: 0 | V13: 270 | W13: 108 | Z13: 270 | AA13: 270 | AB13: 108 | AC13: 50.5 | AD13: 123.0068337 | AF13: Zeman | AH13: 0 | AI13: 0
A14: 10 | B14: Zemědělství, lesní hospodářství a rybářství | C14: 1039 | D14: Ostatní záležitosti lesního hospodářství | E14: 5169 | F14: Nákup ostatních služeb | G14: 0103900004 | H14: Ostatní lesnické práce | K14: 20 | L14: 0 | M14: 0 | N14: 0 | O14: 0 | P14: 0103900004 | Q14: 1039 | R14: 5169 | S14: 20 | T14: 20 | U14: 0 | V14: 20 | Z14: 20 | AA14: 20 | AC14: 20 | AF14: Zeman | AH14: 0 | AI14: 0
A15: 10 | B15: Zemědělství, lesní hospodářství a rybářství | C15: 1039 | D15: Ostatní záležitosti lesního hospodářství | E15: 5171 | F15: Opravy a udržování | G15: 0103900005 | H15: Opravy lesních cest | K15: 600 | L15: 600 | M15: 356.051 | N15: 243.949 | O15: 59.34183333 | P15: 0103900005 | Q15: 1039 | R15: 5171 | S15: 600 | T15: 600 | U15: 0 | V15: 600 | W15: 100 | Z15: 600 | AA15: 600 | AB15: 100 | AC15: 243.949 | AD15: 168.5151846 | AF15: Zeman | AH15: 0 | AI15: 0
A16: 10 | B16: Zemědělství, lesní hospodářství a rybářství | C16: 1039 | D16: Ostatní záležitosti lesního hospodářství | E16: 5179 | F16: Ostatní nákupy jinde nezařazené | G16: 0103900006 | H16: Sdružení vlastníků obecních a soukromých lesů ČR-členský příspěvek | K16: 10 | L16: 10 | M16: 5.61 | N16: 4.39 | O16: 56.1 | P16: 0103900006 | Q16: 1039 | R16: 5179 | S16: 12 | T16: 12 | U16: 0 | V16: 12 | W16: 120 | Z16: 12 | AA16: 12 | AB16: 120 | AC16: 6.39 | AD16: 213.9037433 | AF16: Zeman | AH16: 0 | AI16: 0
A17: ODPA(2) 10 Zemědělství, lesní hospodářství a rybářství | K17: 1388 | L17: 1419 | M17: 1062.89 | N17: 356.11 | O17: 74.9 | T17: =SUM(T7:T16) -> 1430 | U17: 70 | V17: =SUM(V7:V16) -> 1500 | W17: 105.7082452 | Z17: =SUM(Z7:Z16) -> 1580 | AB17: 111.3460183 | AC17: 517.11 | AD17: 148.6513186 | AE17: =SUM(AE7:AE16) -> 0 | AH17: 80 | AI17: 80
A18: 21 | B18: Průmysl, stavebnictví, obchod a služby | C18: 2141 | D18: Vnitřní obchod | E18: 5137 | F18: Drobný dlouhodobý hmotný majetek | G18: 0214100003 | H18: Farmářské trhy - DDHM | K18: 0 | L18: 16 | M18: 15.85423 | N18: 0.14577 | O18: 99.0889375 | P18: 0214100003 | Q18: 2141 | R18: 5137 | S18: 15 | T18: 15 | U18: 0 | V18: 15 | W18: 93.75 | Z18: 15 | AA18: 15 | AB18: 93.75 | AC18: -0.85423 | AD18: 94.61197422 | AF18: Augustová | AH18: 0 | AI18: 0
A19: 21 | B19: Průmysl, stavebnictví, obchod a služby | C19: 2141 | D19: Vnitřní obchod | E19: 5139 | F19: Nákup materiálu j.n. | G19: 0214100001 | H19: Farmářské trhy-materiál | K19: 20 | L19: 4 | M19: 1.35 | N19: 2.65 | O19: 33.75 | P19: 0214100001 | Q19: 2141 | R19: 5139 | S19: 20 | T19: 20 | U19: 0 | V19: 20 | W19: 500 | Z19: 20 | AA19: 20 | AB19: 500 | AC19: 18.65 | AD19: 1481.481481 | AF19: Augustová | AH19: 0 | AI19: 0
A20: 21 | B20: Průmysl, stavebnictví, obchod a služby | C20: 2141 | D20: Vnitřní obchod | E20: 5169 | F20: Nákup ostatních služeb | G20: 0214100002 | H20: Farmářské trhy-služby | K20: 130 | L20: 130 | M20: 59.483 | N20: 70.517 | O20: 45.75615385 | P20: 0214100002 | Q20: 2141 | R20: 5169 | S20: 140 | T20: 140 | U20: 0 | V20: 140 | W20: 107.6923077 | Z20: 140 | AA20: 140 | AB20: 107.6923077 | AC20: 80.517 | AD20: 235.3613638 | AF20: Augustová | AH20: 0 | AI20: 0
A21: ODPA(2) 21 Průmysl, stavebnictví, obchod a služby | K21: 150 | L21: 150 | M21: 76.68 | N21: 73.32 | O21: 51.12 | T21: =SUM(T18:T20) -> 175 | U21: 0 | V21: =SUM(V18:V20) -> 175 | W21: 116.6666667 | Z21: =SUM(Z18:Z20) -> 175 | AB21: 116.6666667 | AC21: 98.32 | AD21: 228.2211789 | AE21: =SUM(AE18:AE20) -> 0 | AH21: 0 | AI21: 0
A22: 22 | B22: Doprava | C22: 2212 | D22: Silnice | E22: 5166 | F22: Konzultační, poradenské a právní služby | G22: 0221200001 | H22: Studie komunikací | K22: 100 | L22: 100 | M22: 47.08 | N22: 52.92 | O22: 47.08 | P22: 0221200001 | Q22: 2212 | R22: 5166 | S22: 100 | T22: 100 | U22: 900 | V22: 1000 | W22: 1000 | Y22: -500 | Z22: 500 | AA22: 500 | AB22: 500 | AC22: 452.92 | AD22: 1062.02209 | AE22: 1000 | AF22: Vaňkát/Machek | AH22: -500 | AI22: 0
A23: 22 | B23: Doprava | C23: 2212 | D23: Silnice | E23: 5166 | F23: Konzultační, poradenské a právní služby | G23: 0221200147 | H23: Studie dopravy v klidu | K23: 400 | L23: 450 | M23: 418.176 | N23: 31.824 | O23: 92.928 | P23: 0221200147 | Q23: 2212 | R23: 5166 | S23: 200 | T23: 200 | U23: 0 | V23: 200 | W23: 44.44444444 | Y23: -200 | Z23: 0 | AA23: 0 | AB23: 0 | AC23: -418.176 | AD23: 0 | AF23: Vaňkát/Machek | AH23: -200 | AI23: 0
A24: 22 | B24: Doprava | C24: 2212 | D24: Silnice | E24: 5166 | F24: Konzultační, poradenské a právní služby | G24: nový | H24: Dopravní model města | Y24: 300 | Z24: 300 | AA24: 300 | AF24: Machek | AH24: 300 | AI24: 0
A25: 22 | B25: Doprava | C25: 2212 | D25: Silnice | E25: 5166 | F25: Konzultační, poradenské a právní služby | G25: 0221200148 | H25: Studie dopravy MK Pelhřimovská | K25: 600 | L25: 350 | M25: 181.5 | N25: 168.5 | O25: 51.85714286 | P25: 0221200148 | Q25: 2212 | R25: 5166 | U25: 0 | W25: 0 | AB25: 0 | AC25: -181.5 | AD25: 0 | AH25: 0 | AI25: 0
A26: 22 | B26: Doprava | C26: 2212 | D26: Silnice | E26: 5169 | F26: Nákup ostatních služeb | G26: 0221200002 | H26: Čištění komunikací | K26: 2700 | L26: 2700 | M26: 2493.186 | N26: 206.814 | O26: 92.34022222 | P26: 0221200002 | Q26: 2212 | R26: 5169 | S26: 3100 | T26: 3100 | U26: 0 | V26: 3100 | W26: 114.8148148 | Z26: 3100 | AA26: 3100 | AB26: 114.8148148 | AC26: 606.814 | AD26: 124.3388981 | AE26: 3100 | AF26: Zeman | AH26: 0 | AI26: 0
A27: 22 | B27: Doprava | C27: 2212 | D27: Silnice | E27: 5169 | F27: Nákup ostatních služeb | G27: 0221200003 | H27: Čištění MK- vybrané akce | K27: 100 | L27: 100 | M27: 93.597 | N27: 6.403 | O27: 93.597 | P27: 0221200003 | Q27: 2212 | R27: 5169 | S27: 120 | T27: 120 | U27: 0 | V27: 120 | W27: 120 | Z27: 120 | AA27: 120 | AB27: 120 | AC27: 26.403 | AD27: 128.2092375 | AF27: Zeman | AH27: 0 | AI27: 0
A28: 22 | B28: Doprava | C28: 2212 | D28: Silnice | E28: 5169 | F28: Nákup ostatních služeb | G28: 0221200004 | H28: Čištění MK- psí exkrementy | K28: 600 | L28: 600 | M28: 414.984 | N28: 185.016 | O28: 69.164 | P28: 0221200004 | Q28: 2212 | R28: 5169 | S28: 700 | T28: 700 | U28: 0 | V28: 700 | W28: 116.6666667 | Z28: 700 | AA28: 700 | AB28: 116.6666667 | AC28: 285.016 | AD28: 168.6812022 | AF28: Zeman | AH28: 0 | AI28: 0
A29: 22 | B29: Doprava | C29: 2212 | D29: Silnice | E29: 5169 | F29: Nákup ostatních služeb | G29: 0221200005 | H29: Zimní údržba komunikací | K29: 2500 | L29: 2800 | M29: 2535.68884 | N29: 264.31116 | O29: 90.56031571 | P29: 0221200005 | Q29: 2212 | R29: 5169 | S29: 2800 | T29: 2800 | U29: 0 | V29: 2800 | W29: 100 | Z29: 2800 | AA29: 2800 | AB29: 100 | AC29: 264.31116 | AD29: 110.4236433 | AE29: 2800 | AF29: Zeman | AH29: 0 | AI29: 0
A30: 22 | B30: Doprava | C30: 2212 | D30: Silnice | E30: 5171 | F30: Opravy a udržování | G30: 0221200006 | H30: Dopravní značení-zrcadla | K30: 90 | L30: 90 | M30: 18.524 | N30: 71.476 | O30: 20.58222222 | P30: 0221200006 | Q30: 2212 | R30: 5171 | S30: 90 | T30: 90 | U30: 0 | V30: 90 | W30: 100 | Z30: 90 | AA30: 90 | AB30: 100 | AC30: 71.476 | AD30: 485.8561866 | AF30: Palánová | AH30: 0 | AI30: 0
A31: 22 | B31: Doprava | C31: 2212 | D31: Silnice | E31: 5171 | F31: Opravy a udržování | G31: 0221200008 | H31: Údržba kanalizačních vpustí | K31: 400 | L31: 400 | M31: 280.974 | N31: 119.026 | O31: 70.2435 | P31: 0221200008 | Q31: 2212 | R31: 5171 | S31: 400 | T31: 400 | U31: 0 | V31: 400 | W31: 100 | Z31: 400 | AA31: 400 | AB31: 100 | AC31: 119.026 | AD31: 142.3619267 | AF31: Palánová | AH31: 0 | AI31: 0
A32: 22 | B32: Doprava | C32: 2212 | D32: Silnice | E32: 5171 | F32: Opravy a udržování | G32: 0221200009 | H32: Opravy MK město | K32: 1700 | L32: 1900 | M32: 1769.01387 | N32: 130.98613 | O32: 93.10599316 | P32: 0221200009 | Q32: 2212 | R32: 5171 | S32: 2000 | T32: 2000 | U32: 0 | V32: 2000 | W32: 105.2631579 | Z32: 2000 | AA32: 2000 | AB32: 105.2631579 | AC32: 230.98613 | AD32: 113.0573385 | AF32: Palánová | AH32: 0 | AI32: 0
A33: 22 | B33: Doprava | C33: 2212 | D33: Silnice | E33: 5171 | F33: Opravy a udržování | G33: 0221200010 | H33: Opravy MK-místní části | K33: 1300 | L33: 1300 | M33: 778.696 | N33: 521.304 | O33: 59.89969231 | P33: 0221200010 | Q33: 2212 | R33: 5171 | S33: 1300 | T33: 1300 | U33: 0 | V33: 1300 | W33: 100 | Y33: 700 | Z33: 2000 | AA33: 2000 | AB33: 153.8461538 | AC33: 1221.304 | AD33: 256.8396396 | AF33: Hložková/Machek | AH33: 700 | AI33: 0
A34: 22 | B34: Doprava | C34: 2212 | D34: Silnice | E34: 5171 | F34: Opravy a udržování | G34: 0221200021 | H34: Dopravní značení - město | K34: 300 | L34: 300 | M34: 294.57194 | N34: 5.42806 | O34: 98.19064667 | P34: 0221200021 | Q34: 2212 | R34: 5171 | S34: 300 | T34: 300 | U34: 0 | V34: 300 | W34: 100 | Z34: 300 | AA34: 300 | AB34: 100 | AC34: 5.42806 | AD34: 101.8426942 | AF34: Palánová | AH34: 0 | AI34: 0
A35: 22 | B35: Doprava | C35: 2212 | D35: Silnice | E35: 5171 | F35: Opravy a udržování | G35: 0221200022 | H35: Údržba přechodů | K35: 300 | L35: 300 | M35: 123.417 | N35: 176.583 | O35: 41.139 | P35: 0221200022 | Q35: 2212 | R35: 5171 | S35: 300 | T35: 300 | U35: 0 | V35: 300 | W35: 100 | Z35: 300 | AA35: 300 | AB35: 100 | AC35: 176.583 | AD35: 243.0783442 | AF35: Palánová | AH35: 0 | AI35: 0
A36: 22 | B36: Doprava | C36: 2212 | D36: Silnice | E36: 5171 | F36: Opravy a udržování | G36: 0221200062 | H36: Dopravní značení MČ | K36: 130 | L36: 130 | M36: 32.389 | N36: 97.611 | O36: 24.91461538 | P36: 0221200062 | Q36: 2212 | R36: 5171 | S36: 130 | T36: 130 | U36: 0 | V36: 130 | W36: 100 | Z36: 130 | AA36: 130 | AB36: 100 | AC36: 97.611 | AD36: 401.3708358 | AF36: Hložková | AH36: 0 | AI36: 0
A37: 22 | B37: Doprava | C37: 2212 | D37: Silnice | E37: 5171 | F37: Opravy a udržování | G37: 0221200072 | H37: Opravy MK - metoda infra | K37: 700 | L37: 700 | M37: 698.412 | N37: 1.588 | O37: 99.77314286 | P37: 0221200072 | Q37: 2212 | R37: 5171 | S37: 700 | T37: 700 | U37: 0 | V37: 700 | W37: 100 | Z37: 700 | AA37: 700 | AB37: 100 | AC37: 1.588 | AD37: 100.227373 | AF37: Palánová | AH37: 0 | AI37: 0
A38: 22 | B38: Doprava | C38: 2212 | D38: Silnice | E38: 5171 | F38: Opravy a udržování | G38: 0221200140 | H38: Označení ulic-nové cedule | K38: 180 | L38: 180 | M38: 0 | N38: 180 | O38: 0 | P38: 0221200140 | Q38: 2212 | R38: 5171 | S38: 180 | T38: 180 | U38: 0 | V38: 180 | W38: 100 | Z38: 180 | AA38: 180 | AB38: 100 | AC38: 180 | AF38: Palánová | AH38: 0 | AI38: 0
A39: 22 | B39: Doprava | C39: 2212 | D39: Silnice | E39: 5171 | F39: Opravy a udržování | G39: 0221200149 | H39: Radary měření rychlosti-opravy | K39: 100 | L39: 100 | M39: 0 | N39: 100 | O39: 0 | P39: 0221200149 | Q39: 2212 | R39: 5171 | S39: 100 | T39: 100 | U39: 0 | V39: 100 | W39: 100 | Z39: 100 | AA39: 100 | AB39: 100 | AC39: 100 | AF39: Palánová | AH39: 0 | AI39: 0
A40: 22 | B40: Doprava | C40: 2219 | D40: Ostatní záležitosti pozemních komunikací | E40: 5166 | F40: Konzultační, poradenské a právní služby | G40: 0221900001 | H40: Studie a projekty chodníků | K40: 100 | L40: 100 | M40: 0 | N40: 100 | O40: 0 | P40: 0221900001 | Q40: 2219 | R40: 5166 | S40: 100 | T40: 100 | U40: 0 | V40: 100 | W40: 100 | Y40: 150 | Z40: 250 | AA40: 250 | AB40: 250 | AC40: 250 | AF40: Vaňkát/Machek | AH40: 150 | AI40: 0
A41: 22 | B41: Doprava | C41: 2219 | D41: Ostatní záležitosti pozemních komunikací | E41: 5169 | F41: Nákup ostatních služeb | G41: 0221900007 | H41: Zimní údržba chodníků | K41: 900 | L41: 1200 | M41: 1019.064 | N41: 180.936 | O41: 84.922 | P41: 0221900007 | Q41: 2219 | R41: 5169 | S41: 1200 | T41: 1200 | U41: 0 | V41: 1200 | W41: 100 | Z41: 1200 | AA41: 1200 | AB41: 100 | AC41: 180.936 | AD41: 117.7551165 | AE41: 1200 | AF41: Zeman | AH41: 0 | AI41: 0
A42: 22 | B42: Doprava | C42: 2219 | D42: Ostatní záležitosti pozemních komunikací | E42: 5169 | F42: Nákup ostatních služeb | G42: 0221900074 | H42: Mlžící rám město-zařízení pro osvěž.vzduchu-inst. | K42: 5 | L42: 5 | M42: 1.629 | N42: 3.371 | O42: 32.58 | P42: 0221900074 | Q42: 2219 | R42: 5169 | S42: 5 | T42: 5 | U42: 0 | V42: 5 | W42: 100 | Z42: 5 | AA42: 5 | AB42: 100 | AC42: 3.371 | AD42: 306.936771 | AF42: Palánová | AH42: 0 | AI42: 0
A43: 22 | B43: Doprava | C43: 2219 | D43: Ostatní záležitosti pozemních komunikací | E43: 5171 | F43: Opravy a udržování | G43: 0221900002 | H43: Opravy chodníků | K43: 450 | L43: 250 | M43: 137.263 | N43: 112.737 | O43: 54.9052 | P43: 0221900002 | Q43: 2219 | R43: 5171 | S43: 450 | T43: 450 | U43: 0 | V43: 450 | W43: 180 | Z43: 450 | AA43: 450 | AB43: 180 | AC43: 312.737 | AD43: 327.8378004 | AF43: Palánová | AH43: 0 | AI43: 0
A44: 22 | B44: Doprava | C44: 2221 | D44: Provoz veřejné silniční dopravy | E44: 5171 | F44: Opravy a udržování | G44: 0222100001 | H44: Opravy autobusových čekáren | K44: 100 | L44: 100 | M44: 84.303 | N44: 15.697 | O44: 84.303 | P44: 0222100001 | Q44: 2221 | R44: 5171 | S44: 100 | T44: 100 | U44: 0 | V44: 100 | W44: 100 | Z44: 100 | AA44: 100 | AB44: 100 | AC44: 15.697 | AD44: 118.6197407 | AF44: Hložková | AH44: 0 | AI44: 0
A45: 22 | B45: Doprava | C45: 2229 | D45: Ostatní záležitosti v silniční dopravě | E45: 5169 | F45: Nákup ostatních služeb | G45: 0222900001 | H45: Likvidace autovraků | K45: 50 | L45: 50 | M45: 0 | N45: 50 | O45: 0 | P45: 0222900001 | Q45: 2229 | R45: 5169 | S45: 20 | T45: 20 | U45: 0 | V45: 20 | W45: 40 | Z45: 20 | AA45: 20 | AB45: 40 | AC45: 20 | AF45: Zeman | AH45: 0 | AI45: 0
A46: 22 | B46: Doprava | C46: 2292 | D46: Dopravní obslužnost veřejnými službami-linková | E46: 5213 | F46: Neinvestiční transfery nefinančním podnikatelským subjektům-právnickým osobám | G46: 0229200002 | H46: Dopravní obslužnost | K46: 80 | L46: 100 | M46: 39.16651 | N46: 60.83349 | O46: 39.16651 | P46: 0229200002 | Q46: 2292 | R46: 5213 | S46: 120 | T46: 120 | U46: 0 | V46: 120 | W46: 120 | Y46: -40 | Z46: 80 | AA46: 80 | AB46: 80 | AC46: 40.83349 | AD46: 204.2561362 | AF46: Zeman | AH46: -40 | AI46: 0
A47: 22 | B47: Doprava | C47: 2212 | D47: Silnice | E47: 5166 | F47: Konzultační, poradenské a právní služby | H47: Studie - křižovatka Billa | Y47: 400 | Z47: 400 | AA47: 400 | AC47: 400 | AF47: Vaňkát | AH47: 400 | AI47: 0
A48: ODPA(2) 22 Doprava | K48: 13885 | L48: 14305 | M48: 11461.63 | N48: 2843.37 | O48: 80.12 | T48: =SUM(T22:T46) -> 14515 | U48: 900 | V48: =SUM(V22:V46) -> 15415 | W48: 107.7595246 | Z48: =SUM(Z22:Z47) -> 16225 | AB48: 113.4218805 | AC48: 4763.37 | AD48: 141.5592721 | AE48: =SUM(AE22:AE46) -> 8100 | AH48: 810 | AI48: 810
A49: 23 | B49: Vodní hospodářství | C49: 2310 | D49: Pitná voda | E49: 5151 | F49: Studená voda včetně stočného a poplatku za odvod dešťových vod | G49: 0231000001 | H49: Voda - nákup pitné vody | K49: 8000 | L49: 7996 | M49: 7747.954 | N49: 248.046 | O49: 96.89787394 | P49: 0231000001 | Q49: 2310 | R49: 5151 | S49: 8000 | T49: 8000 | U49: 0 | V49: 8000 | W49: 100.050025 | Z49: 8000 | AA49: 8000 | AB49: 100.050025 | AC49: 252.046 | AD49: 103.2530653 | AF49: Jůzl | AH49: 0 | AI49: 0
A50: 23 | C50: 2310 | D50: Pitná voda | E50: 5164 | F50: Nájemné | G50: 0231000001 | H50: Voda - nákup pitné vody | K50: 0 | L50: 4 | M50: 3.615 | N50: 0.385 | O50: 90.375 | W50: 0 | Y50: 4 | Z50: 4 | AA50: 4 | AB50: 100 | AC50: 0.385 | AD50: 110.6500692 | AF50: Jůzl/Kocmanová | AH50: 4 | AI50: 0
A51: 23 | B51: Vodní hospodářství | C51: 2310 | D51: Pitná voda | E51: 5166 | F51: Konzultační, poradenské a právní služby | G51: 0231000002 | H51: Voda - nové studie | K51: 50 | L51: 27 | M51: 21.054 | N51: 5.946 | O51: 77.97777778 | P51: 0231000002 | Q51: 2310 | R51: 5166 | S51: 50 | T51: 50 | U51: 0 | V51: 50 | W51: 185.1851852 | Y51: 50 | Z51: 100 | AA51: 100 | AB51: 370.3703704 | AC51: 78.946 | AD51: 474.969127 | AF51: Jůzl/Machek | AH51: 50 | AI51: 0
A52: 23 | B52: Vodní hospodářství | C52: 2310 | D52: Pitná voda | E52: 5169 | F52: Nákup ostatních služeb | G52: 0231000010 | H52: Vodovod - provozovatelská smlouva | K52: 12900 | L52: 12900 | M52: 12629.38455 | N52: 270.61545 | O52: 97.90220581 | P52: 0231000010 | Q52: 2310 | R52: 5169 | S52: 14200 | T52: 14200 | U52: 0 | V52: 14200 | W52: 110.0775194 | Z52: 14200 | AA52: 14200 | AB52: 110.0775194 | AC52: 1570.61545 | AD52: 112.4361994 | AF52: Jůzl | AH52: 0 | AI52: 0
A53: 23 | B53: Vodní hospodářství | C53: 2310 | D53: Pitná voda | E53: 5169 | F53: Nákup ostatních služeb | G53: 0231000053 | H53: Úprava PD Oprava vodovodu ul. Jihlavská | K53: 0 | L53: 24.5 | M53: 24.01184 | N53: 0.48816 | O53: 98.0075102 | P53: 0231000053 | Q53: 2310 | R53: 5169 | W53: 0 | AB53: 0 | AC53: -24.01184 | AD53: 0 | AH53: 0 | AI53: 0
A54: 23 | B54: Vodní hospodářství | C54: 2310 | D54: Pitná voda | E54: 5169 | F54: Nákup ostatních služeb | H54: PD- oprava vodovodu 5. května | Q54: 2310 | R54: 5169 | S54: 150 | T54: 150 | U54: =V54-T54 -> 0 | V54: 150 | Y54: 10 | Z54: 160 | AA54: 160 | AC54: 160 | AF54: Jůzl | AH54: 10 | AI54: 0
A55: 23 | B55: Vodní hospodářství | C55: 2310 | D55: Pitná voda | E55: 5169 | F55: Nákup ostatních služeb | H55: PD- oprava vodovodu Hradská | Q55: 2310 | R55: 5169 | S55: 200 | T55: 200 | U55: =V55-T55 -> 0 | V55: 200 | Y55: -70 | Z55: 130 | AA55: 130 | AC55: 130 | AF55: Jůzl | AH55: -70 | AI55: 0
A56: 23 | B56: Vodní hospodářství | C56: 2310 | D56: Pitná voda | E56: 5169 | F56: Nákup ostatních služeb | H56: PD- oprava vodovodu Vosmíkova | Q56: 2310 | R56: 5169 | S56: 120 | T56: 120 | U56: =V56-T56 -> 0 | V56: 120 | Z56: 120 | AA56: 120 | AC56: 120 | AF56: Jůzl | AH56: 0 | AI56: 0
A57: 23 | B57: Vodní hospodářství | C57: 2310 | D57: Pitná voda | E57: 5171 | F57: Opravy a udržování | G57: 0231000011 | H57: Vodovod - běžné opravy | K57: 5360 | L57: 4796 | M57: 3963.8363 | N57: 832.1637 | O57: 82.64879691 | P57: 0231000011 | Q57: 2310 | R57: 5171 | S57: 5000 | T57: 5000 | U57: =V57-T57 -> 0 | V57: 5000 | W57: 104.2535446 | Y57: -3000 | Z57: 2000 | AA57: 2000 | AB57: 41.70141785 | AC57: -1963.8363 | AD57: 50.45617045 | AF57: Jůzl | AH57: -3000 | AI57: 0
A58: 23 | B58: Vodní hospodářství | C58: 2310 | D58: Pitná voda | E58: 5171 | F58: Opravy a udržování | G58: 0231000051 | H58: Oprava vodovodu ul. Jihlavská | K58: 2500 | L58: 3062.5 | M58: 3062.19204 | N58: 0.30796 | O58: 99.98994416 | P58: 0231000051 | Q58: 2310 | R58: 5171 | W58: 0 | AB58: 0 | AC58: -3062.19204 | AD58: 0 | AH58: 0 | AI58: 0
A59: 23 | B59: Vodní hospodářství | C59: 2310 | D59: Pitná voda | E59: 5171 | F59: Opravy a udržování | H59: Oprava vodovodu ul. Mánesova | Q59: 2310 | R59: 5171 | S59: 4100 | T59: 4100 | U59: =V59-T59 -> 0 | V59: 4100 | Y59: -4100 | Z59: 0 | AA59: 0 | AC59: 0 | AE59: 4100 | AF59: Jůzl | AH59: -4100 | AI59: 0
A60: 23 | B60: Vodní hospodářství | C60: 2321 | D60: Odvádění a čištění odpadních vod a nakládání s kaly | E60: 5166 | F60: Konzultační, poradenské a právní služby | G60: 0232100001 | H60: Kanalizace-studie | I60: (ČOV Humpolec) | K60: 250 | L60: 1086 | M60: 495.6168 | N60: 590.3832 | O60: 45.63690608 | P60: 0232100001 | Q60: 2321 | R60: 5166 | S60: 250 | T60: 250 | U60: =V60-T60 -> 0 | V60: 250 | W60: 23.02025783 | Z60: 250 | AA60: 250 | AB60: 23.02025783 | AC60: -245.6168 | AD60: 50.44219647 | AF60: Jůzl | AH60: 0 | AI60: 0
A61: 23 | B61: Vodní hospodářství | C61: 2321 | D61: Odvádění a čištění odpadních vod a nakládání s kaly | E61: 5166 | F61: Konzultační, poradenské a právní služby | H61: Čištění Světlice-Plačkov (studie proveditelnosti ) | P61: 2321 | Q61: 6121 | S61: 500 | T61: 500 | V61: 500 | Z61: 500 | AA61: 500 | AC61: 500 | AF61: Jůzl | AH61: 0 | AI61: 0
A62: 23 | B62: Vodní hospodářství | C62: 2321 | D62: Odvádění a čištění odpadních vod a nakládání s kaly | E62: 5166 | F62: Konzultační, poradenské a právní služby | G62: 0232100042 | H62: Předprojekt.příprava-zadávací dokumentace-čištění OV MČ | K62: 250 | L62: 500 | M62: 284.978 | N62: 215.022 | O62: 56.9956 | P62: 0232100042 | Q62: 2321 | R62: 5166 | S62: 500 | T62: 500 | U62: =V62-T62 -> 0 | V62: 500 | W62: 100 | Y62: -500 | Z62: 0 | AA62: 0 | AB62: 0 | AC62: -284.978 | AD62: 0 | AF62: Jůzl | AH62: -500 | AI62: 0
A63: 23 | B63: Vodní hospodářství | C63: 2321 | D63: Odvádění a čištění odpadních vod a nakládání s kaly | E63: 5169 | F63: Nákup ostatních služeb | G63: 0232100004 | H63: Provoz ČOV v LTRN | K63: 290 | L63: 290 | M63: 244.9788 | N63: 45.0212 | O63: 84.47544828 | P63: 0232100004 | Q63: 2321 | R63: 5169 | S63: 300 | T63: 300 | U63: 0 | V63: 300 | W63: 103.4482759 | Z63: 300 | AA63: 300 | AB63: 103.4482759 | AC63: 55.0212 | AD63: 122.4595761 | AF63: Jůzl | AH63: 0 | AI63: 0
A64: 23 | B64: Vodní hospodářství | C64: 2321 | D64: Odvádění a čištění odpadních vod a nakládání s kaly | E64: 5169 | F64: Nákup ostatních služeb | G64: 0232100007 | H64: Kanalizace - provozovatelská smlouva | K64: 14200 | L64: 14200 | M64: 14143.85832 | N64: 56.14168 | O64: 99.60463606 | P64: 0232100007 | Q64: 2321 | R64: 5169 | S64: 17100 | T64: 17100 | U64: 0 | V64: 17100 | W64: 120.4225352 | Z64: 17100 | AA64: 17100 | AB64: 120.4225352 | AC64: 2956.14168 | AD64: 120.9005323 | AF64: Jůzl | AH64: 0 | AI64: 0
A65: 23 | B65: Vodní hospodářství | C65: 2321 | D65: Odvádění a čištění odpadních vod a nakládání s kaly | E65: 5169 | F65: Nákup ostatních služeb | H65: PD- oprava kanalizace 5. května | Q65: 2321 | R65: 5169 | U65: 0 | V65: 0 | Y65: 120 | Z65: 120 | AA65: 120 | AC65: 120 | AF65: Jůzl | AH65: 120 | AI65: 0
A66: 23 | B66: Vodní hospodářství | C66: 2321 | D66: Odvádění a čištění odpadních vod a nakládání s kaly | E66: 5169 | F66: Nákup ostatních služeb | H66: PD- oprava kanalizace Hradská | Q66: 2321 | R66: 5169 | U66: 0 | V66: 0 | Y66: 200 | Z66: 200 | AA66: 200 | AC66: 200 | AF66: Jůzl | AH66: 200 | AI66: 0
A67: 23 | B67: Vodní hospodářství | C67: 2321 | D67: Odvádění a čištění odpadních vod a nakládání s kaly | E67: 5169 | F67: Nákup ostatních služeb | H67: PD- oprava kanalizace Vosmíkova | Q67: 2321 | R67: 5169 | U67: 0 | V67: 0 | Y67: 160 | Z67: 160 | AA67: 160 | AC67: 160 | AF67: Jůzl | AH67: 160 | AI67: 0
A68: 23 | B68: Vodní hospodářství | C68: 2321 | D68: Odvádění a čištění odpadních vod a nakládání s kaly | E68: 5171 | F68: Opravy a udržování | G68: 0232100008 | H68: Kanalizace - běžné opravy | K68: 1482 | L68: 1192 | M68: 446.17738 | N68: 745.82262 | O68: 37.43098826 | P68: 0232100008 | Q68: 2321 | R68: 5171 | S68: 1500 | T68: 1500 | U68: 0 | V68: 1500 | W68: 125.8389262 | Y68: 500 | Z68: 2000 | AA68: 2000 | AB68: 167.7852349 | AC68: 1553.82262 | AD68: 448.2522175 | AF68: Jůzl | AH68: 500 | AI68: 0
A69: 23 | B69: Vodní hospodářství | C69: 2321 | D69: Odvádění a čištění odpadních vod a nakládání s kaly | E69: 5171 | F69: Opravy a udržování | G69: 0232100045 | H69: Oprava kanalizace ul.Jihlavská | K69: 2500 | L69: 2540 | M69: 2534.58261 | N69: 5.41739 | O69: 99.78671693 | P69: 0232100045 | Q69: 2321 | R69: 5171 | U69: 0 | W69: 0 | AB69: 0 | AC69: -2534.58261 | AD69: 0 | AF69: Jůzl | AH69: 0 | AI69: 0
A70: 23 | B70: Vodní hospodářství | C70: 2321 | D70: Odvádění a čištění odpadních vod a nakládání s kaly | E70: 5171 | F70: Opravy a udržování | H70: Oprava kanalizace ul.Mánesova | Q70: 2321 | R70: 5171 | S70: 4000 | T70: 4000 | U70: 0 | V70: 4000 | Y70: -4000 | Z70: 0 | AA70: 0 | AC70: 0 | AE70: 4000 | AF70: Jůzl | AH70: -4000 | AI70: 0
A71: 23 | B71: Vodní hospodářství | C71: 2341 | D71: Vodní díla v zemědělské krajině | E71: 5169 | F71: Nákup ostatních služeb | G71: 0234100001 | H71: Oprava návesních rybníků Petrovice | K71: 100 | L71: 200 | M71: 134.4794 | N71: 65.5206 | O71: 67.2397 | P71: 0234100001 | Q71: 2341 | R71: 5169 | S71: 100 | T71: 100 | U71: 0 | V71: 100 | W71: 50 | X71: TDI+DOTACE,ŘÍZENÍ | Y71: 100 | Z71: 200 | AA71: 200 | AB71: 100 | AC71: 65.5206 | AD71: 148.7216629 | AE71: 100 | AF71: Jůzl | AH71: =Z71-V71 -> 100 | AI71: 0
A72: 23 | B72: Vodní hospodářství | C72: 2341 | D72: Vodní díla v zemědělské krajině | E72: 5171 | F72: Opravy a udržování | G72: 0234100001 | H72: Oprava návesních rybníků Petrovice | K72: 6500 | L72: 6400 | M72: 0 | N72: 6400 | O72: 0 | P72: 0234100001 | Q72: 2341 | R72: 5171 | S72: 5600 | T72: 5600 | U72: 0 | V72: 5600 | W72: 87.5 | Y72: 900 | Z72: 6500 | AA72: 6500 | AB72: 101.5625 | AC72: 6500 | AE72: 5600 | AF72: Jůzl | AH72: 900 | AI72: =AH72-Y72 -> 0
A73: ODPA(2) 23 Vodní hospodářství | K73: 54382 | L73: 55218 | M73: 45736.72 | N73: 9481.29 | O73: 82.83 | T73: =SUM(T49:T72) -> 61670 | U73: 0 | V73: =SUM(V49:V72) -> 61670 | W73: 111.6845956 | Z73: =SUM(Z49:Z72) -> 52044 | AB73: 94.25187439 | AC73: 6307.28 | AD73: 113.7904074 | AE73: =SUM(AE49:AE72) -> 13800 | AH73: -9626 | AI73: -9626
A74: 31 | B74: Vzdělávání a školské služby | C74: 3111 | D74: Mateřské školy | E74: 5137 | F74: Drobný dlouhodobý hmotný majetek | G74: 0311100005 | H74: Vnitřní vybavení MŠ Podhrad | K74: 0 | L74: 2000 | M74: 0 | N74: 2000 | O74: 0 | P74: 0311100005 | Q74: 3111 | R74: 5137 | W74: =V74/L74*100 -> 0 | AB74: 0 | AC74: 0 | AD74: =Z74/M74*100 ->  | AH74: 0 | AI74: 0
A75: 31 | C75: 3111 | D75: Mateřské školy | E75: 5901 | F75: Nespecifikované rezervy | G75: 0311100005 | H75: Provoz a drobné vybavení pracoviště a zahrady MŠ Podhrad | I75: opravit ORG | U75: =V75-T75 -> 2000 | V75: 2000 | Z75: 2000 | AA75: 2000 | AB75: =Z75/L75*100 ->  | AC75: =Z75-M75 -> 2000 | AF75: Koudelková | AH75: 0 | AI75: 0
A76: 31 | B76: Vzdělávání a školské služby | C76: 3111 | D76: Mateřské školy | E76: 5331 | F76: Neinvestiční příspěvky zřízeným příspěvkovým organizacím | G76: 0000000301 | H76: Mateřská škola | K76: 4713 | L76: 4803 | M76: 4803 | N76: 0 | O76: 100 | P76: 0000000301 | Q76: 3111 | R76: 5331 | S76: 5768 | T76: 5768 | U76: =V76-T76 -> 322 | V76: =5768+322 -> 6090 | W76: 126.7957527 | Z76: 6090 | AA76: 6090 | AB76: 126.7957527 | AC76: 1287 | AD76: 126.7957527 | AF76: Koudelková | AH76: 0 | AI76: 0
A77: 31 | B77: Vzdělávání a školské služby | C77: 3111 | D77: Mateřské školy | E77: 5331 | F77: Neinvestiční příspěvky zřízeným příspěvkovým organizacím | G77: 0311100301 | H77: MŠ spec.pedagog | K77: 100 | L77: 112.95 | M77: 112.95 | N77: 0 | O77: 100 | P77: 0311100301 | Q77: 3111 | R77: 5331 | S77: 100 | T77: 100 | U77: =V77-T77 -> 0 | V77: 100 | W77: 88.53474989 | Z77: 100 | AA77: 100 | AB77: 88.53474989 | AC77: -12.95 | AD77: 88.53474989 | AF77: Koudelková | AH77: 0 | AI77: 0
A78: 31 | B78: Vzdělávání a školské služby | C78: 3111 | D78: Mateřské školy | E78: 5336 | F78: Neinvestiční transfery zřízeným příspěvkovým organizacím | G78: 0000301003 | H78: Kraj-Potrav.pomoc dětem -MŠ | K78: 0 | L78: 31.35925 | M78: 31.35925 | N78: 0 | O78: 100 | P78: 0000301003 | Q78: 3111 | R78: 5336 | W78: 0 | AB78: 0 | AC78: -31.35925 | AD78: 0 | AH78: 0 | AI78: 0
A79: 31 | B79: Vzdělávání a školské služby | C79: 3113 | D79: Základní školy | E79: 5169 | F79: Nákup ostatních služeb | G79: 0311300004 | H79: Rozšíř.kapacity zákl.škol v Humpolci | K79: 400 | L79: 400 | M79: 325.683 | N79: 74.317 | O79: 81.42075 | P79: 0311300004 | Q79: 3113 | R79: 5169 | W79: 0 | AB79: 0 | AC79: -325.683 | AD79: 0 | AH79: 0 | AI79: 0
A80: 31 | B80: Vzdělávání a školské služby | C80: 3113 | D80: Základní školy | E80: 5166 | F80: Konzultační, poradenské a právní služby | G80: 0311300004 | H80: Rozšíření kapacit základních škol v Humpolci | Y80: 800 | Z80: 800 | AA80: 800 | AC80: 800 | AF80: Hrala/Machek | AH80: 800 | AI80: 0
A81: 31 | B81: Vzdělávání a školské služby | C81: 3113 | D81: Základní školy | E81: 5331 | F81: Neinvestiční příspěvky zřízeným příspěvkovým organizacím | G81: 0000000321 | H81: ZŠ Hálkova | K81: 7879 | L81: 8227 | M81: 8227 | N81: 0 | O81: 100 | P81: 0000000321 | Q81: 3113 | R81: 5331 | S81: 11819 | T81: 11819 | U81: =V81-T81 -> -1432 | V81: =11819+1068-2500 -> 10387 | W81: 126.255014 | Y81: 200 | Z81: 10587 | AA81: 10587 | AB81: 128.6860338 | AC81: 2360 | AD81: 128.6860338 | AF81: Koudelková | AH81: 200 | AI81: 0
A82: 31 | B82: Vzdělávání a školské služby | C82: 3113 | D82: Základní školy | E82: 5331 | F82: Neinvestiční příspěvky zřízeným příspěvkovým organizacím | G82: 0000000322 | H82: ZŠ Hradská | K82: 7236 | L82: 7236 | M82: 7236 | N82: 0 | O82: 100 | P82: 0000000322 | Q82: 3113 | R82: 5331 | S82: 8332 | T82: 8332 | U82: =V82-T82 -> -340 | V82: =8332-340 -> 7992 | W82: 110.4477612 | Z82: 7992 | AA82: 7992 | AB82: 110.4477612 | AC82: 756 | AD82: 110.4477612 | AF82: Koudelková | AH82: 0 | AI82: 0
A83: 31 | B83: Vzdělávání a školské služby | C83: 3113 | D83: Základní školy | E83: 5331 | F83: Neinvestiční příspěvky zřízeným příspěvkovým organizacím | G83: 0311300001 | H83: ZŠ spec.pedag, šk.psycholog | K83: 400 | L83: 387.05 | M83: 199.86 | N83: 187.19 | O83: 51.63673944 | P83: 0311300001 | Q83: 3113 | R83: 5331 | S83: 400 | T83: 400 | U83: =V83-T83 -> 0 | V83: 400 | W83: 103.345821 | Z83: 400 | AA83: 400 | AB83: 103.345821 | AC83: 200.14 | AD83: 200.1400981 | AF83: Koudelková | AH83: 0 | AI83: 0
A84: 31 | B84: Vzdělávání a školské služby | C84: 3113 | D84: Základní školy | E84: 5331 | F84: Neinvestiční příspěvky zřízeným příspěvkovým organizacím | G84: 0999000321 | H84: Neinv.příspěvek-ZŠ Hálkova-participativní rozpočet | K84: 0 | L84: 100 | M84: 100 | N84: 0 | O84: 100 | P84: 0999000321 | Q84: 3113 | R84: 5331 | W84: 0 | Y84: 100 | Z84: 100 | AA84: 100 | AB84: 100 | AC84: 0 | AD84: 100 | AF84: Koudelková | AH84: 100 | AI84: 0
A85: 31 | B85: Vzdělávání a školské služby | C85: 3113 | D85: Základní školy | E85: 5331 | F85: Neinvestiční příspěvky zřízeným příspěvkovým organizacím | G85: 0999000322 | H85: Neinv.příspěvek-ZŠ Hradská-participativní rozpočet | K85: 0 | L85: 100 | M85: 100 | N85: 0 | O85: 100 | P85: 0999000322 | Q85: 3113 | R85: 5331 | W85: 0 | Y85: 100 | Z85: 100 | AA85: 100 | AB85: 100 | AC85: 0 | AD85: 100 | AF85: Koudelková | AH85: 100 | AI85: 0
A86: 31 | B86: Vzdělávání a školské služby | C86: 3113 | D86: Základní školy | E86: 5336 | F86: Neinvestiční transfery zřízeným příspěvkovým organizacím | G86: 0000321003 | H86: Kraj-Potrav.pomoc dětem ZŠ Hálkova | K86: 0 | L86: 107.76488 | M86: 107.76488 | N86: 0 | O86: 100 | P86: 0000321003 | Q86: 3113 | R86: 5336 | W86: 0 | AB86: 0 | AC86: -107.76488 | AD86: 0 | AH86: 0 | AI86: 0
A87: 31 | B87: Vzdělávání a školské služby | C87: 3113 | D87: Základní školy | E87: 5336 | F87: Neinvestiční transfery zřízeným příspěvkovým organizacím | G87: 0000322004 | H87: ZŠ Hradská-průtok.neinv.dotace-ŠABLONY OP JAK | K87: 0 | L87: 2031.07 | M87: 2031.07 | N87: 0 | O87: 100 | W87: 0 | AB87: 0 | AC87: -2031.07 | AD87: 0 | AI87: 0
A88: 31 | B88: Vzdělávání a školské služby | C88: 3113 | D88: Základní školy | E88: 5901 | F88: Nespecifikované rezervy | G88: 0311300002 | H88: ZŠ rezerva | K88: 1490 | L88: 1490 | M88: 0 | N88: 1490 | O88: 0 | P88: 0311300002 | Q88: 3113 | R88: 5901 | W88: 0 | AB88: 0 | AC88: 0 | AH88: =Z88-V88 -> 0 | AI88: 0
A89: 31 | B89: Vzdělávání a školské služby | C89: 3119 | D89: Ostatní záležitosti základního vzdělávání | E89: 5169 | F89: Nákup ostatních služeb | G89: 0311900001 | H89: Projekt Post Bellum | K89: 130 | L89: 130 | M89: 0 | N89: 130 | O89: 0 | P89: 0311900001 | Q89: 3119 | R89: 5169 | S89: 130 | T89: 130 | U89: =V89-T89 -> 0 | V89: 130 | W89: 100 | Y89: 20 | Z89: 150 | AA89: 150 | AB89: 115.3846154 | AC89: 150 | AF89: Koudelková | AH89: 20 | AI89: 0
A90: 31 | B90: Vzdělávání a školské služby | C90: 3121 | D90: Gymnázia | E90: 5339 | F90: Neinvestiční transfery cizím příspěvkovým organizacím | G90: 0999312101 | H90: Dar particip.rozpočet-Gymnázium Dr.A.Hrdličky | K90: 0 | L90: 100 | M90: 100 | N90: 0 | O90: 100 | P90: 0999312101 | Q90: 3121 | R90: 5339 | U90: =V90-T90 -> 0 | W90: 0 | Y90: 100 | Z90: 100 | AA90: 100 | AB90: 100 | AC90: 0 | AD90: 100 | AF90: Koudelková | AH90: 100 | AI90: 0
A91: ODPA(2) 31 Vzdělávání a školské služby | K91: 22348 | L91: 27256.19 | M91: 23374.68 | N91: 3881.51 | O91: 85.76 | T91: =SUM(T74:T90) -> 26549 | U91: =V91-T91 -> 550 | V91: =SUM(V74:V90) -> 27099 | W91: 99.42328697 | Z91: =SUM(Z74:Z90) -> 28419 | AB91: 104.2662236 | AC91: 5044.32 | AD91: 121.580274 | AE91: =SUM(AE74:AE90) -> 0 | AH91: 1320 | AI91: 1320
A92: 32 | B92: Vzdělávání a školské služby | C92: 3231 | D92: Základní umělecké školy | E92: 5331 | F92: Neinvestiční příspěvky zřízeným příspěvkovým organizacím | G92: 0000000324 | H92: ZUŠ | K92: 256 | L92: 299 | M92: 299 | N92: 0 | O92: 100 | P92: 0000000324 | Q92: 3231 | R92: 5331 | S92: 600 | T92: 600 | U92: =V92-T92 -> 280 | V92: 880 | W92: 294.3143813 | Z92: 880 | AA92: 880 | AB92: 294.3143813 | AC92: 581 | AD92: 294.3143813 | AF92: Koudelková | AH92: 0 | AI92: 0
A93: 32 | B93: Vzdělávání a školské služby | C93: 3231 | D93: Základní umělecké školy | E93: 5336 | F93: Neinvestiční transfery zřízeným příspěvkovým organizacím | G93: 0323100003 | H93: ZUŠ-průtok-neinv.dotace-Podpora okr.a kraj.kol soutěží a přehlídek v zájm.vzdělávání pro r.2022 | K93: 0 | L93: 15 | M93: 15 | N93: 0 | O93: 100 | P93: 0323100003 | Q93: 3231 | R93: 5336 | W93: 0 | AB93: 0 | AC93: -15 | AD93: 0 | AH93: 0 | AI93: 0
A94: 32 | B94: Vzdělávání a školské služby | C94: 3233 | D94: Střediska volného času | E94: 5331 | F94: Neinvestiční příspěvky zřízeným příspěvkovým organizacím | G94: 0000000325 | H94: SVČ | K94: 2900 | L94: 2900 | M94: 2900 | N94: 0 | O94: 100 | P94: 0000000325 | Q94: 3233 | R94: 5331 | S94: 3866 | T94: 3866 | U94: =V94-T94 -> 0 | V94: 3866 | W94: 133.3103448 | Z94: 3866 | AA94: 3866 | AB94: 133.3103448 | AC94: 966 | AD94: 133.3103448 | AF94: Koudelková | AH94: 0 | AI94: 0
A95: 32 | B95: Vzdělávání a školské služby | C95: 3233 | D95: Střediska volného času | E95: 5336 | F95: Neinvestiční transfery zřízeným příspěvkovým organizacím | G95: 0323300001 | H95: SVČ-neinv.průtok.dotace Míčkování anebo zatočíme s rýmou a kašlem | K95: 0 | L95: 20 | M95: 20 | N95: 0 | O95: 100 | P95: 0323300001 | Q95: 3233 | R95: 5336 | W95: 0 | AB95: 0 | AC95: -20 | AD95: 0 | AH95: 0 | AI95: 0
